Workbook

Sheet Menu
Z1: 2
Z4: 2
A6: Coastal Bend Extension District - 11
D8: Budgets
D11: Forage Crops
D13: =CoastalHay!A3 -> Coastal Bermudagrass Hay and Grazing (3 Cuttings)
D14: =CoastalPasture!A3 -> Coastal Bermudagrass Pasture
D15: =SorghumHay!A3 -> Sorghum Hay (2 Cuttings)
D17: Field Crops - Irrigated
B18: Comparative Returns
D19: =IrrigatedCotton!A3 -> Cotton - Genetically Modified Seed, Conv. Till-24 Row, Irrigated, 1250 lb. Yield Goal
B20: Links | D20: =IrrigatedSorghumLCB!A3 -> Sorghum - Conventional Till-24 Row, Irrigated, 100 bu. Yield Goal
D21: =IrrigatedSesame!A3 -> Sesame - Conventional Till-12 Row, Irrigated, 1100 lb. Yield Goal
D22: =IrrigatedWheatLCB!A3 -> Hard Red Spring Wheat, Irrigated, 60 bu. Yield Goal
D24: Field Crops - Lower Coast Dryland
D26: =CanolaLCB!A3 -> Canola, Dryland, 1500 lb. Yield Goal - Lower Coast
D27: =+CottonLCB!A3 -> Cotton - Conventional Seed, Till-24 Row, Dryland, 800 lb. Yield Goal - Lower Coast
D28: =Cotton!A3 -> Cotton - Genetically Modified Seed, Conv. Till-24 Row, Dryland, 800 lb. Yield Goal - Lower Coast
D29: =Sesame!A3 -> Sesame - Conventional Till-12 Row, Dryland, 800 lb. Yield Goal - Lower Coast
D30: =SorghumLCB!A3 -> Sorghum - Conventional Till-24 Row, Dryland, 72 bu. Yield Goal - Lower Coast
D31: =WheatLCB!A3 -> Hard Red Spring Wheat, Dryland, 35 bu. Yield Goal - Lower Coast
D32: =WheatNW!A3 -> Hard Red Spring Wheat, Dryland, 35 bu. Yield Goal, Northwest - Lower Coast
D34: Field Crops - Upper Coast Dryland
D36: =Corn!A3 -> Corn - GMO Seed, Conventional Till-12 Row, Dryland, 100 bu. Yield Goal - Upper Coast
D37: =CottonUCB!A3 -> Cotton - GMO Seed, Conv. Till-12 Row, Dryland, 900 lb. Yield Goal - Upper Coast
D38: =SorghumUCB!A3 -> Sorghum - Conventional Till-12 Row, Dryland, 90 bu. Yield Goal - Upper Coast
D39: =Soybeans!A3 -> Soybeans - GMO Seed, Conventional Till-12 Row, Dryland, 30 bu. Yield Goal - Upper Coast
D40: =WheatUCB!A3 -> Soft Red Winter Wheat, 45 bu. Yield Goal - Upper Coast
D42: Rice
D44: =RiceFirstCrop!A3 -> Rice West of Houston, 1st Crop, Surface Water
D45: =RiceSecondCrop!A3 -> Rice West of Houston, 2nd Crop, Surface Water
D47: Livestock
D49: =+CowCalf!A3 -> Cow-Calf Improved Pasture
D50: =+StockersSummer!A3 -> Summer Stocker Calf Budget (160 Days Grazing)
D51: =StockerWinter!A3 -> Winter Stocker Calf Budget (110 Says Grazing)
D53: Other Budgets
D55: ='Livestock Budget'!A3 -> Livestock Budget
D56: ='Crop Budget'!A3 -> Crop Enterprise
A73: Developed by Extension Economists, Texas A&M AgriLife Extension Service, budgets@tamu.edu.

Sheet Links
B2: Texas Crop and Livestock Budgets
B3: A Program of the Texas A&M AgriLife Extension Service
B4: Agricultural Economics Department, The Texas A&M University System
B6: Developed by Texas A&M AgriLife Extension Service Economists and Other Specialists
B8: Contact Us | G8: Clickable Logos
B10: Resources
B12: Decision Aids (includes Machinery Cost Estimator)
B14: Custom Rate Survey
B16: Basis Data
B18: Master Marketer
B20: Extension Ag Economics
B22: Department of Agricultural Economics
B24: Menu Page
B26: Links last checked 4/17/2020

Sheet CottonLCB
A1: Projections for Planning Purposes Only -- Not to be Used without Updating
A2: 2023 Estimated Costs and Returns per Acre
A3: Cotton - Conventional Seed, Till-24 Row, Dryland, 800 lb. Yield Goal - Lower Coast
A4: Enter your name for this budget in the cell above.
A5: Enter Your Values in the cells highlighed in MAROON.
E6: Your Acres | R6: Your
C7: Crop Acres | D7: 500 | L7: Your | Q7: Enterprise | R7: Enterprise
E8: Your | H8: Your | I8: Cash | J8: Your | K8: Landlord | L8: Landlord | N8: Your | P8: Your | Q8: Total | R8: Total
A9: REVENUE | D9: Quantity | E9: Quantity | F9: Units | G9: $/Unit | H9: $/Unit | I9: Total | J9: Total | K9: Share | L9: Share | M9: Landlord | N9: Landlord | O9: Tenant | P9: Tenant | Q9: (500 acres) | R9: ="(" & E7 & " acres)" -> ( acres)
B10: Cotton Lint | D10: 800 | F10: Pound | G10: 0.9 | I10: 720 | J10: =E10*H10 -> 0 | K10: 0 | M10: 0 | N10: =J10*L10 -> 0 | O10: 720 | P10: =+J10-N10 -> 0 | Q10: 360000 | R10: =+J10*E$7 -> 0
B11: Cottonseed | D11: 0.58 | F11: Ton | G11: 360 | I11: 208.8 | J11: 0 | K11: 0 | M11: 0 | N11: 0 | O11: 208.8 | P11: 0 | Q11: 104400 | R11: 0
D12: 0 | G12: 0 | I12: 0 | J12: 0 | K12: 0 | M12: 0 | N12: 0 | O12: 0 | P12: 0 | Q12: 0 | R12: 0
D13: 0 | G13: 0 | I13: 0 | J13: 0 | K13: 0 | M13: 0 | N13: 0 | O13: 0 | P13: 0 | Q13: 0 | R13: 0
A14: Total Revenue | I14: 928.8 | J14: =SUM(J10:J13) -> 0 | M14: 0 | N14: =SUM(N10:N13) -> 0 | O14: 928.8 | P14: =SUM(P10:P13) -> 0 | Q14: 464400 | R14: =SUM(R10:R13) -> 0
Q15: Enterprise | R15: Enterprise
A16: VARIABLE COSTS | D16: Quantity | E16: Quantity | F16: Units | G16: $/Unit | H16: $/Unit | I16: Total | J16: Total | K16: Share | L16: Share | M16: Landlord | N16: Landlord | O16: Tenant | P16: Tenant | Q16: Total | R16: Total
A17: Production Costs
B18: Custom | I18: $216.4
C19: Fertilizer Application | D19: 1 | F19: Ounce | G19: 0.159 | I19: 0.159 | J19: =E19*H19 -> 0 | K19: 0 | M19: 0 | N19: =J19*L19 -> 0 | O19: 0.159 | P19: =+J19-N19 -> 0 | Q19: 79.5 | R19: =+J19*E$7 -> 0
C20: Pick and Module | D20: 800 | F20: Pound | G20: 0.1378 | I20: 110.24 | J20: 0 | K20: 0 | M20: 0 | N20: 0 | O20: 110.24 | P20: 0 | Q20: 55120 | R20: 0
C21: Ginning - Picker | D21: 800 | F21: Pound | G21: 0.1325 | I21: 106 | J21: 0 | K21: 0 | M21: 0 | N21: 0 | O21: 106 | P21: 0 | Q21: 53000 | R21: 0
B22: Fertilizer | I22: $95.9
C23: 24-8-0 | D23: 0.1665 | F23: Ton | G23: 576 | I23: 95.904 | J23: 0 | K23: 0 | M23: 0 | N23: 0 | O23: 95.904 | P23: 0 | Q23: 47952 | R23: 0
B24: Herbicide | I24: $91.56
C25: Trifluralin | D25: 32 | F25: Ounce | G25: 0.2014 | I25: 6.4448 | J25: 0 | K25: 0 | M25: 0 | N25: 0 | O25: 6.4448 | P25: 0 | Q25: 3222.4 | R25: 0
C26: 2, 4D Amine | D26: 2 | F26: Pint | G26: 3.875 | I26: 7.75 | J26: 0 | K26: 0 | M26: 0 | N26: 0 | O26: 7.75 | P26: 0 | Q26: 3875 | R26: 0
C27: Cotton PreEmerge Herbicide | D27: 1 | F27: Quart | G27: 18.5 | I27: 18.5 | J27: 0 | K27: 0 | M27: 0 | N27: 0 | O27: 18.5 | P27: 0 | Q27: 9250 | R27: 0
C28: Cotton Early Season Herbicide | D28: 0.1 | F28: Quart | G28: 17.2144 | I28: 1.72144 | J28: 0 | K28: 0 | M28: 0 | N28: 0 | O28: 1.72144 | P28: 0 | Q28: 860.72 | R28: 0
C29: Cotton Mid Season Herbicide | D29: 3 | F29: Ounce | G29: 15.55 | I29: 46.65 | J29: 0 | K29: 0 | M29: 0 | N29: 0 | O29: 46.65 | P29: 0 | Q29: 23325 | R29: 0
C30: Select | D30: 1 | F30: Pint | G30: 10.494 | I30: 10.494 | J30: 0 | K30: 0 | M30: 0 | N30: 0 | O30: 10.494 | P30: 0 | Q30: 5247 | R30: 0
B31: Seed | I31: $50.93
C32: Cotton Seed | D32: 52.8 | F32: Thousand | G32: 0.7844 | I32: 41.41632 | J32: 0 | K32: 0 | M32: 0 | N32: 0 | O32: 41.41632 | P32: 0 | Q32: 20708.16 | R32: 0
C33: Cotton Seed - Insect Treatment | D33: 52.8 | F33: Thousand | G33: 0.1802 | I33: 9.51456 | J33: 0 | K33: 0 | M33: 0 | N33: 0 | O33: 9.51456 | P33: 0 | Q33: 4757.28 | R33: 0
B34: Miscellaneous | I34: $24.05
C35: Crop Insurance -Cotton LC | D35: 1 | F35: Acre | G35: 14 | I35: 14 | J35: 0 | K35: 0 | M35: 0 | N35: 0 | O35: 14 | P35: 0 | Q35: 7000 | R35: 0
C36: Pickup Milage Charge | D36: 1 | F36: Acre | G36: 4.1128 | I36: 4.1128 | J36: 0 | K36: 0 | M36: 0 | N36: 0 | O36: 4.1128 | P36: 0 | Q36: 2056.4 | R36: 0
C37: Boll Weevil Program LC | D37: 1.6 | F37: Bale | G37: 3.71 | I37: 5.936 | J37: 0 | K37: 0 | M37: 0 | N37: 0 | O37: 5.936 | P37: 0 | Q37: 2968 | R37: 0
B38: Other Chemicals | I38: $29.83
C39: 2, 4D Amine | D39: 2 | F39: Pint | G39: 3.875 | I39: 7.75 | J39: 0 | K39: 0 | M39: 0 | N39: 0 | O39: 7.75 | P39: 0 | Q39: 3875 | R39: 0
C40: Glyphosate | D40: 1 | F40: Quart | G40: 12.25 | I40: 12.25 | J40: 0 | K40: 0 | M40: 0 | N40: 0 | O40: 12.25 | P40: 0 | Q40: 6125 | R40: 0
C41: Generic PIX | D41: 32 | F41: Ounce | G41: 0.0636 | I41: 2.0352 | J41: 0 | K41: 0 | M41: 0 | N41: 0 | O41: 2.0352 | P41: 0 | Q41: 1017.6 | R41: 0
C42: Defoliants - Picker | D42: 4 | F42: Ounce | G42: 1.113 | I42: 4.452 | J42: 0 | K42: 0 | M42: 0 | N42: 0 | O42: 4.452 | P42: 0 | Q42: 2226 | R42: 0
C43: Ethephon | D43: 21 | F43: Ounce | G43: 0.159 | I43: 3.339 | J43: 0 | K43: 0 | M43: 0 | N43: 0 | O43: 3.339 | P43: 0 | Q43: 1669.5 | R43: 0
B44: Other Labor | I44: $1.36
C45: Hand Labor | D45: 0.08 | F45: Hour | G45: 16.96 | I45: 1.3568 | J45: 0 | K45: 0 | M45: 0 | N45: 0 | O45: 1.3568 | P45: 0 | Q45: 678.4 | R45: 0
B46: Insecticide | I46: $2.24
C47: Fleahopper Control LC | D47: 1.6 | F47: Ounce | G47: 1.4 | I47: 2.24 | J47: 0 | K47: 0 | M47: 0 | N47: 0 | O47: 2.24 | P47: 0 | Q47: 1120 | R47: 0
D48: 0 | G48: 0 | I48: 0 | J48: 0 | K48: 0 | M48: 0 | N48: 0 | O48: 0 | P48: 0 | Q48: 0 | R48: 0
D49: 0 | G49: 0 | I49: 0 | J49: 0 | K49: 0 | M49: 0 | N49: 0 | O49: 0 | P49: 0 | Q49: 0 | R49: 0
D50: 0 | G50: 0 | I50: 0 | J50: =E50*H50 -> 0 | K50: 0 | M50: 0 | N50: =J50*L50 -> 0 | O50: 0 | P50: =+J50-N50 -> 0 | Q50: 0 | R50: =+J50*E$7 -> 0
B51: Machinery Labor | I51: $4.82
C52: Tractors/Self-Propelled | D52: 0.28 | F52: Hour | G52: 17.21 | I52: 4.8188 | J52: =E52*H52 -> 0 | K52: 0 | M52: 0 | N52: =J52*L52 -> 0 | O52: 4.8188 | P52: =+J52-N52 -> 0 | Q52: 2409.4 | R52: =+J52*E$7 -> 0
C53: Other Labor | D53: 0 | F53: Hour | G53: 17.21 | I53: 0 | J53: =E53*H53 -> 0 | K53: 0 | M53: 0 | N53: =J53*L53 -> 0 | O53: 0 | P53: =+J53-N53 -> 0 | Q53: 0 | R53: =+J53*E$7 -> 0
B55: Diesel Fuel | I55: $7.91
C56: Pickup/General Use Equipment | D56: 1 | F56: Acre | G56: 0 | I56: 0 | J56: =E56*H56 -> 0 | K56: 0 | M56: 0 | N56: =J56*L56 -> 0 | O56: 0 | P56: =+J56-N56 -> 0 | Q56: 0 | R56: =+J56*E$7 -> 0
C57: Tractors/Self-Propelled | D57: 3.53 | F57: Gallon | G57: 2.24 | I57: 7.9072 | J57: =E57*H57 -> 0 | K57: 0 | M57: 0 | N57: =J57*L57 -> 0 | O57: 7.9072 | P57: =+J57-N57 -> 0 | Q57: 3953.6 | R57: =+J57*E$7 -> 0
B59: Gasoline | I59: $0
C60: Pickup/General Use Equipment | D60: 1 | F60: Acre | G60: 0 | I60: 0 | J60: =E60*H60 -> 0 | K60: 0 | M60: 0 | N60: =J60*L60 -> 0 | O60: 0 | P60: =+J60-N60 -> 0 | Q60: 0 | R60: =+J60*E$7 -> 0
C61: Tractors/Self-Propelled | D61: 0 | F61: Gallon | G61: 2.09 | I61: 0 | J61: =E61*H61 -> 0 | K61: 0 | M61: 0 | N61: =J61*L61 -> 0 | O61: 0 | P61: =+J61-N61 -> 0 | Q61: 0 | R61: =+J61*E$7 -> 0
B63: Repairs & Maintenance | I63: $16.63
C64: Pickup/General Use Equipment | D64: 1 | F64: Acre | G64: 0 | I64: 0 | J64: =E64*H64 -> 0 | K64: 0 | M64: 0 | N64: =J64*L64 -> 0 | O64: 0 | P64: =+J64-N64 -> 0 | Q64: 0 | R64: =+J64*E$7 -> 0
C65: Irrigation Equipment | D65: 1 | F65: Acre | G65: 0 | I65: 0 | J65: 0 | K65: 0 | M65: 0 | N65: 0 | O65: 0 | P65: 0 | Q65: 0 | R65: 0
C66: Tractors/Self-Propelled | D66: 1 | F66: Acre | G66: 10.75593477 | I66: 10.75593477 | J66: 0 | K66: 0 | M66: 0 | N66: 0 | O66: 10.75593477 | P66: 0 | Q66: 5377.967387 | R66: 0
C67: Implements | D67: 1 | F67: Acre | G67: 5.874472996 | I67: 5.874472996 | J67: 0 | K67: 0 | M67: 0 | N67: 0 | O67: 5.874472996 | P67: 0 | Q67: 2937.236498 | R67: 0
I68: 0 | J68: 0 | K68: 0 | M68: 0 | N68: 0 | O68: 0 | P68: 0 | Q68: 0 | R68: =+J68*E$7 -> 0
I69: 0 | J69: 0 | K69: 0 | M69: 0 | N69: 0 | O69: 0 | P69: 0 | Q69: 0 | R69: 0
B70: Interest on Credit Line | G70: 0.08 | I70: 16.73945244 | J70: =+SUM(J18:J69)/2*H70 -> 0 | M70: 0 | N70: =+SUM(N18:N69)/2*L70 -> 0 | O70: 16.73945244 | P70: =+SUM(P18:P69)/2*L70 -> 0 | Q70: 8369.726218 | R70: =+J70*E$7 -> 0
A71: Total Variable Costs | I71: 558.3617802 | J71: =SUM(J19:J70) -> 0 | M71: 0 | N71: =SUM(N19:N70) -> 0 | O71: 558.3617802 | P71: =SUM(P19:P70) -> 0 | Q71: 279180.8901 | R71: =SUM(R19:R70) -> 0
A72: Planned Returns Above Variable Costs: | I72: 370.4382198 | J72: =+J14-J71 -> 0 | M72: 0 | N72: =+N14-N71 -> 0 | O72: 370.4382198 | P72: =+P14-P71 -> 0 | Q72: 185219.1099 | R72: =+R14-R71 -> 0
B73: Breakeven Price to Cover Variable Costs | G73: 0.4369522253 | H73: =IF(E10=0,"n/a",(YVarExp-(YTotExp+YTotRet-J10))/E10) -> n/a | I73: Pound
Q74: Enterprise | R74: Enterprise
A75: FIXED COSTS | D75: Quantity | E75: Quantity | F75: Units | G75: $/Unit | H75: $/Unit | J75: Total | K75: Share | L75: Share | M75: Landlord | N75: Landlord | O75: Tenant | P75: Tenant | Q75: Total | R75: Total
B76: Machinery Depreciation | I76: $22.55
C77: Tractors/Self-Propelled | D77: 1 | F77: Acre | G77: 14.33363028 | I77: 14.33363028 | J77: =E77*H77 -> 0 | K77: 0 | M77: 0 | N77: =J77*L77 -> 0 | O77: 14.33363028 | P77: =+J77-N77 -> 0 | Q77: 7166.815141 | R77: =+J77*E$7 -> 0
C78: Implements | D78: 1 | F78: Acre | G78: 8.220678782 | I78: 8.220678782 | J78: 0 | K78: 0 | M78: 0 | N78: =J78*L78 -> 0 | O78: 8.220678782 | P78: 0 | Q78: 4110.339391 | R78: 0
B79: Equipment Investment | I79: $11.7
C80: Tractors/Self-Propelled | D80: 110.1678688 | F80: Dollars | G80: 0.08 | I80: 8.813429504 | J80: =E80*H80 -> 0 | K80: 0 | M80: 0 | N80: =J80*L80 -> 0 | O80: 8.813429504 | P80: =+J80-N80 -> 0 | Q80: 4406.714752 | R80: =+J80*E$7 -> 0
C81: Implements | D81: 36.08826159 | F81: Dollars | G81: 0.08 | I81: 2.887060927 | J81: 0 | K81: 0 | M81: 0 | N81: =J81*L81 -> 0 | O81: 2.887060927 | P81: 0 | Q81: 1443.530463 | R81: 0
B82: Salaried Labor | D82: 1 | F82: Acre | G82: 0 | I82: 0 | J82: 0 | K82: 0 | M82: 0 | N82: =J82*L82 -> 0 | O82: 0 | P82: =+J82-N82 -> 0 | Q82: 0 | R82: =+J82*E$7 -> 0
B83: Management Fee, Owner/Operator Labor | D83: 1 | F83: Acre | G83: 46.44 | I83: 46.44 | J83: 0 | K83: 0 | M83: 0 | N83: 0 | O83: 46.44 | P83: 0 | Q83: 23220 | R83: 0
B84: Allocated Establishment Cost | D84: 1 | F84: Acre | G84: 0 | I84: 0 | J84: 0 | K84: 0 | M84: 0 | N84: 0 | O84: 0 | P84: 0 | Q84: 0 | R84: 0
B85: LCB - Land Charge | D85: 1 | F85: Acre | G85: 70 | I85: 70 | J85: 0 | K85: 0 | M85: 0 | N85: 0 | O85: 70 | P85: 0 | Q85: 35000 | R85: 0
B86: Property Taxes | D86: 1 | F86: Acre | G86: 0 | I86: 0 | J86: =E86*H86 -> 0 | K86: 0 | M86: 0 | N86: 0 | O86: 0 | P86: 0 | Q86: 0 | R86: =+J86*E$7 -> 0
B87: Whole Farm Insurance | D87: 1 | F87: Acre | G87: 0 | I87: 0 | J87: 0 | K87: 0 | M87: 0 | N87: 0 | O87: 0 | P87: 0 | Q87: 0 | R87: 0
D88: 1 | G88: 0 | I88: 0 | J88: 0 | K88: 0 | M88: 0 | N88: 0 | O88: 0 | P88: 0 | Q88: 0 | R88: 0
D89: 1 | G89: 0 | I89: 0 | J89: 0 | K89: 0 | M89: 0 | N89: 0 | O89: 0 | P89: 0 | Q89: 0 | R89: 0
A90: Total Fixed Costs | I90: 150.6947995 | J90: =+SUM(J77:J89) -> 0 | M90: 0 | N90: =+SUM(N77:N89) -> 0 | O90: 150.6947995 | P90: =+SUM(P77:P89) -> 0 | Q90: 75347.39975 | R90: =+SUM(R77:R89) -> 0
A91: Total Specified Costs | I91: 709.0565797 | J91: =+J71+J90 -> 0 | M91: 0 | N91: =+N71+N90 -> 0 | O91: 709.0565797 | P91: =+P71+P90 -> 0 | Q91: 354528.2898 | R91: =+R71+R90 -> 0
A93: Returns Above Specified Costs | I93: 219.7434203 | J93: =+J14-J91 -> 0 | M93: 0 | N93: =+N14-N91 -> 0 | O93: 219.7434203 | P93: =+P14-P91 -> 0 | Q93: 109871.7102 | R93: =+R14-R91 -> 0
A95: Breakeven Price to Cover Total Costs | G95: 0.6253207246 | H95: =IF(E10=0,"n/a",(YTotExp-(YTotExp+YTotRet-J10))/E10) -> n/a | I95: Pound
D97: Example Breakeven Prices
B98: Example | C98: Example | D98: To Cover | G98: To Cover
B99: Yield | C99: Yield | D99: Variable | G99: Total
B100: Percent | C100: Pound | D100: Costs | G100: Costs
B101: 0.75 | C101: 600 | D101: 0.582602967 | G101: 0.8337609662
B102: 0.9 | C102: 720 | D102: 0.4855024725 | G102: 0.6948008051
B103: 1 | C103: 800 | D103: 0.4369522253 | G103: 0.6253207246
B104: 1.1 | C104: 880 | D104: 0.3972292957 | G104: 0.568473386
B105: 1.25 | C105: 1000 | D105: 0.3495617802 | G105: 0.5002565797
A107: Developed by Extension Economists, Texas A&M AgriLife Extension Service, budgets@tamu.edu.
A109: Information presented is prepared solely as a general guide and not intended to recognize or predict the costs and returns from any one operation. Brand names are mentioned only as examples and imply no endorsement.

Sheet SorghumLCB
A1: Projections for Planning Purposes Only -- Not to be Used without Updating
A2: 2023 Estimated Costs and Returns per Acre
A3: Sorghum - Conventional Till-24 Row, Dryland, 72 bu. Yield Goal - Lower Coast
A4: Enter your name for this budget in the cell above.
A5: Enter Your Values in the cells highlighed in MAROON.
E6: Your Acres | R6: Your
C7: Crop Acres | D7: 500 | L7: Your | Q7: Enterprise | R7: Enterprise
E8: Your | H8: Your | I8: Cash | J8: Your | K8: Landlord | L8: Landlord | N8: Your | P8: Your | Q8: Total | R8: Total
A9: REVENUE | D9: Quantity | E9: Quantity | F9: Units | G9: $/Unit | H9: $/Unit | I9: Total | J9: Total | K9: Share | L9: Share | M9: Landlord | N9: Landlord | O9: Tenant | P9: Tenant | Q9: (500 acres) | R9: ="(" & E7 & " acres)" -> ( acres)
B10: Grain Sorghum, Lower Coast | D10: 72 | F10: Bushel | G10: 5.1 | I10: 367.2 | J10: =E10*H10 -> 0 | K10: 0 | M10: 0 | N10: =J10*L10 -> 0 | O10: 367.2 | P10: =+J10-N10 -> 0 | Q10: 183600 | R10: =+J10*E$7 -> 0
D11: 0 | G11: 0 | I11: 0 | J11: 0 | K11: 0 | M11: 0 | N11: 0 | O11: 0 | P11: =+J11-N11 -> 0 | Q11: 0 | R11: 0
D12: 0 | G12: 0 | I12: 0 | J12: 0 | K12: 0 | M12: 0 | N12: 0 | O12: 0 | P12: 0 | Q12: 0 | R12: 0
A13: Total Revenue | I13: 367.2 | J13: =SUM(J10:J12) -> 0 | M13: 0 | N13: =SUM(N10:N12) -> 0 | O13: 367.2 | P13: =SUM(P10:P12) -> 0 | Q13: 183600 | R13: =SUM(R10:R12) -> 0
Q14: Enterprise | R14: Enterprise
A15: VARIABLE COSTS | D15: Quantity | E15: Quantity | F15: Units | G15: $/Unit | H15: $/Unit | I15: Total | J15: Total | K15: Share | L15: Share | M15: Landlord | N15: Landlord | O15: Tenant | P15: Tenant | Q15: Total | R15: Total
A16: Production Costs
B17: Custom | I17: $24.64
C18: Fertilizer Application | D18: 1 | F18: Ounce | G18: 0.159 | I18: 0.159 | J18: =E18*H18 -> 0 | K18: 0 | M18: 0 | N18: =J18*L18 -> 0 | O18: 0.159 | P18: =+J18-N18 -> 0 | Q18: 79.5 | R18: =+J18*E$7 -> 0
C19: Custom Haul - Sorghum | D19: 42 | F19: CWT | G19: 0.583 | I19: 24.486 | J19: 0 | K19: 0 | M19: 0 | N19: 0 | O19: 24.486 | P19: 0 | Q19: 12243 | R19: 0
B20: Fertilizer | I20: $95.04
C21: 24-8-0 | D21: 0.165 | F21: Ton | G21: 576 | I21: 95.04 | J21: 0 | K21: 0 | M21: 0 | N21: 0 | O21: 95.04 | P21: 0 | Q21: 47520 | R21: 0
B22: Herbicide | I22: $25.92
C23: Atrazine 4L | D23: 2 | F23: Quart | G23: 5.75 | I23: 11.5 | J23: 0 | K23: 0 | M23: 0 | N23: 0 | O23: 11.5 | P23: 0 | Q23: 5750 | R23: 0
C24: Sorghum PreEmerge Herbicide | D24: 14 | F24: Ounce | G24: 1.03 | I24: 14.42 | J24: 0 | K24: 0 | M24: 0 | N24: 0 | O24: 14.42 | P24: 0 | Q24: 7210 | R24: 0
B25: Insecticide | I25: $13.51
C26: Headworn Control | D26: 2.6 | F26: Ounce | G26: 1.7 | I26: 4.42 | J26: 0 | K26: 0 | M26: 0 | N26: 0 | O26: 4.42 | P26: 0 | Q26: 2210 | R26: 0
C27: Transform | D27: 1 | F27: Ounce | G27: 8.1938 | I27: 8.1938 | J27: 0 | K27: 0 | M27: 0 | N27: 0 | O27: 8.1938 | P27: 0 | Q27: 4096.9 | R27: 0
C28: Stinkbug Control | D28: 2 | F28: Ounce | G28: 0.45 | I28: 0.9 | J28: 0 | K28: 0 | M28: 0 | N28: 0 | O28: 0.9 | P28: 0 | Q28: 450 | R28: 0
B29: Miscellaneous | I29: $10.11
C30: Crop Insurance -Sorghum LC | D30: 1 | F30: Acre | G30: 6 | I30: 6 | J30: 0 | K30: 0 | M30: 0 | N30: 0 | O30: 6 | P30: 0 | Q30: 3000 | R30: 0
C31: Pickup Milage Charge | D31: 1 | F31: Acre | G31: 4.1128 | I31: 4.1128 | J31: 0 | K31: 0 | M31: 0 | N31: 0 | O31: 4.1128 | P31: 0 | Q31: 2056.4 | R31: 0
B32: Other Labor | I32: $0.68
C33: Hand Labor | D33: 0.04 | F33: Hour | G33: 16.96 | I33: 0.6784 | J33: 0 | K33: 0 | M33: 0 | N33: 0 | O33: 0.6784 | P33: 0 | Q33: 339.2 | R33: 0
B34: Seed | I34: $15.26
C35: Treated Sorghum Seed | D35: 4.5 | F35: Pound | G35: 3.392 | I35: 15.264 | J35: 0 | K35: 0 | M35: 0 | N35: 0 | O35: 15.264 | P35: 0 | Q35: 7632 | R35: 0
D36: 0 | G36: 0 | I36: 0 | J36: 0 | K36: 0 | M36: 0 | N36: 0 | O36: 0 | P36: 0 | Q36: 0 | R36: 0
D37: 0 | G37: 0 | I37: 0 | J37: 0 | K37: 0 | M37: 0 | N37: 0 | O37: 0 | P37: 0 | Q37: 0 | R37: 0
D38: 0 | G38: 0 | I38: 0 | J38: =E38*H38 -> 0 | K38: 0 | M38: 0 | N38: =J38*L38 -> 0 | O38: 0 | P38: =+J38-N38 -> 0 | Q38: 0 | R38: =+J38*E$7 -> 0
B39: Machinery Labor | I39: $8.78
C40: Tractors/Self-Propelled | D40: 0.51 | F40: Hour | G40: 17.21 | I40: 8.7771 | J40: =E40*H40 -> 0 | K40: 0 | M40: 0 | N40: =J40*L40 -> 0 | O40: 8.7771 | P40: =+J40-N40 -> 0 | Q40: 4388.55 | R40: =+J40*E$7 -> 0
C41: Other Labor | D41: 0 | F41: Hour | G41: 17.21 | I41: 0 | J41: =E41*H41 -> 0 | K41: 0 | M41: 0 | N41: =J41*L41 -> 0 | O41: 0 | P41: =+J41-N41 -> 0 | Q41: 0 | R41: =+J41*E$7 -> 0
B43: Diesel Fuel | I43: $12.97
C44: Pickup/General Use Equipment | D44: 1 | F44: Acre | G44: 0 | I44: 0 | J44: =E44*H44 -> 0 | K44: 0 | M44: 0 | N44: =J44*L44 -> 0 | O44: 0 | P44: =+J44-N44 -> 0 | Q44: 0 | R44: =+J44*E$7 -> 0
C45: Tractors/Self-Propelled | D45: 5.79 | F45: Gallon | G45: 2.24 | I45: 12.9696 | J45: =E45*H45 -> 0 | K45: 0 | M45: 0 | N45: =J45*L45 -> 0 | O45: 12.9696 | P45: =+J45-N45 -> 0 | Q45: 6484.8 | R45: =+J45*E$7 -> 0
B47: Gasoline | I47: $0
C48: Pickup/General Use Equipment | D48: 1 | F48: Acre | G48: 0 | I48: 0 | J48: =E48*H48 -> 0 | K48: 0 | M48: 0 | N48: =J48*L48 -> 0 | O48: 0 | P48: =+J48-N48 -> 0 | Q48: 0 | R48: =+J48*E$7 -> 0
C49: Tractors/Self-Propelled | D49: 0 | F49: Gallon | G49: 2.09 | I49: 0 | J49: =E49*H49 -> 0 | K49: 0 | M49: 0 | N49: =J49*L49 -> 0 | O49: 0 | P49: =+J49-N49 -> 0 | Q49: 0 | R49: =+J49*E$7 -> 0
B51: Repairs & Maintenance | I51: $29.75
C52: Pickup/General Use Equipment | D52: 1 | F52: Acre | G52: 0 | I52: 0 | J52: =E52*H52 -> 0 | K52: 0 | M52: 0 | N52: =J52*L52 -> 0 | O52: 0 | P52: =+J52-N52 -> 0 | Q52: 0 | R52: =+J52*E$7 -> 0
C53: Irrigation Equipment | D53: 1 | F53: Acre | G53: 0 | I53: 0 | J53: 0 | K53: 0 | M53: 0 | N53: 0 | O53: 0 | P53: 0 | Q53: 0 | R53: 0
C54: Tractors/Self-Propelled | D54: 1 | F54: Acre | G54: 21.46117867 | I54: 21.46117867 | J54: 0 | K54: 0 | M54: 0 | N54: 0 | O54: 21.46117867 | P54: 0 | Q54: 10730.58933 | R54: 0
C55: Implements | D55: 1 | F55: Acre | G55: 8.290278103 | I55: 8.290278103 | J55: 0 | K55: 0 | M55: 0 | N55: 0 | O55: 8.290278103 | P55: 0 | Q55: 4145.139052 | R55: 0
I56: 0 | J56: 0 | K56: 0 | M56: 0 | N56: 0 | O56: 0 | P56: 0 | Q56: 0 | R56: 0
I57: 0 | J57: 0 | K57: 0 | M57: 0 | N57: 0 | O57: 0 | P57: 0 | Q57: 0 | R57: 0
B58: Interest on Credit Line | G58: 0.08 | I58: 10.0409509 | J58: =+SUM(J17:J57)/2*H58 -> 0 | M58: 0 | N58: =+SUM(N17:N57)/2*L58 -> 0 | O58: 10.0409509 | P58: =+SUM(P17:P57)/2*L58 -> 0 | Q58: 5020.475448 | R58: =+J58*E$7 -> 0
A59: Total Variable Costs | I59: 246.7131077 | J59: =SUM(J18:J58) -> 0 | M59: 0 | N59: =SUM(N18:N58) -> 0 | O59: 246.7131077 | P59: =SUM(P18:P58) -> 0 | Q59: 123356.5538 | R59: =SUM(R18:R58) -> 0
A60: Planned Returns Above Variable Costs: | I60: 120.4868923 | J60: =+J13-J59 -> 0 | M60: 0 | N60: =+N13-N59 -> 0 | O60: 120.4868923 | P60: =+P13-P59 -> 0 | Q60: 60243.44617 | R60: =+R13-R59 -> 0
B61: Breakeven Price to Cover Variable Costs | G61: 3.42657094 | H61: =IF(E10=0,"n/a",(YVarExp-(YTotExp+YTotRet-J10))/E10) -> n/a | I61: Bushel
Q62: Enterprise | R62: Enterprise
A63: FIXED COSTS | D63: Quantity | E63: Quantity | F63: Units | G63: $/Unit | H63: $/Unit | I63: Total | J63: Total | K63: Share | L63: Share | M63: Landlord | N63: Landlord | O63: Tenant | P63: Tenant | Q63: Total | R63: Total
B64: Machinery Depreciation | I64: $34.44
C65: Tractors/Self-Propelled | D65: 1 | F65: Acre | G65: 23.47521329 | I65: 23.47521329 | J65: =E65*H65 -> 0 | K65: 0 | M65: 0 | N65: =J65*L65 -> 0 | O65: 23.47521329 | P65: =+J65-N65 -> 0 | Q65: 11737.60665 | R65: =+J65*E$7 -> 0
C66: Implements | D66: 1 | F66: Acre | G66: 10.96063288 | I66: 10.96063288 | J66: 0 | K66: 0 | M66: 0 | N66: =J66*L66 -> 0 | O66: 10.96063288 | P66: 0 | Q66: 5480.31644 | R66: 0
B67: Equipment Investment | I67: $20.08
C68: Tractors/Self-Propelled | D68: 179.8104695 | F68: Dollars | G68: 0.08 | I68: 14.38483756 | J68: =E68*H68 -> 0 | K68: 0 | M68: 0 | N68: =J68*L68 -> 0 | O68: 14.38483756 | P68: =+J68-N68 -> 0 | Q68: 7192.418779 | R68: =+J68*E$7 -> 0
C69: Implements | D69: 71.20599041 | F69: Dollars | G69: 0.08 | I69: 5.696479233 | J69: 0 | K69: 0 | M69: 0 | N69: =J69*L69 -> 0 | O69: 5.696479233 | P69: 0 | Q69: 2848.239616 | R69: 0
B70: Salaried Labor | D70: 1 | F70: Acre | G70: 0 | I70: 0 | J70: 0 | K70: 0 | M70: 0 | N70: =J70*L70 -> 0 | O70: 0 | P70: =+J70-N70 -> 0 | Q70: 0 | R70: =+J70*E$7 -> 0
B71: Management Fee, Owner/Operator Labor | D71: 1 | F71: Acre | G71: 18.36 | I71: 18.36 | J71: 0 | K71: 0 | M71: 0 | N71: 0 | O71: 18.36 | P71: 0 | Q71: 9180 | R71: 0
B72: Allocated Establishment Cost | D72: 1 | F72: Acre | G72: 0 | I72: 0 | J72: 0 | K72: 0 | M72: 0 | N72: 0 | O72: 0 | P72: 0 | Q72: 0 | R72: 0
B73: LCB - Land Charge | D73: 1 | F73: Acre | G73: 70 | I73: 70 | J73: 0 | K73: 0 | M73: 0 | N73: 0 | O73: 70 | P73: 0 | Q73: 35000 | R73: 0
B74: Property Taxes | D74: 1 | F74: Acre | G74: 0 | I74: 0 | J74: 0 | K74: 0 | M74: 0 | N74: 0 | O74: 0 | P74: 0 | Q74: 0 | R74: 0
B75: Whole Farm Insurance | D75: 1 | F75: Acre | G75: 0 | I75: 0 | J75: 0 | K75: 0 | M75: 0 | N75: 0 | O75: 0 | P75: 0 | Q75: 0 | R75: 0
D76: 1 | G76: 0 | I76: 0 | J76: 0 | K76: 0 | M76: 0 | N76: 0 | O76: 0 | P76: 0 | Q76: 0 | R76: 0
D77: 1 | G77: 0 | I77: 0 | J77: =E77*H77 -> 0 | K77: 0 | M77: 0 | N77: 0 | O77: 0 | P77: 0 | Q77: 0 | R77: 0
A78: Total Fixed Costs | I78: 142.877163 | J78: =+SUM(J65:J77) -> 0 | M78: 0 | N78: =+SUM(N65:N77) -> 0 | O78: 142.877163 | P78: =+SUM(P65:P77) -> 0 | Q78: 71438.58148 | R78: =+SUM(R65:R77) -> 0
A79: Total Specified Costs | I79: 389.5902706 | J79: =+J59+J78 -> 0 | M79: 0 | N79: =+N59+N78 -> 0 | O79: 389.5902706 | P79: =+P59+P78 -> 0 | Q79: 194795.1353 | R79: =+R59+R78 -> 0
A81: Returns Above Specified Costs | I81: -22.39027063 | J81: =+J13-J79 -> 0 | M81: 0 | N81: =+N13-N79 -> 0 | O81: -22.39027063 | P81: =+P13-P79 -> 0 | Q81: -11195.13531 | R81: =+R13-R79 -> 0
A83: Breakeven Price to Cover Total Costs | G83: 5.410975981 | H83: =IF(E10=0,"n/a",(YTotExp-(YTotExp+YTotRet-J10))/E10) -> n/a | I83: Bushel
D85: Example Breakeven Prices
B86: Example | C86: Example | D86: To Cover | G86: To Cover
B87: Yield | C87: Yield | D87: Variable | G87: Total
B88: Percent | C88: Bushel | D88: Costs | G88: Costs
B89: 0.75 | C89: 54 | D89: 4.568761253 | G89: 7.214634641
B90: 0.9 | C90: 64.8 | D90: 3.807301044 | G90: 6.012195534
B91: 1 | C91: 72 | D91: 3.42657094 | G91: 5.410975981
B92: 1.1 | C92: 79.2 | D92: 3.115064491 | G92: 4.919069074
B93: 1.25 | C93: 90 | D93: 2.741256752 | G93: 4.328780785
A95: Developed by Extension Economists, Texas A&M AgriLife Extension Service, budgets@tamu.edu.
A97: Information presented is prepared solely as a general guide and not intended to recognize or predict the costs and returns from any one operation. Brand names are mentioned only as examples and imply no endorsement.

Sheet WheatLCB
A1: Projections for Planning Purposes Only -- Not to be Used without Updating
A2: 2023 Estimated Costs and Returns per Acre
A3: Hard Red Spring Wheat, Dryland, 35 bu. Yield Goal - Lower Coast
A4: Enter your name for this budget in the cell above.
A5: Enter Your Values in the cells highlighed in MAROON.
E6: Your Acres | R6: Your
C7: Crop Acres | D7: 500 | L7: Your | Q7: Enterprise | R7: Enterprise
E8: Your | H8: Your | I8: Cash | J8: Your | K8: Landlord | L8: Landlord | N8: Your | P8: Your | Q8: Total | R8: Total
A9: REVENUE | D9: Quantity | E9: Quantity | F9: Units | G9: $/Unit | H9: $/Unit | I9: Total | J9: Total | K9: Share | L9: Share | M9: Landlord | N9: Landlord | O9: Tenant | P9: Tenant | Q9: (500 acres) | R9: ="(" & E7 & " acres)" -> ( acres)
B10: Hard Red Spring Wheat | D10: 35 | F10: Bushel | G10: 8.25 | I10: 288.75 | J10: =E10*H10 -> 0 | K10: 0 | M10: 0 | N10: =J10*L10 -> 0 | O10: 288.75 | P10: =+J10-N10 -> 0 | Q10: 144375 | R10: =+J10*E$7 -> 0
D11: 0 | G11: 0 | I11: 0 | J11: 0 | K11: 0 | M11: 0 | N11: 0 | O11: 0 | P11: =+J11-N11 -> 0 | Q11: 0 | R11: 0
D12: 0 | G12: 0 | I12: 0 | J12: 0 | K12: 0 | M12: 0 | N12: 0 | O12: 0 | P12: 0 | Q12: 0 | R12: 0
A13: Total Revenue | I13: 288.75 | J13: =SUM(J10:J12) -> 0 | M13: 0 | N13: =SUM(N10:N12) -> 0 | O13: 288.75 | P13: =SUM(P10:P12) -> 0 | Q13: 144375 | R13: =SUM(R10:R12) -> 0
Q14: Enterprise | R14: Enterprise
A15: VARIABLE COSTS | D15: Quantity | E15: Quantity | F15: Units | G15: $/Unit | H15: $/Unit | I15: Total | J15: Total | K15: Share | L15: Share | M15: Landlord | N15: Landlord | O15: Tenant | P15: Tenant | Q15: Total | R15: Total
A16: Production Costs
B17: Custom | I17: $18.82
C18: Custom Haul - Wheat | D18: 35 | F18: Bushel | G18: 0.265 | I18: 9.275 | J18: =E18*H18 -> 0 | K18: 0 | M18: 0 | N18: =J18*L18 -> 0 | O18: 9.275 | P18: =+J18-N18 -> 0 | Q18: 4637.5 | R18: =+J18*E$7 -> 0
C19: Fertilizer Application LC | D19: 1 | F19: Acre | G19: 9.54 | I19: 9.54 | J19: 0 | K19: 0 | M19: 0 | N19: 0 | O19: 9.54 | P19: 0 | Q19: 4770 | R19: 0
B20: Fertilizer | I20: $57.6
C21: 24-8-0 | D21: 0.1 | F21: Ton | G21: 576 | I21: 57.6 | J21: 0 | K21: 0 | M21: 0 | N21: 0 | O21: 57.6 | P21: 0 | Q21: 28800 | R21: 0
B22: Herbicide | I22: $7.75
C23: Glyphosate (Generic) | D23: 1 | F23: Quart | G23: 7.75 | I23: 7.75 | J23: 0 | K23: 0 | M23: 0 | N23: 0 | O23: 7.75 | P23: 0 | Q23: 3875 | R23: 0
B24: Insecticide | I24: $11.88
C25: Wheat Insect Control | D25: 1.5 | F25: Pint | G25: 7.9182 | I25: 11.8773 | J25: 0 | K25: 0 | M25: 0 | N25: 0 | O25: 11.8773 | P25: 0 | Q25: 5938.65 | R25: 0
B26: Miscellaneous | I26: $8.11
C27: Pickup Milage Charge | D27: 1 | F27: Acre | G27: 4.1128 | I27: 4.1128 | J27: 0 | K27: 0 | M27: 0 | N27: 0 | O27: 4.1128 | P27: 0 | Q27: 2056.4 | R27: 0
C28: Crop Insurance -Wheat LC | D28: 1 | F28: Acre | G28: 4 | I28: 4 | J28: 0 | K28: 0 | M28: 0 | N28: 0 | O28: 4 | P28: 0 | Q28: 2000 | R28: 0
B29: Seed | I29: $37.21
C30: HRS Wheat Seed | D30: 90 | F30: Pound | G30: 0.4134 | I30: 37.206 | J30: 0 | K30: 0 | M30: 0 | N30: 0 | O30: 37.206 | P30: 0 | Q30: 18603 | R30: 0
B31: Other Labor | I31: $0.31
C32: Hand Labor | D32: 0.018 | F32: Hour | G32: 16.96 | I32: 0.30528 | J32: 0 | K32: 0 | M32: 0 | N32: 0 | O32: 0.30528 | P32: 0 | Q32: 152.64 | R32: 0
D33: 0 | G33: 0 | I33: 0 | J33: 0 | K33: 0 | M33: 0 | N33: 0 | O33: 0 | P33: 0 | Q33: 0 | R33: 0
D34: 0 | G34: 0 | I34: 0 | J34: 0 | K34: 0 | M34: 0 | N34: 0 | O34: 0 | P34: 0 | Q34: 0 | R34: 0
D35: 0 | G35: 0 | I35: 0 | J35: =E35*H35 -> 0 | K35: 0 | M35: 0 | N35: =J35*L35 -> 0 | O35: 0 | P35: =+J35-N35 -> 0 | Q35: 0 | R35: =+J35*E$7 -> 0
B36: Machinery Labor | I36: $5.34
C37: Tractors/Self-Propelled | D37: 0.31 | F37: Hour | G37: 17.21 | I37: 5.3351 | J37: =E37*H37 -> 0 | K37: 0 | M37: 0 | N37: =J37*L37 -> 0 | O37: 5.3351 | P37: =+J37-N37 -> 0 | Q37: 2667.55 | R37: =+J37*E$7 -> 0
C38: Other Labor | D38: 0 | F38: Hour | G38: 17.21 | I38: 0 | J38: =E38*H38 -> 0 | K38: 0 | M38: 0 | N38: =J38*L38 -> 0 | O38: 0 | P38: =+J38-N38 -> 0 | Q38: 0 | R38: =+J38*E$7 -> 0
B40: Diesel Fuel | I40: $7.59
C41: Pickup/General Use Equipment | D41: 1 | F41: Acre | G41: 0 | I41: 0 | J41: =E41*H41 -> 0 | K41: 0 | M41: 0 | N41: =J41*L41 -> 0 | O41: 0 | P41: =+J41-N41 -> 0 | Q41: 0 | R41: =+J41*E$7 -> 0
C42: Tractors/Self-Propelled | D42: 3.39 | F42: Gallon | G42: 2.24 | I42: 7.5936 | J42: =E42*H42 -> 0 | K42: 0 | M42: 0 | N42: =J42*L42 -> 0 | O42: 7.5936 | P42: =+J42-N42 -> 0 | Q42: 3796.8 | R42: =+J42*E$7 -> 0
B44: Gasoline | I44: $0
C45: Pickup/General Use Equipment | D45: 1 | F45: Acre | G45: 0 | I45: 0 | J45: =E45*H45 -> 0 | K45: 0 | M45: 0 | N45: =J45*L45 -> 0 | O45: 0 | P45: =+J45-N45 -> 0 | Q45: 0 | R45: =+J45*E$7 -> 0
C46: Tractors/Self-Propelled | D46: 0 | F46: Gallon | G46: 2.09 | I46: 0 | J46: =E46*H46 -> 0 | K46: 0 | M46: 0 | N46: =J46*L46 -> 0 | O46: 0 | P46: =+J46-N46 -> 0 | Q46: 0 | R46: =+J46*E$7 -> 0
B48: Repairs & Maintenance | I48: $19.66
C49: Pickup/General Use Equipment | D49: 1 | F49: Acre | G49: 0 | I49: 0 | J49: =E49*H49 -> 0 | K49: 0 | M49: 0 | N49: =J49*L49 -> 0 | O49: 0 | P49: =+J49-N49 -> 0 | Q49: 0 | R49: =+J49*E$7 -> 0
C50: Irrigation Equipment | D50: 1 | F50: Acre | G50: 0 | I50: 0 | J50: 0 | K50: 0 | M50: 0 | N50: 0 | O50: 0 | P50: 0 | Q50: 0 | R50: 0
C51: Tractors/Self-Propelled | D51: 1 | F51: Acre | G51: 14.14620694 | I51: 14.14620694 | J51: 0 | K51: 0 | M51: 0 | N51: 0 | O51: 14.14620694 | P51: 0 | Q51: 7073.103471 | R51: 0
C52: Implements | D52: 1 | F52: Acre | G52: 5.513556929 | I52: 5.513556929 | J52: 0 | K52: 0 | M52: 0 | N52: 0 | O52: 5.513556929 | P52: 0 | Q52: 2756.778464 | R52: 0
I53: 0 | J53: 0 | K53: 0 | M53: 0 | N53: 0 | O53: 0 | P53: 0 | Q53: 0 | R53: 0
I54: 0 | J54: 0 | K54: 0 | M54: 0 | N54: 0 | O54: 0 | P54: 0 | Q54: 0 | R54: 0
B55: Interest on Credit Line | G55: 0.08 | I55: 7.664653461 | J55: =+SUM(J17:J54)/2*H55 -> 0 | M55: 0 | N55: =+SUM(N17:N54)/2*L55 -> 0 | O55: 7.664653461 | P55: =+SUM(P17:P54)/2*L55 -> 0 | Q55: 3832.326731 | R55: =+J55*E$7 -> 0
A56: Total Variable Costs | I56: 181.9194973 | J56: =SUM(J18:J55) -> 0 | M56: 0 | N56: =SUM(N18:N55) -> 0 | O56: 181.9194973 | P56: =SUM(P18:P55) -> 0 | Q56: 90959.74867 | R56: =SUM(R18:R55) -> 0
A57: Planned Returns Above Variable Costs: | I57: 106.8305027 | J57: =+J13-J56 -> 0 | M57: 0 | N57: =+N13-N56 -> 0 | O57: 106.8305027 | P57: =+P13-P56 -> 0 | Q57: 53415.25133 | R57: =+R13-R56 -> 0
B58: Breakeven Price to Cover Variable Costs | G58: 5.197699924 | H58: =IF(E10=0,"n/a",(YVarExp-(YTotExp+YTotRet-J10))/E10) -> n/a | I58: Bushel
Q59: Enterprise | R59: Enterprise
A60: FIXED COSTS | D60: Quantity | E60: Quantity | F60: Units | G60: $/Unit | H60: $/Unit | I60: Total | J60: Total | K60: Share | L60: Share | M60: Landlord | N60: Landlord | O60: Tenant | P60: Tenant | Q60: Total | R60: Total
B61: Machinery Depreciation | I61: $21.24
C62: Tractors/Self-Propelled | D62: 1 | F62: Acre | G62: 14.53676731 | I62: 14.53676731 | J62: =E62*H62 -> 0 | K62: 0 | M62: 0 | N62: =J62*L62 -> 0 | O62: 14.53676731 | P62: =+J62-N62 -> 0 | Q62: 7268.383655 | R62: =+J62*E$7 -> 0
C63: Implements | D63: 1 | F63: Acre | G63: 6.707258313 | I63: 6.707258313 | J63: 0 | K63: 0 | M63: 0 | N63: =J63*L63 -> 0 | O63: 6.707258313 | P63: 0 | Q63: 3353.629157 | R63: 0
B64: Equipment Investment | I64: $13.03
C65: Tractors/Self-Propelled | D65: 110.8181211 | F65: Dollars | G65: 0.08 | I65: 8.86544969 | J65: =E65*H65 -> 0 | K65: 0 | M65: 0 | N65: =J65*L65 -> 0 | O65: 8.86544969 | P65: =+J65-N65 -> 0 | Q65: 4432.724845 | R65: =+J65*E$7 -> 0
C66: Implements | D66: 52.08897464 | F66: Dollars | G66: 0.08 | I66: 4.167117971 | J66: 0 | K66: 0 | M66: 0 | N66: =J66*L66 -> 0 | O66: 4.167117971 | P66: 0 | Q66: 2083.558985 | R66: 0
B67: Salaried Labor | D67: 1 | F67: Acre | G67: 0 | I67: 0 | J67: 0 | K67: 0 | M67: 0 | N67: =J67*L67 -> 0 | O67: 0 | P67: =+J67-N67 -> 0 | Q67: 0 | R67: =+J67*E$7 -> 0
B68: Management Fee, Owner/Operator Labor | D68: 1 | F68: Acre | G68: 14.4375 | I68: 14.4375 | J68: 0 | K68: 0 | M68: 0 | N68: 0 | O68: 14.4375 | P68: 0 | Q68: 7218.75 | R68: 0
B69: Allocated Establishment Cost | D69: 1 | F69: Acre | G69: 0 | I69: 0 | J69: 0 | K69: 0 | M69: 0 | N69: 0 | O69: 0 | P69: 0 | Q69: 0 | R69: 0
B70: LCB - Land Charge | D70: 1 | F70: Acre | G70: 70 | I70: 70 | J70: 0 | K70: 0 | M70: 0 | N70: 0 | O70: 70 | P70: 0 | Q70: 35000 | R70: 0
B71: Property Taxes | D71: 1 | F71: Acre | G71: 0 | I71: 0 | J71: 0 | K71: 0 | M71: 0 | N71: 0 | O71: 0 | P71: 0 | Q71: 0 | R71: 0
B72: Whole Farm Insurance | D72: 1 | F72: Acre | G72: 0 | I72: 0 | J72: 0 | K72: 0 | M72: 0 | N72: 0 | O72: 0 | P72: 0 | Q72: 0 | R72: 0
D73: 1 | G73: 0 | I73: 0 | J73: 0 | K73: 0 | M73: 0 | N73: 0 | O73: 0 | P73: 0 | Q73: 0 | R73: 0
D74: 1 | G74: 0 | I74: 0 | J74: =E74*H74 -> 0 | K74: 0 | M74: 0 | N74: 0 | O74: 0 | P74: 0 | Q74: 0 | R74: 0
A75: Total Fixed Costs | I75: 118.7140933 | J75: =+SUM(J62:J74) -> 0 | M75: 0 | N75: =+SUM(N62:N74) -> 0 | O75: 118.7140933 | P75: =+SUM(P62:P74) -> 0 | Q75: 59357.04664 | R75: =+SUM(R62:R74) -> 0
A76: Total Specified Costs | I76: 300.6335906 | J76: =+J56+J75 -> 0 | M76: 0 | N76: =+N56+N75 -> 0 | O76: 300.6335906 | P76: =+P56+P75 -> 0 | Q76: 150316.7953 | R76: =+R56+R75 -> 0
A78: Returns Above Specified Costs | I78: -11.88359062 | J78: =+J13-J76 -> 0 | M78: 0 | N78: =+N13-N76 -> 0 | O78: -11.88359062 | P78: =+P13-P76 -> 0 | Q78: -5941.795308 | R78: =+R13-R76 -> 0
A80: Breakeven Price to Cover Total Costs | G80: 8.58953116 | H80: =IF(E10=0,"n/a",(YTotExp-(YTotExp+YTotRet-J10))/E10) -> n/a | I80: Bushel
D82: Example Breakeven Prices
B83: Example | C83: Example | D83: To Cover | G83: To Cover
B84: Yield | C84: Yield | D84: Variable | G84: Total
B85: Percent | C85: Bushel | D85: Costs | G85: Costs
B86: 0.75 | C86: 26.25 | D86: 6.930266565 | G86: 11.45270821
B87: 0.9 | C87: 31.5 | D87: 5.775222138 | G87: 9.543923512
B88: 1 | C88: 35 | D88: 5.197699924 | G88: 8.58953116
B89: 1.1 | C89: 38.5 | D89: 4.725181749 | G89: 7.808664691
B90: 1.25 | C90: 43.75 | D90: 4.158159939 | G90: 6.871624928
A92: Developed by Extension Economists, Texas A&M AgriLife Extension Service, budgets@tamu.edu.
A94: Information presented is prepared solely as a general guide and not intended to recognize or predict the costs and returns from any one operation. Brand names are mentioned only as examples and imply no endorsement.

Sheet CanolaLCB
A1: Projections for Planning Purposes Only -- Not to be Used without Updating
A2: 2023 Estimated Costs and Returns per Acre
A3: Canola, Dryland, 1500 lb. Yield Goal - Lower Coast
A4: Enter your name for this budget in the cell above.
A5: Enter Your Values in the cells highlighed in MAROON.
E6: Your Acres | R6: Your
C7: Crop Acres | D7: 500 | L7: Your | Q7: Enterprise | R7: Enterprise
E8: Your | H8: Your | I8: Cash | J8: Your | K8: Landlord | L8: Landlord | N8: Your | P8: Your | Q8: Total | R8: Total
A9: REVENUE | D9: Quantity | E9: Quantity | F9: Units | G9: $/Unit | H9: $/Unit | I9: Total | J9: Total | K9: Share | L9: Share | M9: Landlord | N9: Landlord | O9: Tenant | P9: Tenant | Q9: (500 acres) | R9: ="(" & E7 & " acres)" -> ( acres)
B10: Canola | D10: 1500 | F10: Pound | G10: 0.18 | I10: 270 | J10: =E10*H10 -> 0 | K10: 0 | M10: 0 | N10: =J10*L10 -> 0 | O10: 270 | P10: =+J10-N10 -> 0 | Q10: 135000 | R10: =+J10*E$7 -> 0
D11: 0 | G11: 0 | I11: 0 | J11: 0 | K11: 0 | M11: 0 | N11: 0 | O11: 0 | P11: =+J11-N11 -> 0 | Q11: 0 | R11: 0
D12: 0 | G12: 0 | I12: 0 | J12: 0 | K12: 0 | M12: 0 | N12: 0 | O12: 0 | P12: 0 | Q12: 0 | R12: 0
A13: Total Revenue | I13: 270 | J13: =SUM(J10:J12) -> 0 | M13: 0 | N13: =SUM(N10:N12) -> 0 | O13: 270 | P13: =SUM(P10:P12) -> 0 | Q13: 135000 | R13: =SUM(R10:R12) -> 0
Q14: Enterprise | R14: Enterprise
A15: VARIABLE COSTS | D15: Quantity | E15: Quantity | F15: Units | G15: $/Unit | H15: $/Unit | I15: Total | J15: Total | K15: Share | L15: Share | M15: Landlord | N15: Landlord | O15: Tenant | P15: Tenant | Q15: Total | R15: Total
A16: Production Costs
B17: Custom | I17: $25.44
C18: Fertilizer Application LC | D18: 1 | F18: Acre | G18: 9.54 | I18: 9.54 | J18: =E18*H18 -> 0 | K18: 0 | M18: 0 | N18: =J18*L18 -> 0 | O18: 9.54 | P18: =+J18-N18 -> 0 | Q18: 4770 | R18: =+J18*E$7 -> 0
C19: Custom Haul - Canola | D19: 15 | F19: CWT | G19: 1.06 | I19: 15.9 | J19: 0 | K19: 0 | M19: 0 | N19: 0 | O19: 15.9 | P19: 0 | Q19: 7950 | R19: 0
B20: Fertilizer | I20: $73.14
C21: 32-11-3 6S | D21: 0.12 | F21: Ton | G21: 609.5 | I21: 73.14 | J21: 0 | K21: 0 | M21: 0 | N21: 0 | O21: 73.14 | P21: 0 | Q21: 36570 | R21: 0
B22: Herbicide | I22: $15.5
C23: Glyphosate (Generic) | D23: 2 | F23: Quart | G23: 7.75 | I23: 15.5 | J23: 0 | K23: 0 | M23: 0 | N23: 0 | O23: 15.5 | P23: 0 | Q23: 7750 | R23: 0
B24: Insecticide | I24: $23.15
C25: Aphid Control | D25: 10 | F25: Ounce | G25: 2.315 | I25: 23.15 | J25: 0 | K25: 0 | M25: 0 | N25: 0 | O25: 23.15 | P25: 0 | Q25: 11575 | R25: 0
B26: Miscellaneous | I26: $21.5
C27: Pickup Milage Charge | D27: 1 | F27: Acre | G27: 4.1128 | I27: 4.1128 | J27: 0 | K27: 0 | M27: 0 | N27: 0 | O27: 4.1128 | P27: 0 | Q27: 2056.4 | R27: 0
C28: Crop Insurance -Canola | D28: 1 | F28: Acre | G28: 17.384 | I28: 17.384 | J28: 0 | K28: 0 | M28: 0 | N28: 0 | O28: 17.384 | P28: 0 | Q28: 8692 | R28: 0
B29: Seed | I29: $24.59
C30: Roundup Ready Canola Seed | D30: 4 | F30: Pound | G30: 6.148 | I30: 24.592 | J30: 0 | K30: 0 | M30: 0 | N30: 0 | O30: 24.592 | P30: 0 | Q30: 12296 | R30: 0
B31: Other Labor | I31: $0.31
C32: Hand Labor | D32: 0.018 | F32: Hour | G32: 16.96 | I32: 0.30528 | J32: 0 | K32: 0 | M32: 0 | N32: 0 | O32: 0.30528 | P32: 0 | Q32: 152.64 | R32: 0
D33: 0 | G33: 0 | I33: 0 | J33: 0 | K33: 0 | M33: 0 | N33: 0 | O33: 0 | P33: 0 | Q33: 0 | R33: 0
D34: 0 | G34: 0 | I34: 0 | J34: 0 | K34: 0 | M34: 0 | N34: 0 | O34: 0 | P34: 0 | Q34: 0 | R34: 0
D35: 0 | G35: 0 | I35: 0 | J35: =E35*H35 -> 0 | K35: 0 | M35: 0 | N35: =J35*L35 -> 0 | O35: 0 | P35: =+J35-N35 -> 0 | Q35: 0 | R35: =+J35*E$7 -> 0
B36: Machinery Labor | I36: $5.34
C37: Tractors/Self-Propelled | D37: 0.31 | F37: Hour | G37: 17.21 | I37: 5.3351 | J37: =E37*H37 -> 0 | K37: 0 | M37: 0 | N37: =J37*L37 -> 0 | O37: 5.3351 | P37: =+J37-N37 -> 0 | Q37: 2667.55 | R37: =+J37*E$7 -> 0
C38: Other Labor | D38: 0 | F38: Hour | G38: 17.21 | I38: 0 | J38: =E38*H38 -> 0 | K38: 0 | M38: 0 | N38: =J38*L38 -> 0 | O38: 0 | P38: =+J38-N38 -> 0 | Q38: 0 | R38: =+J38*E$7 -> 0
B40: Diesel Fuel | I40: $7.77
C41: Pickup/General Use Equipment | D41: 1 | F41: Acre | G41: 0 | I41: 0 | J41: =E41*H41 -> 0 | K41: 0 | M41: 0 | N41: =J41*L41 -> 0 | O41: 0 | P41: =+J41-N41 -> 0 | Q41: 0 | R41: =+J41*E$7 -> 0
C42: Tractors/Self-Propelled | D42: 3.47 | F42: Gallon | G42: 2.24 | I42: 7.7728 | J42: =E42*H42 -> 0 | K42: 0 | M42: 0 | N42: =J42*L42 -> 0 | O42: 7.7728 | P42: =+J42-N42 -> 0 | Q42: 3886.4 | R42: =+J42*E$7 -> 0
B44: Gasoline | I44: $0
C45: Pickup/General Use Equipment | D45: 1 | F45: Acre | G45: 0 | I45: 0 | J45: =E45*H45 -> 0 | K45: 0 | M45: 0 | N45: =J45*L45 -> 0 | O45: 0 | P45: =+J45-N45 -> 0 | Q45: 0 | R45: =+J45*E$7 -> 0
C46: Tractors/Self-Propelled | D46: 0 | F46: Gallon | G46: 2.09 | I46: 0 | J46: =E46*H46 -> 0 | K46: 0 | M46: 0 | N46: =J46*L46 -> 0 | O46: 0 | P46: =+J46-N46 -> 0 | Q46: 0 | R46: =+J46*E$7 -> 0
B48: Repairs & Maintenance | I48: $19.79
C49: Pickup/General Use Equipment | D49: 1 | F49: Acre | G49: 0 | I49: 0 | J49: =E49*H49 -> 0 | K49: 0 | M49: 0 | N49: =J49*L49 -> 0 | O49: 0 | P49: =+J49-N49 -> 0 | Q49: 0 | R49: =+J49*E$7 -> 0
C50: Irrigation Equipment | D50: 1 | F50: Acre | G50: 0 | I50: 0 | J50: 0 | K50: 0 | M50: 0 | N50: 0 | O50: 0 | P50: 0 | Q50: 0 | R50: 0
C51: Tractors/Self-Propelled | D51: 1 | F51: Acre | G51: 14.27277959 | I51: 14.27277959 | J51: 0 | K51: 0 | M51: 0 | N51: 0 | O51: 14.27277959 | P51: 0 | Q51: 7136.389795 | R51: 0
C52: Implements | D52: 1 | F52: Acre | G52: 5.513556929 | I52: 5.513556929 | J52: 0 | K52: 0 | M52: 0 | N52: 0 | O52: 5.513556929 | P52: 0 | Q52: 2756.778464 | R52: 0
I53: 0 | J53: 0 | K53: 0 | M53: 0 | N53: 0 | O53: 0 | P53: 0 | Q53: 0 | R53: 0
I54: 0 | J54: 0 | K54: 0 | M54: 0 | N54: 0 | O54: 0 | P54: 0 | Q54: 0 | R54: 0
B55: Interest on Credit Line | G55: 0.08 | I55: 9.545436679 | J55: =+SUM(J17:J54)/2*H55 -> 0 | M55: 0 | N55: =+SUM(N17:N54)/2*L55 -> 0 | O55: 9.545436679 | P55: =+SUM(P17:P54)/2*L55 -> 0 | Q55: 4772.718339 | R55: =+J55*E$7 -> 0
A56: Total Variable Costs | I56: 226.0637532 | J56: =SUM(J18:J55) -> 0 | M56: 0 | N56: =SUM(N18:N55) -> 0 | O56: 226.0637532 | P56: =SUM(P18:P55) -> 0 | Q56: 113031.8766 | R56: =SUM(R18:R55) -> 0
A57: Planned Returns Above Variable Costs: | I57: 43.9362468 | J57: =+J13-J56 -> 0 | M57: 0 | N57: =+N13-N56 -> 0 | O57: 43.9362468 | P57: =+P13-P56 -> 0 | Q57: 21968.1234 | R57: =+R13-R56 -> 0
B58: Breakeven Price to Cover Variable Costs | G58: 0.1507091688 | H58: =IF(E10=0,"n/a",(YVarExp-(YTotExp+YTotRet-J10))/E10) -> n/a | I58: Pound
Q59: Enterprise | R59: Enterprise
A60: FIXED COSTS | D60: Quantity | E60: Quantity | F60: Units | G60: $/Unit | H60: $/Unit | I60: Total | J60: Total | K60: Share | L60: Share | M60: Landlord | N60: Landlord | O60: Tenant | P60: Tenant | Q60: Total | R60: Total
B61: Machinery Depreciation | I61: $21.83
C62: Tractors/Self-Propelled | D62: 1 | F62: Acre | G62: 15.12743967 | I62: 15.12743967 | J62: =E62*H62 -> 0 | K62: 0 | M62: 0 | N62: =J62*L62 -> 0 | O62: 15.12743967 | P62: =+J62-N62 -> 0 | Q62: 7563.719834 | R62: =+J62*E$7 -> 0
C63: Implements | D63: 1 | F63: Acre | G63: 6.707258313 | I63: 6.707258313 | J63: 0 | K63: 0 | M63: 0 | N63: =J63*L63 -> 0 | O63: 6.707258313 | P63: 0 | Q63: 3353.629157 | R63: 0
B64: Equipment Investment | I64: $13.38
C65: Tractors/Self-Propelled | D65: 115.2059729 | F65: Dollars | G65: 0.08 | I65: 9.216477834 | J65: =E65*H65 -> 0 | K65: 0 | M65: 0 | N65: =J65*L65 -> 0 | O65: 9.216477834 | P65: =+J65-N65 -> 0 | Q65: 4608.238917 | R65: =+J65*E$7 -> 0
C66: Implements | D66: 52.08897464 | F66: Dollars | G66: 0.08 | I66: 4.167117971 | J66: 0 | K66: 0 | M66: 0 | N66: =J66*L66 -> 0 | O66: 4.167117971 | P66: 0 | Q66: 2083.558985 | R66: 0
B67: Salaried Labor | D67: 1 | F67: Acre | G67: 0 | I67: 0 | J67: 0 | K67: 0 | M67: 0 | N67: =J67*L67 -> 0 | O67: 0 | P67: =+J67-N67 -> 0 | Q67: 0 | R67: =+J67*E$7 -> 0
B68: Management Fee, Owner/Operator Labor | D68: 1 | F68: Acre | G68: 13.5 | I68: 13.5 | J68: 0 | K68: 0 | M68: 0 | N68: 0 | O68: 13.5 | P68: 0 | Q68: 6750 | R68: 0
B69: Allocated Establishment Cost | D69: 1 | F69: Acre | G69: 0 | I69: 0 | J69: 0 | K69: 0 | M69: 0 | N69: 0 | O69: 0 | P69: 0 | Q69: 0 | R69: 0
B70: LCB - Land Charge | D70: 1 | F70: Acre | G70: 70 | I70: 70 | J70: 0 | K70: 0 | M70: 0 | N70: 0 | O70: 70 | P70: 0 | Q70: 35000 | R70: 0
B71: Property Taxes | D71: 1 | F71: Acre | G71: 0 | I71: 0 | J71: 0 | K71: 0 | M71: 0 | N71: 0 | O71: 0 | P71: 0 | Q71: 0 | R71: 0
B72: Whole Farm Insurance | D72: 1 | F72: Acre | G72: 0 | I72: 0 | J72: 0 | K72: 0 | M72: 0 | N72: 0 | O72: 0 | P72: 0 | Q72: 0 | R72: 0
D73: 1 | G73: 0 | I73: 0 | J73: 0 | K73: 0 | M73: 0 | N73: 0 | O73: 0 | P73: 0 | Q73: 0 | R73: 0
D74: 1 | G74: 0 | I74: 0 | J74: =E74*H74 -> 0 | K74: 0 | M74: 0 | N74: 0 | O74: 0 | P74: 0 | Q74: 0 | R74: 0
A75: Total Fixed Costs | I75: 118.7182938 | J75: =+SUM(J62:J74) -> 0 | M75: 0 | N75: =+SUM(N62:N74) -> 0 | O75: 118.7182938 | P75: =+SUM(P62:P74) -> 0 | Q75: 59359.14689 | R75: =+SUM(R62:R74) -> 0
A76: Total Specified Costs | I76: 344.782047 | J76: =+J56+J75 -> 0 | M76: 0 | N76: =+N56+N75 -> 0 | O76: 344.782047 | P76: =+P56+P75 -> 0 | Q76: 172391.0235 | R76: =+R56+R75 -> 0
A78: Returns Above Specified Costs | I78: -74.78204698 | J78: =+J13-J76 -> 0 | M78: 0 | N78: =+N13-N76 -> 0 | O78: -74.78204698 | P78: =+P13-P76 -> 0 | Q78: -37391.02349 | R78: =+R13-R76 -> 0
A80: Breakeven Price to Cover Total Costs | G80: 0.229854698 | H80: =IF(E10=0,"n/a",(YTotExp-(YTotExp+YTotRet-J10))/E10) -> n/a | I80: Pound
D82: Example Breakeven Prices
B83: Example | C83: Example | D83: To Cover | G83: To Cover
B84: Yield | C84: Yield | D84: Variable | G84: Total
B85: Percent | C85: Pound | D85: Costs | G85: Costs
B86: 0.75 | C86: 1125 | D86: 0.2009455584 | G86: 0.3064729307
B87: 0.9 | C87: 1350 | D87: 0.167454632 | G87: 0.2553941089
B88: 1 | C88: 1500 | D88: 0.1507091688 | G88: 0.229854698
B89: 1.1 | C89: 1650 | D89: 0.1370083353 | G89: 0.2089588164
B90: 1.25 | C90: 1875 | D90: 0.120567335 | G90: 0.1838837584
A92: Developed by Extension Economists, Texas A&M AgriLife Extension Service, budgets@tamu.edu.
A94: Information presented is prepared solely as a general guide and not intended to recognize or predict the costs and returns from any one operation. Brand names are mentioned only as examples and imply no endorsement.

Sheet WheatNW
A1: Projections for Planning Purposes Only -- Not to be Used without Updating
A2: 2023 Estimated Costs and Returns per Acre
A3: Hard Red Spring Wheat, Dryland, 35 bu. Yield Goal, Northwest - Lower Coast
A4: Enter your name for this budget in the cell above.
A5: Enter Your Values in the cells highlighed in MAROON.
E6: Your Acres | R6: Your
C7: Crop Acres | D7: 500 | L7: Your | Q7: Enterprise | R7: Enterprise
E8: Your | H8: Your | I8: Cash | J8: Your | K8: Landlord | L8: Landlord | N8: Your | P8: Your | Q8: Total | R8: Total
A9: REVENUE | D9: Quantity | E9: Quantity | F9: Units | G9: $/Unit | H9: $/Unit | I9: Total | J9: Total | K9: Share | L9: Share | M9: Landlord | N9: Landlord | O9: Tenant | P9: Tenant | Q9: (500 acres) | R9: ="(" & E7 & " acres)" -> ( acres)
B10: Hard Red Spring Wheat | D10: 35 | F10: Bushel | G10: 8.25 | I10: 288.75 | J10: =E10*H10 -> 0 | K10: 0 | M10: 0 | N10: =J10*L10 -> 0 | O10: 288.75 | P10: =+J10-N10 -> 0 | Q10: 144375 | R10: =+J10*E$7 -> 0
D11: 0 | G11: 0 | I11: 0 | J11: 0 | K11: 0 | M11: 0 | N11: 0 | O11: 0 | P11: =+J11-N11 -> 0 | Q11: 0 | R11: 0
D12: 0 | G12: 0 | I12: 0 | J12: 0 | K12: 0 | M12: 0 | N12: 0 | O12: 0 | P12: 0 | Q12: 0 | R12: 0
A13: Total Revenue | I13: 288.75 | J13: =SUM(J10:J12) -> 0 | M13: 0 | N13: =SUM(N10:N12) -> 0 | O13: 288.75 | P13: =SUM(P10:P12) -> 0 | Q13: 144375 | R13: =SUM(R10:R12) -> 0
Q14: Enterprise | R14: Enterprise
A15: VARIABLE COSTS | D15: Quantity | E15: Quantity | F15: Units | G15: $/Unit | H15: $/Unit | I15: Total | J15: Total | K15: Share | L15: Share | M15: Landlord | N15: Landlord | O15: Tenant | P15: Tenant | Q15: Total | R15: Total
A16: Production Costs
B17: Custom | I17: $9.43
C18: Fertilizer Application | D18: 1 | F18: Ounce | G18: 0.159 | I18: 0.159 | J18: =E18*H18 -> 0 | K18: 0 | M18: 0 | N18: =J18*L18 -> 0 | O18: 0.159 | P18: =+J18-N18 -> 0 | Q18: 79.5 | R18: =+J18*E$7 -> 0
C19: Custom Haul - Wheat | D19: 35 | F19: Bushel | G19: 0.265 | I19: 9.275 | J19: 0 | K19: 0 | M19: 0 | N19: 0 | O19: 9.275 | P19: 0 | Q19: 4637.5 | R19: 0
B20: Fertilizer | I20: $57.6
C21: 24-8-0 | D21: 0.1 | F21: Ton | G21: 576 | I21: 57.6 | J21: 0 | K21: 0 | M21: 0 | N21: 0 | O21: 57.6 | P21: 0 | Q21: 28800 | R21: 0
B22: Herbicide | I22: $7.75
C23: Glyphosate (Generic) | D23: 1 | F23: Quart | G23: 7.75 | I23: 7.75 | J23: 0 | K23: 0 | M23: 0 | N23: 0 | O23: 7.75 | P23: 0 | Q23: 3875 | R23: 0
B24: Insecticide | I24: $11.88
C25: Wheat Insect Control | D25: 1.5 | F25: Pint | G25: 7.9182 | I25: 11.8773 | J25: 0 | K25: 0 | M25: 0 | N25: 0 | O25: 11.8773 | P25: 0 | Q25: 5938.65 | R25: 0
B26: Miscellaneous | I26: $8.11
C27: Pickup Milage Charge | D27: 1 | F27: Acre | G27: 4.1128 | I27: 4.1128 | J27: 0 | K27: 0 | M27: 0 | N27: 0 | O27: 4.1128 | P27: 0 | Q27: 2056.4 | R27: 0
C28: Crop Insurance -Wheat LC | D28: 1 | F28: Acre | G28: 4 | I28: 4 | J28: 0 | K28: 0 | M28: 0 | N28: 0 | O28: 4 | P28: 0 | Q28: 2000 | R28: 0
B29: Seed | I29: $51.68
C30: HRS Wheat Seed | D30: 125 | F30: Pound | G30: 0.4134 | I30: 51.675 | J30: 0 | K30: 0 | M30: 0 | N30: 0 | O30: 51.675 | P30: 0 | Q30: 25837.5 | R30: 0
B31: Other Labor | I31: $0.31
C32: Hand Labor | D32: 0.018 | F32: Hour | G32: 16.96 | I32: 0.30528 | J32: 0 | K32: 0 | M32: 0 | N32: 0 | O32: 0.30528 | P32: 0 | Q32: 152.64 | R32: 0
D33: 0 | G33: 0 | I33: 0 | J33: 0 | K33: 0 | M33: 0 | N33: 0 | O33: 0 | P33: 0 | Q33: 0 | R33: 0
D34: 0 | G34: 0 | I34: 0 | J34: 0 | K34: 0 | M34: 0 | N34: 0 | O34: 0 | P34: 0 | Q34: 0 | R34: 0
D35: 0 | G35: 0 | I35: 0 | J35: =E35*H35 -> 0 | K35: 0 | M35: 0 | N35: =J35*L35 -> 0 | O35: 0 | P35: =+J35-N35 -> 0 | Q35: 0 | R35: =+J35*E$7 -> 0
B36: Machinery Labor | I36: $5.34
C37: Tractors/Self-Propelled | D37: 0.31 | F37: Hour | G37: 17.21 | I37: 5.3351 | J37: =E37*H37 -> 0 | K37: 0 | M37: 0 | N37: =J37*L37 -> 0 | O37: 5.3351 | P37: =+J37-N37 -> 0 | Q37: 2667.55 | R37: =+J37*E$7 -> 0
C38: Other Labor | D38: 0 | F38: Hour | G38: 17.21 | I38: 0 | J38: =E38*H38 -> 0 | K38: 0 | M38: 0 | N38: =J38*L38 -> 0 | O38: 0 | P38: =+J38-N38 -> 0 | Q38: 0 | R38: =+J38*E$7 -> 0
B40: Diesel Fuel | I40: $7.59
C41: Pickup/General Use Equipment | D41: 1 | F41: Acre | G41: 0 | I41: 0 | J41: =E41*H41 -> 0 | K41: 0 | M41: 0 | N41: =J41*L41 -> 0 | O41: 0 | P41: =+J41-N41 -> 0 | Q41: 0 | R41: =+J41*E$7 -> 0
C42: Tractors/Self-Propelled | D42: 3.39 | F42: Gallon | G42: 2.24 | I42: 7.5936 | J42: =E42*H42 -> 0 | K42: 0 | M42: 0 | N42: =J42*L42 -> 0 | O42: 7.5936 | P42: =+J42-N42 -> 0 | Q42: 3796.8 | R42: =+J42*E$7 -> 0
B44: Gasoline | I44: $0
C45: Pickup/General Use Equipment | D45: 1 | F45: Acre | G45: 0 | I45: 0 | J45: =E45*H45 -> 0 | K45: 0 | M45: 0 | N45: =J45*L45 -> 0 | O45: 0 | P45: =+J45-N45 -> 0 | Q45: 0 | R45: =+J45*E$7 -> 0
C46: Tractors/Self-Propelled | D46: 0 | F46: Gallon | G46: 2.09 | I46: 0 | J46: =E46*H46 -> 0 | K46: 0 | M46: 0 | N46: =J46*L46 -> 0 | O46: 0 | P46: =+J46-N46 -> 0 | Q46: 0 | R46: =+J46*E$7 -> 0
B48: Repairs & Maintenance | I48: $19.66
C49: Pickup/General Use Equipment | D49: 1 | F49: Acre | G49: 0 | I49: 0 | J49: =E49*H49 -> 0 | K49: 0 | M49: 0 | N49: =J49*L49 -> 0 | O49: 0 | P49: =+J49-N49 -> 0 | Q49: 0 | R49: =+J49*E$7 -> 0
C50: Irrigation Equipment | D50: 1 | F50: Acre | G50: 0 | I50: 0 | J50: 0 | K50: 0 | M50: 0 | N50: 0 | O50: 0 | P50: 0 | Q50: 0 | R50: 0
C51: Tractors/Self-Propelled | D51: 1 | F51: Acre | G51: 14.14620694 | I51: 14.14620694 | J51: 0 | K51: 0 | M51: 0 | N51: 0 | O51: 14.14620694 | P51: 0 | Q51: 7073.103471 | R51: 0
C52: Implements | D52: 1 | F52: Acre | G52: 5.513556929 | I52: 5.513556929 | J52: 0 | K52: 0 | M52: 0 | N52: 0 | O52: 5.513556929 | P52: 0 | Q52: 2756.778464 | R52: 0
I53: 0 | J53: 0 | K53: 0 | M53: 0 | N53: 0 | O53: 0 | P53: 0 | Q53: 0 | R53: 0
I54: 0 | J54: 0 | K54: 0 | M54: 0 | N54: 0 | O54: 0 | P54: 0 | Q54: 0 | R54: 0
B55: Interest on Credit Line | G55: 0.08 | I55: 7.669688748 | J55: =+SUM(J17:J54)/2*H55 -> 0 | M55: 0 | N55: =+SUM(N17:N54)/2*L55 -> 0 | O55: 7.669688748 | P55: =+SUM(P17:P54)/2*L55 -> 0 | Q55: 3834.844374 | R55: =+J55*E$7 -> 0
A56: Total Variable Costs | I56: 187.0125326 | J56: =SUM(J18:J55) -> 0 | M56: 0 | N56: =SUM(N18:N55) -> 0 | O56: 187.0125326 | P56: =SUM(P18:P55) -> 0 | Q56: 93506.26631 | R56: =SUM(R18:R55) -> 0
A57: Planned Returns Above Variable Costs: | I57: 101.7374674 | J57: =+J13-J56 -> 0 | M57: 0 | N57: =+N13-N56 -> 0 | O57: 101.7374674 | P57: =+P13-P56 -> 0 | Q57: 50868.73369 | R57: =+R13-R56 -> 0
B58: Breakeven Price to Cover Variable Costs | G58: 5.343215218 | H58: =IF(E10=0,"n/a",(YVarExp-(YTotExp+YTotRet-J10))/E10) -> n/a | I58: Bushel
Q59: Enterprise | R59: Enterprise
A60: FIXED COSTS | D60: Quantity | E60: Quantity | F60: Units | G60: $/Unit | H60: $/Unit | I60: Total | J60: Total | K60: Share | L60: Share | M60: Landlord | N60: Landlord | O60: Tenant | P60: Tenant | Q60: Total | R60: Total
B61: Machinery Depreciation | I61: $21.24
C62: Tractors/Self-Propelled | D62: 1 | F62: Acre | G62: 14.53676731 | I62: 14.53676731 | J62: =E62*H62 -> 0 | K62: 0 | M62: 0 | N62: =J62*L62 -> 0 | O62: 14.53676731 | P62: =+J62-N62 -> 0 | Q62: 7268.383655 | R62: =+J62*E$7 -> 0
C63: Implements | D63: 1 | F63: Acre | G63: 6.707258313 | I63: 6.707258313 | J63: 0 | K63: 0 | M63: 0 | N63: =J63*L63 -> 0 | O63: 6.707258313 | P63: 0 | Q63: 3353.629157 | R63: 0
B64: Equipment Investment | I64: $13.03
C65: Tractors/Self-Propelled | D65: 110.8181211 | F65: Dollars | G65: 0.08 | I65: 8.86544969 | J65: =E65*H65 -> 0 | K65: 0 | M65: 0 | N65: =J65*L65 -> 0 | O65: 8.86544969 | P65: =+J65-N65 -> 0 | Q65: 4432.724845 | R65: =+J65*E$7 -> 0
C66: Implements | D66: 52.08897464 | F66: Dollars | G66: 0.08 | I66: 4.167117971 | J66: 0 | K66: 0 | M66: 0 | N66: =J66*L66 -> 0 | O66: 4.167117971 | P66: 0 | Q66: 2083.558985 | R66: 0
B67: Salaried Labor | D67: 1 | F67: Acre | G67: 0 | I67: 0 | J67: 0 | K67: 0 | M67: 0 | N67: =J67*L67 -> 0 | O67: 0 | P67: =+J67-N67 -> 0 | Q67: 0 | R67: =+J67*E$7 -> 0
B68: Management Fee, Owner/Operator Labor | D68: 1 | F68: Acre | G68: 14.4375 | I68: 14.4375 | J68: 0 | K68: 0 | M68: 0 | N68: 0 | O68: 14.4375 | P68: 0 | Q68: 7218.75 | R68: 0
B69: Allocated Establishment Cost | D69: 1 | F69: Acre | G69: 0 | I69: 0 | J69: 0 | K69: 0 | M69: 0 | N69: 0 | O69: 0 | P69: 0 | Q69: 0 | R69: 0
B70: LCB - Land Charge | D70: 1 | F70: Acre | G70: 70 | I70: 70 | J70: 0 | K70: 0 | M70: 0 | N70: 0 | O70: 70 | P70: 0 | Q70: 35000 | R70: 0
B71: Property Taxes | D71: 1 | F71: Acre | G71: 0 | I71: 0 | J71: 0 | K71: 0 | M71: 0 | N71: 0 | O71: 0 | P71: 0 | Q71: 0 | R71: 0
B72: Whole Farm Insurance | D72: 1 | F72: Acre | G72: 0 | I72: 0 | J72: 0 | K72: 0 | M72: 0 | N72: 0 | O72: 0 | P72: 0 | Q72: 0 | R72: 0
D73: 1 | G73: 0 | I73: 0 | J73: 0 | K73: 0 | M73: 0 | N73: 0 | O73: 0 | P73: 0 | Q73: 0 | R73: 0
D74: 1 | G74: 0 | I74: 0 | J74: =E74*H74 -> 0 | K74: 0 | M74: 0 | N74: 0 | O74: 0 | P74: 0 | Q74: 0 | R74: 0
A75: Total Fixed Costs | I75: 118.7140933 | J75: =+SUM(J62:J74) -> 0 | M75: 0 | N75: =+SUM(N62:N74) -> 0 | O75: 118.7140933 | P75: =+SUM(P62:P74) -> 0 | Q75: 59357.04664 | R75: =+SUM(R62:R74) -> 0
A76: Total Specified Costs | I76: 305.7266259 | J76: =+J56+J75 -> 0 | M76: 0 | N76: =+N56+N75 -> 0 | O76: 305.7266259 | P76: =+P56+P75 -> 0 | Q76: 152863.313 | R76: =+R56+R75 -> 0
A78: Returns Above Specified Costs | I78: -16.9766259 | J78: =+J13-J76 -> 0 | M78: 0 | N78: =+N13-N76 -> 0 | O78: -16.9766259 | P78: =+P13-P76 -> 0 | Q78: -8488.312952 | R78: =+R13-R76 -> 0
A80: Breakeven Price to Cover Total Costs | G80: 8.735046454 | H80: =IF(E10=0,"n/a",(YTotExp-(YTotExp+YTotRet-J10))/E10) -> n/a | I80: Bushel
D82: Example Breakeven Prices
B83: Example | C83: Example | D83: To Cover | G83: To Cover
B84: Yield | C84: Yield | D84: Variable | G84: Total
B85: Percent | C85: Bushel | D85: Costs | G85: Costs
B86: 0.75 | C86: 26.25 | D86: 7.124286957 | G86: 11.64672861
B87: 0.9 | C87: 31.5 | D87: 5.936905797 | G87: 9.705607172
B88: 1 | C88: 35 | D88: 5.343215218 | G88: 8.735046454
B89: 1.1 | C89: 38.5 | D89: 4.85746838 | G89: 7.940951322
B90: 1.25 | C90: 43.75 | D90: 4.274572174 | G90: 6.988037164
A92: Developed by Extension Economists, Texas A&M AgriLife Extension Service, budgets@tamu.edu.
A94: Information presented is prepared solely as a general guide and not intended to recognize or predict the costs and returns from any one operation. Brand names are mentioned only as examples and imply no endorsement.

Sheet Cotton
A1: Projections for Planning Purposes Only -- Not to be Used without Updating
A2: 2023 Estimated Costs and Returns per Acre
A3: Cotton - Genetically Modified Seed, Conv. Till-24 Row, Dryland, 800 lb. Yield Goal - Lower Coast
A4: Enter your name for this budget in the cell above.
A5: Enter Your Values in the cells highlighed in MAROON.
E6: Your Acres | R6: Your
C7: Crop Acres | D7: 500 | L7: Your | Q7: Enterprise | R7: Enterprise
E8: Your | H8: Your | I8: Cash | J8: Your | K8: Landlord | L8: Landlord | N8: Your | P8: Your | Q8: Total | R8: Total
A9: REVENUE | D9: Quantity | E9: Quantity | F9: Units | G9: $/Unit | H9: $/Unit | I9: Total | J9: Total | K9: Share | L9: Share | M9: Landlord | N9: Landlord | O9: Tenant | P9: Tenant | Q9: (500 acres) | R9: ="(" & E7 & " acres)" -> ( acres)
B10: Cotton Lint | D10: 800 | F10: Pound | G10: 0.9 | I10: 720 | J10: =E10*H10 -> 0 | K10: 0 | M10: 0 | N10: =J10*L10 -> 0 | O10: 720 | P10: =+J10-N10 -> 0 | Q10: 360000 | R10: =+J10*E$7 -> 0
B11: Cottonseed | D11: 0.58 | F11: Ton | G11: 360 | I11: 208.8 | J11: 0 | K11: 0 | M11: 0 | N11: 0 | O11: 208.8 | P11: =+J11-N11 -> 0 | Q11: 104400 | R11: 0
D12: 0 | G12: 0 | I12: 0 | J12: 0 | K12: 0 | M12: 0 | N12: 0 | O12: 0 | P12: 0 | Q12: 0 | R12: 0
D13: 0 | G13: 0 | I13: 0 | J13: 0 | K13: 0 | M13: 0 | N13: 0 | O13: 0 | P13: 0 | Q13: 0 | R13: 0
A14: Total Revenue | I14: 928.8 | J14: =SUM(J10:J13) -> 0 | M14: 0 | N14: =SUM(N10:N13) -> 0 | O14: 928.8 | P14: =SUM(P10:P13) -> 0 | Q14: 464400 | R14: =SUM(R10:R13) -> 0
Q15: Enterprise | R15: Enterprise
A16: VARIABLE COSTS | D16: Quantity | E16: Quantity | F16: Units | G16: $/Unit | H16: $/Unit | I16: Total | J16: Total | K16: Share | L16: Share | M16: Landlord | N16: Landlord | O16: Tenant | P16: Tenant | Q16: Total | R16: Total
A17: Production Costs
B18: Custom | I18: $216.4
C19: Fertilizer Application | D19: 1 | F19: Ounce | G19: 0.159 | I19: 0.159 | J19: =E19*H19 -> 0 | K19: 0 | M19: 0 | N19: =J19*L19 -> 0 | O19: 0.159 | P19: =+J19-N19 -> 0 | Q19: 79.5 | R19: =+J19*E$7 -> 0
C20: Pick and Module | D20: 800 | F20: Pound | G20: 0.1378 | I20: 110.24 | J20: 0 | K20: 0 | M20: 0 | N20: 0 | O20: 110.24 | P20: 0 | Q20: 55120 | R20: 0
C21: Ginning - Picker | D21: 800 | F21: Pound | G21: 0.1325 | I21: 106 | J21: 0 | K21: 0 | M21: 0 | N21: 0 | O21: 106 | P21: 0 | Q21: 53000 | R21: 0
B22: Fertilizer | I22: $95.9
C23: 24-8-0 | D23: 0.1665 | F23: Ton | G23: 576 | I23: 95.904 | J23: 0 | K23: 0 | M23: 0 | N23: 0 | O23: 95.904 | P23: 0 | Q23: 47952 | R23: 0
B24: Herbicide | I24: $60.87
C25: Glyphosate | D25: 1 | F25: Quart | G25: 12.25 | I25: 12.25 | J25: 0 | K25: 0 | M25: 0 | N25: 0 | O25: 12.25 | P25: 0 | Q25: 6125 | R25: 0
C26: Trifluralin | D26: 32 | F26: Ounce | G26: 0.2014 | I26: 6.4448 | J26: 0 | K26: 0 | M26: 0 | N26: 0 | O26: 6.4448 | P26: 0 | Q26: 3222.4 | R26: 0
C27: Cotton Early Season Herbicide | D27: 2 | F27: Quart | G27: 17.2144 | I27: 34.4288 | J27: 0 | K27: 0 | M27: 0 | N27: 0 | O27: 34.4288 | P27: 0 | Q27: 17214.4 | R27: 0
C28: 2, 4D Amine | D28: 2 | F28: Pint | G28: 3.875 | I28: 7.75 | J28: 0 | K28: 0 | M28: 0 | N28: 0 | O28: 7.75 | P28: 0 | Q28: 3875 | R28: 0
B29: Insecticide | I29: $2.24
C30: Fleahopper Control LC | D30: 1.6 | F30: Ounce | G30: 1.4 | I30: 2.24 | J30: 0 | K30: 0 | M30: 0 | N30: 0 | O30: 2.24 | P30: 0 | Q30: 1120 | R30: 0
B31: Miscellaneous | I31: $24.05
C32: Crop Insurance -Cotton LC | D32: 1 | F32: Acre | G32: 14 | I32: 14 | J32: 0 | K32: 0 | M32: 0 | N32: 0 | O32: 14 | P32: 0 | Q32: 7000 | R32: 0
C33: Pickup Milage Charge | D33: 1 | F33: Acre | G33: 4.1128 | I33: 4.1128 | J33: 0 | K33: 0 | M33: 0 | N33: 0 | O33: 4.1128 | P33: 0 | Q33: 2056.4 | R33: 0
C34: Boll Weevil Program LC | D34: 1.6 | F34: Bale | G34: 3.71 | I34: 5.936 | J34: 0 | K34: 0 | M34: 0 | N34: 0 | O34: 5.936 | P34: 0 | Q34: 2968 | R34: 0
B35: Seed | I35: $85.61
C36: Cotton Seed - B2RF | D36: 40 | F36: Thousand | G36: 1.96 | I36: 78.4 | J36: 0 | K36: 0 | M36: 0 | N36: 0 | O36: 78.4 | P36: 0 | Q36: 39200 | R36: 0
C37: Cotton Seed - Insect Treatment | D37: 40 | F37: Thousand | G37: 0.1802 | I37: 7.208 | J37: 0 | K37: 0 | M37: 0 | N37: 0 | O37: 7.208 | P37: 0 | Q37: 3604 | R37: 0
C38: Tech Fee - B2RF | D38: 1 | F38: Acre | G38: 0 | I38: 0 | J38: 0 | K38: 0 | M38: 0 | N38: 0 | O38: 0 | P38: 0 | Q38: 0 | R38: 0
B39: Other Chemicals | I39: $6.74
C40: Generic PIX | D40: 32 | F40: Ounce | G40: 0.0636 | I40: 2.0352 | J40: 0 | K40: 0 | M40: 0 | N40: 0 | O40: 2.0352 | P40: 0 | Q40: 1017.6 | R40: 0
C41: Defoliants - Picker | D41: 4 | F41: Ounce | G41: 1.113 | I41: 4.452 | J41: 0 | K41: 0 | M41: 0 | N41: 0 | O41: 4.452 | P41: 0 | Q41: 2226 | R41: 0
C42: Ethephon | D42: 1.6 | F42: Ounce | G42: 0.159 | I42: 0.2544 | J42: 0 | K42: 0 | M42: 0 | N42: 0 | O42: 0.2544 | P42: 0 | Q42: 127.2 | R42: 0
B43: Other Labor | I43: $1.36
C44: Hand Labor | D44: 0.08 | F44: Hour | G44: 16.96 | I44: 1.3568 | J44: 0 | K44: 0 | M44: 0 | N44: 0 | O44: 1.3568 | P44: 0 | Q44: 678.4 | R44: 0
D45: 0 | G45: 0 | I45: 0 | J45: 0 | K45: 0 | M45: 0 | N45: 0 | O45: 0 | P45: 0 | Q45: 0 | R45: 0
D46: 0 | G46: 0 | I46: 0 | J46: 0 | K46: 0 | M46: 0 | N46: 0 | O46: 0 | P46: 0 | Q46: 0 | R46: 0
D47: 0 | G47: 0 | I47: 0 | J47: =E47*H47 -> 0 | K47: 0 | M47: 0 | N47: =J47*L47 -> 0 | O47: 0 | P47: =+J47-N47 -> 0 | Q47: 0 | R47: =+J47*E$7 -> 0
B48: Machinery Labor | I48: $4.82
C49: Tractors/Self-Propelled | D49: 0.28 | F49: Hour | G49: 17.21 | I49: 4.8188 | J49: =E49*H49 -> 0 | K49: 0 | M49: 0 | N49: =J49*L49 -> 0 | O49: 4.8188 | P49: =+J49-N49 -> 0 | Q49: 2409.4 | R49: =+J49*E$7 -> 0
C50: Other Labor | D50: 0 | F50: Hour | G50: 17.21 | I50: 0 | J50: =E50*H50 -> 0 | K50: 0 | M50: 0 | N50: =J50*L50 -> 0 | O50: 0 | P50: =+J50-N50 -> 0 | Q50: 0 | R50: =+J50*E$7 -> 0
B52: Diesel Fuel | I52: $7.73
C53: Pickup/General Use Equipment | D53: 1 | F53: Acre | G53: 0 | I53: 0 | J53: =E53*H53 -> 0 | K53: 0 | M53: 0 | N53: =J53*L53 -> 0 | O53: 0 | P53: =+J53-N53 -> 0 | Q53: 0 | R53: =+J53*E$7 -> 0
C54: Tractors/Self-Propelled | D54: 3.45 | F54: Gallon | G54: 2.24 | I54: 7.728 | J54: =E54*H54 -> 0 | K54: 0 | M54: 0 | N54: =J54*L54 -> 0 | O54: 7.728 | P54: =+J54-N54 -> 0 | Q54: 3864 | R54: =+J54*E$7 -> 0
B56: Gasoline | I56: $0
C57: Pickup/General Use Equipment | D57: 1 | F57: Acre | G57: 0 | I57: 0 | J57: =E57*H57 -> 0 | K57: 0 | M57: 0 | N57: =J57*L57 -> 0 | O57: 0 | P57: =+J57-N57 -> 0 | Q57: 0 | R57: =+J57*E$7 -> 0
C58: Tractors/Self-Propelled | D58: 0 | F58: Gallon | G58: 2.09 | I58: 0 | J58: =E58*H58 -> 0 | K58: 0 | M58: 0 | N58: =J58*L58 -> 0 | O58: 0 | P58: =+J58-N58 -> 0 | Q58: 0 | R58: =+J58*E$7 -> 0
B60: Repairs & Maintenance | I60: $16.5
C61: Pickup/General Use Equipment | D61: 1 | F61: Acre | G61: 0 | I61: 0 | J61: =E61*H61 -> 0 | K61: 0 | M61: 0 | N61: =J61*L61 -> 0 | O61: 0 | P61: =+J61-N61 -> 0 | Q61: 0 | R61: =+J61*E$7 -> 0
C62: Irrigation Equipment | D62: 1 | F62: Acre | G62: 0 | I62: 0 | J62: 0 | K62: 0 | M62: 0 | N62: 0 | O62: 0 | P62: 0 | Q62: 0 | R62: 0
C63: Tractors/Self-Propelled | D63: 1 | F63: Acre | G63: 10.62936212 | I63: 10.62936212 | J63: 0 | K63: 0 | M63: 0 | N63: 0 | O63: 10.62936212 | P63: 0 | Q63: 5314.681062 | R63: 0
C64: Implements | D64: 1 | F64: Acre | G64: 5.874472996 | I64: 5.874472996 | J64: 0 | K64: 0 | M64: 0 | N64: 0 | O64: 5.874472996 | P64: 0 | Q64: 2937.236498 | R64: 0
I65: 0 | J65: 0 | K65: 0 | M65: 0 | N65: 0 | O65: 0 | P65: 0 | Q65: 0 | R65: 0
I66: 0 | J66: 0 | K66: 0 | M66: 0 | N66: 0 | O66: 0 | P66: 0 | Q66: 0 | R66: 0
B67: Interest on Credit Line | G67: 0.08 | I67: 16.77801992 | J67: =+SUM(J18:J66)/2*H67 -> 0 | M67: 0 | N67: =+SUM(N18:N66)/2*L67 -> 0 | O67: 16.77801992 | P67: =+SUM(P18:P66)/2*L67 -> 0 | Q67: 8389.00996 | R67: =+J67*E$7 -> 0
A68: Total Variable Costs | I68: 539.000455 | J68: =SUM(J19:J67) -> 0 | M68: 0 | N68: =SUM(N19:N67) -> 0 | O68: 539.000455 | P68: =SUM(P19:P67) -> 0 | Q68: 269500.2275 | R68: =SUM(R19:R67) -> 0
A69: Planned Returns Above Variable Costs: | I69: 389.799545 | J69: =+J14-J68 -> 0 | M69: 0 | N69: =+N14-N68 -> 0 | O69: 389.799545 | P69: =+P14-P68 -> 0 | Q69: 194899.7725 | R69: =+R14-R68 -> 0
B70: Breakeven Price to Cover Variable Costs | G70: 0.4127505688 | H70: =IF(E10=0,"n/a",(YVarExp-(YTotExp+YTotRet-J10))/E10) -> n/a | I70: Pound
Q71: Enterprise | R71: Enterprise
A72: FIXED COSTS | D72: Quantity | E72: Quantity | F72: Units | G72: $/Unit | H72: $/Unit | I72: Total | J72: Total | K72: Share | L72: Share | M72: Landlord | N72: Landlord | O72: Tenant | P72: Tenant | Q72: Total | R72: Total
B73: Machinery Depreciation | I73: $21.96
C74: Tractors/Self-Propelled | D74: 1 | F74: Acre | G74: 13.74295792 | I74: 13.74295792 | J74: =E74*H74 -> 0 | K74: 0 | M74: 0 | N74: =J74*L74 -> 0 | O74: 13.74295792 | P74: =+J74-N74 -> 0 | Q74: 6871.478962 | R74: =+J74*E$7 -> 0
C75: Implements | D75: 1 | F75: Acre | G75: 8.220678782 | I75: 8.220678782 | J75: 0 | K75: 0 | M75: 0 | N75: =J75*L75 -> 0 | O75: 8.220678782 | P75: 0 | Q75: 4110.339391 | R75: 0
B76: Equipment Investment | I76: $11.35
C77: Tractors/Self-Propelled | D77: 105.780017 | F77: Dollars | G77: 0.08 | I77: 8.46240136 | J77: =E77*H77 -> 0 | K77: 0 | M77: 0 | N77: =J77*L77 -> 0 | O77: 8.46240136 | P77: =+J77-N77 -> 0 | Q77: 4231.20068 | R77: =+J77*E$7 -> 0
C78: Implements | D78: 36.08826159 | F78: Dollars | G78: 0.08 | I78: 2.887060927 | J78: 0 | K78: 0 | M78: 0 | N78: =J78*L78 -> 0 | O78: 2.887060927 | P78: 0 | Q78: 1443.530463 | R78: 0
B79: Salaried Labor | D79: 1 | F79: Acre | G79: 0 | I79: 0 | J79: 0 | K79: 0 | M79: 0 | N79: =J79*L79 -> 0 | O79: 0 | P79: =+J79-N79 -> 0 | Q79: 0 | R79: =+J79*E$7 -> 0
B80: Management Fee, Owner/Operator Labor | D80: 1 | F80: Acre | G80: 46.44 | I80: 46.44 | J80: 0 | K80: 0 | M80: 0 | N80: 0 | O80: 46.44 | P80: 0 | Q80: 23220 | R80: 0
B81: Allocated Establishment Cost | D81: 1 | F81: Acre | G81: 0 | I81: 0 | J81: 0 | K81: 0 | M81: 0 | N81: 0 | O81: 0 | P81: 0 | Q81: 0 | R81: 0
B82: LCB - Land Charge | D82: 1 | F82: Acre | G82: 70 | I82: 70 | J82: 0 | K82: 0 | M82: 0 | N82: 0 | O82: 70 | P82: 0 | Q82: 35000 | R82: 0
B83: Property Taxes | D83: 1 | F83: Acre | G83: 0 | I83: 0 | J83: 0 | K83: 0 | M83: 0 | N83: 0 | O83: 0 | P83: 0 | Q83: 0 | R83: 0
B84: Whole Farm Insurance | D84: 1 | F84: Acre | G84: 0 | I84: 0 | J84: 0 | K84: 0 | M84: 0 | N84: 0 | O84: 0 | P84: 0 | Q84: 0 | R84: 0
D85: 1 | G85: 0 | I85: 0 | J85: 0 | K85: 0 | M85: 0 | N85: 0 | O85: 0 | P85: 0 | Q85: 0 | R85: 0
D86: 1 | G86: 0 | I86: 0 | J86: =E86*H86 -> 0 | K86: 0 | M86: 0 | N86: 0 | O86: 0 | P86: 0 | Q86: 0 | R86: 0
A87: Total Fixed Costs | I87: 149.753099 | J87: =+SUM(J74:J86) -> 0 | M87: 0 | N87: =+SUM(N74:N86) -> 0 | O87: 149.753099 | P87: =+SUM(P74:P86) -> 0 | Q87: 74876.5495 | R87: =+SUM(R74:R86) -> 0
A88: Total Specified Costs | I88: 688.753554 | J88: =+J68+J87 -> 0 | M88: 0 | N88: =+N68+N87 -> 0 | O88: 688.753554 | P88: =+P68+P87 -> 0 | Q88: 344376.777 | R88: =+R68+R87 -> 0
A90: Returns Above Specified Costs | I90: 240.046446 | J90: =+J14-J88 -> 0 | M90: 0 | N90: =+N14-N88 -> 0 | O90: 240.046446 | P90: =+P14-P88 -> 0 | Q90: 120023.223 | R90: =+R14-R88 -> 0
A92: Breakeven Price to Cover Total Costs | G92: 0.5999419425 | H92: =IF(E10=0,"n/a",(YTotExp-(YTotExp+YTotRet-J10))/E10) -> n/a | I92: Pound
D94: Example Breakeven Prices
B95: Example | C95: Example | D95: To Cover | G95: To Cover
B96: Yield | C96: Yield | D96: Variable | G96: Total
B97: Percent | C97: Pound | D97: Costs | G97: Costs
B98: 0.75 | C98: 600 | D98: 0.5503340917 | G98: 0.7999225901
B99: 0.9 | C99: 720 | D99: 0.4586117431 | G99: 0.6666021584
B100: 1 | C100: 800 | D100: 0.4127505688 | G100: 0.5999419425
B101: 1.1 | C101: 880 | D101: 0.3752277898 | G101: 0.5454017659
B102: 1.25 | C102: 1000 | D102: 0.330200455 | G102: 0.479953554
A104: Developed by Extension Economists, Texas A&M AgriLife Extension Service, budgets@tamu.edu.
A106: Information presented is prepared solely as a general guide and not intended to recognize or predict the costs and returns from any one operation. Brand names are mentioned only as examples and imply no endorsement.

Sheet Sesame
A1: Projections for Planning Purposes Only -- Not to be Used without Updating
A2: 2023 Estimated Costs and Returns per Acre
A3: Sesame - Conventional Till-12 Row, Dryland, 800 lb. Yield Goal - Lower Coast
A4: Enter your name for this budget in the cell above.
A5: Enter Your Values in the cells highlighed in MAROON.
E6: Your Acres | R6: Your
C7: Crop Acres | D7: 500 | L7: Your | Q7: Enterprise | R7: Enterprise
E8: Your | H8: Your | I8: Cash | J8: Your | K8: Landlord | L8: Landlord | N8: Your | P8: Your | Q8: Total | R8: Total
A9: REVENUE | D9: Quantity | E9: Quantity | F9: Units | G9: $/Unit | H9: $/Unit | I9: Total | J9: Total | K9: Share | L9: Share | M9: Landlord | N9: Landlord | O9: Tenant | P9: Tenant | Q9: (500 acres) | R9: ="(" & E7 & " acres)" -> ( acres)
B10: Sesame | D10: 800 | F10: Pound | G10: 0.32 | I10: 256 | J10: =E10*H10 -> 0 | K10: 0 | M10: 0 | N10: =J10*L10 -> 0 | O10: 256 | P10: =+J10-N10 -> 0 | Q10: 128000 | R10: =+J10*E$7 -> 0
D11: 0 | G11: 0 | I11: 0 | J11: 0 | K11: 0 | M11: 0 | N11: 0 | O11: 0 | P11: =+J11-N11 -> 0 | Q11: 0 | R11: 0
D12: 0 | G12: 0 | I12: 0 | J12: 0 | K12: 0 | M12: 0 | N12: 0 | O12: 0 | P12: 0 | Q12: 0 | R12: 0
A13: Total Revenue | I13: 256 | J13: =SUM(J10:J12) -> 0 | M13: 0 | N13: =SUM(N10:N12) -> 0 | O13: 256 | P13: =SUM(P10:P12) -> 0 | Q13: 128000 | R13: =SUM(R10:R12) -> 0
Q14: Enterprise | R14: Enterprise
A15: VARIABLE COSTS | D15: Quantity | E15: Quantity | F15: Units | G15: $/Unit | H15: $/Unit | I15: Total | J15: Total | K15: Share | L15: Share | M15: Landlord | N15: Landlord | O15: Tenant | P15: Tenant | Q15: Total | R15: Total
A16: Production Costs
B17: Fertilizer | I17: $47.98
C18: 24-8-0 | D18: 0.0833 | F18: Ton | G18: 576 | I18: 47.9808 | J18: =E18*H18 -> 0 | K18: 0 | M18: 0 | N18: =J18*L18 -> 0 | O18: 47.9808 | P18: =+J18-N18 -> 0 | Q18: 23990.4 | R18: =+J18*E$7 -> 0
B19: Herbicide | I19: $22.45
C20: Glyphosate (Generic) | D20: 2 | F20: Quart | G20: 7.75 | I20: 15.5 | J20: 0 | K20: 0 | M20: 0 | N20: 0 | O20: 15.5 | P20: 0 | Q20: 7750 | R20: 0
C21: Sesame PostEmerge Herbicide | D21: 8 | F21: Ounce | G21: 0.8692 | I21: 6.9536 | J21: 0 | K21: 0 | M21: 0 | N21: 0 | O21: 6.9536 | P21: 0 | Q21: 3476.8 | R21: 0
B22: Miscellaneous | I22: $30.11
C23: Pickup Milage Charge | D23: 1 | F23: Acre | G23: 4.1128 | I23: 4.1128 | J23: 0 | K23: 0 | M23: 0 | N23: 0 | O23: 4.1128 | P23: 0 | Q23: 2056.4 | R23: 0
C24: Crop Insurance -Sesame | D24: 1 | F24: Acre | G24: 26 | I24: 26 | J24: 0 | K24: 0 | M24: 0 | N24: 0 | O24: 26 | P24: 0 | Q24: 13000 | R24: 0
B25: Seed | I25: $12.72
C26: Sesame | D26: 3 | F26: Pound | G26: 4.24 | I26: 12.72 | J26: 0 | K26: 0 | M26: 0 | N26: 0 | O26: 12.72 | P26: 0 | Q26: 6360 | R26: 0
B27: Other Labor | I27: $1.36
C28: Hand Labor | D28: 0.08 | F28: Hour | G28: 16.96 | I28: 1.3568 | J28: 0 | K28: 0 | M28: 0 | N28: 0 | O28: 1.3568 | P28: 0 | Q28: 678.4 | R28: 0
D29: 0 | G29: 0 | I29: 0 | J29: 0 | K29: 0 | M29: 0 | N29: 0 | O29: 0 | P29: 0 | Q29: 0 | R29: 0
D30: 0 | G30: 0 | I30: 0 | J30: 0 | K30: 0 | M30: 0 | N30: 0 | O30: 0 | P30: 0 | Q30: 0 | R30: 0
D31: 0 | G31: 0 | I31: 0 | J31: =E31*H31 -> 0 | K31: 0 | M31: 0 | N31: =J31*L31 -> 0 | O31: 0 | P31: =+J31-N31 -> 0 | Q31: 0 | R31: =+J31*E$7 -> 0
B32: Machinery Labor | I32: $7.4
C33: Tractors/Self-Propelled | D33: 0.43 | F33: Hour | G33: 17.21 | I33: 7.4003 | J33: =E33*H33 -> 0 | K33: 0 | M33: 0 | N33: =J33*L33 -> 0 | O33: 7.4003 | P33: =+J33-N33 -> 0 | Q33: 3700.15 | R33: =+J33*E$7 -> 0
C34: Other Labor | D34: 0 | F34: Hour | G34: 17.21 | I34: 0 | J34: =E34*H34 -> 0 | K34: 0 | M34: 0 | N34: =J34*L34 -> 0 | O34: 0 | P34: =+J34-N34 -> 0 | Q34: 0 | R34: =+J34*E$7 -> 0
B36: Diesel Fuel | I36: $11.27
C37: Pickup/General Use Equipment | D37: 1 | F37: Acre | G37: 0 | I37: 0 | J37: =E37*H37 -> 0 | K37: 0 | M37: 0 | N37: =J37*L37 -> 0 | O37: 0 | P37: =+J37-N37 -> 0 | Q37: 0 | R37: =+J37*E$7 -> 0
C38: Tractors/Self-Propelled | D38: 5.03 | F38: Gallon | G38: 2.24 | I38: 11.2672 | J38: =E38*H38 -> 0 | K38: 0 | M38: 0 | N38: =J38*L38 -> 0 | O38: 11.2672 | P38: =+J38-N38 -> 0 | Q38: 5633.6 | R38: =+J38*E$7 -> 0
B40: Gasoline | I40: $0
C41: Pickup/General Use Equipment | D41: 1 | F41: Acre | G41: 0 | I41: 0 | J41: =E41*H41 -> 0 | K41: 0 | M41: 0 | N41: =J41*L41 -> 0 | O41: 0 | P41: =+J41-N41 -> 0 | Q41: 0 | R41: =+J41*E$7 -> 0
C42: Tractors/Self-Propelled | D42: 0 | F42: Gallon | G42: 2.09 | I42: 0 | J42: =E42*H42 -> 0 | K42: 0 | M42: 0 | N42: =J42*L42 -> 0 | O42: 0 | P42: =+J42-N42 -> 0 | Q42: 0 | R42: =+J42*E$7 -> 0
B44: Repairs & Maintenance | I44: $27.75
C45: Pickup/General Use Equipment | D45: 1 | F45: Acre | G45: 0 | I45: 0 | J45: =E45*H45 -> 0 | K45: 0 | M45: 0 | N45: =J45*L45 -> 0 | O45: 0 | P45: =+J45-N45 -> 0 | Q45: 0 | R45: =+J45*E$7 -> 0
C46: Irrigation Equipment | D46: 1 | F46: Acre | G46: 0 | I46: 0 | J46: 0 | K46: 0 | M46: 0 | N46: 0 | O46: 0 | P46: 0 | Q46: 0 | R46: 0
C47: Tractors/Self-Propelled | D47: 1 | F47: Acre | G47: 19.44871138 | I47: 19.44871138 | J47: 0 | K47: 0 | M47: 0 | N47: 0 | O47: 19.44871138 | P47: 0 | Q47: 9724.35569 | R47: 0
C48: Implements | D48: 1 | F48: Acre | G48: 8.304731714 | I48: 8.304731714 | J48: 0 | K48: 0 | M48: 0 | N48: 0 | O48: 8.304731714 | P48: 0 | Q48: 4152.365857 | R48: 0
I49: 0 | J49: 0 | K49: 0 | M49: 0 | N49: 0 | O49: 0 | P49: 0 | Q49: 0 | R49: 0
I50: 0 | J50: 0 | K50: 0 | M50: 0 | N50: 0 | O50: 0 | P50: 0 | Q50: 0 | R50: 0
B51: Interest on Credit Line | G51: 0.08 | I51: 3.86030588 | J51: =+SUM(J17:J50)/2*H51 -> 0 | M51: 0 | N51: =+SUM(N17:N50)/2*L51 -> 0 | O51: 3.86030588 | P51: =+SUM(P17:P50)/2*L51 -> 0 | Q51: 1930.15294 | R51: =+J51*E$7 -> 0
A52: Total Variable Costs | I52: 164.905249 | J52: =SUM(J18:J51) -> 0 | M52: 0 | N52: =SUM(N18:N51) -> 0 | O52: 164.905249 | P52: =SUM(P18:P51) -> 0 | Q52: 82452.62449 | R52: =SUM(R18:R51) -> 0
A53: Planned Returns Above Variable Costs: | I53: 91.09475103 | J53: =+J13-J52 -> 0 | M53: 0 | N53: =+N13-N52 -> 0 | O53: 91.09475103 | P53: =+P13-P52 -> 0 | Q53: 45547.37551 | R53: =+R13-R52 -> 0
B54: Breakeven Price to Cover Variable Costs | G54: 0.2061315612 | H54: =IF(E10=0,"n/a",(YVarExp-(YTotExp+YTotRet-J10))/E10) -> n/a | I54: Pound
Q55: Enterprise | R55: Enterprise
A56: FIXED COSTS | D56: Quantity | E56: Quantity | F56: Units | G56: $/Unit | H56: $/Unit | I56: Total | J56: Total | K56: Share | L56: Share | M56: Landlord | N56: Landlord | O56: Tenant | P56: Tenant | Q56: Total | R56: Total
B57: Machinery Depreciation | I57: $30.25
C58: Tractors/Self-Propelled | D58: 1 | F58: Acre | G58: 20.47590252 | I58: 20.47590252 | J58: =E58*H58 -> 0 | K58: 0 | M58: 0 | N58: =J58*L58 -> 0 | O58: 20.47590252 | P58: =+J58-N58 -> 0 | Q58: 10237.95126 | R58: =+J58*E$7 -> 0
C59: Implements | D59: 1 | F59: Acre | G59: 9.777046928 | I59: 9.777046928 | J59: 0 | K59: 0 | M59: 0 | N59: =J59*L59 -> 0 | O59: 9.777046928 | P59: 0 | Q59: 4888.523464 | R59: 0
B60: Equipment Investment | I60: $18.41
C61: Tractors/Self-Propelled | D61: 156.8722238 | F61: Dollars | G61: 0.08 | I61: 12.54977791 | J61: =E61*H61 -> 0 | K61: 0 | M61: 0 | N61: =J61*L61 -> 0 | O61: 12.54977791 | P61: =+J61-N61 -> 0 | Q61: 6274.888954 | R61: =+J61*E$7 -> 0
C62: Implements | D62: 73.26455226 | F62: Dollars | G62: 0.08 | I62: 5.861164181 | J62: 0 | K62: 0 | M62: 0 | N62: =J62*L62 -> 0 | O62: 5.861164181 | P62: 0 | Q62: 2930.58209 | R62: 0
B63: Salaried Labor | D63: 1 | F63: Acre | G63: 0 | I63: 0 | J63: 0 | K63: 0 | M63: 0 | N63: =J63*L63 -> 0 | O63: 0 | P63: =+J63-N63 -> 0 | Q63: 0 | R63: =+J63*E$7 -> 0
B64: Management Fee, Owner/Operator Labor | D64: 1 | F64: Acre | G64: 12.8 | I64: 12.8 | J64: 0 | K64: 0 | M64: 0 | N64: 0 | O64: 12.8 | P64: 0 | Q64: 6400 | R64: 0
B65: Allocated Establishment Cost | D65: 1 | F65: Acre | G65: 0 | I65: 0 | J65: 0 | K65: 0 | M65: 0 | N65: 0 | O65: 0 | P65: 0 | Q65: 0 | R65: 0
B66: LCB - Land Charge | D66: 1 | F66: Acre | G66: 70 | I66: 70 | J66: 0 | K66: 0 | M66: 0 | N66: 0 | O66: 70 | P66: 0 | Q66: 35000 | R66: 0
B67: Property Taxes | D67: 1 | F67: Acre | G67: 0 | I67: 0 | J67: 0 | K67: 0 | M67: 0 | N67: 0 | O67: 0 | P67: 0 | Q67: 0 | R67: 0
B68: Whole Farm Insurance | D68: 1 | F68: Acre | G68: 0 | I68: 0 | J68: 0 | K68: 0 | M68: 0 | N68: 0 | O68: 0 | P68: 0 | Q68: 0 | R68: 0
D69: 1 | G69: 0 | I69: 0 | J69: 0 | K69: 0 | M69: 0 | N69: 0 | O69: 0 | P69: 0 | Q69: 0 | R69: 0
D70: 1 | G70: 0 | I70: 0 | J70: =E70*H70 -> 0 | K70: 0 | M70: 0 | N70: 0 | O70: 0 | P70: 0 | Q70: 0 | R70: 0
A71: Total Fixed Costs | I71: 131.4638915 | J71: =+SUM(J58:J70) -> 0 | M71: 0 | N71: =+SUM(N58:N70) -> 0 | O71: 131.4638915 | P71: =+SUM(P58:P70) -> 0 | Q71: 65731.94577 | R71: =+SUM(R58:R70) -> 0
A72: Total Specified Costs | I72: 296.3691405 | J72: =+J52+J71 -> 0 | M72: 0 | N72: =+N52+N71 -> 0 | O72: 296.3691405 | P72: =+P52+P71 -> 0 | Q72: 148184.5703 | R72: =+R52+R71 -> 0
A74: Returns Above Specified Costs | I74: -40.36914051 | J74: =+J13-J72 -> 0 | M74: 0 | N74: =+N13-N72 -> 0 | O74: -40.36914051 | P74: =+P13-P72 -> 0 | Q74: -20184.57025 | R74: =+R13-R72 -> 0
A76: Breakeven Price to Cover Total Costs | G76: 0.3704614256 | H76: =IF(E10=0,"n/a",(YTotExp-(YTotExp+YTotRet-J10))/E10) -> n/a | I76: Pound
D78: Example Breakeven Prices
B79: Example | C79: Example | D79: To Cover | G79: To Cover
B80: Yield | C80: Yield | D80: Variable | G80: Total
B81: Percent | C81: Pound | D81: Costs | G81: Costs
B82: 0.75 | C82: 600 | D82: 0.2748420816 | G82: 0.4939485675
B83: 0.9 | C83: 720 | D83: 0.229035068 | G83: 0.4116238063
B84: 1 | C84: 800 | D84: 0.2061315612 | G84: 0.3704614256
B85: 1.1 | C85: 880 | D85: 0.1873923284 | G85: 0.3367831142
B86: 1.25 | C86: 1000 | D86: 0.164905249 | G86: 0.2963691405
A88: Developed by Extension Economists, Texas A&M AgriLife Extension Service, budgets@tamu.edu.
A90: Information presented is prepared solely as a general guide and not intended to recognize or predict the costs and returns from any one operation. Brand names are mentioned only as examples and imply no endorsement.

Sheet IrrigatedCotton
A1: Projections for Planning Purposes Only -- Not to be Used without Updating
A2: 2023 Estimated Costs and Returns per Acre
A3: Cotton - Genetically Modified Seed, Conv. Till-24 Row, Irrigated, 1250 lb. Yield Goal
A4: Enter your name for this budget in the cell above.
A5: Enter Your Values in the cells highlighed in MAROON.
E6: Your Acres | R6: Your
C7: Crop Acres | D7: 505 | L7: Your | Q7: Enterprise | R7: Enterprise
E8: Your | H8: Your | I8: Cash | J8: Your | K8: Landlord | L8: Landlord | N8: Your | P8: Your | Q8: Total | R8: Total
A9: REVENUE | D9: Quantity | E9: Quantity | F9: Units | G9: $/Unit | H9: $/Unit | I9: Total | J9: Total | K9: Share | L9: Share | M9: Landlord | N9: Landlord | O9: Tenant | P9: Tenant | Q9: (505 acres) | R9: ="(" & E7 & " acres)" -> ( acres)
B10: Cotton Lint | D10: 1250 | F10: Pound | G10: 0.9 | I10: 1125 | J10: =E10*H10 -> 0 | K10: 0 | M10: 0 | N10: =J10*L10 -> 0 | O10: 1125 | P10: =+J10-N10 -> 0 | Q10: 568125 | R10: =+J10*E$7 -> 0
B11: Cottonseed | D11: 0.86 | F11: Ton | G11: 360 | I11: 309.6 | J11: 0 | K11: 0 | M11: 0 | N11: 0 | O11: 309.6 | P11: =+J11-N11 -> 0 | Q11: 156348 | R11: 0
D12: 0 | G12: 0 | I12: 0 | J12: 0 | K12: 0 | M12: 0 | N12: 0 | O12: 0 | P12: 0 | Q12: 0 | R12: 0
D13: 0 | G13: 0 | I13: 0 | J13: 0 | K13: 0 | M13: 0 | N13: 0 | O13: 0 | P13: 0 | Q13: 0 | R13: 0
A14: Total Revenue | I14: 1434.6 | J14: =SUM(J10:J13) -> 0 | M14: 0 | N14: =SUM(N10:N13) -> 0 | O14: 1434.6 | P14: =SUM(P10:P13) -> 0 | Q14: 724473 | R14: =SUM(R10:R13) -> 0
Q15: Enterprise | R15: Enterprise
A16: VARIABLE COSTS | D16: Quantity | E16: Quantity | F16: Units | G16: $/Unit | H16: $/Unit | I16: Total | J16: Total | K16: Share | L16: Share | M16: Landlord | N16: Landlord | O16: Tenant | P16: Tenant | Q16: Total | R16: Total
A17: Production Costs
B18: Custom | I18: $0
C19: Fertilizer Application | D19: 0 | F19: Ounce | G19: 0.159 | I19: 0 | J19: =E19*H19 -> 0 | K19: 0 | M19: 0 | N19: =J19*L19 -> 0 | O19: 0 | P19: =+J19-N19 -> 0 | Q19: 0 | R19: =+J19*E$7 -> 0
C20: Pick and Module | D20: 1250 | F20: Pound | G20: 0.1378 | I20: 172.25 | J20: 0 | K20: 0 | M20: 0 | N20: 0 | O20: 172.25 | P20: 0 | Q20: 86986.25 | R20: 0
C21: Ginning - Picker | D21: 1250 | F21: Pound | G21: 0.1325 | I21: 165.625 | J21: 0 | K21: 0 | M21: 0 | N21: 0 | O21: 165.625 | P21: 0 | Q21: 83640.625 | R21: 0
B22: Fertilizer | I22: $95.04
C23: 24-8-0 | D23: 0.165 | F23: Ton | G23: 576 | I23: 95.04 | J23: 0 | K23: 0 | M23: 0 | N23: 0 | O23: 95.04 | P23: 0 | Q23: 47995.2 | R23: 0
B24: Herbicide | I24: $60.87
C25: Glyphosate | D25: 1 | F25: Quart | G25: 12.25 | I25: 12.25 | J25: 0 | K25: 0 | M25: 0 | N25: 0 | O25: 12.25 | P25: 0 | Q25: 6186.25 | R25: 0
C26: Trifluralin | D26: 32 | F26: Ounce | G26: 0.2014 | I26: 6.4448 | J26: 0 | K26: 0 | M26: 0 | N26: 0 | O26: 6.4448 | P26: 0 | Q26: 3254.624 | R26: 0
C27: Cotton Early Season Herbicide | D27: 2 | F27: Quart | G27: 17.2144 | I27: 34.4288 | J27: 0 | K27: 0 | M27: 0 | N27: 0 | O27: 34.4288 | P27: 0 | Q27: 17386.544 | R27: 0
C28: 2, 4D Amine | D28: 2 | F28: Pint | G28: 3.875 | I28: 7.75 | J28: 0 | K28: 0 | M28: 0 | N28: 0 | O28: 7.75 | P28: 0 | Q28: 3913.75 | R28: 0
B29: Insecticide | I29: $2.24
C30: Fleahopper Control | D30: 1.6 | F30: Ounce | G30: 1.4 | I30: 2.24 | J30: 0 | K30: 0 | M30: 0 | N30: 0 | O30: 2.24 | P30: 0 | Q30: 1131.2 | R30: 0
B31: Miscellaneous | I31: $13.57
C32: Crop Insurance - Irr Cotton | D32: 1 | F32: Thousand | G32: 0.1802 | I32: 0.1802 | J32: 0 | K32: 0 | M32: 0 | N32: 0 | O32: 0.1802 | P32: 0 | Q32: 91.001 | R32: 0
C33: Pickup Milage Charge | D33: 1 | F33: Acre | G33: 4.1128 | I33: 4.1128 | J33: 0 | K33: 0 | M33: 0 | N33: 0 | O33: 4.1128 | P33: 0 | Q33: 2076.964 | R33: 0
C34: Boll Weevil Program LC | D34: 2.5 | F34: Bale | G34: 3.71 | I34: 9.275 | J34: 0 | K34: 0 | M34: 0 | N34: 0 | O34: 9.275 | P34: 0 | Q34: 4683.875 | R34: 0
B35: Seed | I35: $96.31
C36: Cotton Seed - B2RF | D36: 45 | F36: Thousand | G36: 1.96 | I36: 88.2 | J36: 0 | K36: 0 | M36: 0 | N36: 0 | O36: 88.2 | P36: 0 | Q36: 44541 | R36: 0
C37: Cotton Seed - Insect Treatment | D37: 45 | F37: Thousand | G37: 0.1802 | I37: 8.109 | J37: 0 | K37: 0 | M37: 0 | N37: 0 | O37: 8.109 | P37: 0 | Q37: 4095.045 | R37: 0
C38: Tech Fee - B2RF | D38: 1 | F38: Acre | G38: 0 | I38: 0 | J38: 0 | K38: 0 | M38: 0 | N38: 0 | O38: 0 | P38: 0 | Q38: 0 | R38: 0
B39: Other Labor | I39: $1.36
C40: Hand Labor | D40: 0.08 | F40: Hour | G40: 16.96 | I40: 1.3568 | J40: 0 | K40: 0 | M40: 0 | N40: 0 | O40: 1.3568 | P40: 0 | Q40: 685.184 | R40: 0
B41: Other Chemicals | I41: $13.74
C42: Dual | D42: 1 | F42: Pint | G42: 6.996 | I42: 6.996 | J42: 0 | K42: 0 | M42: 0 | N42: 0 | O42: 6.996 | P42: 0 | Q42: 3532.98 | R42: 0
C43: Generic PIX | D43: 32 | F43: Ounce | G43: 0.0636 | I43: 2.0352 | J43: 0 | K43: 0 | M43: 0 | N43: 0 | O43: 2.0352 | P43: 0 | Q43: 1027.776 | R43: 0
C44: Defoliants - Picker | D44: 4 | F44: Ounce | G44: 1.113 | I44: 4.452 | J44: 0 | K44: 0 | M44: 0 | N44: 0 | O44: 4.452 | P44: 0 | Q44: 2248.26 | R44: 0
C45: Ethephon | D45: 1.6 | F45: Ounce | G45: 0.159 | I45: 0.2544 | J45: 0 | K45: 0 | M45: 0 | N45: 0 | O45: 0.2544 | P45: 0 | Q45: 128.472 | R45: 0
D46: 0 | G46: 0 | I46: 0 | J46: 0 | K46: 0 | M46: 0 | N46: 0 | O46: 0 | P46: 0 | Q46: 0 | R46: 0
D47: 0 | G47: 0 | I47: 0 | J47: 0 | K47: 0 | M47: 0 | N47: 0 | O47: 0 | P47: 0 | Q47: 0 | R47: 0
D48: 0 | G48: 0 | I48: 0 | J48: =E48*H48 -> 0 | K48: 0 | M48: 0 | N48: =J48*L48 -> 0 | O48: 0 | P48: =+J48-N48 -> 0 | Q48: 0 | R48: =+J48*E$7 -> 0
B49: Irrigation | I49: $47.25
C50: Energy Cost | D50: 10 | F50: AcreInch | G50: 2.1 | I50: 21 | J50: =E50*H50 -> 0 | K50: 0 | M50: 0 | N50: =J50*L50 -> 0 | O50: 21 | P50: =+J50-N50 -> 0 | Q50: 10605 | R50: =+J50*E$7 -> 0
C51: Irrigation Labor | D51: 1.5 | F51: Hour | G51: 17.5 | I51: 26.25 | J51: 0 | K51: 0 | M51: 0 | N51: 0 | O51: 26.25 | P51: 0 | Q51: 13256.25 | R51: 0
B52: Machinery Labor | I52: $4.82
C53: Tractors/Self-Propelled | D53: 0.28 | F53: Hour | G53: 17.21 | I53: 4.8188 | J53: =E53*H53 -> 0 | K53: 0 | M53: 0 | N53: =J53*L53 -> 0 | O53: 4.8188 | P53: =+J53-N53 -> 0 | Q53: 2433.494 | R53: =+J53*E$7 -> 0
C54: Other Labor | D54: 0 | F54: Hour | G54: 17.21 | I54: 0 | J54: =E54*H54 -> 0 | K54: 0 | M54: 0 | N54: =J54*L54 -> 0 | O54: 0 | P54: =+J54-N54 -> 0 | Q54: 0 | R54: =+J54*E$7 -> 0
B56: Diesel Fuel | I56: $7.73
C57: Pickup/General Use Equipment | D57: 1 | F57: Acre | G57: 0 | I57: 0 | J57: =E57*H57 -> 0 | K57: 0 | M57: 0 | N57: =J57*L57 -> 0 | O57: 0 | P57: =+J57-N57 -> 0 | Q57: 0 | R57: =+J57*E$7 -> 0
C58: Tractors/Self-Propelled | D58: 3.45 | F58: Gallon | G58: 2.24 | I58: 7.728 | J58: =E58*H58 -> 0 | K58: 0 | M58: 0 | N58: =J58*L58 -> 0 | O58: 7.728 | P58: =+J58-N58 -> 0 | Q58: 3902.64 | R58: =+J58*E$7 -> 0
B60: Gasoline | I60: $0
C61: Pickup/General Use Equipment | D61: 1 | F61: Acre | G61: 0 | I61: 0 | J61: =E61*H61 -> 0 | K61: 0 | M61: 0 | N61: =J61*L61 -> 0 | O61: 0 | P61: =+J61-N61 -> 0 | Q61: 0 | R61: =+J61*E$7 -> 0
C62: Tractors/Self-Propelled | D62: 0 | F62: Gallon | G62: 2.09 | I62: 0 | J62: =E62*H62 -> 0 | K62: 0 | M62: 0 | N62: =J62*L62 -> 0 | O62: 0 | P62: =+J62-N62 -> 0 | Q62: 0 | R62: =+J62*E$7 -> 0
B64: Repairs & Maintenance | I64: $41.59
C65: Pickup/General Use Equipment | D65: 1 | F65: Acre | G65: 0 | I65: 0 | J65: =E65*H65 -> 0 | K65: 0 | M65: 0 | N65: =J65*L65 -> 0 | O65: 0 | P65: =+J65-N65 -> 0 | Q65: 0 | R65: =+J65*E$7 -> 0
C66: Irrigation Equipment | D66: 1 | F66: Acre | G66: 25.08250825 | I66: 25.08250825 | J66: 0 | K66: 0 | M66: 0 | N66: 0 | O66: 25.08250825 | P66: 0 | Q66: 12666.66667 | R66: 0
C67: Tractors/Self-Propelled | D67: 1 | F67: Acre | G67: 10.62936212 | I67: 10.62936212 | J67: 0 | K67: 0 | M67: 0 | N67: 0 | O67: 10.62936212 | P67: 0 | Q67: 5367.827873 | R67: 0
C68: Implements | D68: 1 | F68: Acre | G68: 5.874472996 | I68: 5.874472996 | J68: 0 | K68: 0 | M68: 0 | N68: 0 | O68: 5.874472996 | P68: 0 | Q68: 2966.608863 | R68: 0
I69: 0 | J69: 0 | K69: 0 | M69: 0 | N69: 0 | O69: 0 | P69: 0 | Q69: 0 | R69: 0
I70: 0 | J70: 0 | K70: 0 | M70: 0 | N70: 0 | O70: 0 | P70: 0 | Q70: 0 | R70: 0
B71: Interest on Credit Line | G71: 0.08 | I71: 20.57297342 | J71: =+SUM(J18:J70)/2*H71 -> 0 | M71: 0 | N71: =+SUM(N18:N70)/2*L71 -> 0 | O71: 20.57297342 | P71: =+SUM(P18:P70)/2*L71 -> 0 | Q71: 10389.35158 | R71: =+J71*E$7 -> 0
A72: Total Variable Costs | I72: 742.9561168 | J72: =SUM(J19:J71) -> 0 | M72: 0 | N72: =SUM(N19:N71) -> 0 | O72: 742.9561168 | P72: =SUM(P19:P71) -> 0 | Q72: 375192.839 | R72: =SUM(R19:R71) -> 0
A73: Planned Returns Above Variable Costs: | I73: 691.6438832 | J73: =+J14-J72 -> 0 | M73: 0 | N73: =+N14-N72 -> 0 | O73: 691.6438832 | P73: =+P14-P72 -> 0 | Q73: 349280.161 | R73: =+R14-R72 -> 0
B74: Breakeven Price to Cover Variable Costs | G74: 0.3466848934 | H74: =IF(E10=0,"n/a",(YVarExp-(YTotExp+YTotRet-J10))/E10) -> n/a | I74: Pound
Q75: Enterprise | R75: Enterprise
A76: FIXED COSTS | D76: Quantity | E76: Quantity | F76: Units | G76: $/Unit | H76: $/Unit | I76: Total | J76: Total | K76: Share | L76: Share | M76: Landlord | N76: Landlord | O76: Tenant | P76: Tenant | Q76: Total | R76: Total
B77: Machinery Depreciation | I77: $50.15
C78: Irrigation Equipment | D78: 1 | F78: Acre | G78: 28.18481848 | I78: 28.18481848 | J78: =E78*H78 -> 0 | K78: 0 | M78: 0 | N78: =J78*L78 -> 0 | O78: 28.18481848 | P78: =+J78-N78 -> 0 | Q78: 14233.33333 | R78: =+J78*E$7 -> 0
C79: Tractors/Self-Propelled | D79: 1 | F79: Acre | G79: 13.74295792 | I79: 13.74295792 | J79: 0 | K79: 0 | M79: 0 | N79: =J79*L79 -> 0 | O79: 13.74295792 | P79: 0 | Q79: 6940.193752 | R79: 0
C80: Implements | D80: 1 | F80: Acre | G80: 8.220678782 | I80: 8.220678782 | J80: 0 | K80: 0 | M80: 0 | N80: =J80*L80 -> 0 | O80: 8.220678782 | P80: 0 | Q80: 4151.442785 | R80: 0
B81: Equipment Investment | I81: $34.83
C82: Irrigation Equipment | D82: 293.5643564 | F82: Dollars | G82: 0.08 | I82: 23.48514851 | J82: =E82*H82 -> 0 | K82: 0 | M82: 0 | N82: =J82*L82 -> 0 | O82: 23.48514851 | P82: =+J82-N82 -> 0 | Q82: 11860 | R82: =+J82*E$7 -> 0
C83: Tractors/Self-Propelled | D83: 105.780017 | F83: Dollars | G83: 0.08 | I83: 8.46240136 | J83: 0 | K83: 0 | M83: 0 | N83: =J83*L83 -> 0 | O83: 8.46240136 | P83: 0 | Q83: 4273.512687 | R83: 0
C84: Implements | D84: 36.08826159 | F84: Dollars | G84: 0.08 | I84: 2.887060927 | J84: 0 | K84: 0 | M84: 0 | N84: =J84*L84 -> 0 | O84: 2.887060927 | P84: 0 | Q84: 1457.965768 | R84: 0
B85: Salaried Labor | D85: 1 | F85: Acre | G85: 0 | I85: 0 | J85: 0 | K85: 0 | M85: 0 | N85: =J85*L85 -> 0 | O85: 0 | P85: =+J85-N85 -> 0 | Q85: 0 | R85: =+J85*E$7 -> 0
B86: Management Fee, Owner/Operator Labor | D86: 1 | F86: Acre | G86: 71.73 | I86: 71.73 | J86: 0 | K86: 0 | M86: 0 | N86: 0 | O86: 71.73 | P86: 0 | Q86: 36223.65 | R86: 0
B87: Allocated Establishment Cost | D87: 1 | F87: Acre | G87: 0 | I87: 0 | J87: 0 | K87: 0 | M87: 0 | N87: 0 | O87: 0 | P87: 0 | Q87: 0 | R87: 0
B88: LCB - Land Charge | D88: 1 | F88: Acre | G88: 70 | I88: 70 | J88: 0 | K88: 0 | M88: 0 | N88: 0 | O88: 70 | P88: 0 | Q88: 35350 | R88: 0
B89: Property Taxes | D89: 1 | F89: Acre | G89: 0 | I89: 0 | J89: 0 | K89: 0 | M89: 0 | N89: 0 | O89: 0 | P89: 0 | Q89: 0 | R89: 0
B90: Whole Farm Insurance | D90: 1 | F90: Acre | G90: 0 | I90: 0 | J90: 0 | K90: 0 | M90: 0 | N90: 0 | O90: 0 | P90: 0 | Q90: 0 | R90: 0
D91: 1 | G91: 0 | I91: 0 | J91: 0 | K91: 0 | M91: 0 | N91: 0 | O91: 0 | P91: 0 | Q91: 0 | R91: 0
D92: 1 | G92: 0 | I92: 0 | J92: =E92*H92 -> 0 | K92: 0 | M92: 0 | N92: 0 | O92: 0 | P92: 0 | Q92: 0 | R92: 0
A93: Total Fixed Costs | I93: 226.713066 | J93: =+SUM(J78:J92) -> 0 | M93: 0 | N93: =+SUM(N78:N92) -> 0 | O93: 226.713066 | P93: =+SUM(P78:P92) -> 0 | Q93: 114490.0983 | R93: =+SUM(R78:R92) -> 0
A94: Total Specified Costs | I94: 969.6691828 | J94: =+J72+J93 -> 0 | M94: 0 | N94: =+N72+N93 -> 0 | O94: 969.6691828 | P94: =+P72+P93 -> 0 | Q94: 489682.9373 | R94: =+R72+R93 -> 0
A96: Returns Above Specified Costs | I96: 464.9308172 | J96: =+J14-J94 -> 0 | M96: 0 | N96: =+N14-N94 -> 0 | O96: 464.9308172 | P96: =+P14-P94 -> 0 | Q96: 234790.0627 | R96: =+R14-R94 -> 0
A98: Breakeven Price to Cover Total Costs | G98: 0.5280553462 | H98: =IF(E10=0,"n/a",(YTotExp-(YTotExp+YTotRet-J10))/E10) -> n/a | I98: Pound
D100: Example Breakeven Prices
B101: Example | C101: Example | D101: To Cover | G101: To Cover
B102: Yield | C102: Yield | D102: Variable | G102: Total
B103: Percent | C103: Pound | D103: Costs | G103: Costs
B104: 0.75 | C104: 937.5 | D104: 0.4622465246 | G104: 0.704073795
B105: 0.9 | C105: 1125 | D105: 0.3852054372 | G105: 0.5867281625
B106: 1 | C106: 1250 | D106: 0.3466848934 | G106: 0.5280553462
B107: 1.1 | C107: 1375 | D107: 0.3151680849 | G107: 0.4800503148
B108: 1.25 | C108: 1562.5 | D108: 0.2773479147 | G108: 0.422444277
A110: Developed by Extension Economists, Texas A&M AgriLife Extension Service, budgets@tamu.edu.
A112: Information presented is prepared solely as a general guide and not intended to recognize or predict the costs and returns from any one operation. Brand names are mentioned only as examples and imply no endorsement.

Sheet IrrigatedSorghumLCB
A1: Projections for Planning Purposes Only -- Not to be Used without Updating
A2: 2023 Estimated Costs and Returns per Acre
A3: Sorghum - Conventional Till-24 Row, Irrigated, 100 bu. Yield Goal
A4: Enter your name for this budget in the cell above.
A5: Enter Your Values in the cells highlighed in MAROON.
E6: Your Acres | R6: Your
C7: Crop Acres | D7: 505 | L7: Your | Q7: Enterprise | R7: Enterprise
E8: Your | H8: Your | I8: Cash | J8: Your | K8: Landlord | L8: Landlord | N8: Your | P8: Your | Q8: Total | R8: Total
A9: REVENUE | D9: Quantity | E9: Quantity | F9: Units | G9: $/Unit | H9: $/Unit | I9: Total | J9: Total | K9: Share | L9: Share | M9: Landlord | N9: Landlord | O9: Tenant | P9: Tenant | Q9: (505 acres) | R9: ="(" & E7 & " acres)" -> ( acres)
B10: Grain Sorghum, Lower Coast | D10: 100 | F10: Bushel | G10: 5.1 | I10: 510 | J10: =E10*H10 -> 0 | K10: 0 | M10: 0 | N10: =J10*L10 -> 0 | O10: 510 | P10: =+J10-N10 -> 0 | Q10: 257550 | R10: =+J10*E$7 -> 0
D11: 0 | G11: 0 | I11: 0 | J11: 0 | K11: 0 | M11: 0 | N11: 0 | O11: 0 | P11: =+J11-N11 -> 0 | Q11: 0 | R11: 0
D12: 0 | G12: 0 | I12: 0 | J12: 0 | K12: 0 | M12: 0 | N12: 0 | O12: 0 | P12: 0 | Q12: 0 | R12: 0
A13: Total Revenue | I13: 510 | J13: =SUM(J10:J12) -> 0 | M13: 0 | N13: =SUM(N10:N12) -> 0 | O13: 510 | P13: =SUM(P10:P12) -> 0 | Q13: 257550 | R13: =SUM(R10:R12) -> 0
Q14: Enterprise | R14: Enterprise
A15: VARIABLE COSTS | D15: Quantity | E15: Quantity | F15: Units | G15: $/Unit | H15: $/Unit | I15: Total | J15: Total | K15: Share | L15: Share | M15: Landlord | N15: Landlord | O15: Tenant | P15: Tenant | Q15: Total | R15: Total
A16: Production Costs
B17: Custom | I17: $33.39
C18: Fertilizer Application | D18: 1 | F18: Ounce | G18: 0.159 | I18: 0.159 | J18: =E18*H18 -> 0 | K18: 0 | M18: 0 | N18: =J18*L18 -> 0 | O18: 0.159 | P18: =+J18-N18 -> 0 | Q18: 80.295 | R18: =+J18*E$7 -> 0
C19: Custom Haul - Sorghum | D19: 57 | F19: CWT | G19: 0.583 | I19: 33.231 | J19: 0 | K19: 0 | M19: 0 | N19: 0 | O19: 33.231 | P19: 0 | Q19: 16781.655 | R19: 0
B20: Fertilizer | I20: $130.75
C21: 24-8-0 | D21: 0.227 | F21: Ton | G21: 576 | I21: 130.752 | J21: 0 | K21: 0 | M21: 0 | N21: 0 | O21: 130.752 | P21: 0 | Q21: 66029.76 | R21: 0
B22: Herbicide | I22: $25.92
C23: Atrazine 4L | D23: 2 | F23: Quart | G23: 5.75 | I23: 11.5 | J23: 0 | K23: 0 | M23: 0 | N23: 0 | O23: 11.5 | P23: 0 | Q23: 5807.5 | R23: 0
C24: Sorghum PreEmerge Herbicide | D24: 14 | F24: Ounce | G24: 1.03 | I24: 14.42 | J24: 0 | K24: 0 | M24: 0 | N24: 0 | O24: 14.42 | P24: 0 | Q24: 7282.1 | R24: 0
B25: Insecticide | I25: $13.51
C26: Headworn Control | D26: 2.6 | F26: Ounce | G26: 1.7 | I26: 4.42 | J26: 0 | K26: 0 | M26: 0 | N26: 0 | O26: 4.42 | P26: 0 | Q26: 2232.1 | R26: 0
C27: Transform | D27: 1 | F27: Ounce | G27: 8.1938 | I27: 8.1938 | J27: 0 | K27: 0 | M27: 0 | N27: 0 | O27: 8.1938 | P27: 0 | Q27: 4137.869 | R27: 0
C28: Stinkbug Control | D28: 2 | F28: Ounce | G28: 0.45 | I28: 0.9 | J28: 0 | K28: 0 | M28: 0 | N28: 0 | O28: 0.9 | P28: 0 | Q28: 454.5 | R28: 0
B29: Miscellaneous | I29: $4.29
C30: Crop Insurance - Irr Sorghum | D30: 1 | F30: Thousand | G30: 0.1802 | I30: 0.1802 | J30: 0 | K30: 0 | M30: 0 | N30: 0 | O30: 0.1802 | P30: 0 | Q30: 91.001 | R30: 0
C31: Pickup Milage Charge | D31: 1 | F31: Acre | G31: 4.1128 | I31: 4.1128 | J31: 0 | K31: 0 | M31: 0 | N31: 0 | O31: 4.1128 | P31: 0 | Q31: 2076.964 | R31: 0
B32: Seed | I32: $16.96
C33: Treated Sorghum Seed | D33: 5 | F33: Pound | G33: 3.392 | I33: 16.96 | J33: 0 | K33: 0 | M33: 0 | N33: 0 | O33: 16.96 | P33: 0 | Q33: 8564.8 | R33: 0
B34: Other Labor | I34: $0.68
C35: Hand Labor | D35: 0.04 | F35: Hour | G35: 16.96 | I35: 0.6784 | J35: 0 | K35: 0 | M35: 0 | N35: 0 | O35: 0.6784 | P35: 0 | Q35: 342.592 | R35: 0
D36: 0 | G36: 0 | I36: 0 | J36: 0 | K36: 0 | M36: 0 | N36: 0 | O36: 0 | P36: 0 | Q36: 0 | R36: 0
D37: 0 | G37: 0 | I37: 0 | J37: 0 | K37: 0 | M37: 0 | N37: 0 | O37: 0 | P37: 0 | Q37: 0 | R37: 0
D38: 0 | G38: 0 | I38: 0 | J38: =E38*H38 -> 0 | K38: 0 | M38: 0 | N38: =J38*L38 -> 0 | O38: 0 | P38: =+J38-N38 -> 0 | Q38: 0 | R38: =+J38*E$7 -> 0
B39: Irrigation | I39: $47.25
C40: Energy Cost | D40: 10 | F40: AcreInch | G40: 2.1 | I40: 21 | J40: =E40*H40 -> 0 | K40: 0 | M40: 0 | N40: =J40*L40 -> 0 | O40: 21 | P40: =+J40-N40 -> 0 | Q40: 10605 | R40: =+J40*E$7 -> 0
C41: Irrigation Labor | D41: 1.5 | F41: Hour | G41: 17.5 | I41: 26.25 | J41: 0 | K41: 0 | M41: 0 | N41: 0 | O41: 26.25 | P41: 0 | Q41: 13256.25 | R41: 0
B42: Machinery Labor | I42: $8.09
C43: Tractors/Self-Propelled | D43: 0.47 | F43: Hour | G43: 17.21 | I43: 8.0887 | J43: =E43*H43 -> 0 | K43: 0 | M43: 0 | N43: =J43*L43 -> 0 | O43: 8.0887 | P43: =+J43-N43 -> 0 | Q43: 4084.7935 | R43: =+J43*E$7 -> 0
C44: Other Labor | D44: 0 | F44: Hour | G44: 17.21 | I44: 0 | J44: =E44*H44 -> 0 | K44: 0 | M44: 0 | N44: =J44*L44 -> 0 | O44: 0 | P44: =+J44-N44 -> 0 | Q44: 0 | R44: =+J44*E$7 -> 0
B46: Diesel Fuel | I46: $12.01
C47: Pickup/General Use Equipment | D47: 1 | F47: Acre | G47: 0 | I47: 0 | J47: =E47*H47 -> 0 | K47: 0 | M47: 0 | N47: =J47*L47 -> 0 | O47: 0 | P47: =+J47-N47 -> 0 | Q47: 0 | R47: =+J47*E$7 -> 0
C48: Tractors/Self-Propelled | D48: 5.36 | F48: Gallon | G48: 2.24 | I48: 12.0064 | J48: =E48*H48 -> 0 | K48: 0 | M48: 0 | N48: =J48*L48 -> 0 | O48: 12.0064 | P48: =+J48-N48 -> 0 | Q48: 6063.232 | R48: =+J48*E$7 -> 0
B50: Gasoline | I50: $0
C51: Pickup/General Use Equipment | D51: 1 | F51: Acre | G51: 0 | I51: 0 | J51: =E51*H51 -> 0 | K51: 0 | M51: 0 | N51: =J51*L51 -> 0 | O51: 0 | P51: =+J51-N51 -> 0 | Q51: 0 | R51: =+J51*E$7 -> 0
C52: Tractors/Self-Propelled | D52: 0 | F52: Gallon | G52: 2.09 | I52: 0 | J52: =E52*H52 -> 0 | K52: 0 | M52: 0 | N52: =J52*L52 -> 0 | O52: 0 | P52: =+J52-N52 -> 0 | Q52: 0 | R52: =+J52*E$7 -> 0
B54: Repairs & Maintenance | I54: $54.33
C55: Pickup/General Use Equipment | D55: 1 | F55: Acre | G55: 0 | I55: 0 | J55: =E55*H55 -> 0 | K55: 0 | M55: 0 | N55: =J55*L55 -> 0 | O55: 0 | P55: =+J55-N55 -> 0 | Q55: 0 | R55: =+J55*E$7 -> 0
C56: Irrigation Equipment | D56: 1 | F56: Acre | G56: 25.08250825 | I56: 25.08250825 | J56: 0 | K56: 0 | M56: 0 | N56: 0 | O56: 25.08250825 | P56: 0 | Q56: 12666.66667 | R56: 0
C57: Tractors/Self-Propelled | D57: 1 | F57: Acre | G57: 20.28816412 | I57: 20.28816412 | J57: 0 | K57: 0 | M57: 0 | N57: 0 | O57: 20.28816412 | P57: 0 | Q57: 10245.52288 | R57: 0
C58: Implements | D58: 1 | F58: Acre | G58: 8.95743473 | I58: 8.95743473 | J58: 0 | K58: 0 | M58: 0 | N58: 0 | O58: 8.95743473 | P58: 0 | Q58: 4523.504539 | R58: 0
I59: 0 | J59: 0 | K59: 0 | M59: 0 | N59: 0 | O59: 0 | P59: 0 | Q59: 0 | R59: 0
I60: 0 | J60: 0 | K60: 0 | M60: 0 | N60: 0 | O60: 0 | P60: 0 | Q60: 0 | R60: 0
B61: Interest on Credit Line | G61: 0.08 | I61: 14.22007897 | J61: =+SUM(J17:J60)/2*H61 -> 0 | M61: 0 | N61: =+SUM(N17:N60)/2*L61 -> 0 | O61: 14.22007897 | P61: =+SUM(P17:P60)/2*L61 -> 0 | Q61: 7181.139878 | R61: =+J61*E$7 -> 0
A62: Total Variable Costs | I62: 361.4004861 | J62: =SUM(J18:J61) -> 0 | M62: 0 | N62: =SUM(N18:N61) -> 0 | O62: 361.4004861 | P62: =SUM(P18:P61) -> 0 | Q62: 182507.2455 | R62: =SUM(R18:R61) -> 0
A63: Planned Returns Above Variable Costs: | I63: 148.5995139 | J63: =+J13-J62 -> 0 | M63: 0 | N63: =+N13-N62 -> 0 | O63: 148.5995139 | P63: =+P13-P62 -> 0 | Q63: 75042.75454 | R63: =+R13-R62 -> 0
B64: Breakeven Price to Cover Variable Costs | G64: 3.614004861 | H64: =IF(E10=0,"n/a",(YVarExp-(YTotExp+YTotRet-J10))/E10) -> n/a | I64: Bushel
Q65: Enterprise | R65: Enterprise
A66: FIXED COSTS | D66: Quantity | E66: Quantity | F66: Units | G66: $/Unit | H66: $/Unit | I66: Total | J66: Total | K66: Share | L66: Share | M66: Landlord | N66: Landlord | O66: Tenant | P66: Tenant | Q66: Total | R66: Total
B67: Machinery Depreciation | I67: $61.76
C68: Irrigation Equipment | D68: 1 | F68: Acre | G68: 28.18481848 | I68: 28.18481848 | J68: =E68*H68 -> 0 | K68: 0 | M68: 0 | N68: =J68*L68 -> 0 | O68: 28.18481848 | P68: =+J68-N68 -> 0 | Q68: 14233.33333 | R68: =+J68*E$7 -> 0
C69: Tractors/Self-Propelled | D69: 1 | F69: Acre | G69: 22.26309826 | I69: 22.26309826 | J69: 0 | K69: 0 | M69: 0 | N69: =J69*L69 -> 0 | O69: 22.26309826 | P69: 0 | Q69: 11242.86462 | R69: 0
C70: Implements | D70: 1 | F70: Acre | G70: 11.31058961 | I70: 11.31058961 | J70: 0 | K70: 0 | M70: 0 | N70: =J70*L70 -> 0 | O70: 11.31058961 | P70: 0 | Q70: 5711.847754 | R70: 0
B71: Equipment Investment | I71: $43.5
C72: Irrigation Equipment | D72: 293.5643564 | F72: Dollars | G72: 0.08 | I72: 23.48514851 | J72: =E72*H72 -> 0 | K72: 0 | M72: 0 | N72: =J72*L72 -> 0 | O72: 23.48514851 | P72: =+J72-N72 -> 0 | Q72: 11860 | R72: =+J72*E$7 -> 0
C73: Tractors/Self-Propelled | D73: 170.3677024 | F73: Dollars | G73: 0.08 | I73: 13.62941619 | J73: 0 | K73: 0 | M73: 0 | N73: =J73*L73 -> 0 | O73: 13.62941619 | P73: 0 | Q73: 6882.855176 | R73: 0
C74: Implements | D74: 79.82470707 | F74: Dollars | G74: 0.08 | I74: 6.385976565 | J74: 0 | K74: 0 | M74: 0 | N74: =J74*L74 -> 0 | O74: 6.385976565 | P74: 0 | Q74: 3224.918166 | R74: 0
B75: Salaried Labor | D75: 1 | F75: Acre | G75: 0 | I75: 0 | J75: 0 | K75: 0 | M75: 0 | N75: =J75*L75 -> 0 | O75: 0 | P75: =+J75-N75 -> 0 | Q75: 0 | R75: =+J75*E$7 -> 0
B76: Management Fee, Owner/Operator Labor | D76: 1 | F76: Acre | G76: 25.5 | I76: 25.5 | J76: 0 | K76: 0 | M76: 0 | N76: 0 | O76: 25.5 | P76: 0 | Q76: 12877.5 | R76: 0
B77: Allocated Establishment Cost | D77: 1 | F77: Acre | G77: 0 | I77: 0 | J77: 0 | K77: 0 | M77: 0 | N77: 0 | O77: 0 | P77: 0 | Q77: 0 | R77: 0
B78: LCB - Land Charge | D78: 1 | F78: Acre | G78: 70 | I78: 70 | J78: 0 | K78: 0 | M78: 0 | N78: 0 | O78: 70 | P78: 0 | Q78: 35350 | R78: 0
B79: Property Taxes | D79: 1 | F79: Acre | G79: 0 | I79: 0 | J79: 0 | K79: 0 | M79: 0 | N79: 0 | O79: 0 | P79: 0 | Q79: 0 | R79: 0
B80: Whole Farm Insurance | D80: 1 | F80: Acre | G80: 0 | I80: 0 | J80: 0 | K80: 0 | M80: 0 | N80: 0 | O80: 0 | P80: 0 | Q80: 0 | R80: 0
D81: 1 | G81: 0 | I81: 0 | J81: 0 | K81: 0 | M81: 0 | N81: 0 | O81: 0 | P81: 0 | Q81: 0 | R81: 0
D82: 1 | G82: 0 | I82: 0 | J82: =E82*H82 -> 0 | K82: 0 | M82: 0 | N82: 0 | O82: 0 | P82: 0 | Q82: 0 | R82: 0
A83: Total Fixed Costs | I83: 200.7590476 | J83: =+SUM(J68:J82) -> 0 | M83: 0 | N83: =+SUM(N68:N82) -> 0 | O83: 200.7590476 | P83: =+SUM(P68:P82) -> 0 | Q83: 101383.3191 | R83: =+SUM(R68:R82) -> 0
A84: Total Specified Costs | I84: 562.1595337 | J84: =+J62+J83 -> 0 | M84: 0 | N84: =+N62+N83 -> 0 | O84: 562.1595337 | P84: =+P62+P83 -> 0 | Q84: 283890.5645 | R84: =+R62+R83 -> 0
A86: Returns Above Specified Costs | I86: -52.15953369 | J86: =+J13-J84 -> 0 | M86: 0 | N86: =+N13-N84 -> 0 | O86: -52.15953369 | P86: =+P13-P84 -> 0 | Q86: -26340.56451 | R86: =+R13-R84 -> 0
A88: Breakeven Price to Cover Total Costs | G88: 5.621595337 | H88: =IF(E10=0,"n/a",(YTotExp-(YTotExp+YTotRet-J10))/E10) -> n/a | I88: Bushel
D90: Example Breakeven Prices
B91: Example | C91: Example | D91: To Cover | G91: To Cover
B92: Yield | C92: Yield | D92: Variable | G92: Total
B93: Percent | C93: Bushel | D93: Costs | G93: Costs
B94: 0.75 | C94: 75 | D94: 4.818673148 | G94: 7.495460449
B95: 0.9 | C95: 90 | D95: 4.015560956 | G95: 6.246217041
B96: 1 | C96: 100 | D96: 3.614004861 | G96: 5.621595337
B97: 1.1 | C97: 110 | D97: 3.285458964 | G97: 5.110541215
B98: 1.25 | C98: 125 | D98: 2.891203889 | G98: 4.49727627
A100: Developed by Extension Economists, Texas A&M AgriLife Extension Service, budgets@tamu.edu.
A102: Information presented is prepared solely as a general guide and not intended to recognize or predict the costs and returns from any one operation. Brand names are mentioned only as examples and imply no endorsement.

Sheet IrrigatedSesame
A1: Projections for Planning Purposes Only -- Not to be Used without Updating
A2: 2023 Estimated Costs and Returns per Acre
A3: Sesame - Conventional Till-12 Row, Irrigated, 1100 lb. Yield Goal
A4: Enter your name for this budget in the cell above.
A5: Enter Your Values in the cells highlighed in MAROON.
E6: Your Acres | R6: Your
C7: Crop Acres | D7: 505 | L7: Your | Q7: Enterprise | R7: Enterprise
E8: Your | H8: Your | I8: Cash | J8: Your | K8: Landlord | L8: Landlord | N8: Your | P8: Your | Q8: Total | R8: Total
A9: REVENUE | D9: Quantity | E9: Quantity | F9: Units | G9: $/Unit | H9: $/Unit | I9: Total | J9: Total | K9: Share | L9: Share | M9: Landlord | N9: Landlord | O9: Tenant | P9: Tenant | Q9: (505 acres) | R9: ="(" & E7 & " acres)" -> ( acres)
B10: Sesame | D10: 1100 | F10: Pound | G10: 0.32 | I10: 352 | J10: =E10*H10 -> 0 | K10: 0 | M10: 0 | N10: =J10*L10 -> 0 | O10: 352 | P10: =+J10-N10 -> 0 | Q10: 177760 | R10: =+J10*E$7 -> 0
D11: 0 | G11: 0 | I11: 0 | J11: 0 | K11: 0 | M11: 0 | N11: 0 | O11: 0 | P11: =+J11-N11 -> 0 | Q11: 0 | R11: 0
D12: 0 | G12: 0 | I12: 0 | J12: 0 | K12: 0 | M12: 0 | N12: 0 | O12: 0 | P12: 0 | Q12: 0 | R12: 0
A13: Total Revenue | I13: 352 | J13: =SUM(J10:J12) -> 0 | M13: 0 | N13: =SUM(N10:N12) -> 0 | O13: 352 | P13: =SUM(P10:P12) -> 0 | Q13: 177760 | R13: =SUM(R10:R12) -> 0
Q14: Enterprise | R14: Enterprise
A15: VARIABLE COSTS | D15: Quantity | E15: Quantity | F15: Units | G15: $/Unit | H15: $/Unit | I15: Total | J15: Total | K15: Share | L15: Share | M15: Landlord | N15: Landlord | O15: Tenant | P15: Tenant | Q15: Total | R15: Total
A16: Production Costs
B17: Herbicide | I17: $22.45
C18: Glyphosate (Generic) | D18: 2 | F18: Quart | G18: 7.75 | I18: 15.5 | J18: =E18*H18 -> 0 | K18: 0 | M18: 0 | N18: =J18*L18 -> 0 | O18: 15.5 | P18: =+J18-N18 -> 0 | Q18: 7827.5 | R18: =+J18*E$7 -> 0
C19: Sesame PostEmerge Herbicide | D19: 8 | F19: Ounce | G19: 0.8692 | I19: 6.9536 | J19: 0 | K19: 0 | M19: 0 | N19: 0 | O19: 6.9536 | P19: 0 | Q19: 3511.568 | R19: 0
B20: Miscellaneous | I20: $30.11
C21: Pickup Milage Charge | D21: 1 | F21: Acre | G21: 4.1128 | I21: 4.1128 | J21: 0 | K21: 0 | M21: 0 | N21: 0 | O21: 4.1128 | P21: 0 | Q21: 2076.964 | R21: 0
C22: Crop Insurance -Sesame | D22: 1 | F22: Acre | G22: 26 | I22: 26 | J22: 0 | K22: 0 | M22: 0 | N22: 0 | O22: 26 | P22: 0 | Q22: 13130 | R22: 0
B23: Other Labor | I23: $1.36
C24: Hand Labor | D24: 0.08 | F24: Hour | G24: 16.96 | I24: 1.3568 | J24: 0 | K24: 0 | M24: 0 | N24: 0 | O24: 1.3568 | P24: 0 | Q24: 685.184 | R24: 0
B25: Seed | I25: $12.72
C26: Sesame | D26: 3 | F26: Pound | G26: 4.24 | I26: 12.72 | J26: 0 | K26: 0 | M26: 0 | N26: 0 | O26: 12.72 | P26: 0 | Q26: 6423.6 | R26: 0
D27: 0 | G27: 0 | I27: 0 | J27: 0 | K27: 0 | M27: 0 | N27: 0 | O27: 0 | P27: 0 | Q27: 0 | R27: 0
D28: 0 | G28: 0 | I28: 0 | J28: 0 | K28: 0 | M28: 0 | N28: 0 | O28: 0 | P28: 0 | Q28: 0 | R28: 0
D29: 0 | G29: 0 | I29: 0 | J29: =E29*H29 -> 0 | K29: 0 | M29: 0 | N29: =J29*L29 -> 0 | O29: 0 | P29: =+J29-N29 -> 0 | Q29: 0 | R29: =+J29*E$7 -> 0
B30: Irrigation | I30: $32.72
C31: Energy Cost | D31: 6 | F31: AcreInch | G31: 2.1 | I31: 12.6 | J31: =E31*H31 -> 0 | K31: 0 | M31: 0 | N31: =J31*L31 -> 0 | O31: 12.6 | P31: =+J31-N31 -> 0 | Q31: 6363 | R31: =+J31*E$7 -> 0
C32: Irrigation Labor | D32: 1.15 | F32: Hour | G32: 17.5 | I32: 20.125 | J32: 0 | K32: 0 | M32: 0 | N32: 0 | O32: 20.125 | P32: 0 | Q32: 10163.125 | R32: 0
B33: Machinery Labor | I33: $7.4
C34: Tractors/Self-Propelled | D34: 0.43 | F34: Hour | G34: 17.21 | I34: 7.4003 | J34: =E34*H34 -> 0 | K34: 0 | M34: 0 | N34: =J34*L34 -> 0 | O34: 7.4003 | P34: =+J34-N34 -> 0 | Q34: 3737.1515 | R34: =+J34*E$7 -> 0
C35: Other Labor | D35: 0 | F35: Hour | G35: 17.21 | I35: 0 | J35: =E35*H35 -> 0 | K35: 0 | M35: 0 | N35: =J35*L35 -> 0 | O35: 0 | P35: =+J35-N35 -> 0 | Q35: 0 | R35: =+J35*E$7 -> 0
B37: Diesel Fuel | I37: $11.27
C38: Pickup/General Use Equipment | D38: 1 | F38: Acre | G38: 0 | I38: 0 | J38: =E38*H38 -> 0 | K38: 0 | M38: 0 | N38: =J38*L38 -> 0 | O38: 0 | P38: =+J38-N38 -> 0 | Q38: 0 | R38: =+J38*E$7 -> 0
C39: Tractors/Self-Propelled | D39: 5.03 | F39: Gallon | G39: 2.24 | I39: 11.2672 | J39: =E39*H39 -> 0 | K39: 0 | M39: 0 | N39: =J39*L39 -> 0 | O39: 11.2672 | P39: =+J39-N39 -> 0 | Q39: 5689.936 | R39: =+J39*E$7 -> 0
B41: Gasoline | I41: $0
C42: Pickup/General Use Equipment | D42: 1 | F42: Acre | G42: 0 | I42: 0 | J42: =E42*H42 -> 0 | K42: 0 | M42: 0 | N42: =J42*L42 -> 0 | O42: 0 | P42: =+J42-N42 -> 0 | Q42: 0 | R42: =+J42*E$7 -> 0
C43: Tractors/Self-Propelled | D43: 0 | F43: Gallon | G43: 2.09 | I43: 0 | J43: =E43*H43 -> 0 | K43: 0 | M43: 0 | N43: =J43*L43 -> 0 | O43: 0 | P43: =+J43-N43 -> 0 | Q43: 0 | R43: =+J43*E$7 -> 0
B45: Repairs & Maintenance | I45: $52.84
C46: Pickup/General Use Equipment | D46: 1 | F46: Acre | G46: 0 | I46: 0 | J46: =E46*H46 -> 0 | K46: 0 | M46: 0 | N46: =J46*L46 -> 0 | O46: 0 | P46: =+J46-N46 -> 0 | Q46: 0 | R46: =+J46*E$7 -> 0
C47: Irrigation Equipment | D47: 1 | F47: Acre | G47: 25.08250825 | I47: 25.08250825 | J47: 0 | K47: 0 | M47: 0 | N47: 0 | O47: 25.08250825 | P47: 0 | Q47: 12666.66667 | R47: 0
C48: Tractors/Self-Propelled | D48: 1 | F48: Acre | G48: 19.44871138 | I48: 19.44871138 | J48: 0 | K48: 0 | M48: 0 | N48: 0 | O48: 19.44871138 | P48: 0 | Q48: 9821.599247 | R48: 0
C49: Implements | D49: 1 | F49: Acre | G49: 8.304731714 | I49: 8.304731714 | J49: 0 | K49: 0 | M49: 0 | N49: 0 | O49: 8.304731714 | P49: 0 | Q49: 4193.889516 | R49: 0
I50: 0 | J50: 0 | K50: 0 | M50: 0 | N50: 0 | O50: 0 | P50: 0 | Q50: 0 | R50: 0
I51: 0 | J51: 0 | K51: 0 | M51: 0 | N51: 0 | O51: 0 | P51: 0 | Q51: 0 | R51: 0
B52: Interest on Credit Line | G52: 0.08 | I52: 7.00372989 | J52: =+SUM(J17:J51)/2*H52 -> 0 | M52: 0 | N52: =+SUM(N17:N51)/2*L52 -> 0 | O52: 7.00372989 | P52: =+SUM(P17:P51)/2*L52 -> 0 | Q52: 3536.883595 | R52: =+J52*E$7 -> 0
A53: Total Variable Costs | I53: 177.8753812 | J53: =SUM(J18:J52) -> 0 | M53: 0 | N53: =SUM(N18:N52) -> 0 | O53: 177.8753812 | P53: =SUM(P18:P52) -> 0 | Q53: 89827.06752 | R53: =SUM(R18:R52) -> 0
A54: Planned Returns Above Variable Costs: | I54: 174.1246188 | J54: =+J13-J53 -> 0 | M54: 0 | N54: =+N13-N53 -> 0 | O54: 174.1246188 | P54: =+P13-P53 -> 0 | Q54: 87932.93248 | R54: =+R13-R53 -> 0
B55: Breakeven Price to Cover Variable Costs | G55: 0.161704892 | H55: =IF(E10=0,"n/a",(YVarExp-(YTotExp+YTotRet-J10))/E10) -> n/a | I55: Pound
Q56: Enterprise | R56: Enterprise
A57: FIXED COSTS | D57: Quantity | E57: Quantity | F57: Units | G57: $/Unit | H57: $/Unit | I57: Total | J57: Total | K57: Share | L57: Share | M57: Landlord | N57: Landlord | O57: Tenant | P57: Tenant | Q57: Total | R57: Total
B58: Machinery Depreciation | I58: $58.44
C59: Irrigation Equipment | D59: 1 | F59: Acre | G59: 28.18481848 | I59: 28.18481848 | J59: =E59*H59 -> 0 | K59: 0 | M59: 0 | N59: =J59*L59 -> 0 | O59: 28.18481848 | P59: =+J59-N59 -> 0 | Q59: 14233.33333 | R59: =+J59*E$7 -> 0
C60: Tractors/Self-Propelled | D60: 1 | F60: Acre | G60: 20.47590252 | I60: 20.47590252 | J60: 0 | K60: 0 | M60: 0 | N60: =J60*L60 -> 0 | O60: 20.47590252 | P60: 0 | Q60: 10340.33077 | R60: 0
C61: Implements | D61: 1 | F61: Acre | G61: 9.777046928 | I61: 9.777046928 | J61: 0 | K61: 0 | M61: 0 | N61: =J61*L61 -> 0 | O61: 9.777046928 | P61: 0 | Q61: 4937.408699 | R61: 0
B62: Equipment Investment | I62: $41.9
C63: Irrigation Equipment | D63: 293.5643564 | F63: Dollars | G63: 0.08 | I63: 23.48514851 | J63: =E63*H63 -> 0 | K63: 0 | M63: 0 | N63: =J63*L63 -> 0 | O63: 23.48514851 | P63: =+J63-N63 -> 0 | Q63: 11860 | R63: =+J63*E$7 -> 0
C64: Tractors/Self-Propelled | D64: 156.8722238 | F64: Dollars | G64: 0.08 | I64: 12.54977791 | J64: 0 | K64: 0 | M64: 0 | N64: =J64*L64 -> 0 | O64: 12.54977791 | P64: 0 | Q64: 6337.637843 | R64: 0
C65: Implements | D65: 73.26455226 | F65: Dollars | G65: 0.08 | I65: 5.861164181 | J65: 0 | K65: 0 | M65: 0 | N65: =J65*L65 -> 0 | O65: 5.861164181 | P65: 0 | Q65: 2959.887911 | R65: 0
B66: Salaried Labor | D66: 1 | F66: Acre | G66: 0 | I66: 0 | J66: 0 | K66: 0 | M66: 0 | N66: =J66*L66 -> 0 | O66: 0 | P66: =+J66-N66 -> 0 | Q66: 0 | R66: =+J66*E$7 -> 0
B67: Management Fee, Owner/Operator Labor | D67: 1 | F67: Acre | G67: 17.6 | I67: 17.6 | J67: 0 | K67: 0 | M67: 0 | N67: 0 | O67: 17.6 | P67: 0 | Q67: 8888 | R67: 0
B68: Allocated Establishment Cost | D68: 1 | F68: Acre | G68: 0 | I68: 0 | J68: 0 | K68: 0 | M68: 0 | N68: 0 | O68: 0 | P68: 0 | Q68: 0 | R68: 0
B69: LCB - Land Charge | D69: 1 | F69: Acre | G69: 70 | I69: 70 | J69: 0 | K69: 0 | M69: 0 | N69: 0 | O69: 70 | P69: 0 | Q69: 35350 | R69: 0
B70: Property Taxes | D70: 1 | F70: Acre | G70: 0 | I70: 0 | J70: 0 | K70: 0 | M70: 0 | N70: 0 | O70: 0 | P70: 0 | Q70: 0 | R70: 0
B71: Whole Farm Insurance | D71: 1 | F71: Acre | G71: 0 | I71: 0 | J71: 0 | K71: 0 | M71: 0 | N71: 0 | O71: 0 | P71: 0 | Q71: 0 | R71: 0
D72: 1 | G72: 0 | I72: 0 | J72: 0 | K72: 0 | M72: 0 | N72: 0 | O72: 0 | P72: 0 | Q72: 0 | R72: 0
D73: 1 | G73: 0 | I73: 0 | J73: =E73*H73 -> 0 | K73: 0 | M73: 0 | N73: 0 | O73: 0 | P73: 0 | Q73: 0 | R73: 0
A74: Total Fixed Costs | I74: 187.9338585 | J74: =+SUM(J59:J73) -> 0 | M74: 0 | N74: =+SUM(N59:N73) -> 0 | O74: 187.9338585 | P74: =+SUM(P59:P73) -> 0 | Q74: 94906.59856 | R74: =+SUM(R59:R73) -> 0
A75: Total Specified Costs | I75: 365.8092398 | J75: =+J53+J74 -> 0 | M75: 0 | N75: =+N53+N74 -> 0 | O75: 365.8092398 | P75: =+P53+P74 -> 0 | Q75: 184733.6661 | R75: =+R53+R74 -> 0
A77: Returns Above Specified Costs | I77: -13.80923976 | J77: =+J13-J75 -> 0 | M77: 0 | N77: =+N13-N75 -> 0 | O77: -13.80923976 | P77: =+P13-P75 -> 0 | Q77: -6973.666081 | R77: =+R13-R75 -> 0
A79: Breakeven Price to Cover Total Costs | G79: 0.3325538543 | H79: =IF(E10=0,"n/a",(YTotExp-(YTotExp+YTotRet-J10))/E10) -> n/a | I79: Pound
D81: Example Breakeven Prices
B82: Example | C82: Example | D82: To Cover | G82: To Cover
B83: Yield | C83: Yield | D83: Variable | G83: Total
B84: Percent | C84: Pound | D84: Costs | G84: Costs
B85: 0.75 | C85: 825 | D85: 0.2156065227 | G85: 0.4434051391
B86: 0.9 | C86: 990 | D86: 0.1796721023 | G86: 0.3695042826
B87: 1 | C87: 1100 | D87: 0.161704892 | G87: 0.3325538543
B88: 1.1 | C88: 1210 | D88: 0.1470044473 | G88: 0.3023216858
B89: 1.25 | C89: 1375 | D89: 0.1293639136 | G89: 0.2660430835
A91: Developed by Extension Economists, Texas A&M AgriLife Extension Service, budgets@tamu.edu.
A93: Information presented is prepared solely as a general guide and not intended to recognize or predict the costs and returns from any one operation. Brand names are mentioned only as examples and imply no endorsement.

Sheet IrrigatedWheatLCB
A1: Projections for Planning Purposes Only -- Not to be Used without Updating
A2: 2023 Estimated Costs and Returns per Acre
A3: Hard Red Spring Wheat, Irrigated, 60 bu. Yield Goal
A4: Enter your name for this budget in the cell above.
A5: Enter Your Values in the cells highlighed in MAROON.
E6: Your Acres | R6: Your
C7: Crop Acres | D7: 505 | L7: Your | Q7: Enterprise | R7: Enterprise
E8: Your | H8: Your | I8: Cash | J8: Your | K8: Landlord | L8: Landlord | N8: Your | P8: Your | Q8: Total | R8: Total
A9: REVENUE | D9: Quantity | E9: Quantity | F9: Units | G9: $/Unit | H9: $/Unit | I9: Total | J9: Total | K9: Share | L9: Share | M9: Landlord | N9: Landlord | O9: Tenant | P9: Tenant | Q9: (505 acres) | R9: ="(" & E7 & " acres)" -> ( acres)
B10: Hard Red Spring Wheat | D10: 60 | F10: Bushel | G10: 8.25 | I10: 495 | J10: =E10*H10 -> 0 | K10: 0 | M10: 0 | N10: =J10*L10 -> 0 | O10: 495 | P10: =+J10-N10 -> 0 | Q10: 249975 | R10: =+J10*E$7 -> 0
D11: 0 | G11: 0 | I11: 0 | J11: 0 | K11: 0 | M11: 0 | N11: 0 | O11: 0 | P11: =+J11-N11 -> 0 | Q11: 0 | R11: 0
D12: 0 | G12: 0 | I12: 0 | J12: 0 | K12: 0 | M12: 0 | N12: 0 | O12: 0 | P12: 0 | Q12: 0 | R12: 0
A13: Total Revenue | I13: 495 | J13: =SUM(J10:J12) -> 0 | M13: 0 | N13: =SUM(N10:N12) -> 0 | O13: 495 | P13: =SUM(P10:P12) -> 0 | Q13: 249975 | R13: =SUM(R10:R12) -> 0
Q14: Enterprise | R14: Enterprise
A15: VARIABLE COSTS | D15: Quantity | E15: Quantity | F15: Units | G15: $/Unit | H15: $/Unit | I15: Total | J15: Total | K15: Share | L15: Share | M15: Landlord | N15: Landlord | O15: Tenant | P15: Tenant | Q15: Total | R15: Total
A16: Production Costs
B17: Seed | I17: $37.21
C18: HRS Wheat Seed | D18: 90 | F18: Pound | G18: 0.4134 | I18: 37.206 | J18: =E18*H18 -> 0 | K18: 0 | M18: 0 | N18: =J18*L18 -> 0 | O18: 37.206 | P18: =+J18-N18 -> 0 | Q18: 18789.03 | R18: =+J18*E$7 -> 0
B19: Fertilizer | I19: $72
C20: 24-8-0 | D20: 0.125 | F20: Ton | G20: 576 | I20: 72 | J20: 0 | K20: 0 | M20: 0 | N20: 0 | O20: 72 | P20: 0 | Q20: 36360 | R20: 0
B21: Custom | I21: $16.06
C22: Fertilizer Application | D22: 1 | F22: Ounce | G22: 0.159 | I22: 0.159 | J22: 0 | K22: 0 | M22: 0 | N22: 0 | O22: 0.159 | P22: 0 | Q22: 80.295 | R22: 0
C23: Custom Haul - Wheat | D23: 60 | F23: Bushel | G23: 0.265 | I23: 15.9 | J23: 0 | K23: 0 | M23: 0 | N23: 0 | O23: 15.9 | P23: 0 | Q23: 8029.5 | R23: 0
B24: Herbicide | I24: $12.86
C25: Glyphosate (Generic) | D25: 1 | F25: Quart | G25: 7.75 | I25: 7.75 | J25: 0 | K25: 0 | M25: 0 | N25: 0 | O25: 7.75 | P25: 0 | Q25: 3913.75 | R25: 0
C26: Affinity | D26: 0.5 | F26: Ounce | G26: 10.21 | I26: 5.105 | J26: 0 | K26: 0 | M26: 0 | N26: 0 | O26: 5.105 | P26: 0 | Q26: 2578.025 | R26: 0
B27: Other Labor | I27: $0.31
C28: Hand Labor | D28: 0.018 | F28: Hour | G28: 16.96 | I28: 0.30528 | J28: 0 | K28: 0 | M28: 0 | N28: 0 | O28: 0.30528 | P28: 0 | Q28: 154.1664 | R28: 0
B29: Miscellaneous | I29: $4.29
C30: Pickup Milage Charge | D30: 1 | F30: Acre | G30: 4.1128 | I30: 4.1128 | J30: 0 | K30: 0 | M30: 0 | N30: 0 | O30: 4.1128 | P30: 0 | Q30: 2076.964 | R30: 0
C31: Crop Insurance - Irr HRS Wheat | D31: 1 | F31: Thousand | G31: 0.1802 | I31: 0.1802 | J31: 0 | K31: 0 | M31: 0 | N31: 0 | O31: 0.1802 | P31: 0 | Q31: 91.001 | R31: 0
B32: Insecticide | I32: $11.88
C33: Wheat Insect Control | D33: 1.5 | F33: Pint | G33: 7.9182 | I33: 11.8773 | J33: 0 | K33: 0 | M33: 0 | N33: 0 | O33: 11.8773 | P33: 0 | Q33: 5998.0365 | R33: 0
D34: 0 | G34: 0 | I34: 0 | J34: 0 | K34: 0 | M34: 0 | N34: 0 | O34: 0 | P34: 0 | Q34: 0 | R34: 0
D35: 0 | G35: 0 | I35: 0 | J35: 0 | K35: 0 | M35: 0 | N35: 0 | O35: 0 | P35: 0 | Q35: 0 | R35: 0
D36: 0 | G36: 0 | I36: 0 | J36: =E36*H36 -> 0 | K36: 0 | M36: 0 | N36: =J36*L36 -> 0 | O36: 0 | P36: =+J36-N36 -> 0 | Q36: 0 | R36: =+J36*E$7 -> 0
B37: Irrigation | I37: $47.25
C38: Energy Cost | D38: 10 | F38: AcreInch | G38: 2.1 | I38: 21 | J38: =E38*H38 -> 0 | K38: 0 | M38: 0 | N38: =J38*L38 -> 0 | O38: 21 | P38: =+J38-N38 -> 0 | Q38: 10605 | R38: =+J38*E$7 -> 0
C39: Irrigation Labor | D39: 1.5 | F39: Hour | G39: 17.5 | I39: 26.25 | J39: 0 | K39: 0 | M39: 0 | N39: 0 | O39: 26.25 | P39: 0 | Q39: 13256.25 | R39: 0
B40: Machinery Labor | I40: $5.34
C41: Tractors/Self-Propelled | D41: 0.31 | F41: Hour | G41: 17.21 | I41: 5.3351 | J41: =E41*H41 -> 0 | K41: 0 | M41: 0 | N41: =J41*L41 -> 0 | O41: 5.3351 | P41: =+J41-N41 -> 0 | Q41: 2694.2255 | R41: =+J41*E$7 -> 0
C42: Other Labor | D42: 0 | F42: Hour | G42: 17.21 | I42: 0 | J42: =E42*H42 -> 0 | K42: 0 | M42: 0 | N42: =J42*L42 -> 0 | O42: 0 | P42: =+J42-N42 -> 0 | Q42: 0 | R42: =+J42*E$7 -> 0
B44: Diesel Fuel | I44: $9.39
C45: Pickup/General Use Equipment | D45: 1 | F45: Acre | G45: 0 | I45: 0 | J45: =E45*H45 -> 0 | K45: 0 | M45: 0 | N45: =J45*L45 -> 0 | O45: 0 | P45: =+J45-N45 -> 0 | Q45: 0 | R45: =+J45*E$7 -> 0
C46: Tractors/Self-Propelled | D46: 4.19 | F46: Gallon | G46: 2.24 | I46: 9.3856 | J46: =E46*H46 -> 0 | K46: 0 | M46: 0 | N46: =J46*L46 -> 0 | O46: 9.3856 | P46: =+J46-N46 -> 0 | Q46: 4739.728 | R46: =+J46*E$7 -> 0
B48: Gasoline | I48: $0
C49: Pickup/General Use Equipment | D49: 1 | F49: Acre | G49: 0 | I49: 0 | J49: =E49*H49 -> 0 | K49: 0 | M49: 0 | N49: =J49*L49 -> 0 | O49: 0 | P49: =+J49-N49 -> 0 | Q49: 0 | R49: =+J49*E$7 -> 0
C50: Tractors/Self-Propelled | D50: 0 | F50: Gallon | G50: 2.09 | I50: 0 | J50: =E50*H50 -> 0 | K50: 0 | M50: 0 | N50: =J50*L50 -> 0 | O50: 0 | P50: =+J50-N50 -> 0 | Q50: 0 | R50: =+J50*E$7 -> 0
B52: Repairs & Maintenance | I52: $58.78
C53: Pickup/General Use Equipment | D53: 1 | F53: Acre | G53: 0 | I53: 0 | J53: =E53*H53 -> 0 | K53: 0 | M53: 0 | N53: =J53*L53 -> 0 | O53: 0 | P53: =+J53-N53 -> 0 | Q53: 0 | R53: =+J53*E$7 -> 0
C54: Irrigation Equipment | D54: 1 | F54: Acre | G54: 25.08250825 | I54: 25.08250825 | J54: 0 | K54: 0 | M54: 0 | N54: 0 | O54: 25.08250825 | P54: 0 | Q54: 12666.66667 | R54: 0
C55: Tractors/Self-Propelled | D55: 1 | F55: Acre | G55: 28.18414282 | I55: 28.18414282 | J55: 0 | K55: 0 | M55: 0 | N55: 0 | O55: 28.18414282 | P55: 0 | Q55: 14232.99212 | R55: 0
C56: Implements | D56: 1 | F56: Acre | G56: 5.513556929 | I56: 5.513556929 | J56: 0 | K56: 0 | M56: 0 | N56: 0 | O56: 5.513556929 | P56: 0 | Q56: 2784.346249 | R56: 0
I57: 0 | J57: 0 | K57: 0 | M57: 0 | N57: 0 | O57: 0 | P57: 0 | Q57: 0 | R57: 0
I58: 0 | J58: 0 | K58: 0 | M58: 0 | N58: 0 | O58: 0 | P58: 0 | Q58: 0 | R58: 0
B59: Interest on Credit Line | G59: 0.08 | I59: 8.482940915 | J59: =+SUM(J17:J58)/2*H59 -> 0 | M59: 0 | N59: =+SUM(N17:N58)/2*L59 -> 0 | O59: 8.482940915 | P59: =+SUM(P17:P58)/2*L59 -> 0 | Q59: 4283.885162 | R59: =+J59*E$7 -> 0
A60: Total Variable Costs | I60: 283.8294289 | J60: =SUM(J18:J59) -> 0 | M60: 0 | N60: =SUM(N18:N59) -> 0 | O60: 283.8294289 | P60: =SUM(P18:P59) -> 0 | Q60: 143333.8616 | R60: =SUM(R18:R59) -> 0
A61: Planned Returns Above Variable Costs: | I61: 211.1705711 | J61: =+J13-J60 -> 0 | M61: 0 | N61: =+N13-N60 -> 0 | O61: 211.1705711 | P61: =+P13-P60 -> 0 | Q61: 106641.1384 | R61: =+R13-R60 -> 0
B62: Breakeven Price to Cover Variable Costs | G62: 4.730490482 | H62: =IF(E10=0,"n/a",(YVarExp-(YTotExp+YTotRet-J10))/E10) -> n/a | I62: Bushel
Q63: Enterprise | R63: Enterprise
A64: FIXED COSTS | D64: Quantity | E64: Quantity | F64: Units | G64: $/Unit | H64: $/Unit | I64: Total | J64: Total | K64: Share | L64: Share | M64: Landlord | N64: Landlord | O64: Tenant | P64: Tenant | Q64: Total | R64: Total
B65: Machinery Depreciation | I65: $61.16
C66: Irrigation Equipment | D66: 1 | F66: Acre | G66: 28.18481848 | I66: 28.18481848 | J66: =E66*H66 -> 0 | K66: 0 | M66: 0 | N66: =J66*L66 -> 0 | O66: 28.18481848 | P66: =+J66-N66 -> 0 | Q66: 14233.33333 | R66: =+J66*E$7 -> 0
C67: Tractors/Self-Propelled | D67: 1 | F67: Acre | G67: 26.27135132 | I67: 26.27135132 | J67: 0 | K67: 0 | M67: 0 | N67: =J67*L67 -> 0 | O67: 26.27135132 | P67: 0 | Q67: 13267.03242 | R67: 0
C68: Implements | D68: 1 | F68: Acre | G68: 6.707258313 | I68: 6.707258313 | J68: 0 | K68: 0 | M68: 0 | N68: =J68*L68 -> 0 | O68: 6.707258313 | P68: 0 | Q68: 3387.165448 | R68: 0
B69: Equipment Investment | I69: $43.39
C70: Irrigation Equipment | D70: 293.5643564 | F70: Dollars | G70: 0.08 | I70: 23.48514851 | J70: =E70*H70 -> 0 | K70: 0 | M70: 0 | N70: =J70*L70 -> 0 | O70: 23.48514851 | P70: =+J70-N70 -> 0 | Q70: 11860 | R70: =+J70*E$7 -> 0
C71: Tractors/Self-Propelled | D71: 196.6941024 | F71: Dollars | G71: 0.08 | I71: 15.73552819 | J71: 0 | K71: 0 | M71: 0 | N71: =J71*L71 -> 0 | O71: 15.73552819 | P71: 0 | Q71: 7946.441735 | R71: 0
C72: Implements | D72: 52.08897464 | F72: Dollars | G72: 0.08 | I72: 4.167117971 | J72: 0 | K72: 0 | M72: 0 | N72: =J72*L72 -> 0 | O72: 4.167117971 | P72: 0 | Q72: 2104.394575 | R72: 0
B73: Salaried Labor | D73: 1 | F73: Acre | G73: 0 | I73: 0 | J73: 0 | K73: 0 | M73: 0 | N73: =J73*L73 -> 0 | O73: 0 | P73: =+J73-N73 -> 0 | Q73: 0 | R73: =+J73*E$7 -> 0
B74: Management Fee, Owner/Operator Labor | D74: 1 | F74: Acre | G74: 24.75 | I74: 24.75 | J74: 0 | K74: 0 | M74: 0 | N74: 0 | O74: 24.75 | P74: 0 | Q74: 12498.75 | R74: 0
B75: Allocated Establishment Cost | D75: 1 | F75: Acre | G75: 0 | I75: 0 | J75: 0 | K75: 0 | M75: 0 | N75: 0 | O75: 0 | P75: 0 | Q75: 0 | R75: 0
B76: LCB - Land Charge | D76: 1 | F76: Acre | G76: 70 | I76: 70 | J76: 0 | K76: 0 | M76: 0 | N76: 0 | O76: 70 | P76: 0 | Q76: 35350 | R76: 0
B77: Property Taxes | D77: 1 | F77: Acre | G77: 0 | I77: 0 | J77: 0 | K77: 0 | M77: 0 | N77: 0 | O77: 0 | P77: 0 | Q77: 0 | R77: 0
B78: Whole Farm Insurance | D78: 1 | F78: Acre | G78: 0 | I78: 0 | J78: 0 | K78: 0 | M78: 0 | N78: 0 | O78: 0 | P78: 0 | Q78: 0 | R78: 0
D79: 1 | G79: 0 | I79: 0 | J79: 0 | K79: 0 | M79: 0 | N79: 0 | O79: 0 | P79: 0 | Q79: 0 | R79: 0
D80: 1 | G80: 0 | I80: 0 | J80: =E80*H80 -> 0 | K80: 0 | M80: 0 | N80: 0 | O80: 0 | P80: 0 | Q80: 0 | R80: 0
A81: Total Fixed Costs | I81: 199.3012228 | J81: =+SUM(J66:J80) -> 0 | M81: 0 | N81: =+SUM(N66:N80) -> 0 | O81: 199.3012228 | P81: =+SUM(P66:P80) -> 0 | Q81: 100647.1175 | R81: =+SUM(R66:R80) -> 0
A82: Total Specified Costs | I82: 483.1306517 | J82: =+J60+J81 -> 0 | M82: 0 | N82: =+N60+N81 -> 0 | O82: 483.1306517 | P82: =+P60+P81 -> 0 | Q82: 243980.9791 | R82: =+R60+R81 -> 0
A84: Returns Above Specified Costs | I84: 11.86934829 | J84: =+J13-J82 -> 0 | M84: 0 | N84: =+N13-N82 -> 0 | O84: 11.86934829 | P84: =+P13-P82 -> 0 | Q84: 5994.020887 | R84: =+R13-R82 -> 0
A86: Breakeven Price to Cover Total Costs | G86: 8.052177528 | H86: =IF(E10=0,"n/a",(YTotExp-(YTotExp+YTotRet-J10))/E10) -> n/a | I86: Bushel
D88: Example Breakeven Prices
B89: Example | C89: Example | D89: To Cover | G89: To Cover
B90: Yield | C90: Yield | D90: Variable | G90: Total
B91: Percent | C91: Bushel | D91: Costs | G91: Costs
B92: 0.75 | C92: 45 | D92: 6.307320643 | G92: 10.7362367
B93: 0.9 | C93: 54 | D93: 5.256100535 | G93: 8.946863921
B94: 1 | C94: 60 | D94: 4.730490482 | G94: 8.052177528
B95: 1.1 | C95: 66 | D95: 4.300445893 | G95: 7.32016139
B96: 1.25 | C96: 75 | D96: 3.784392386 | G96: 6.441742023
A98: Developed by Extension Economists, Texas A&M AgriLife Extension Service, budgets@tamu.edu.
A100: Information presented is prepared solely as a general guide and not intended to recognize or predict the costs and returns from any one operation. Brand names are mentioned only as examples and imply no endorsement.

Sheet CottonUCB
A1: Projections for Planning Purposes Only -- Not to be Used without Updating
A2: 2023 Estimated Costs and Returns per Acre
A3: Cotton - GMO Seed, Conv. Till-12 Row, Dryland, 900 lb. Yield Goal - Upper Coast
A4: Enter your name for this budget in the cell above.
A5: Enter Your Values in the cells highlighed in MAROON.
E6: Your Acres | R6: Your
C7: Crop Acres | D7: 500 | L7: Your | Q7: Enterprise | R7: Enterprise
E8: Your | H8: Your | I8: Cash | J8: Your | K8: Landlord | L8: Landlord | N8: Your | P8: Your | Q8: Total | R8: Total
A9: REVENUE | D9: Quantity | E9: Quantity | F9: Units | G9: $/Unit | H9: $/Unit | I9: Total | J9: Total | K9: Share | L9: Share | M9: Landlord | N9: Landlord | O9: Tenant | P9: Tenant | Q9: (500 acres) | R9: ="(" & E7 & " acres)" -> ( acres)
B10: Cotton Lint | D10: 900 | F10: Pound | G10: 0.9 | I10: 810 | J10: =E10*H10 -> 0 | K10: 0 | M10: 0 | N10: =J10*L10 -> 0 | O10: 810 | P10: =+J10-N10 -> 0 | Q10: 405000 | R10: =+J10*E$7 -> 0
B11: Cottonseed | D11: 0.621 | F11: Ton | G11: 360 | I11: 223.56 | J11: 0 | K11: 0 | M11: 0 | N11: 0 | O11: 223.56 | P11: =+J11-N11 -> 0 | Q11: 111780 | R11: 0
D12: 0 | G12: 0 | I12: 0 | J12: 0 | K12: 0 | M12: 0 | N12: 0 | O12: 0 | P12: 0 | Q12: 0 | R12: 0
D13: 0 | G13: 0 | I13: 0 | J13: 0 | K13: 0 | M13: 0 | N13: 0 | O13: 0 | P13: 0 | Q13: 0 | R13: 0
A14: Total Revenue | I14: 1033.56 | J14: =SUM(J10:J13) -> 0 | M14: 0 | N14: =SUM(N10:N13) -> 0 | O14: 1033.56 | P14: =SUM(P10:P13) -> 0 | Q14: 516780 | R14: =SUM(R10:R13) -> 0
Q15: Enterprise | R15: Enterprise
A16: VARIABLE COSTS | D16: Quantity | E16: Quantity | F16: Units | G16: $/Unit | H16: $/Unit | I16: Total | J16: Total | K16: Share | L16: Share | M16: Landlord | N16: Landlord | O16: Tenant | P16: Tenant | Q16: Total | R16: Total
A17: Production Costs
B18: Herbicide | I18: $57.18
C19: Glyphosate (Generic) | D19: 2 | F19: Quart | G19: 7.75 | I19: 15.5 | J19: =E19*H19 -> 0 | K19: 0 | M19: 0 | N19: =J19*L19 -> 0 | O19: 15.5 | P19: =+J19-N19 -> 0 | Q19: 7750 | R19: =+J19*E$7 -> 0
C20: Cotton Early Season Herbicide | D20: 2 | F20: Quart | G20: 17.2144 | I20: 34.4288 | J20: 0 | K20: 0 | M20: 0 | N20: 0 | O20: 34.4288 | P20: 0 | Q20: 17214.4 | R20: 0
C21: 2, 4D Amine` | D21: 2 | F21: Pint | G21: 3.625 | I21: 7.25 | J21: 0 | K21: 0 | M21: 0 | N21: 0 | O21: 7.25 | P21: 0 | Q21: 3625 | R21: 0
B22: Seed | I22: $78.4
C23: Cotton Seed - B2RF | D23: 40 | F23: Thousand | G23: 1.96 | I23: 78.4 | J23: 0 | K23: 0 | M23: 0 | N23: 0 | O23: 78.4 | P23: 0 | Q23: 39200 | R23: 0
C24: Tech Fee - B2RF | D24: 1 | F24: Acre | G24: 0 | I24: 0 | J24: 0 | K24: 0 | M24: 0 | N24: 0 | O24: 0 | P24: 0 | Q24: 0 | R24: 0
B25: Fertilizer | I25: $73.34
C26: 24-8-0` | D26: 0.1875 | F26: Ton | G26: 391.14 | I26: 73.33875 | J26: 0 | K26: 0 | M26: 0 | N26: 0 | O26: 73.33875 | P26: 0 | Q26: 36669.375 | R26: 0
B27: Custom | I27: $243.27
C28: Pick and Module | D28: 900 | F28: Pound | G28: 0.1378 | I28: 124.02 | J28: 0 | K28: 0 | M28: 0 | N28: 0 | O28: 124.02 | P28: 0 | Q28: 62010 | R28: 0
C29: Ginning - Picker | D29: 900 | F29: Pound | G29: 0.1325 | I29: 119.25 | J29: 0 | K29: 0 | M29: 0 | N29: 0 | O29: 119.25 | P29: 0 | Q29: 59625 | R29: 0
B30: Miscellaneous | I30: $31.79
C31: Crop Insurance -Cotton UC | D31: 1 | F31: Acre | G31: 21 | I31: 21 | J31: 0 | K31: 0 | M31: 0 | N31: 0 | O31: 21 | P31: 0 | Q31: 10500 | R31: 0
C32: Pickup Milage Charge | D32: 1 | F32: Acre | G32: 4.1128 | I32: 4.1128 | J32: 0 | K32: 0 | M32: 0 | N32: 0 | O32: 4.1128 | P32: 0 | Q32: 2056.4 | R32: 0
C33: Boll Weevil Program UC | D33: 1.8 | F33: Bale | G33: 3.71 | I33: 6.678 | J33: 0 | K33: 0 | M33: 0 | N33: 0 | O33: 6.678 | P33: 0 | Q33: 3339 | R33: 0
B34: Insecticide | I34: $5.84
C35: Fleahopper Control UC | D35: 1.6 | F35: Ounce | G35: 1.4 | I35: 2.24 | J35: 0 | K35: 0 | M35: 0 | N35: 0 | O35: 2.24 | P35: 0 | Q35: 1120 | R35: 0
C36: Stinkbug Control | D36: 8 | F36: Ounce | G36: 0.45 | I36: 3.6 | J36: 0 | K36: 0 | M36: 0 | N36: 0 | O36: 3.6 | P36: 0 | Q36: 1800 | R36: 0
B37: Other Chemicals | I37: $7.04
C38: Surfactant | D38: 0.2 | F38: Pint | G38: 1.4734 | I38: 0.29468 | J38: 0 | K38: 0 | M38: 0 | N38: 0 | O38: 0.29468 | P38: 0 | Q38: 147.34 | R38: 0
C39: Generic PIX | D39: 32 | F39: Ounce | G39: 0.0636 | I39: 2.0352 | J39: 0 | K39: 0 | M39: 0 | N39: 0 | O39: 2.0352 | P39: 0 | Q39: 1017.6 | R39: 0
C40: Defoliants - Picker | D40: 4 | F40: Ounce | G40: 1.113 | I40: 4.452 | J40: 0 | K40: 0 | M40: 0 | N40: 0 | O40: 4.452 | P40: 0 | Q40: 2226 | R40: 0
C41: Ethephon | D41: 1.6 | F41: Ounce | G41: 0.159 | I41: 0.2544 | J41: 0 | K41: 0 | M41: 0 | N41: 0 | O41: 0.2544 | P41: 0 | Q41: 127.2 | R41: 0
B42: Other Labor | I42: $7.8
C43: Hand Labor | D43: 0.46 | F43: Hour | G43: 16.96 | I43: 7.8016 | J43: 0 | K43: 0 | M43: 0 | N43: 0 | O43: 7.8016 | P43: 0 | Q43: 3900.8 | R43: 0
D44: 0 | G44: 0 | I44: 0 | J44: 0 | K44: 0 | M44: 0 | N44: 0 | O44: 0 | P44: 0 | Q44: 0 | R44: 0
D45: 0 | G45: 0 | I45: 0 | J45: 0 | K45: 0 | M45: 0 | N45: 0 | O45: 0 | P45: 0 | Q45: 0 | R45: 0
D46: 0 | G46: 0 | I46: 0 | J46: =E46*H46 -> 0 | K46: 0 | M46: 0 | N46: =J46*L46 -> 0 | O46: 0 | P46: =+J46-N46 -> 0 | Q46: 0 | R46: =+J46*E$7 -> 0
B47: Machinery Labor | I47: $6.2
C48: Tractors/Self-Propelled | D48: 0.36 | F48: Hour | G48: 17.21 | I48: 6.1956 | J48: =E48*H48 -> 0 | K48: 0 | M48: 0 | N48: =J48*L48 -> 0 | O48: 6.1956 | P48: =+J48-N48 -> 0 | Q48: 3097.8 | R48: =+J48*E$7 -> 0
C49: Other Labor | D49: 0 | F49: Hour | G49: 17.21 | I49: 0 | J49: =E49*H49 -> 0 | K49: 0 | M49: 0 | N49: =J49*L49 -> 0 | O49: 0 | P49: =+J49-N49 -> 0 | Q49: 0 | R49: =+J49*E$7 -> 0
B51: Diesel Fuel | I51: $8.85
C52: Pickup/General Use Equipment | D52: 1 | F52: Acre | G52: 0 | I52: 0 | J52: =E52*H52 -> 0 | K52: 0 | M52: 0 | N52: =J52*L52 -> 0 | O52: 0 | P52: =+J52-N52 -> 0 | Q52: 0 | R52: =+J52*E$7 -> 0
C53: Tractors/Self-Propelled | D53: 3.95 | F53: Gallon | G53: 2.24 | I53: 8.848 | J53: =E53*H53 -> 0 | K53: 0 | M53: 0 | N53: =J53*L53 -> 0 | O53: 8.848 | P53: =+J53-N53 -> 0 | Q53: 4424 | R53: =+J53*E$7 -> 0
B55: Gasoline | I55: $0
C56: Pickup/General Use Equipment | D56: 1 | F56: Acre | G56: 0 | I56: 0 | J56: =E56*H56 -> 0 | K56: 0 | M56: 0 | N56: =J56*L56 -> 0 | O56: 0 | P56: =+J56-N56 -> 0 | Q56: 0 | R56: =+J56*E$7 -> 0
C57: Tractors/Self-Propelled | D57: 0 | F57: Gallon | G57: 2.09 | I57: 0 | J57: =E57*H57 -> 0 | K57: 0 | M57: 0 | N57: =J57*L57 -> 0 | O57: 0 | P57: =+J57-N57 -> 0 | Q57: 0 | R57: =+J57*E$7 -> 0
B59: Repairs & Maintenance | I59: $17.51
C60: Pickup/General Use Equipment | D60: 1 | F60: Acre | G60: 0 | I60: 0 | J60: =E60*H60 -> 0 | K60: 0 | M60: 0 | N60: =J60*L60 -> 0 | O60: 0 | P60: =+J60-N60 -> 0 | Q60: 0 | R60: =+J60*E$7 -> 0
C61: Irrigation Equipment | D61: 1 | F61: Acre | G61: 0 | I61: 0 | J61: 0 | K61: 0 | M61: 0 | N61: 0 | O61: 0 | P61: 0 | Q61: 0 | R61: 0
C62: Tractors/Self-Propelled | D62: 1 | F62: Acre | G62: 10.92667938 | I62: 10.92667938 | J62: 0 | K62: 0 | M62: 0 | N62: 0 | O62: 10.92667938 | P62: 0 | Q62: 5463.33969 | R62: 0
C63: Implements | D63: 1 | F63: Acre | G63: 6.5845664 | I63: 6.5845664 | J63: 0 | K63: 0 | M63: 0 | N63: 0 | O63: 6.5845664 | P63: 0 | Q63: 3292.2832 | R63: 0
I64: 0 | J64: 0 | K64: 0 | M64: 0 | N64: 0 | O64: 0 | P64: 0 | Q64: 0 | R64: 0
I65: 0 | J65: 0 | K65: 0 | M65: 0 | N65: 0 | O65: 0 | P65: 0 | Q65: 0 | R65: 0
B66: Interest on Credit Line | G66: 0.08 | I66: 18.84644078 | J66: =+SUM(J18:J65)/2*H66 -> 0 | M66: 0 | N66: =+SUM(N18:N65)/2*L66 -> 0 | O66: 18.84644078 | P66: =+SUM(P18:P65)/2*L66 -> 0 | Q66: 9423.22039 | R66: =+J66*E$7 -> 0
A67: Total Variable Costs | I67: 556.0575166 | J67: =SUM(J19:J66) -> 0 | M67: 0 | N67: =SUM(N19:N66) -> 0 | O67: 556.0575166 | P67: =SUM(P19:P66) -> 0 | Q67: 278028.7583 | R67: =SUM(R19:R66) -> 0
A68: Planned Returns Above Variable Costs: | I68: 477.5024834 | J68: =+J14-J67 -> 0 | M68: 0 | N68: =+N14-N67 -> 0 | O68: 477.5024834 | P68: =+P14-P67 -> 0 | Q68: 238751.2417 | R68: =+R14-R67 -> 0
B69: Breakeven Price to Cover Variable Costs | G69: 0.3694416851 | H69: =IF(E10=0,"n/a",(YVarExp-(YTotExp+YTotRet-J10))/E10) -> n/a | I69: Pound
Q70: Enterprise | R70: Enterprise
A71: FIXED COSTS | D71: Quantity | E71: Quantity | F71: Units | G71: $/Unit | H71: $/Unit | I71: Total | J71: Total | K71: Share | L71: Share | M71: Landlord | N71: Landlord | O71: Tenant | P71: Tenant | Q71: Total | R71: Total
B72: Machinery Depreciation | I72: $22.58
C73: Tractors/Self-Propelled | D73: 1 | F73: Acre | G73: 14.12764375 | I73: 14.12764375 | J73: =E73*H73 -> 0 | K73: 0 | M73: 0 | N73: =J73*L73 -> 0 | O73: 14.12764375 | P73: =+J73-N73 -> 0 | Q73: 7063.821875 | R73: =+J73*E$7 -> 0
C74: Implements | D74: 1 | F74: Acre | G74: 8.453802247 | I74: 8.453802247 | J74: 0 | K74: 0 | M74: 0 | N74: =J74*L74 -> 0 | O74: 8.453802247 | P74: 0 | Q74: 4226.901124 | R74: 0
B75: Equipment Investment | I75: $12.04
C76: Tractors/Self-Propelled | D76: 107.1998468 | F76: Dollars | G76: 0.08 | I76: 8.575987746 | J76: =E76*H76 -> 0 | K76: 0 | M76: 0 | N76: =J76*L76 -> 0 | O76: 8.575987746 | P76: =+J76-N76 -> 0 | Q76: 4287.993873 | R76: =+J76*E$7 -> 0
C77: Implements | D77: 43.28516692 | F77: Dollars | G77: 0.08 | I77: 3.462813353 | J77: 0 | K77: 0 | M77: 0 | N77: =J77*L77 -> 0 | O77: 3.462813353 | P77: 0 | Q77: 1731.406677 | R77: 0
B78: Salaried Labor | D78: 1 | F78: Acre | G78: 0 | I78: 0 | J78: 0 | K78: 0 | M78: 0 | N78: =J78*L78 -> 0 | O78: 0 | P78: =+J78-N78 -> 0 | Q78: 0 | R78: =+J78*E$7 -> 0
B79: Management Fee, Owner/Operator Labor | D79: 1 | F79: Acre | G79: 51.678 | I79: 51.678 | J79: 0 | K79: 0 | M79: 0 | N79: 0 | O79: 51.678 | P79: 0 | Q79: 25839 | R79: 0
B80: Allocated Establishment Cost | D80: 1 | F80: Acre | G80: 0 | I80: 0 | J80: 0 | K80: 0 | M80: 0 | N80: 0 | O80: 0 | P80: 0 | Q80: 0 | R80: 0
B81: UCB - Land Charge | D81: 1 | F81: Acre | G81: 85 | I81: 85 | J81: 0 | K81: 0 | M81: 0 | N81: 0 | O81: 85 | P81: 0 | Q81: 42500 | R81: 0
B82: Property Taxes | D82: 1 | F82: Acre | G82: 0 | I82: 0 | J82: 0 | K82: 0 | M82: 0 | N82: 0 | O82: 0 | P82: 0 | Q82: 0 | R82: 0
B83: Whole Farm Insurance | D83: 1 | F83: Acre | G83: 0 | I83: 0 | J83: 0 | K83: 0 | M83: 0 | N83: 0 | O83: 0 | P83: 0 | Q83: 0 | R83: 0
D84: 1 | G84: 0 | I84: 0 | J84: 0 | K84: 0 | M84: 0 | N84: 0 | O84: 0 | P84: 0 | Q84: 0 | R84: 0
D85: 1 | G85: 0 | I85: 0 | J85: =E85*H85 -> 0 | K85: 0 | M85: 0 | N85: 0 | O85: 0 | P85: 0 | Q85: 0 | R85: 0
A86: Total Fixed Costs | I86: 171.2982471 | J86: =+SUM(J73:J85) -> 0 | M86: 0 | N86: =+SUM(N73:N85) -> 0 | O86: 171.2982471 | P86: =+SUM(P73:P85) -> 0 | Q86: 85649.12355 | R86: =+SUM(R73:R85) -> 0
A87: Total Specified Costs | I87: 727.3557637 | J87: =+J67+J86 -> 0 | M87: 0 | N87: =+N67+N86 -> 0 | O87: 727.3557637 | P87: =+P67+P86 -> 0 | Q87: 363677.8818 | R87: =+R67+R86 -> 0
A89: Returns Above Specified Costs | I89: 306.2042363 | J89: =+J14-J87 -> 0 | M89: 0 | N89: =+N14-N87 -> 0 | O89: 306.2042363 | P89: =+P14-P87 -> 0 | Q89: 153102.1182 | R89: =+R14-R87 -> 0
A91: Breakeven Price to Cover Total Costs | G91: 0.5597730707 | H91: =IF(E10=0,"n/a",(YTotExp-(YTotExp+YTotRet-J10))/E10) -> n/a | I91: Pound
D93: Example Breakeven Prices
B94: Example | C94: Example | D94: To Cover | G94: To Cover
B95: Yield | C95: Yield | D95: Variable | G95: Total
B96: Percent | C96: Pound | D96: Costs | G96: Costs
B97: 0.75 | C97: 675 | D97: 0.4925889134 | G97: 0.7463640943
B98: 0.9 | C98: 810 | D98: 0.4104907612 | G98: 0.6219700786
B99: 1 | C99: 900 | D99: 0.3694416851 | G99: 0.5597730707
B100: 1.1 | C100: 990 | D100: 0.3358560773 | G100: 0.5088846098
B101: 1.25 | C101: 1125 | D101: 0.2955533481 | G101: 0.4478184566
A103: Developed by Extension Economists, Texas A&M AgriLife Extension Service, budgets@tamu.edu.
A105: Information presented is prepared solely as a general guide and not intended to recognize or predict the costs and returns from any one operation. Brand names are mentioned only as examples and imply no endorsement.

Sheet SorghumUCB
A1: Projections for Planning Purposes Only -- Not to be Used without Updating
A2: 2023 Estimated Costs and Returns per Acre
A3: Sorghum - Conventional Till-12 Row, Dryland, 90 bu. Yield Goal - Upper Coast
A4: Enter your name for this budget in the cell above.
A5: Enter Your Values in the cells highlighed in MAROON.
E6: Your Acres | R6: Your
C7: Crop Acres | D7: 500 | L7: Your | Q7: Enterprise | R7: Enterprise
E8: Your | H8: Your | I8: Cash | J8: Your | K8: Landlord | L8: Landlord | N8: Your | P8: Your | Q8: Total | R8: Total
A9: REVENUE | D9: Quantity | E9: Quantity | F9: Units | G9: $/Unit | H9: $/Unit | I9: Total | J9: Total | K9: Share | L9: Share | M9: Landlord | N9: Landlord | O9: Tenant | P9: Tenant | Q9: (500 acres) | R9: ="(" & E7 & " acres)" -> ( acres)
B10: Grain Sorghum, Upper Coast | D10: 90 | F10: Bushel | G10: 5.1 | I10: 459 | J10: =E10*H10 -> 0 | K10: 0 | M10: 0 | N10: =J10*L10 -> 0 | O10: 459 | P10: =+J10-N10 -> 0 | Q10: 229500 | R10: =+J10*E$7 -> 0
D11: 0 | G11: 0 | I11: 0 | J11: 0 | K11: 0 | M11: 0 | N11: 0 | O11: 0 | P11: =+J11-N11 -> 0 | Q11: 0 | R11: 0
D12: 0 | G12: 0 | I12: 0 | J12: 0 | K12: 0 | M12: 0 | N12: 0 | O12: 0 | P12: 0 | Q12: 0 | R12: 0
A13: Total Revenue | I13: 459 | J13: =SUM(J10:J12) -> 0 | M13: 0 | N13: =SUM(N10:N12) -> 0 | O13: 459 | P13: =SUM(P10:P12) -> 0 | Q13: 229500 | R13: =SUM(R10:R12) -> 0
Q14: Enterprise | R14: Enterprise
A15: VARIABLE COSTS | D15: Quantity | E15: Quantity | F15: Units | G15: $/Unit | H15: $/Unit | I15: Total | J15: Total | K15: Share | L15: Share | M15: Landlord | N15: Landlord | O15: Tenant | P15: Tenant | Q15: Total | R15: Total
A16: Production Costs
B17: Herbicide | I17: $50.8
C18: Glyphosate (Generic) | D18: 2 | F18: Quart | G18: 7.75 | I18: 15.5 | J18: =E18*H18 -> 0 | K18: 0 | M18: 0 | N18: =J18*L18 -> 0 | O18: 15.5 | P18: =+J18-N18 -> 0 | Q18: 7750 | R18: =+J18*E$7 -> 0
C19: 2, 4D Amine` | D19: 1 | F19: Pint | G19: 3.625 | I19: 3.625 | J19: 0 | K19: 0 | M19: 0 | N19: 0 | O19: 3.625 | P19: 0 | Q19: 1812.5 | R19: 0
C20: Atrazine 4L` | D20: 2 | F20: Quart | G20: 5.75 | I20: 11.5 | J20: 0 | K20: 0 | M20: 0 | N20: 0 | O20: 11.5 | P20: 0 | Q20: 5750 | R20: 0
C21: Sorghum PreEmerge Herbicide | D21: 14 | F21: Ounce | G21: 1.03 | I21: 14.42 | J21: 0 | K21: 0 | M21: 0 | N21: 0 | O21: 14.42 | P21: 0 | Q21: 7210 | R21: 0
C22: Atrazine 4L | D22: 1 | F22: Quart | G22: 5.75 | I22: 5.75 | J22: 0 | K22: 0 | M22: 0 | N22: 0 | O22: 5.75 | P22: 0 | Q22: 2875 | R22: 0
B23: Seed | I23: $23.74
C24: Treated Sorghum Seed | D24: 7 | F24: Pound | G24: 3.392 | I24: 23.744 | J24: 0 | K24: 0 | M24: 0 | N24: 0 | O24: 23.744 | P24: 0 | Q24: 11872 | R24: 0
B25: Fertilizer | I25: $82.14
C26: 24-8-0` | D26: 0.21 | F26: Ton | G26: 391.14 | I26: 82.1394 | J26: 0 | K26: 0 | M26: 0 | N26: 0 | O26: 82.1394 | P26: 0 | Q26: 41069.7 | R26: 0
B27: Custom | I27: $34.98
C28: Apply by Air | D28: 1 | F28: Acre | G28: 8.268 | I28: 8.268 | J28: 0 | K28: 0 | M28: 0 | N28: 0 | O28: 8.268 | P28: 0 | Q28: 4134 | R28: 0
C29: Custom Grain Haul | D29: 50.4 | F29: CWT | G29: 0.53 | I29: 26.712 | J29: 0 | K29: 0 | M29: 0 | N29: 0 | O29: 26.712 | P29: 0 | Q29: 13356 | R29: 0
B30: Miscellaneous | I30: $8
C31: Crop Insurance -Sorghum UC | D31: 1 | F31: Acre | G31: 8 | I31: 8 | J31: 0 | K31: 0 | M31: 0 | N31: 0 | O31: 8 | P31: 0 | Q31: 4000 | R31: 0
B32: Insecticide | I32: $8.24
C33: Transform | D33: 1 | F33: Ounce | G33: 8.1938 | I33: 8.1938 | J33: 0 | K33: 0 | M33: 0 | N33: 0 | O33: 8.1938 | P33: 0 | Q33: 4096.9 | R33: 0
C34: Headworn Control | D34: 0.0285 | F34: Ounce | G34: 1.7 | I34: 0.04845 | J34: 0 | K34: 0 | M34: 0 | N34: 0 | O34: 0.04845 | P34: 0 | Q34: 24.225 | R34: 0
B35: Other Labor | I35: $3.56
C36: Hand Labor | D36: 0.21 | F36: Hour | G36: 16.96 | I36: 3.5616 | J36: 0 | K36: 0 | M36: 0 | N36: 0 | O36: 3.5616 | P36: 0 | Q36: 1780.8 | R36: 0
D37: 0 | G37: 0 | I37: 0 | J37: 0 | K37: 0 | M37: 0 | N37: 0 | O37: 0 | P37: 0 | Q37: 0 | R37: 0
D38: 0 | G38: 0 | I38: 0 | J38: 0 | K38: 0 | M38: 0 | N38: 0 | O38: 0 | P38: 0 | Q38: 0 | R38: 0
D39: 0 | G39: 0 | I39: 0 | J39: =E39*H39 -> 0 | K39: 0 | M39: 0 | N39: =J39*L39 -> 0 | O39: 0 | P39: =+J39-N39 -> 0 | Q39: 0 | R39: =+J39*E$7 -> 0
B40: Machinery Labor | I40: $7.57
C41: Tractors/Self-Propelled | D41: 0.44 | F41: Hour | G41: 17.21 | I41: 7.5724 | J41: =E41*H41 -> 0 | K41: 0 | M41: 0 | N41: =J41*L41 -> 0 | O41: 7.5724 | P41: =+J41-N41 -> 0 | Q41: 3786.2 | R41: =+J41*E$7 -> 0
C42: Other Labor | D42: 0 | F42: Hour | G42: 17.21 | I42: 0 | J42: =E42*H42 -> 0 | K42: 0 | M42: 0 | N42: =J42*L42 -> 0 | O42: 0 | P42: =+J42-N42 -> 0 | Q42: 0 | R42: =+J42*E$7 -> 0
B44: Diesel Fuel | I44: $10.64
C45: Pickup/General Use Equipment | D45: 1 | F45: Acre | G45: 0 | I45: 0 | J45: =E45*H45 -> 0 | K45: 0 | M45: 0 | N45: =J45*L45 -> 0 | O45: 0 | P45: =+J45-N45 -> 0 | Q45: 0 | R45: =+J45*E$7 -> 0
C46: Tractors/Self-Propelled | D46: 4.75 | F46: Gallon | G46: 2.24 | I46: 10.64 | J46: =E46*H46 -> 0 | K46: 0 | M46: 0 | N46: =J46*L46 -> 0 | O46: 10.64 | P46: =+J46-N46 -> 0 | Q46: 5320 | R46: =+J46*E$7 -> 0
B48: Gasoline | I48: $0
C49: Pickup/General Use Equipment | D49: 1 | F49: Acre | G49: 0 | I49: 0 | J49: =E49*H49 -> 0 | K49: 0 | M49: 0 | N49: =J49*L49 -> 0 | O49: 0 | P49: =+J49-N49 -> 0 | Q49: 0 | R49: =+J49*E$7 -> 0
C50: Tractors/Self-Propelled | D50: 0 | F50: Gallon | G50: 2.09 | I50: 0 | J50: =E50*H50 -> 0 | K50: 0 | M50: 0 | N50: =J50*L50 -> 0 | O50: 0 | P50: =+J50-N50 -> 0 | Q50: 0 | R50: =+J50*E$7 -> 0
B52: Repairs & Maintenance | I52: $23.67
C53: Pickup/General Use Equipment | D53: 1 | F53: Acre | G53: 0 | I53: 0 | J53: =E53*H53 -> 0 | K53: 0 | M53: 0 | N53: =J53*L53 -> 0 | O53: 0 | P53: =+J53-N53 -> 0 | Q53: 0 | R53: =+J53*E$7 -> 0
C54: Irrigation Equipment | D54: 1 | F54: Acre | G54: 0 | I54: 0 | J54: 0 | K54: 0 | M54: 0 | N54: 0 | O54: 0 | P54: 0 | Q54: 0 | R54: 0
C55: Tractors/Self-Propelled | D55: 1 | F55: Acre | G55: 15.45531711 | I55: 15.45531711 | J55: 0 | K55: 0 | M55: 0 | N55: 0 | O55: 15.45531711 | P55: 0 | Q55: 7727.658554 | R55: 0
C56: Implements | D56: 1 | F56: Acre | G56: 8.212475885 | I56: 8.212475885 | J56: 0 | K56: 0 | M56: 0 | N56: 0 | O56: 8.212475885 | P56: 0 | Q56: 4106.237943 | R56: 0
I57: 0 | J57: 0 | K57: 0 | M57: 0 | N57: 0 | O57: 0 | P57: 0 | Q57: 0 | R57: 0
I58: 0 | J58: 0 | K58: 0 | M58: 0 | N58: 0 | O58: 0 | P58: 0 | Q58: 0 | R58: 0
B59: Interest on Credit Line | G59: 0.08 | I59: 12.61090401 | J59: =+SUM(J17:J58)/2*H59 -> 0 | M59: 0 | N59: =+SUM(N17:N58)/2*L59 -> 0 | O59: 12.61090401 | P59: =+SUM(P17:P58)/2*L59 -> 0 | Q59: 6305.452003 | R59: =+J59*E$7 -> 0
A60: Total Variable Costs | I60: 265.953347 | J60: =SUM(J18:J59) -> 0 | M60: 0 | N60: =SUM(N18:N59) -> 0 | O60: 265.953347 | P60: =SUM(P18:P59) -> 0 | Q60: 132976.6735 | R60: =SUM(R18:R59) -> 0
A61: Planned Returns Above Variable Costs: | I61: 193.046653 | J61: =+J13-J60 -> 0 | M61: 0 | N61: =+N13-N60 -> 0 | O61: 193.046653 | P61: =+P13-P60 -> 0 | Q61: 96523.3265 | R61: =+R13-R60 -> 0
B62: Breakeven Price to Cover Variable Costs | G62: 2.955037189 | H62: =IF(E10=0,"n/a",(YVarExp-(YTotExp+YTotRet-J10))/E10) -> n/a | I62: Bushel
Q63: Enterprise | R63: Enterprise
A64: FIXED COSTS | D64: Quantity | E64: Quantity | F64: Units | G64: $/Unit | H64: $/Unit | I64: Total | J64: Total | K64: Share | L64: Share | M64: Landlord | N64: Landlord | O64: Tenant | P64: Tenant | Q64: Total | R64: Total
B65: Machinery Depreciation | I65: $24.89
C66: Tractors/Self-Propelled | D66: 1 | F66: Acre | G66: 15.66219422 | I66: 15.66219422 | J66: =E66*H66 -> 0 | K66: 0 | M66: 0 | N66: =J66*L66 -> 0 | O66: 15.66219422 | P66: =+J66-N66 -> 0 | Q66: 7831.097111 | R66: =+J66*E$7 -> 0
C67: Implements | D67: 1 | F67: Acre | G67: 9.232041647 | I67: 9.232041647 | J67: 0 | K67: 0 | M67: 0 | N67: =J67*L67 -> 0 | O67: 9.232041647 | P67: 0 | Q67: 4616.020823 | R67: 0
B68: Equipment Investment | I68: $15.18
C69: Tractors/Self-Propelled | D69: 119.6911806 | F69: Dollars | G69: 0.08 | I69: 9.575294452 | J69: =E69*H69 -> 0 | K69: 0 | M69: 0 | N69: =J69*L69 -> 0 | O69: 9.575294452 | P69: =+J69-N69 -> 0 | Q69: 4787.647226 | R69: =+J69*E$7 -> 0
C70: Implements | D70: 70.0111162 | F70: Dollars | G70: 0.08 | I70: 5.600889296 | J70: 0 | K70: 0 | M70: 0 | N70: =J70*L70 -> 0 | O70: 5.600889296 | P70: 0 | Q70: 2800.444648 | R70: 0
B71: Salaried Labor | D71: 1 | F71: Acre | G71: 0 | I71: 0 | J71: 0 | K71: 0 | M71: 0 | N71: =J71*L71 -> 0 | O71: 0 | P71: =+J71-N71 -> 0 | Q71: 0 | R71: =+J71*E$7 -> 0
B72: Management Fee, Owner/Operator Labor | D72: 1 | F72: Acre | G72: 22.95 | I72: 22.95 | J72: 0 | K72: 0 | M72: 0 | N72: 0 | O72: 22.95 | P72: 0 | Q72: 11475 | R72: 0
B73: Allocated Establishment Cost | D73: 1 | F73: Acre | G73: 0 | I73: 0 | J73: 0 | K73: 0 | M73: 0 | N73: 0 | O73: 0 | P73: 0 | Q73: 0 | R73: 0
B74: UCB - Land Charge | D74: 1 | F74: Acre | G74: 85 | I74: 85 | J74: 0 | K74: 0 | M74: 0 | N74: 0 | O74: 85 | P74: 0 | Q74: 42500 | R74: 0
B75: Property Taxes | D75: 1 | F75: Acre | G75: 0 | I75: 0 | J75: 0 | K75: 0 | M75: 0 | N75: 0 | O75: 0 | P75: 0 | Q75: 0 | R75: 0
B76: Whole Farm Insurance | D76: 1 | F76: Acre | G76: 0 | I76: 0 | J76: 0 | K76: 0 | M76: 0 | N76: 0 | O76: 0 | P76: 0 | Q76: 0 | R76: 0
D77: 1 | G77: 0 | I77: 0 | J77: 0 | K77: 0 | M77: 0 | N77: 0 | O77: 0 | P77: 0 | Q77: 0 | R77: 0
D78: 1 | G78: 0 | I78: 0 | J78: =E78*H78 -> 0 | K78: 0 | M78: 0 | N78: 0 | O78: 0 | P78: 0 | Q78: 0 | R78: 0
A79: Total Fixed Costs | I79: 148.0204196 | J79: =+SUM(J66:J78) -> 0 | M79: 0 | N79: =+SUM(N66:N78) -> 0 | O79: 148.0204196 | P79: =+SUM(P66:P78) -> 0 | Q79: 74010.20981 | R79: =+SUM(R66:R78) -> 0
A80: Total Specified Costs | I80: 413.9737666 | J80: =+J60+J79 -> 0 | M80: 0 | N80: =+N60+N79 -> 0 | O80: 413.9737666 | P80: =+P60+P79 -> 0 | Q80: 206986.8833 | R80: =+R60+R79 -> 0
A82: Returns Above Specified Costs | I82: 45.02623338 | J82: =+J13-J80 -> 0 | M82: 0 | N82: =+N13-N80 -> 0 | O82: 45.02623338 | P82: =+P13-P80 -> 0 | Q82: 22513.11669 | R82: =+R13-R80 -> 0
A84: Breakeven Price to Cover Total Costs | G84: 4.599708518 | H84: =IF(E10=0,"n/a",(YTotExp-(YTotExp+YTotRet-J10))/E10) -> n/a | I84: Bushel
D86: Example Breakeven Prices
B87: Example | C87: Example | D87: To Cover | G87: To Cover
B88: Yield | C88: Yield | D88: Variable | G88: Total
B89: Percent | C89: Bushel | D89: Costs | G89: Costs
B90: 0.75 | C90: 67.5 | D90: 3.940049585 | G90: 6.132944691
B91: 0.9 | C91: 81 | D91: 3.283374654 | G91: 5.110787242
B92: 1 | C92: 90 | D92: 2.955037189 | G92: 4.599708518
B93: 1.1 | C93: 99 | D93: 2.686397444 | G93: 4.181553198
B94: 1.25 | C94: 112.5 | D94: 2.364029751 | G94: 3.679766814
A96: Developed by Extension Economists, Texas A&M AgriLife Extension Service, budgets@tamu.edu.
A98: Information presented is prepared solely as a general guide and not intended to recognize or predict the costs and returns from any one operation. Brand names are mentioned only as examples and imply no endorsement.

Sheet WheatUCB
A1: Projections for Planning Purposes Only -- Not to be Used without Updating
A2: 2023 Estimated Costs and Returns per Acre
A3: Soft Red Winter Wheat, 45 bu. Yield Goal - Upper Coast
A4: Enter your name for this budget in the cell above.
A5: Enter Your Values in the cells highlighed in MAROON.
E6: Your Acres | R6: Your
C7: Crop Acres | D7: 500 | L7: Your | Q7: Enterprise | R7: Enterprise
E8: Your | H8: Your | I8: Cash | J8: Your | K8: Landlord | L8: Landlord | N8: Your | P8: Your | Q8: Total | R8: Total
A9: REVENUE | D9: Quantity | E9: Quantity | F9: Units | G9: $/Unit | H9: $/Unit | I9: Total | J9: Total | K9: Share | L9: Share | M9: Landlord | N9: Landlord | O9: Tenant | P9: Tenant | Q9: (500 acres) | R9: ="(" & E7 & " acres)" -> ( acres)
B10: Soft Red Winter Wheat | D10: 45 | F10: Bushel | G10: 7.6 | I10: 342 | J10: =E10*H10 -> 0 | K10: 0 | M10: 0 | N10: =J10*L10 -> 0 | O10: 342 | P10: =+J10-N10 -> 0 | Q10: 171000 | R10: =+J10*E$7 -> 0
D11: 0 | G11: 0 | I11: 0 | J11: 0 | K11: 0 | M11: 0 | N11: 0 | O11: 0 | P11: =+J11-N11 -> 0 | Q11: 0 | R11: 0
D12: 0 | G12: 0 | I12: 0 | J12: 0 | K12: 0 | M12: 0 | N12: 0 | O12: 0 | P12: 0 | Q12: 0 | R12: 0
A13: Total Revenue | I13: 342 | J13: =SUM(J10:J12) -> 0 | M13: 0 | N13: =SUM(N10:N12) -> 0 | O13: 342 | P13: =SUM(P10:P12) -> 0 | Q13: 171000 | R13: =SUM(R10:R12) -> 0
Q14: Enterprise | R14: Enterprise
A15: VARIABLE COSTS | D15: Quantity | E15: Quantity | F15: Units | G15: $/Unit | H15: $/Unit | I15: Total | J15: Total | K15: Share | L15: Share | M15: Landlord | N15: Landlord | O15: Tenant | P15: Tenant | Q15: Total | R15: Total
A16: Production Costs
B17: Herbicide | I17: $3.74
C18: Wheat PostEmerge Herbicide | D18: 0.35 | F18: Ounce | G18: 10.6848 | I18: 3.73968 | J18: =E18*H18 -> 0 | K18: 0 | M18: 0 | N18: =J18*L18 -> 0 | O18: 3.73968 | P18: =+J18-N18 -> 0 | Q18: 1869.84 | R18: =+J18*E$7 -> 0
B19: Seed | I19: $27.86
C20: Soft Red Wheat | D20: 90 | F20: Pound | G20: 0.30952 | I20: 27.8568 | J20: 0 | K20: 0 | M20: 0 | N20: 0 | O20: 27.8568 | P20: 0 | Q20: 13928.4 | R20: 0
B21: Fertilizer | I21: $82.04
C22: 24-8-0` | D22: 0.1405 | F22: Ton | G22: 391.14 | I22: 54.95517 | J22: 0 | K22: 0 | M22: 0 | N22: 0 | O22: 54.95517 | P22: 0 | Q22: 27477.585 | R22: 0
C23: 46-0-0` | D23: 0.05 | F23: Ton | G23: 541.66 | I23: 27.083 | J23: 0 | K23: 0 | M23: 0 | N23: 0 | O23: 27.083 | P23: 0 | Q23: 13541.5 | R23: 0
B24: Custom | I24: $32.44
C25: Fertilizer Application UC | D25: 2 | F25: Acre | G25: 9.54 | I25: 19.08 | J25: 0 | K25: 0 | M25: 0 | N25: 0 | O25: 19.08 | P25: 0 | Q25: 9540 | R25: 0
C26: Custom Grain Haul | D26: 25.2 | F26: CWT | G26: 0.53 | I26: 13.356 | J26: 0 | K26: 0 | M26: 0 | N26: 0 | O26: 13.356 | P26: 0 | Q26: 6678 | R26: 0
B27: Miscellaneous | I27: $10.41
C28: Crop Insurance -Wheat UC | D28: 1 | F28: Acre | G28: 9 | I28: 9 | J28: 0 | K28: 0 | M28: 0 | N28: 0 | O28: 9 | P28: 0 | Q28: 4500 | R28: 0
C29: Hand Labor | D29: 0.0833 | F29: Hour | G29: 16.96 | I29: 1.412768 | J29: 0 | K29: 0 | M29: 0 | N29: 0 | O29: 1.412768 | P29: 0 | Q29: 706.384 | R29: 0
B30: Fungicides | I30: $15.77
C31: Wheat Fungicide | D31: 6 | F31: Ounce | G31: 2.6288 | I31: 15.7728 | J31: 0 | K31: 0 | M31: 0 | N31: 0 | O31: 15.7728 | P31: 0 | Q31: 7886.4 | R31: 0
D32: 0 | G32: 0 | I32: 0 | J32: 0 | K32: 0 | M32: 0 | N32: 0 | O32: 0 | P32: 0 | Q32: 0 | R32: 0
D33: 0 | G33: 0 | I33: 0 | J33: 0 | K33: 0 | M33: 0 | N33: 0 | O33: 0 | P33: 0 | Q33: 0 | R33: 0
D34: 0 | G34: 0 | I34: 0 | J34: =E34*H34 -> 0 | K34: 0 | M34: 0 | N34: =J34*L34 -> 0 | O34: 0 | P34: =+J34-N34 -> 0 | Q34: 0 | R34: =+J34*E$7 -> 0
B35: Machinery Labor | I35: $6.54
C36: Tractors/Self-Propelled | D36: 0.38 | F36: Hour | G36: 17.21 | I36: 6.5398 | J36: =E36*H36 -> 0 | K36: 0 | M36: 0 | N36: =J36*L36 -> 0 | O36: 6.5398 | P36: =+J36-N36 -> 0 | Q36: 3269.9 | R36: =+J36*E$7 -> 0
C37: Other Labor | D37: 0 | F37: Hour | G37: 17.21 | I37: 0 | J37: =E37*H37 -> 0 | K37: 0 | M37: 0 | N37: =J37*L37 -> 0 | O37: 0 | P37: =+J37-N37 -> 0 | Q37: 0 | R37: =+J37*E$7 -> 0
B39: Diesel Fuel | I39: $9.23
C40: Pickup/General Use Equipment | D40: 1 | F40: Acre | G40: 0 | I40: 0 | J40: =E40*H40 -> 0 | K40: 0 | M40: 0 | N40: =J40*L40 -> 0 | O40: 0 | P40: =+J40-N40 -> 0 | Q40: 0 | R40: =+J40*E$7 -> 0
C41: Tractors/Self-Propelled | D41: 4.12 | F41: Gallon | G41: 2.24 | I41: 9.2288 | J41: =E41*H41 -> 0 | K41: 0 | M41: 0 | N41: =J41*L41 -> 0 | O41: 9.2288 | P41: =+J41-N41 -> 0 | Q41: 4614.4 | R41: =+J41*E$7 -> 0
B43: Gasoline | I43: $0
C44: Pickup/General Use Equipment | D44: 1 | F44: Acre | G44: 0 | I44: 0 | J44: =E44*H44 -> 0 | K44: 0 | M44: 0 | N44: =J44*L44 -> 0 | O44: 0 | P44: =+J44-N44 -> 0 | Q44: 0 | R44: =+J44*E$7 -> 0
C45: Tractors/Self-Propelled | D45: 0 | F45: Gallon | G45: 2.09 | I45: 0 | J45: =E45*H45 -> 0 | K45: 0 | M45: 0 | N45: =J45*L45 -> 0 | O45: 0 | P45: =+J45-N45 -> 0 | Q45: 0 | R45: =+J45*E$7 -> 0
B47: Repairs & Maintenance | I47: $21.73
C48: Pickup/General Use Equipment | D48: 1 | F48: Acre | G48: 0 | I48: 0 | J48: =E48*H48 -> 0 | K48: 0 | M48: 0 | N48: =J48*L48 -> 0 | O48: 0 | P48: =+J48-N48 -> 0 | Q48: 0 | R48: =+J48*E$7 -> 0
C49: Irrigation Equipment | D49: 1 | F49: Acre | G49: 0 | I49: 0 | J49: 0 | K49: 0 | M49: 0 | N49: 0 | O49: 0 | P49: 0 | Q49: 0 | R49: 0
C50: Tractors/Self-Propelled | D50: 1 | F50: Acre | G50: 14.25226922 | I50: 14.25226922 | J50: 0 | K50: 0 | M50: 0 | N50: 0 | O50: 14.25226922 | P50: 0 | Q50: 7126.13461 | R50: 0
C51: Implements | D51: 1 | F51: Acre | G51: 7.482257003 | I51: 7.482257003 | J51: 0 | K51: 0 | M51: 0 | N51: 0 | O51: 7.482257003 | P51: 0 | Q51: 3741.128501 | R51: 0
I52: 0 | J52: 0 | K52: 0 | M52: 0 | N52: 0 | O52: 0 | P52: 0 | Q52: 0 | R52: 0
I53: 0 | J53: 0 | K53: 0 | M53: 0 | N53: 0 | O53: 0 | P53: 0 | Q53: 0 | R53: 0
B54: Interest on Credit Line | G54: 0.08 | I54: 9.953828078 | J54: =+SUM(J17:J53)/2*H54 -> 0 | M54: 0 | N54: =+SUM(N17:N53)/2*L54 -> 0 | O54: 9.953828078 | P54: =+SUM(P17:P53)/2*L54 -> 0 | Q54: 4976.914039 | R54: =+J54*E$7 -> 0
A55: Total Variable Costs | I55: 219.7131723 | J55: =SUM(J18:J54) -> 0 | M55: 0 | N55: =SUM(N18:N54) -> 0 | O55: 219.7131723 | P55: =SUM(P18:P54) -> 0 | Q55: 109856.5862 | R55: =SUM(R18:R54) -> 0
A56: Planned Returns Above Variable Costs: | I56: 122.2868277 | J56: =+J13-J55 -> 0 | M56: 0 | N56: =+N13-N55 -> 0 | O56: 122.2868277 | P56: =+P13-P55 -> 0 | Q56: 61143.41385 | R56: =+R13-R55 -> 0
B57: Breakeven Price to Cover Variable Costs | G57: 4.88251494 | H57: =IF(E10=0,"n/a",(YVarExp-(YTotExp+YTotRet-J10))/E10) -> n/a | I57: Bushel
Q58: Enterprise | R58: Enterprise
A59: FIXED COSTS | D59: Quantity | E59: Quantity | F59: Units | G59: $/Unit | H59: $/Unit | I59: Total | J59: Total | K59: Share | L59: Share | M59: Landlord | N59: Landlord | O59: Tenant | P59: Tenant | Q59: Total | R59: Total
B60: Machinery Depreciation | I60: $23.05
C61: Tractors/Self-Propelled | D61: 1 | F61: Acre | G61: 14.07282425 | I61: 14.07282425 | J61: =E61*H61 -> 0 | K61: 0 | M61: 0 | N61: =J61*L61 -> 0 | O61: 14.07282425 | P61: =+J61-N61 -> 0 | Q61: 7036.412124 | R61: =+J61*E$7 -> 0
C62: Implements | D62: 1 | F62: Acre | G62: 8.98058061 | I62: 8.98058061 | J62: 0 | K62: 0 | M62: 0 | N62: =J62*L62 -> 0 | O62: 8.98058061 | P62: 0 | Q62: 4490.290305 | R62: 0
B63: Equipment Investment | I63: $13.54
C64: Tractors/Self-Propelled | D64: 107.4703418 | F64: Dollars | G64: 0.08 | I64: 8.597627347 | J64: =E64*H64 -> 0 | K64: 0 | M64: 0 | N64: =J64*L64 -> 0 | O64: 8.597627347 | P64: =+J64-N64 -> 0 | Q64: 4298.813673 | R64: =+J64*E$7 -> 0
C65: Implements | D65: 61.81374224 | F65: Dollars | G65: 0.08 | I65: 4.945099379 | J65: 0 | K65: 0 | M65: 0 | N65: =J65*L65 -> 0 | O65: 4.945099379 | P65: 0 | Q65: 2472.54969 | R65: 0
B66: Salaried Labor | D66: 1 | F66: Acre | G66: 0 | I66: 0 | J66: 0 | K66: 0 | M66: 0 | N66: =J66*L66 -> 0 | O66: 0 | P66: =+J66-N66 -> 0 | Q66: 0 | R66: =+J66*E$7 -> 0
B67: Management Fee, Owner/Operator Labor | D67: 1 | F67: Acre | G67: 17.1 | I67: 17.1 | J67: 0 | K67: 0 | M67: 0 | N67: 0 | O67: 17.1 | P67: 0 | Q67: 8550 | R67: 0
B68: Allocated Establishment Cost | D68: 1 | F68: Acre | G68: 0 | I68: 0 | J68: 0 | K68: 0 | M68: 0 | N68: 0 | O68: 0 | P68: 0 | Q68: 0 | R68: 0
B69: UCB - Land Charge | D69: 1 | F69: Acre | G69: 85 | I69: 85 | J69: 0 | K69: 0 | M69: 0 | N69: 0 | O69: 85 | P69: 0 | Q69: 42500 | R69: 0
B70: Property Taxes | D70: 1 | F70: Acre | G70: 0 | I70: 0 | J70: 0 | K70: 0 | M70: 0 | N70: 0 | O70: 0 | P70: 0 | Q70: 0 | R70: 0
B71: Whole Farm Insurance | D71: 1 | F71: Acre | G71: 0 | I71: 0 | J71: 0 | K71: 0 | M71: 0 | N71: 0 | O71: 0 | P71: 0 | Q71: 0 | R71: 0
D72: 1 | G72: 0 | I72: 0 | J72: 0 | K72: 0 | M72: 0 | N72: 0 | O72: 0 | P72: 0 | Q72: 0 | R72: 0
D73: 1 | G73: 0 | I73: 0 | J73: =E73*H73 -> 0 | K73: 0 | M73: 0 | N73: 0 | O73: 0 | P73: 0 | Q73: 0 | R73: 0
A74: Total Fixed Costs | I74: 138.6961316 | J74: =+SUM(J61:J73) -> 0 | M74: 0 | N74: =+SUM(N61:N73) -> 0 | O74: 138.6961316 | P74: =+SUM(P61:P73) -> 0 | Q74: 69348.06579 | R74: =+SUM(R61:R73) -> 0
A75: Total Specified Costs | I75: 358.4093039 | J75: =+J55+J74 -> 0 | M75: 0 | N75: =+N55+N74 -> 0 | O75: 358.4093039 | P75: =+P55+P74 -> 0 | Q75: 179204.6519 | R75: =+R55+R74 -> 0
A77: Returns Above Specified Costs | I77: -16.40930388 | J77: =+J13-J75 -> 0 | M77: 0 | N77: =+N13-N75 -> 0 | O77: -16.40930388 | P77: =+P13-P75 -> 0 | Q77: -8204.651942 | R77: =+R13-R75 -> 0
A79: Breakeven Price to Cover Total Costs | G79: 7.964651197 | H79: =IF(E10=0,"n/a",(YTotExp-(YTotExp+YTotRet-J10))/E10) -> n/a | I79: Bushel
D81: Example Breakeven Prices
B82: Example | C82: Example | D82: To Cover | G82: To Cover
B83: Yield | C83: Yield | D83: Variable | G83: Total
B84: Percent | C84: Bushel | D84: Costs | G84: Costs
B85: 0.75 | C85: 33.75 | D85: 6.51001992 | G85: 10.61953493
B86: 0.9 | C86: 40.5 | D86: 5.4250166 | G86: 8.849612442
B87: 1 | C87: 45 | D87: 4.88251494 | G87: 7.964651197
B88: 1.1 | C88: 49.5 | D88: 4.438649945 | G88: 7.240591998
B89: 1.25 | C89: 56.25 | D89: 3.906011952 | G89: 6.371720958
A91: Developed by Extension Economists, Texas A&M AgriLife Extension Service, budgets@tamu.edu.
A93: Information presented is prepared solely as a general guide and not intended to recognize or predict the costs and returns from any one operation. Brand names are mentioned only as examples and imply no endorsement.

Sheet Corn
A1: Projections for Planning Purposes Only -- Not to be Used without Updating
A2: 2023 Estimated Costs and Returns per Acre
A3: Corn - GMO Seed, Conventional Till-12 Row, Dryland, 100 bu. Yield Goal - Upper Coast
A4: Enter your name for this budget in the cell above.
A5: Enter Your Values in the cells highlighed in MAROON.
E6: Your Acres | R6: Your
C7: Crop Acres | D7: 500 | L7: Your | Q7: Enterprise | R7: Enterprise
E8: Your | H8: Your | I8: Cash | J8: Your | K8: Landlord | L8: Landlord | N8: Your | P8: Your | Q8: Total | R8: Total
A9: REVENUE | D9: Quantity | E9: Quantity | F9: Units | G9: $/Unit | H9: $/Unit | I9: Total | J9: Total | K9: Share | L9: Share | M9: Landlord | N9: Landlord | O9: Tenant | P9: Tenant | Q9: (500 acres) | R9: ="(" & E7 & " acres)" -> ( acres)
B10: Corn | D10: 100 | F10: Bushel | G10: 6 | I10: 600 | J10: =E10*H10 -> 0 | K10: 0 | M10: 0 | N10: =J10*L10 -> 0 | O10: 600 | P10: =+J10-N10 -> 0 | Q10: 300000 | R10: =+J10*E$7 -> 0
D11: 0 | G11: 0 | I11: 0 | J11: 0 | K11: 0 | M11: 0 | N11: 0 | O11: 0 | P11: =+J11-N11 -> 0 | Q11: 0 | R11: 0
D12: 0 | G12: 0 | I12: 0 | J12: 0 | K12: 0 | M12: 0 | N12: 0 | O12: 0 | P12: 0 | Q12: 0 | R12: 0
A13: Total Revenue | I13: 600 | J13: =SUM(J10:J12) -> 0 | M13: 0 | N13: =SUM(N10:N12) -> 0 | O13: 600 | P13: =SUM(P10:P12) -> 0 | Q13: 300000 | R13: =SUM(R10:R12) -> 0
Q14: Enterprise | R14: Enterprise
A15: VARIABLE COSTS | D15: Quantity | E15: Quantity | F15: Units | G15: $/Unit | H15: $/Unit | I15: Total | J15: Total | K15: Share | L15: Share | M15: Landlord | N15: Landlord | O15: Tenant | P15: Tenant | Q15: Total | R15: Total
A16: Production Costs
B17: Seed | I17: $118.5
C18: Corn | D18: 25 | F18: Thousand | G18: 4.74 | I18: 118.5 | J18: =E18*H18 -> 0 | K18: 0 | M18: 0 | N18: =J18*L18 -> 0 | O18: 118.5 | P18: =+J18-N18 -> 0 | Q18: 59250 | R18: =+J18*E$7 -> 0
B19: Fertilizer | I19: $97.78
C20: 24-8-0` | D20: 0.25 | F20: Ton | G20: 391.14 | I20: 97.785 | J20: 0 | K20: 0 | M20: 0 | N20: 0 | O20: 97.785 | P20: 0 | Q20: 48892.5 | R20: 0
B21: Custom | I21: $30.21
C22: Custom Grain Haul | D22: 57 | F22: CWT | G22: 0.53 | I22: 30.21 | J22: 0 | K22: 0 | M22: 0 | N22: 0 | O22: 30.21 | P22: 0 | Q22: 15105 | R22: 0
B23: Herbicide | I23: $78.52
C24: Glyphosate (Generic) | D24: 2 | F24: Quart | G24: 7.75 | I24: 15.5 | J24: 0 | K24: 0 | M24: 0 | N24: 0 | O24: 15.5 | P24: 0 | Q24: 7750 | R24: 0
C25: 2, 4D Amine | D25: 1 | F25: Pint | G25: 3.875 | I25: 3.875 | J25: 0 | K25: 0 | M25: 0 | N25: 0 | O25: 3.875 | P25: 0 | Q25: 1937.5 | R25: 0
C26: Atrazine 4L | D26: 2 | F26: Quart | G26: 5.75 | I26: 11.5 | J26: 0 | K26: 0 | M26: 0 | N26: 0 | O26: 11.5 | P26: 0 | Q26: 5750 | R26: 0
C27: Corn PreEmerge Herbicide | D27: 2.1 | F27: Quart | G27: 10.9 | I27: 22.89 | J27: 0 | K27: 0 | M27: 0 | N27: 0 | O27: 22.89 | P27: 0 | Q27: 11445 | R27: 0
C28: Corn PostEmerge Herbicide | D28: 1 | F28: Quart | G28: 24.75 | I28: 24.75 | J28: 0 | K28: 0 | M28: 0 | N28: 0 | O28: 24.75 | P28: 0 | Q28: 12375 | R28: 0
B29: Insecticide | I29: $0.93
C30: Cutworm Control | D30: 1.25 | F30: Ounce | G30: 0.742 | I30: 0.9275 | J30: 0 | K30: 0 | M30: 0 | N30: 0 | O30: 0.9275 | P30: 0 | Q30: 463.75 | R30: 0
B31: Miscellaneous | I31: $28.51
C32: Crop Insurance -Corn | D32: 1 | F32: Acre | G32: 17.384 | I32: 17.384 | J32: 0 | K32: 0 | M32: 0 | N32: 0 | O32: 17.384 | P32: 0 | Q32: 8692 | R32: 0
C33: G&A Overhead | D33: 1 | F33: Acre | G33: 11.13 | I33: 11.13 | J33: 0 | K33: 0 | M33: 0 | N33: 0 | O33: 11.13 | P33: 0 | Q33: 5565 | R33: 0
B34: Other Chemicals | I34: $0.98
C35: Crop Oil | D35: 0.5 | F35: Pint | G35: 1.961 | I35: 0.9805 | J35: 0 | K35: 0 | M35: 0 | N35: 0 | O35: 0.9805 | P35: 0 | Q35: 490.25 | R35: 0
B36: Other Labor | I36: $3.56
C37: Hand Labor | D37: 0.21 | F37: Hour | G37: 16.96 | I37: 3.5616 | J37: 0 | K37: 0 | M37: 0 | N37: 0 | O37: 3.5616 | P37: 0 | Q37: 1780.8 | R37: 0
D38: 0 | G38: 0 | I38: 0 | J38: 0 | K38: 0 | M38: 0 | N38: 0 | O38: 0 | P38: 0 | Q38: 0 | R38: 0
D39: 0 | G39: 0 | I39: 0 | J39: 0 | K39: 0 | M39: 0 | N39: 0 | O39: 0 | P39: 0 | Q39: 0 | R39: 0
D40: 0 | G40: 0 | I40: 0 | J40: =E40*H40 -> 0 | K40: 0 | M40: 0 | N40: =J40*L40 -> 0 | O40: 0 | P40: =+J40-N40 -> 0 | Q40: 0 | R40: =+J40*E$7 -> 0
B41: Machinery Labor | I41: $6.2
C42: Tractors/Self-Propelled | D42: 0.36 | F42: Hour | G42: 17.21 | I42: 6.1956 | J42: =E42*H42 -> 0 | K42: 0 | M42: 0 | N42: =J42*L42 -> 0 | O42: 6.1956 | P42: =+J42-N42 -> 0 | Q42: 3097.8 | R42: =+J42*E$7 -> 0
C43: Other Labor | D43: 0 | F43: Hour | G43: 17.21 | I43: 0 | J43: =E43*H43 -> 0 | K43: 0 | M43: 0 | N43: =J43*L43 -> 0 | O43: 0 | P43: =+J43-N43 -> 0 | Q43: 0 | R43: =+J43*E$7 -> 0
B45: Diesel Fuel | I45: $9.05
C46: Pickup/General Use Equipment | D46: 1 | F46: Acre | G46: 0 | I46: 0 | J46: =E46*H46 -> 0 | K46: 0 | M46: 0 | N46: =J46*L46 -> 0 | O46: 0 | P46: =+J46-N46 -> 0 | Q46: 0 | R46: =+J46*E$7 -> 0
C47: Tractors/Self-Propelled | D47: 4.04 | F47: Gallon | G47: 2.24 | I47: 9.0496 | J47: =E47*H47 -> 0 | K47: 0 | M47: 0 | N47: =J47*L47 -> 0 | O47: 9.0496 | P47: =+J47-N47 -> 0 | Q47: 4524.8 | R47: =+J47*E$7 -> 0
B49: Gasoline | I49: $0
C50: Pickup/General Use Equipment | D50: 1 | F50: Acre | G50: 0 | I50: 0 | J50: =E50*H50 -> 0 | K50: 0 | M50: 0 | N50: =J50*L50 -> 0 | O50: 0 | P50: =+J50-N50 -> 0 | Q50: 0 | R50: =+J50*E$7 -> 0
C51: Tractors/Self-Propelled | D51: 0 | F51: Gallon | G51: 2.09 | I51: 0 | J51: =E51*H51 -> 0 | K51: 0 | M51: 0 | N51: =J51*L51 -> 0 | O51: 0 | P51: =+J51-N51 -> 0 | Q51: 0 | R51: =+J51*E$7 -> 0
B53: Repairs & Maintenance | I53: $21.4
C54: Pickup/General Use Equipment | D54: 1 | F54: Acre | G54: 0 | I54: 0 | J54: =E54*H54 -> 0 | K54: 0 | M54: 0 | N54: =J54*L54 -> 0 | O54: 0 | P54: =+J54-N54 -> 0 | Q54: 0 | R54: =+J54*E$7 -> 0
C55: Irrigation Equipment | D55: 1 | F55: Acre | G55: 0 | I55: 0 | J55: 0 | K55: 0 | M55: 0 | N55: 0 | O55: 0 | P55: 0 | Q55: 0 | R55: 0
C56: Tractors/Self-Propelled | D56: 1 | F56: Acre | G56: 13.25559854 | I56: 13.25559854 | J56: 0 | K56: 0 | M56: 0 | N56: 0 | O56: 13.25559854 | P56: 0 | Q56: 6627.79927 | R56: 0
C57: Implements | D57: 1 | F57: Acre | G57: 8.142349921 | I57: 8.142349921 | J57: 0 | K57: 0 | M57: 0 | N57: 0 | O57: 8.142349921 | P57: 0 | Q57: 4071.17496 | R57: 0
I58: 0 | J58: 0 | K58: 0 | M58: 0 | N58: 0 | O58: 0 | P58: 0 | Q58: 0 | R58: 0
I59: 0 | J59: 0 | K59: 0 | M59: 0 | N59: 0 | O59: 0 | P59: 0 | Q59: 0 | R59: 0
B60: Interest on Credit Line | G60: 0.08 | I60: 17.17355402 | J60: =+SUM(J17:J59)/2*H60 -> 0 | M60: 0 | N60: =+SUM(N17:N59)/2*L60 -> 0 | O60: 17.17355402 | P60: =+SUM(P17:P59)/2*L60 -> 0 | Q60: 8586.777012 | R60: =+J60*E$7 -> 0
A61: Total Variable Costs | I61: 412.8103025 | J61: =SUM(J18:J60) -> 0 | M61: 0 | N61: =SUM(N18:N60) -> 0 | O61: 412.8103025 | P61: =SUM(P18:P60) -> 0 | Q61: 206405.1512 | R61: =SUM(R18:R60) -> 0
A62: Planned Returns Above Variable Costs: | I62: 187.1896975 | J62: =+J13-J61 -> 0 | M62: 0 | N62: =+N13-N61 -> 0 | O62: 187.1896975 | P62: =+P13-P61 -> 0 | Q62: 93594.84876 | R62: =+R13-R61 -> 0
B63: Breakeven Price to Cover Variable Costs | G63: 4.128103025 | H63: =IF(E10=0,"n/a",(YVarExp-(YTotExp+YTotRet-J10))/E10) -> n/a | I63: Bushel
Q64: Enterprise | R64: Enterprise
A65: FIXED COSTS | D65: Quantity | E65: Quantity | F65: Units | G65: $/Unit | H65: $/Unit | I65: Total | J65: Total | K65: Share | L65: Share | M65: Landlord | N65: Landlord | O65: Tenant | P65: Tenant | Q65: Total | R65: Total
B66: Machinery Depreciation | I66: $23.11
C67: Tractors/Self-Propelled | D67: 1 | F67: Acre | G67: 14.05971466 | I67: 14.05971466 | J67: =E67*H67 -> 0 | K67: 0 | M67: 0 | N67: =J67*L67 -> 0 | O67: 14.05971466 | P67: =+J67-N67 -> 0 | Q67: 7029.857331 | R67: =+J67*E$7 -> 0
C68: Implements | D68: 1 | F68: Acre | G68: 9.047902479 | I68: 9.047902479 | J68: 0 | K68: 0 | M68: 0 | N68: =J68*L68 -> 0 | O68: 9.047902479 | P68: 0 | Q68: 4523.95124 | R68: 0
B69: Equipment Investment | I69: $14.29
C70: Tractors/Self-Propelled | D70: 107.4148574 | F70: Dollars | G70: 0.08 | I70: 8.593188589 | J70: =E70*H70 -> 0 | K70: 0 | M70: 0 | N70: =J70*L70 -> 0 | O70: 8.593188589 | P70: =+J70-N70 -> 0 | Q70: 4296.594295 | R70: =+J70*E$7 -> 0
C71: Implements | D71: 71.15220665 | F71: Dollars | G71: 0.08 | I71: 5.692176532 | J71: 0 | K71: 0 | M71: 0 | N71: =J71*L71 -> 0 | O71: 5.692176532 | P71: 0 | Q71: 2846.088266 | R71: 0
B72: Salaried Labor | D72: 1 | F72: Acre | G72: 0 | I72: 0 | J72: 0 | K72: 0 | M72: 0 | N72: =J72*L72 -> 0 | O72: 0 | P72: =+J72-N72 -> 0 | Q72: 0 | R72: =+J72*E$7 -> 0
B73: Management Fee, Owner/Operator Labor | D73: 1 | F73: Acre | G73: 30 | I73: 30 | J73: 0 | K73: 0 | M73: 0 | N73: 0 | O73: 30 | P73: 0 | Q73: 15000 | R73: 0
B74: Allocated Establishment Cost | D74: 1 | F74: Acre | G74: 0 | I74: 0 | J74: 0 | K74: 0 | M74: 0 | N74: 0 | O74: 0 | P74: 0 | Q74: 0 | R74: 0
B75: UCB - Land Charge | D75: 1 | F75: Acre | G75: 85 | I75: 85 | J75: 0 | K75: 0 | M75: 0 | N75: 0 | O75: 85 | P75: 0 | Q75: 42500 | R75: 0
B76: Property Taxes | D76: 1 | F76: Acre | G76: 0 | I76: 0 | J76: 0 | K76: 0 | M76: 0 | N76: 0 | O76: 0 | P76: 0 | Q76: 0 | R76: 0
B77: Whole Farm Insurance | D77: 1 | F77: Acre | G77: 0 | I77: 0 | J77: 0 | K77: 0 | M77: 0 | N77: 0 | O77: 0 | P77: 0 | Q77: 0 | R77: 0
D78: 1 | G78: 0 | I78: 0 | J78: 0 | K78: 0 | M78: 0 | N78: 0 | O78: 0 | P78: 0 | Q78: 0 | R78: 0
D79: 1 | G79: 0 | I79: 0 | J79: =E79*H79 -> 0 | K79: 0 | M79: 0 | N79: 0 | O79: 0 | P79: 0 | Q79: 0 | R79: 0
A80: Total Fixed Costs | I80: 152.3929823 | J80: =+SUM(J67:J79) -> 0 | M80: 0 | N80: =+SUM(N67:N79) -> 0 | O80: 152.3929823 | P80: =+SUM(P67:P79) -> 0 | Q80: 76196.49113 | R80: =+SUM(R67:R79) -> 0
A81: Total Specified Costs | I81: 565.2032847 | J81: =+J61+J80 -> 0 | M81: 0 | N81: =+N61+N80 -> 0 | O81: 565.2032847 | P81: =+P61+P80 -> 0 | Q81: 282601.6424 | R81: =+R61+R80 -> 0
A83: Returns Above Specified Costs | I83: 34.79671525 | J83: =+J13-J81 -> 0 | M83: 0 | N83: =+N13-N81 -> 0 | O83: 34.79671525 | P83: =+P13-P81 -> 0 | Q83: 17398.35763 | R83: =+R13-R81 -> 0
A85: Breakeven Price to Cover Total Costs | G85: 5.652032847 | H85: =IF(E10=0,"n/a",(YTotExp-(YTotExp+YTotRet-J10))/E10) -> n/a | I85: Bushel
D87: Example Breakeven Prices
B88: Example | C88: Example | D88: To Cover | G88: To Cover
B89: Yield | C89: Yield | D89: Variable | G89: Total
B90: Percent | C90: Bushel | D90: Costs | G90: Costs
B91: 0.75 | C91: 75 | D91: 5.504137366 | G91: 7.536043797
B92: 0.9 | C92: 90 | D92: 4.586781139 | G92: 6.280036497
B93: 1 | C93: 100 | D93: 4.128103025 | G93: 5.652032847
B94: 1.1 | C94: 110 | D94: 3.752820932 | G94: 5.13821168
B95: 1.25 | C95: 125 | D95: 3.30248242 | G95: 4.521626278
A97: Developed by Extension Economists, Texas A&M AgriLife Extension Service, budgets@tamu.edu.
A99: Information presented is prepared solely as a general guide and not intended to recognize or predict the costs and returns from any one operation. Brand names are mentioned only as examples and imply no endorsement.

Sheet Soybeans
A1: Projections for Planning Purposes Only -- Not to be Used without Updating
A2: 2023 Estimated Costs and Returns per Acre
A3: Soybeans - GMO Seed, Conventional Till-12 Row, Dryland, 30 bu. Yield Goal - Upper Coast
A4: Enter your name for this budget in the cell above.
A5: Enter Your Values in the cells highlighed in MAROON.
E6: Your Acres | R6: Your
C7: Crop Acres | D7: 500 | L7: Your | Q7: Enterprise | R7: Enterprise
E8: Your | H8: Your | I8: Cash | J8: Your | K8: Landlord | L8: Landlord | N8: Your | P8: Your | Q8: Total | R8: Total
A9: REVENUE | D9: Quantity | E9: Quantity | F9: Units | G9: $/Unit | H9: $/Unit | I9: Total | J9: Total | K9: Share | L9: Share | M9: Landlord | N9: Landlord | O9: Tenant | P9: Tenant | Q9: (500 acres) | R9: ="(" & E7 & " acres)" -> ( acres)
B10: Soybeans | D10: 30 | F10: Bushel | G10: 12.8 | I10: 384 | J10: =E10*H10 -> 0 | K10: 0 | M10: 0 | N10: =J10*L10 -> 0 | O10: 384 | P10: =+J10-N10 -> 0 | Q10: 192000 | R10: =+J10*E$7 -> 0
D11: 0 | G11: 0 | I11: 0 | J11: 0 | K11: 0 | M11: 0 | N11: 0 | O11: 0 | P11: =+J11-N11 -> 0 | Q11: 0 | R11: 0
D12: 0 | G12: 0 | I12: 0 | J12: 0 | K12: 0 | M12: 0 | N12: 0 | O12: 0 | P12: 0 | Q12: 0 | R12: 0
A13: Total Revenue | I13: 384 | J13: =SUM(J10:J12) -> 0 | M13: 0 | N13: =SUM(N10:N12) -> 0 | O13: 384 | P13: =SUM(P10:P12) -> 0 | Q13: 192000 | R13: =SUM(R10:R12) -> 0
Q14: Enterprise | R14: Enterprise
A15: VARIABLE COSTS | D15: Quantity | E15: Quantity | F15: Units | G15: $/Unit | H15: $/Unit | I15: Total | J15: Total | K15: Share | L15: Share | M15: Landlord | N15: Landlord | O15: Tenant | P15: Tenant | Q15: Total | R15: Total
A16: Production Costs
B17: Herbicide | I17: $63.36
C18: Glyphosate | D18: 4 | F18: Quart | G18: 12.25 | I18: 49 | J18: =E18*H18 -> 0 | K18: 0 | M18: 0 | N18: =J18*L18 -> 0 | O18: 49 | P18: =+J18-N18 -> 0 | Q18: 24500 | R18: =+J18*E$7 -> 0
C19: 2, 4D Amine` | D19: 1 | F19: Pint | G19: 3.625 | I19: 3.625 | J19: 0 | K19: 0 | M19: 0 | N19: 0 | O19: 3.625 | P19: 0 | Q19: 1812.5 | R19: 0
C20: Soybean PreEmerge Herbicide | D20: 1 | F20: Pint | G20: 10.7378 | I20: 10.7378 | J20: 0 | K20: 0 | M20: 0 | N20: 0 | O20: 10.7378 | P20: 0 | Q20: 5368.9 | R20: 0
B21: Seed | I21: $65.58
C22: Roundup Ready Soybean Seed | D22: 1 | F22: Bag | G22: 63.6 | I22: 63.6 | J22: 0 | K22: 0 | M22: 0 | N22: 0 | O22: 63.6 | P22: 0 | Q22: 31800 | R22: 0
C23: Inoculants | D23: 1 | F23: Bag | G23: 1.9822 | I23: 1.9822 | J23: 0 | K23: 0 | M23: 0 | N23: 0 | O23: 1.9822 | P23: 0 | Q23: 991.1 | R23: 0
B24: Custom | I24: $9.54
C25: Custom Grain Haul | D25: 18 | F25: CWT | G25: 0.53 | I25: 9.54 | J25: 0 | K25: 0 | M25: 0 | N25: 0 | O25: 9.54 | P25: 0 | Q25: 4770 | R25: 0
B26: Miscellaneous | I26: $20.13
C27: Crop Insurance -Soybeans | D27: 1 | F27: Acre | G27: 9 | I27: 9 | J27: 0 | K27: 0 | M27: 0 | N27: 0 | O27: 9 | P27: 0 | Q27: 4500 | R27: 0
C28: G&A Overhead | D28: 1 | F28: Acre | G28: 11.13 | I28: 11.13 | J28: 0 | K28: 0 | M28: 0 | N28: 0 | O28: 11.13 | P28: 0 | Q28: 5565 | R28: 0
B29: Insecticide | I29: $18.75
C30: Stinkbug Control Soybeans | D30: 1.5 | F30: Pound | G30: 12.5 | I30: 18.75 | J30: 0 | K30: 0 | M30: 0 | N30: 0 | O30: 18.75 | P30: 0 | Q30: 9375 | R30: 0
B31: Other Labor | I31: $3.73
C32: Hand Labor | D32: 0.22 | F32: Hour | G32: 16.96 | I32: 3.7312 | J32: 0 | K32: 0 | M32: 0 | N32: 0 | O32: 3.7312 | P32: 0 | Q32: 1865.6 | R32: 0
B33: Other Chemicals | I33: $7.02
C34: Gromoxone | D34: 2 | F34: Pint | G34: 3.5 | I34: 7 | J34: 0 | K34: 0 | M34: 0 | N34: 0 | O34: 7 | P34: 0 | Q34: 3500 | R34: 0
C35: Surfactant | D35: 0.0125 | F35: Pint | G35: 1.4734 | I35: 0.0184175 | J35: 0 | K35: 0 | M35: 0 | N35: 0 | O35: 0.0184175 | P35: 0 | Q35: 9.20875 | R35: 0
D36: 0 | G36: 0 | I36: 0 | J36: 0 | K36: 0 | M36: 0 | N36: 0 | O36: 0 | P36: 0 | Q36: 0 | R36: 0
D37: 0 | G37: 0 | I37: 0 | J37: 0 | K37: 0 | M37: 0 | N37: 0 | O37: 0 | P37: 0 | Q37: 0 | R37: 0
D38: 0 | G38: 0 | I38: 0 | J38: =E38*H38 -> 0 | K38: 0 | M38: 0 | N38: =J38*L38 -> 0 | O38: 0 | P38: =+J38-N38 -> 0 | Q38: 0 | R38: =+J38*E$7 -> 0
B39: Machinery Labor | I39: $6.37
C40: Tractors/Self-Propelled | D40: 0.37 | F40: Hour | G40: 17.21 | I40: 6.3677 | J40: =E40*H40 -> 0 | K40: 0 | M40: 0 | N40: =J40*L40 -> 0 | O40: 6.3677 | P40: =+J40-N40 -> 0 | Q40: 3183.85 | R40: =+J40*E$7 -> 0
C41: Other Labor | D41: 0 | F41: Hour | G41: 17.21 | I41: 0 | J41: =E41*H41 -> 0 | K41: 0 | M41: 0 | N41: =J41*L41 -> 0 | O41: 0 | P41: =+J41-N41 -> 0 | Q41: 0 | R41: =+J41*E$7 -> 0
B43: Diesel Fuel | I43: $9.3
C44: Pickup/General Use Equipment | D44: 1 | F44: Acre | G44: 0 | I44: 0 | J44: =E44*H44 -> 0 | K44: 0 | M44: 0 | N44: =J44*L44 -> 0 | O44: 0 | P44: =+J44-N44 -> 0 | Q44: 0 | R44: =+J44*E$7 -> 0
C45: Tractors/Self-Propelled | D45: 4.15 | F45: Gallon | G45: 2.24 | I45: 9.296 | J45: =E45*H45 -> 0 | K45: 0 | M45: 0 | N45: =J45*L45 -> 0 | O45: 9.296 | P45: =+J45-N45 -> 0 | Q45: 4648 | R45: =+J45*E$7 -> 0
B47: Gasoline | I47: $0
C48: Pickup/General Use Equipment | D48: 1 | F48: Acre | G48: 0 | I48: 0 | J48: =E48*H48 -> 0 | K48: 0 | M48: 0 | N48: =J48*L48 -> 0 | O48: 0 | P48: =+J48-N48 -> 0 | Q48: 0 | R48: =+J48*E$7 -> 0
C49: Tractors/Self-Propelled | D49: 0 | F49: Gallon | G49: 2.09 | I49: 0 | J49: =E49*H49 -> 0 | K49: 0 | M49: 0 | N49: =J49*L49 -> 0 | O49: 0 | P49: =+J49-N49 -> 0 | Q49: 0 | R49: =+J49*E$7 -> 0
B51: Repairs & Maintenance | I51: $20.27
C52: Pickup/General Use Equipment | D52: 1 | F52: Acre | G52: 0 | I52: 0 | J52: =E52*H52 -> 0 | K52: 0 | M52: 0 | N52: =J52*L52 -> 0 | O52: 0 | P52: =+J52-N52 -> 0 | Q52: 0 | R52: =+J52*E$7 -> 0
C53: Irrigation Equipment | D53: 1 | F53: Acre | G53: 0 | I53: 0 | J53: 0 | K53: 0 | M53: 0 | N53: 0 | O53: 0 | P53: 0 | Q53: 0 | R53: 0
C54: Tractors/Self-Propelled | D54: 1 | F54: Acre | G54: 13.67235989 | I54: 13.67235989 | J54: 0 | K54: 0 | M54: 0 | N54: 0 | O54: 13.67235989 | P54: 0 | Q54: 6836.179946 | R54: 0
C55: Implements | D55: 1 | F55: Acre | G55: 6.60113239 | I55: 6.60113239 | J55: 0 | K55: 0 | M55: 0 | N55: 0 | O55: 6.60113239 | P55: 0 | Q55: 3300.566195 | R55: 0
I56: 0 | J56: 0 | K56: 0 | M56: 0 | N56: 0 | O56: 0 | P56: 0 | Q56: 0 | R56: 0
I57: 0 | J57: 0 | K57: 0 | M57: 0 | N57: 0 | O57: 0 | P57: 0 | Q57: 0 | R57: 0
B58: Interest on Credit Line | G58: 0.08 | I58: 8.623763994 | J58: =+SUM(J17:J57)/2*H58 -> 0 | M58: 0 | N58: =+SUM(N17:N57)/2*L58 -> 0 | O58: 8.623763994 | P58: =+SUM(P17:P57)/2*L58 -> 0 | Q58: 4311.881997 | R58: =+J58*E$7 -> 0
A59: Total Variable Costs | I59: 232.6755738 | J59: =SUM(J18:J58) -> 0 | M59: 0 | N59: =SUM(N18:N58) -> 0 | O59: 232.6755738 | P59: =SUM(P18:P58) -> 0 | Q59: 116337.7869 | R59: =SUM(R18:R58) -> 0
A60: Planned Returns Above Variable Costs: | I60: 151.3244262 | J60: =+J13-J59 -> 0 | M60: 0 | N60: =+N13-N59 -> 0 | O60: 151.3244262 | P60: =+P13-P59 -> 0 | Q60: 75662.21311 | R60: =+R13-R59 -> 0
B61: Breakeven Price to Cover Variable Costs | G61: 7.755852459 | H61: =IF(E10=0,"n/a",(YVarExp-(YTotExp+YTotRet-J10))/E10) -> n/a | I61: Bushel
Q62: Enterprise | R62: Enterprise
A63: FIXED COSTS | D63: Quantity | E63: Quantity | F63: Units | G63: $/Unit | H63: $/Unit | I63: Total | J63: Total | K63: Share | L63: Share | M63: Landlord | N63: Landlord | O63: Tenant | P63: Tenant | Q63: Total | R63: Total
B64: Machinery Depreciation | I64: $22.97
C65: Tractors/Self-Propelled | D65: 1 | F65: Acre | G65: 15.20468707 | I65: 15.20468707 | J65: =E65*H65 -> 0 | K65: 0 | M65: 0 | N65: =J65*L65 -> 0 | O65: 15.20468707 | P65: =+J65-N65 -> 0 | Q65: 7602.343533 | R65: =+J65*E$7 -> 0
C66: Implements | D66: 1 | F66: Acre | G66: 7.762317264 | I66: 7.762317264 | J66: 0 | K66: 0 | M66: 0 | N66: =J66*L66 -> 0 | O66: 7.762317264 | P66: 0 | Q66: 3881.158632 | R66: 0
B67: Equipment Investment | I67: $13.77
C68: Tractors/Self-Propelled | D68: 115.4835884 | F68: Dollars | G68: 0.08 | I68: 9.238687069 | J68: =E68*H68 -> 0 | K68: 0 | M68: 0 | N68: =J68*L68 -> 0 | O68: 9.238687069 | P68: =+J68-N68 -> 0 | Q68: 4619.343535 | R68: =+J68*E$7 -> 0
C69: Implements | D69: 56.60228237 | F69: Dollars | G69: 0.08 | I69: 4.528182589 | J69: 0 | K69: 0 | M69: 0 | N69: =J69*L69 -> 0 | O69: 4.528182589 | P69: 0 | Q69: 2264.091295 | R69: 0
B70: Salaried Labor | D70: 1 | F70: Acre | G70: 0 | I70: 0 | J70: 0 | K70: 0 | M70: 0 | N70: =J70*L70 -> 0 | O70: 0 | P70: =+J70-N70 -> 0 | Q70: 0 | R70: =+J70*E$7 -> 0
B71: Management Fee, Owner/Operator Labor | D71: 1 | F71: Acre | G71: 19.2 | I71: 19.2 | J71: 0 | K71: 0 | M71: 0 | N71: 0 | O71: 19.2 | P71: 0 | Q71: 9600 | R71: 0
B72: Allocated Establishment Cost | D72: 1 | F72: Acre | G72: 0 | I72: 0 | J72: 0 | K72: 0 | M72: 0 | N72: 0 | O72: 0 | P72: 0 | Q72: 0 | R72: 0
B73: UCB - Land Charge | D73: 1 | F73: Acre | G73: 85 | I73: 85 | J73: 0 | K73: 0 | M73: 0 | N73: 0 | O73: 85 | P73: 0 | Q73: 42500 | R73: 0
B74: Property Taxes | D74: 1 | F74: Acre | G74: 0 | I74: 0 | J74: 0 | K74: 0 | M74: 0 | N74: 0 | O74: 0 | P74: 0 | Q74: 0 | R74: 0
B75: Whole Farm Insurance | D75: 1 | F75: Acre | G75: 0 | I75: 0 | J75: 0 | K75: 0 | M75: 0 | N75: 0 | O75: 0 | P75: 0 | Q75: 0 | R75: 0
D76: 1 | G76: 0 | I76: 0 | J76: 0 | K76: 0 | M76: 0 | N76: 0 | O76: 0 | P76: 0 | Q76: 0 | R76: 0
D77: 1 | G77: 0 | I77: 0 | J77: =E77*H77 -> 0 | K77: 0 | M77: 0 | N77: 0 | O77: 0 | P77: 0 | Q77: 0 | R77: 0
A78: Total Fixed Costs | I78: 140.933874 | J78: =+SUM(J65:J77) -> 0 | M78: 0 | N78: =+SUM(N65:N77) -> 0 | O78: 140.933874 | P78: =+SUM(P65:P77) -> 0 | Q78: 70466.93699 | R78: =+SUM(R65:R77) -> 0
A79: Total Specified Costs | I79: 373.6094478 | J79: =+J59+J78 -> 0 | M79: 0 | N79: =+N59+N78 -> 0 | O79: 373.6094478 | P79: =+P59+P78 -> 0 | Q79: 186804.7239 | R79: =+R59+R78 -> 0
A81: Returns Above Specified Costs | I81: 10.39055224 | J81: =+J13-J79 -> 0 | M81: 0 | N81: =+N13-N79 -> 0 | O81: 10.39055224 | P81: =+P13-P79 -> 0 | Q81: 5195.276118 | R81: =+R13-R79 -> 0
A83: Breakeven Price to Cover Total Costs | G83: 12.45364826 | H83: =IF(E10=0,"n/a",(YTotExp-(YTotExp+YTotRet-J10))/E10) -> n/a | I83: Bushel
D85: Example Breakeven Prices
B86: Example | C86: Example | D86: To Cover | G86: To Cover
B87: Yield | C87: Yield | D87: Variable | G87: Total
B88: Percent | C88: Bushel | D88: Costs | G88: Costs
B89: 0.75 | C89: 22.5 | D89: 10.34113661 | G89: 16.60486435
B90: 0.9 | C90: 27 | D90: 8.617613844 | G90: 13.83738695
B91: 1 | C91: 30 | D91: 7.755852459 | G91: 12.45364826
B92: 1.1 | C92: 33 | D92: 7.050774963 | G92: 11.32149842
B93: 1.25 | C93: 37.5 | D93: 6.204681967 | G93: 9.962918607
A95: Developed by Extension Economists, Texas A&M AgriLife Extension Service, budgets@tamu.edu.
A97: Information presented is prepared solely as a general guide and not intended to recognize or predict the costs and returns from any one operation. Brand names are mentioned only as examples and imply no endorsement.

Sheet CoastalHay
A1: Projections for Planning Purposes Only -- Not to be Used without Updating
A2: 2023 Estimated Costs and Returns per Acre
A3: Coastal Bermudagrass Hay and Grazing (3 Cuttings)
A4: Enter your name for this budget in the cell above.
A5: Enter Your Values in the cells highlighed in MAROON.
E6: Your Acres | R6: Your
C7: Crop Acres | D7: 100 | L7: Your | Q7: Enterprise | R7: Enterprise
E8: Your | H8: Your | I8: Cash | J8: Your | K8: Landlord | L8: Landlord | N8: Your | P8: Your | Q8: Total | R8: Total
A9: REVENUE | D9: Quantity | E9: Quantity | F9: Units | G9: $/Unit | H9: $/Unit | I9: Total | J9: Total | K9: Share | L9: Share | M9: Landlord | N9: Landlord | O9: Tenant | P9: Tenant | Q9: (100 acres) | R9: ="(" & E7 & " acres)" -> ( acres)
B10: Coastal Hay | D10: 9 | F10: Roll | G10: 195 | I10: 1755 | J10: =E10*H10 -> 0 | K10: 0 | M10: 0 | N10: =J10*L10 -> 0 | O10: 1755 | P10: =+J10-N10 -> 0 | Q10: 175500 | R10: =+J10*E$7 -> 0
B11: Coastal Grazing | D11: 2 | F11: AUM | G11: 15 | I11: 30 | J11: 0 | K11: 0 | M11: 0 | N11: 0 | O11: 30 | P11: =+J11-N11 -> 0 | Q11: 3000 | R11: 0
D12: 0 | G12: 0 | I12: 0 | J12: 0 | K12: 0 | M12: 0 | N12: 0 | O12: 0 | P12: 0 | Q12: 0 | R12: 0
D13: 0 | G13: 0 | I13: 0 | J13: 0 | K13: 0 | M13: 0 | N13: 0 | O13: 0 | P13: 0 | Q13: 0 | R13: 0
A14: Total Revenue | I14: 1785 | J14: =SUM(J10:J13) -> 0 | M14: 0 | N14: =SUM(N10:N13) -> 0 | O14: 1785 | P14: =SUM(P10:P13) -> 0 | Q14: 178500 | R14: =SUM(R10:R13) -> 0
Q15: Enterprise | R15: Enterprise
A16: VARIABLE COSTS | D16: Quantity | E16: Quantity | F16: Units | G16: $/Unit | H16: $/Unit | I16: Total | J16: Total | K16: Share | L16: Share | M16: Landlord | N16: Landlord | O16: Tenant | P16: Tenant | Q16: Total | R16: Total
A17: Production Costs
B18: Herbicide | I18: $10.12
C19: Broadleaf Herbicide | D19: 1.5 | F19: Pint | G19: 6.75 | I19: 10.125 | J19: =E19*H19 -> 0 | K19: 0 | M19: 0 | N19: =J19*L19 -> 0 | O19: 10.125 | P19: =+J19-N19 -> 0 | Q19: 1012.5 | R19: =+J19*E$7 -> 0
B20: Fertilizer | I20: $172.8
C21: 24-8-0 | D21: 0.3 | F21: Ton | G21: 576 | I21: 172.8 | J21: 0 | K21: 0 | M21: 0 | N21: 0 | O21: 172.8 | P21: 0 | Q21: 17280 | R21: 0
B22: Custom | I22: $46.75
C23: Custom Spread Truck | D23: 3 | F23: Acre | G23: 15.582 | I23: 46.746 | J23: 0 | K23: 0 | M23: 0 | N23: 0 | O23: 46.746 | P23: 0 | Q23: 4674.6 | R23: 0
B24: Miscellaneous | I24: $13.85
C25: Hay Wrap | D25: 9 | F25: Bale | G25: 1.5158 | I25: 13.6422 | J25: 0 | K25: 0 | M25: 0 | N25: 0 | O25: 13.6422 | P25: 0 | Q25: 1364.22 | R25: 0
C26: Soil Test | D26: 1 | F26: Acre | G26: 0.212 | I26: 0.212 | J26: 0 | K26: 0 | M26: 0 | N26: 0 | O26: 0.212 | P26: 0 | Q26: 21.2 | R26: 0
D27: 0 | G27: 0 | I27: 0 | J27: 0 | K27: 0 | M27: 0 | N27: 0 | O27: 0 | P27: 0 | Q27: 0 | R27: 0
D28: 0 | G28: 0 | I28: 0 | J28: 0 | K28: 0 | M28: 0 | N28: 0 | O28: 0 | P28: 0 | Q28: 0 | R28: 0
D29: 0 | G29: 0 | I29: 0 | J29: =E29*H29 -> 0 | K29: 0 | M29: 0 | N29: =J29*L29 -> 0 | O29: 0 | P29: =+J29-N29 -> 0 | Q29: 0 | R29: =+J29*E$7 -> 0
B30: Machinery Labor | I30: $30.63
C31: Tractors/Self-Propelled | D31: 1.78 | F31: Hour | G31: 17.21 | I31: 30.6338 | J31: =E31*H31 -> 0 | K31: 0 | M31: 0 | N31: =J31*L31 -> 0 | O31: 30.6338 | P31: =+J31-N31 -> 0 | Q31: 3063.38 | R31: =+J31*E$7 -> 0
C32: Other Labor | D32: 0 | F32: Hour | G32: 17.21 | I32: 0 | J32: =E32*H32 -> 0 | K32: 0 | M32: 0 | N32: =J32*L32 -> 0 | O32: 0 | P32: =+J32-N32 -> 0 | Q32: 0 | R32: =+J32*E$7 -> 0
B34: Diesel Fuel | I34: $18.59
C35: Pickup/General Use Equipment | D35: 1 | F35: Acre | G35: 0 | I35: 0 | J35: =E35*H35 -> 0 | K35: 0 | M35: 0 | N35: =J35*L35 -> 0 | O35: 0 | P35: =+J35-N35 -> 0 | Q35: 0 | R35: =+J35*E$7 -> 0
C36: Tractors/Self-Propelled | D36: 8.3 | F36: Gallon | G36: 2.24 | I36: 18.592 | J36: =E36*H36 -> 0 | K36: 0 | M36: 0 | N36: =J36*L36 -> 0 | O36: 18.592 | P36: =+J36-N36 -> 0 | Q36: 1859.2 | R36: =+J36*E$7 -> 0
B38: Gasoline | I38: $0
C39: Pickup/General Use Equipment | D39: 1 | F39: Acre | G39: 0 | I39: 0 | J39: =E39*H39 -> 0 | K39: 0 | M39: 0 | N39: =J39*L39 -> 0 | O39: 0 | P39: =+J39-N39 -> 0 | Q39: 0 | R39: =+J39*E$7 -> 0
C40: Tractors/Self-Propelled | D40: 0 | F40: Gallon | G40: 2.09 | I40: 0 | J40: =E40*H40 -> 0 | K40: 0 | M40: 0 | N40: =J40*L40 -> 0 | O40: 0 | P40: =+J40-N40 -> 0 | Q40: 0 | R40: =+J40*E$7 -> 0
B42: Repairs & Maintenance | I42: $22.86
C43: Pickup/General Use Equipment | D43: 1 | F43: Acre | G43: 0 | I43: 0 | J43: =E43*H43 -> 0 | K43: 0 | M43: 0 | N43: =J43*L43 -> 0 | O43: 0 | P43: =+J43-N43 -> 0 | Q43: 0 | R43: =+J43*E$7 -> 0
C44: Irrigation Equipment | D44: 1 | F44: Acre | G44: 0 | I44: 0 | J44: 0 | K44: 0 | M44: 0 | N44: 0 | O44: 0 | P44: 0 | Q44: 0 | R44: 0
C45: Tractors/Self-Propelled | D45: 1 | F45: Acre | G45: 13.22922084 | I45: 13.22922084 | J45: 0 | K45: 0 | M45: 0 | N45: 0 | O45: 13.22922084 | P45: 0 | Q45: 1322.922084 | R45: 0
C46: Implements | D46: 1 | F46: Acre | G46: 9.625814242 | I46: 9.625814242 | J46: 0 | K46: 0 | M46: 0 | N46: 0 | O46: 9.625814242 | P46: 0 | Q46: 962.5814242 | R46: 0
I47: 0 | J47: 0 | K47: 0 | M47: 0 | N47: 0 | O47: 0 | P47: 0 | Q47: 0 | R47: 0
I48: 0 | J48: 0 | K48: 0 | M48: 0 | N48: 0 | O48: 0 | P48: 0 | Q48: 0 | R48: 0
B49: Interest on Credit Line | G49: 0.08 | I49: 9.744300275 | J49: =+SUM(J18:J48)/2*H49 -> 0 | M49: 0 | N49: =+SUM(N18:N48)/2*L49 -> 0 | O49: 9.744300275 | P49: =+SUM(P18:P48)/2*L49 -> 0 | Q49: 974.4300275 | R49: =+J49*E$7 -> 0
A50: Total Variable Costs | I50: 325.3503354 | J50: =SUM(J19:J49) -> 0 | M50: 0 | N50: =SUM(N19:N49) -> 0 | O50: 325.3503354 | P50: =SUM(P19:P49) -> 0 | Q50: 32535.03354 | R50: =SUM(R19:R49) -> 0
A51: Planned Returns Above Variable Costs: | I51: 1459.649665 | J51: =+J14-J50 -> 0 | M51: 0 | N51: =+N14-N50 -> 0 | O51: 1459.649665 | P51: =+P14-P50 -> 0 | Q51: 145964.9665 | R51: =+R14-R50 -> 0
B52: Breakeven Price to Cover Variable Costs | G52: 32.81670393 | H52: =IF(E10=0,"n/a",(YVarExp-(YTotExp+YTotRet-J10))/E10) -> n/a | I52: Roll
Q53: Enterprise | R53: Enterprise
A54: FIXED COSTS | D54: Quantity | E54: Quantity | F54: Units | G54: $/Unit | H54: $/Unit | I54: Total | J54: Total | K54: Share | L54: Share | M54: Landlord | N54: Landlord | O54: Tenant | P54: Tenant | Q54: Total | R54: Total
B55: Machinery Depreciation | I55: $26.84
C56: Tractors/Self-Propelled | D56: 1 | F56: Acre | G56: 11.56348313 | I56: 11.56348313 | J56: =E56*H56 -> 0 | K56: 0 | M56: 0 | N56: =J56*L56 -> 0 | O56: 11.56348313 | P56: =+J56-N56 -> 0 | Q56: 1156.348313 | R56: =+J56*E$7 -> 0
C57: Implements | D57: 1 | F57: Acre | G57: 15.28104068 | I57: 15.28104068 | J57: 0 | K57: 0 | M57: 0 | N57: =J57*L57 -> 0 | O57: 15.28104068 | P57: 0 | Q57: 1528.104068 | R57: 0
B58: Equipment Investment | I58: $16.32
C59: Tractors/Self-Propelled | D59: 90.08326373 | F59: Dollars | G59: 0.08 | I59: 7.206661099 | J59: =E59*H59 -> 0 | K59: 0 | M59: 0 | N59: =J59*L59 -> 0 | O59: 7.206661099 | P59: =+J59-N59 -> 0 | Q59: 720.6661099 | R59: =+J59*E$7 -> 0
C60: Implements | D60: 113.9290015 | F60: Dollars | G60: 0.08 | I60: 9.114320117 | J60: 0 | K60: 0 | M60: 0 | N60: =J60*L60 -> 0 | O60: 9.114320117 | P60: 0 | Q60: 911.4320117 | R60: 0
B61: Salaried Labor | D61: 1 | F61: Acre | G61: 0 | I61: 0 | J61: 0 | K61: 0 | M61: 0 | N61: =J61*L61 -> 0 | O61: 0 | P61: =+J61-N61 -> 0 | Q61: 0 | R61: =+J61*E$7 -> 0
B62: Management Fee, Owner/Operator Labor | D62: 1 | F62: Acre | G62: 0 | I62: 0 | J62: 0 | K62: 0 | M62: 0 | N62: 0 | O62: 0 | P62: 0 | Q62: 0 | R62: 0
B63: Allocated Establishment Cost | D63: 1 | F63: Acre | G63: 0 | I63: 0 | J63: 0 | K63: 0 | M63: 0 | N63: 0 | O63: 0 | P63: 0 | Q63: 0 | R63: 0
B64: Land - Hay Meadow | D64: 1 | F64: Acre | G64: 25 | I64: 25 | J64: 0 | K64: 0 | M64: 0 | N64: 0 | O64: 25 | P64: 0 | Q64: 2500 | R64: 0
B65: Property Taxes | D65: 1 | F65: Acre | G65: 0 | I65: 0 | J65: 0 | K65: 0 | M65: 0 | N65: 0 | O65: 0 | P65: 0 | Q65: 0 | R65: 0
B66: Whole Farm Insurance | D66: 1 | F66: Acre | G66: 0 | I66: 0 | J66: 0 | K66: 0 | M66: 0 | N66: 0 | O66: 0 | P66: 0 | Q66: 0 | R66: 0
D67: 1 | G67: 0 | I67: 0 | J67: 0 | K67: 0 | M67: 0 | N67: 0 | O67: 0 | P67: 0 | Q67: 0 | R67: 0
D68: 1 | G68: 0 | I68: 0 | J68: =E68*H68 -> 0 | K68: 0 | M68: 0 | N68: 0 | O68: 0 | P68: 0 | Q68: 0 | R68: 0
A69: Total Fixed Costs | I69: 68.16550502 | J69: =+SUM(J56:J68) -> 0 | M69: 0 | N69: =+SUM(N56:N68) -> 0 | O69: 68.16550502 | P69: =+SUM(P56:P68) -> 0 | Q69: 6816.550502 | R69: =+SUM(R56:R68) -> 0
A70: Total Specified Costs | I70: 393.5158404 | J70: =+J50+J69 -> 0 | M70: 0 | N70: =+N50+N69 -> 0 | O70: 393.5158404 | P70: =+P50+P69 -> 0 | Q70: 39351.58404 | R70: =+R50+R69 -> 0
A72: Returns Above Specified Costs | I72: 1391.48416 | J72: =+J14-J70 -> 0 | M72: 0 | N72: =+N14-N70 -> 0 | O72: 1391.48416 | P72: =+P14-P70 -> 0 | Q72: 139148.416 | R72: =+R14-R70 -> 0
A74: Breakeven Price to Cover Total Costs | G74: 40.39064893 | H74: =IF(E10=0,"n/a",(YTotExp-(YTotExp+YTotRet-J10))/E10) -> n/a | I74: Roll
D76: Example Breakeven Prices
B77: Example | C77: Example | D77: To Cover | G77: To Cover
B78: Yield | C78: Yield | D78: Variable | G78: Total
B79: Percent | C79: Roll | D79: Costs | G79: Costs
B80: 0.75 | C80: 6.75 | D80: 43.75560524 | G80: 53.85419857
B81: 0.9 | C81: 8.1 | D81: 36.46300437 | G81: 44.87849881
B82: 1 | C82: 9 | D82: 32.81670393 | G82: 40.39064893
B83: 1.1 | C83: 9.9 | D83: 29.83336721 | G83: 36.71877176
B84: 1.25 | C84: 11.25 | D84: 26.25336314 | G84: 32.31251914
A86: Developed by Extension Economists, Texas A&M AgriLife Extension Service, budgets@tamu.edu.
A88: Information presented is prepared solely as a general guide and not intended to recognize or predict the costs and returns from any one operation. Brand names are mentioned only as examples and imply no endorsement.

Sheet CoastalPasture
A1: Projections for Planning Purposes Only -- Not to be Used without Updating
A2: 2023 Estimated Costs and Returns per Acre
A3: Coastal Bermudagrass Pasture
A4: Enter your name for this budget in the cell above.
A5: Enter Your Values in the cells highlighed in MAROON.
E6: Your Acres | R6: Your
C7: Crop Acres | D7: 400 | L7: Your | Q7: Enterprise | R7: Enterprise
E8: Your | H8: Your | I8: Cash | J8: Your | K8: Landlord | L8: Landlord | N8: Your | P8: Your | Q8: Total | R8: Total
A9: REVENUE | D9: Quantity | E9: Quantity | F9: Units | G9: $/Unit | H9: $/Unit | I9: Total | J9: Total | K9: Share | L9: Share | M9: Landlord | N9: Landlord | O9: Tenant | P9: Tenant | Q9: (400 acres) | R9: ="(" & E7 & " acres)" -> ( acres)
B10: 0 | D10: 0 | G10: 0 | I10: 0 | J10: =E10*H10 -> 0 | K10: 0 | M10: 0 | N10: =J10*L10 -> 0 | O10: 0 | P10: =+J10-N10 -> 0 | Q10: 0 | R10: =+J10*E$7 -> 0
D11: 0 | G11: 0 | I11: 0 | J11: 0 | K11: 0 | M11: 0 | N11: 0 | O11: 0 | P11: =+J11-N11 -> 0 | Q11: 0 | R11: 0
D12: 0 | G12: 0 | I12: 0 | J12: 0 | K12: 0 | M12: 0 | N12: 0 | O12: 0 | P12: 0 | Q12: 0 | R12: 0
A13: Total Revenue | I13: 0 | J13: =SUM(J10:J12) -> 0 | M13: 0 | N13: =SUM(N10:N12) -> 0 | O13: 0 | P13: =SUM(P10:P12) -> 0 | Q13: 0 | R13: =SUM(R10:R12) -> 0
Q14: Enterprise | R14: Enterprise
A15: VARIABLE COSTS | D15: Quantity | E15: Quantity | F15: Units | G15: $/Unit | H15: $/Unit | I15: Total | J15: Total | K15: Share | L15: Share | M15: Landlord | N15: Landlord | O15: Tenant | P15: Tenant | Q15: Total | R15: Total
A16: Production Costs
B17: Herbicide | I17: $17.54
C18: Broadleaf Herbicide | D18: 1.5 | F18: Pint | G18: 6.75 | I18: 10.125 | J18: =E18*H18 -> 0 | K18: 0 | M18: 0 | N18: =J18*L18 -> 0 | O18: 10.125 | P18: =+J18-N18 -> 0 | Q18: 4050 | R18: =+J18*E$7 -> 0
C19: Custom Pasture Spray | D19: 1 | F19: Acre | G19: 7.42 | I19: 7.42 | J19: 0 | K19: 0 | M19: 0 | N19: 0 | O19: 7.42 | P19: 0 | Q19: 2968 | R19: 0
B20: Fertilizer | I20: $57.6
C21: 24-8-0 | D21: 0.1 | F21: Ton | G21: 576 | I21: 57.6 | J21: 0 | K21: 0 | M21: 0 | N21: 0 | O21: 57.6 | P21: 0 | Q21: 23040 | R21: 0
B22: Custom | I22: $15.58
C23: Custom Spread Truck | D23: 1 | F23: Acre | G23: 15.582 | I23: 15.582 | J23: 0 | K23: 0 | M23: 0 | N23: 0 | O23: 15.582 | P23: 0 | Q23: 6232.8 | R23: 0
B24: Miscellaneous | I24: $0.21
C25: Soil Test | D25: 1 | F25: Acre | G25: 0.212 | I25: 0.212 | J25: 0 | K25: 0 | M25: 0 | N25: 0 | O25: 0.212 | P25: 0 | Q25: 84.8 | R25: 0
D26: 0 | G26: 0 | I26: 0 | J26: 0 | K26: 0 | M26: 0 | N26: 0 | O26: 0 | P26: 0 | Q26: 0 | R26: 0
D27: 0 | G27: 0 | I27: 0 | J27: 0 | K27: 0 | M27: 0 | N27: 0 | O27: 0 | P27: 0 | Q27: 0 | R27: 0
D28: 0 | G28: 0 | I28: 0 | J28: =E28*H28 -> 0 | K28: 0 | M28: 0 | N28: =J28*L28 -> 0 | O28: 0 | P28: =+J28-N28 -> 0 | Q28: 0 | R28: =+J28*E$7 -> 0
B29: Irrigation | I29: $22.54
C30: Energy Cost | D30: 7 | F30: AcreInch | G30: 2.1 | I30: 14.7 | J30: =E30*H30 -> 0 | K30: 0 | M30: 0 | N30: =J30*L30 -> 0 | O30: 14.7 | P30: =+J30-N30 -> 0 | Q30: 5880 | R30: =+J30*E$7 -> 0
C31: Irrigation Labor | D31: 0.448 | F31: Hour | G31: 17.5 | I31: 7.84 | J31: 0 | K31: 0 | M31: 0 | N31: 0 | O31: 7.84 | P31: 0 | Q31: 3136 | R31: 0
B32: Machinery Labor | I32: $2.93
C33: Tractors/Self-Propelled | D33: 0.17 | F33: Hour | G33: 17.21 | I33: 2.9257 | J33: =E33*H33 -> 0 | K33: 0 | M33: 0 | N33: =J33*L33 -> 0 | O33: 2.9257 | P33: =+J33-N33 -> 0 | Q33: 1170.28 | R33: =+J33*E$7 -> 0
C34: Other Labor | D34: 0 | F34: Hour | G34: 17.21 | I34: 0 | J34: =E34*H34 -> 0 | K34: 0 | M34: 0 | N34: =J34*L34 -> 0 | O34: 0 | P34: =+J34-N34 -> 0 | Q34: 0 | R34: =+J34*E$7 -> 0
B36: Diesel Fuel | I36: $1.72
C37: Pickup/General Use Equipment | D37: 1 | F37: Acre | G37: 0 | I37: 0 | J37: =E37*H37 -> 0 | K37: 0 | M37: 0 | N37: =J37*L37 -> 0 | O37: 0 | P37: =+J37-N37 -> 0 | Q37: 0 | R37: =+J37*E$7 -> 0
C38: Tractors/Self-Propelled | D38: 0.77 | F38: Gallon | G38: 2.24 | I38: 1.7248 | J38: =E38*H38 -> 0 | K38: 0 | M38: 0 | N38: =J38*L38 -> 0 | O38: 1.7248 | P38: =+J38-N38 -> 0 | Q38: 689.92 | R38: =+J38*E$7 -> 0
B40: Gasoline | I40: $0
C41: Pickup/General Use Equipment | D41: 1 | F41: Acre | G41: 0 | I41: 0 | J41: =E41*H41 -> 0 | K41: 0 | M41: 0 | N41: =J41*L41 -> 0 | O41: 0 | P41: =+J41-N41 -> 0 | Q41: 0 | R41: =+J41*E$7 -> 0
C42: Tractors/Self-Propelled | D42: 0 | F42: Gallon | G42: 2.09 | I42: 0 | J42: =E42*H42 -> 0 | K42: 0 | M42: 0 | N42: =J42*L42 -> 0 | O42: 0 | P42: =+J42-N42 -> 0 | Q42: 0 | R42: =+J42*E$7 -> 0
B44: Repairs & Maintenance | I44: $28.15
C45: Pickup/General Use Equipment | D45: 1 | F45: Acre | G45: 0 | I45: 0 | J45: =E45*H45 -> 0 | K45: 0 | M45: 0 | N45: =J45*L45 -> 0 | O45: 0 | P45: =+J45-N45 -> 0 | Q45: 0 | R45: =+J45*E$7 -> 0
C46: Irrigation Equipment | D46: 1 | F46: Acre | G46: 26.25 | I46: 26.25 | J46: 0 | K46: 0 | M46: 0 | N46: 0 | O46: 26.25 | P46: 0 | Q46: 10500 | R46: 0
C47: Tractors/Self-Propelled | D47: 1 | F47: Acre | G47: 1.230049293 | I47: 1.230049293 | J47: 0 | K47: 0 | M47: 0 | N47: 0 | O47: 1.230049293 | P47: 0 | Q47: 492.0197173 | R47: 0
C48: Implements | D48: 1 | F48: Acre | G48: 0.6667433449 | I48: 0.6667433449 | J48: 0 | K48: 0 | M48: 0 | N48: 0 | O48: 0.6667433449 | P48: 0 | Q48: 266.697338 | R48: 0
I49: 0 | J49: 0 | K49: 0 | M49: 0 | N49: 0 | O49: 0 | P49: 0 | Q49: 0 | R49: 0
I50: 0 | J50: 0 | K50: 0 | M50: 0 | N50: 0 | O50: 0 | P50: 0 | Q50: 0 | R50: 0
B51: Interest on Credit Line | G51: 0.08 | I51: 5.371869198 | J51: =+SUM(J17:J50)/2*H51 -> 0 | M51: 0 | N51: =+SUM(N17:N50)/2*L51 -> 0 | O51: 5.371869198 | P51: =+SUM(P17:P50)/2*L51 -> 0 | Q51: 2148.747679 | R51: =+J51*E$7 -> 0
A52: Total Variable Costs | I52: 151.6481618 | J52: =SUM(J18:J51) -> 0 | M52: 0 | N52: =SUM(N18:N51) -> 0 | O52: 151.6481618 | P52: =SUM(P18:P51) -> 0 | Q52: 60659.26473 | R52: =SUM(R18:R51) -> 0
A53: Planned Returns Above Variable Costs: | I53: -151.6481618 | J53: =+J13-J52 -> 0 | M53: 0 | N53: =+N13-N52 -> 0 | O53: -151.6481618 | P53: =+P13-P52 -> 0 | Q53: -60659.26473 | R53: =+R13-R52 -> 0
B54: Breakeven Price to Cover Variable Costs | G54: n/a | H54: =IF(E10=0,"n/a",(YVarExp-(YTotExp+YTotRet-J10))/E10) -> n/a
Q55: Enterprise | R55: Enterprise
A56: FIXED COSTS | D56: Quantity | E56: Quantity | F56: Units | G56: $/Unit | H56: $/Unit | I56: Total | J56: Total | K56: Share | L56: Share | M56: Landlord | N56: Landlord | O56: Tenant | P56: Tenant | Q56: Total | R56: Total
B57: Machinery Depreciation | I57: $19.31
C58: Irrigation Equipment | D58: 1 | F58: Acre | G58: 16.7925 | I58: 16.7925 | J58: =E58*H58 -> 0 | K58: 0 | M58: 0 | N58: =J58*L58 -> 0 | O58: 16.7925 | P58: =+J58-N58 -> 0 | Q58: 6717 | R58: =+J58*E$7 -> 0
C59: Tractors/Self-Propelled | D59: 1 | F59: Acre | G59: 1.016840749 | I59: 1.016840749 | J59: 0 | K59: 0 | M59: 0 | N59: =J59*L59 -> 0 | O59: 1.016840749 | P59: 0 | Q59: 406.7362996 | R59: 0
C60: Implements | D60: 1 | F60: Acre | G60: 1.500172526 | I60: 1.500172526 | J60: 0 | K60: 0 | M60: 0 | N60: =J60*L60 -> 0 | O60: 1.500172526 | P60: 0 | Q60: 600.0690104 | R60: 0
B61: Equipment Investment | I61: $13.65
C62: Irrigation Equipment | D62: 156.30625 | F62: Dollars | G62: 0.08 | I62: 12.5045 | J62: =E62*H62 -> 0 | K62: 0 | M62: 0 | N62: =J62*L62 -> 0 | O62: 12.5045 | P62: =+J62-N62 -> 0 | Q62: 5001.8 | R62: =+J62*E$7 -> 0
C63: Tractors/Self-Propelled | D63: 7.921517448 | F63: Dollars | G63: 0.08 | I63: 0.6337213958 | J63: 0 | K63: 0 | M63: 0 | N63: =J63*L63 -> 0 | O63: 0.6337213958 | P63: 0 | Q63: 253.4885583 | R63: 0
C64: Implements | D64: 6.417404695 | F64: Dollars | G64: 0.08 | I64: 0.5133923756 | J64: 0 | K64: 0 | M64: 0 | N64: =J64*L64 -> 0 | O64: 0.5133923756 | P64: 0 | Q64: 205.3569502 | R64: 0
B65: Salaried Labor | D65: 1 | F65: Acre | G65: 0 | I65: 0 | J65: 0 | K65: 0 | M65: 0 | N65: =J65*L65 -> 0 | O65: 0 | P65: =+J65-N65 -> 0 | Q65: 0 | R65: =+J65*E$7 -> 0
B66: Management Fee, Owner/Operator Labor | D66: 1 | F66: Acre | G66: 0 | I66: 0 | J66: 0 | K66: 0 | M66: 0 | N66: 0 | O66: 0 | P66: 0 | Q66: 0 | R66: 0
B67: Allocated Establishment Cost | D67: 1 | F67: Acre | G67: 0 | I67: 0 | J67: 0 | K67: 0 | M67: 0 | N67: 0 | O67: 0 | P67: 0 | Q67: 0 | R67: 0
B68: None | D68: 1 | F68: Acre | G68: 0 | I68: 0 | J68: 0 | K68: 0 | M68: 0 | N68: 0 | O68: 0 | P68: 0 | Q68: 0 | R68: 0
B69: Property Taxes | D69: 1 | F69: Acre | G69: 0 | I69: 0 | J69: 0 | K69: 0 | M69: 0 | N69: 0 | O69: 0 | P69: 0 | Q69: 0 | R69: 0
B70: Whole Farm Insurance | D70: 1 | F70: Acre | G70: 0 | I70: 0 | J70: 0 | K70: 0 | M70: 0 | N70: 0 | O70: 0 | P70: 0 | Q70: 0 | R70: 0
D71: 1 | G71: 0 | I71: 0 | J71: 0 | K71: 0 | M71: 0 | N71: 0 | O71: 0 | P71: 0 | Q71: 0 | R71: 0
D72: 1 | G72: 0 | I72: 0 | J72: =E72*H72 -> 0 | K72: 0 | M72: 0 | N72: 0 | O72: 0 | P72: 0 | Q72: 0 | R72: 0
A73: Total Fixed Costs | I73: 32.96112705 | J73: =+SUM(J58:J72) -> 0 | M73: 0 | N73: =+SUM(N58:N72) -> 0 | O73: 32.96112705 | P73: =+SUM(P58:P72) -> 0 | Q73: 13184.45082 | R73: =+SUM(R58:R72) -> 0
A74: Total Specified Costs | I74: 184.6092889 | J74: =+J52+J73 -> 0 | M74: 0 | N74: =+N52+N73 -> 0 | O74: 184.6092889 | P74: =+P52+P73 -> 0 | Q74: 73843.71555 | R74: =+R52+R73 -> 0
A76: Returns Above Specified Costs | I76: -184.6092889 | J76: =+J13-J74 -> 0 | M76: 0 | N76: =+N13-N74 -> 0 | O76: -184.6092889 | P76: =+P13-P74 -> 0 | Q76: -73843.71555 | R76: =+R13-R74 -> 0
A78: Breakeven Price to Cover Total Costs | G78: n/a | H78: =IF(E10=0,"n/a",(YTotExp-(YTotExp+YTotRet-J10))/E10) -> n/a
D80: Example Breakeven Prices
B81: Example | C81: Example | D81: To Cover | G81: To Cover
B82: Yield | C82: Yield | D82: Variable | G82: Total
B83: Percent | D83: Costs | G83: Costs
B84: 0.75 | C84: 0 | D84: 0 | G84: 0
B85: 0.9 | C85: 0 | D85: 0 | G85: 0
B86: 1 | C86: 0 | D86: 0 | G86: 0
B87: 1.1 | C87: 0 | D87: 0 | G87: 0
B88: 1.25 | C88: 0 | D88: 0 | G88: 0
A90: Developed by Extension Economists, Texas A&M AgriLife Extension Service, budgets@tamu.edu.
A92: Information presented is prepared solely as a general guide and not intended to recognize or predict the costs and returns from any one operation. Brand names are mentioned only as examples and imply no endorsement.

Sheet SorghumHay
A1: Projections for Planning Purposes Only -- Not to be Used without Updating
A2: 2023 Estimated Costs and Returns per Acre
A3: Sorghum Hay (2 Cuttings)
A4: Enter your name for this budget in the cell above.
A5: Enter Your Values in the cells highlighed in MAROON.
E6: Your Acres | R6: Your
C7: Crop Acres | D7: 100 | L7: Your | Q7: Enterprise | R7: Enterprise
E8: Your | H8: Your | I8: Cash | J8: Your | K8: Landlord | L8: Landlord | N8: Your | P8: Your | Q8: Total | R8: Total
A9: REVENUE | D9: Quantity | E9: Quantity | F9: Units | G9: $/Unit | H9: $/Unit | I9: Total | J9: Total | K9: Share | L9: Share | M9: Landlord | N9: Landlord | O9: Tenant | P9: Tenant | Q9: (100 acres) | R9: ="(" & E7 & " acres)" -> ( acres)
B10: Sorghum Hay | D10: 8 | F10: Roll | G10: 90 | I10: 720 | J10: =E10*H10 -> 0 | K10: 0 | M10: 0 | N10: =J10*L10 -> 0 | O10: 720 | P10: =+J10-N10 -> 0 | Q10: 72000 | R10: =+J10*E$7 -> 0
D11: 0 | G11: 0 | I11: 0 | J11: 0 | K11: 0 | M11: 0 | N11: 0 | O11: 0 | P11: =+J11-N11 -> 0 | Q11: 0 | R11: 0
D12: 0 | G12: 0 | I12: 0 | J12: 0 | K12: 0 | M12: 0 | N12: 0 | O12: 0 | P12: 0 | Q12: 0 | R12: 0
A13: Total Revenue | I13: 720 | J13: =SUM(J10:J12) -> 0 | M13: 0 | N13: =SUM(N10:N12) -> 0 | O13: 720 | P13: =SUM(P10:P12) -> 0 | Q13: 72000 | R13: =SUM(R10:R12) -> 0
Q14: Enterprise | R14: Enterprise
A15: VARIABLE COSTS | D15: Quantity | E15: Quantity | F15: Units | G15: $/Unit | H15: $/Unit | I15: Total | J15: Total | K15: Share | L15: Share | M15: Landlord | N15: Landlord | O15: Tenant | P15: Tenant | Q15: Total | R15: Total
A16: Production Costs
B17: Seed | I17: $11.92
C18: Sorghum Hay Seed | D18: 15 | F18: Pound | G18: 0.795 | I18: 11.925 | J18: =E18*H18 -> 0 | K18: 0 | M18: 0 | N18: =J18*L18 -> 0 | O18: 11.925 | P18: =+J18-N18 -> 0 | Q18: 1192.5 | R18: =+J18*E$7 -> 0
B19: Fertilizer | I19: $155.81
C20: 24-8-0 | D20: 0.2705 | F20: Ton | G20: 576 | I20: 155.808 | J20: 0 | K20: 0 | M20: 0 | N20: 0 | O20: 155.808 | P20: 0 | Q20: 15580.8 | R20: 0
B21: Custom | I21: $31.16
C22: Custom Spread Truck | D22: 2 | F22: Acre | G22: 15.582 | I22: 31.164 | J22: 0 | K22: 0 | M22: 0 | N22: 0 | O22: 31.164 | P22: 0 | Q22: 3116.4 | R22: 0
B23: Miscellaneous | I23: $12.34
C24: Hay Wrap | D24: 8 | F24: Bale | G24: 1.5158 | I24: 12.1264 | J24: 0 | K24: 0 | M24: 0 | N24: 0 | O24: 12.1264 | P24: 0 | Q24: 1212.64 | R24: 0
C25: Soil Test | D25: 1 | F25: Acre | G25: 0.212 | I25: 0.212 | J25: 0 | K25: 0 | M25: 0 | N25: 0 | O25: 0.212 | P25: 0 | Q25: 21.2 | R25: 0
D26: 0 | G26: 0 | I26: 0 | J26: 0 | K26: 0 | M26: 0 | N26: 0 | O26: 0 | P26: 0 | Q26: 0 | R26: 0
D27: 0 | G27: 0 | I27: 0 | J27: 0 | K27: 0 | M27: 0 | N27: 0 | O27: 0 | P27: 0 | Q27: 0 | R27: 0
D28: 0 | G28: 0 | I28: 0 | J28: =E28*H28 -> 0 | K28: 0 | M28: 0 | N28: =J28*L28 -> 0 | O28: 0 | P28: =+J28-N28 -> 0 | Q28: 0 | R28: =+J28*E$7 -> 0
B29: Machinery Labor | I29: $26.33
C30: Tractors/Self-Propelled | D30: 1.53 | F30: Hour | G30: 17.21 | I30: 26.3313 | J30: =E30*H30 -> 0 | K30: 0 | M30: 0 | N30: =J30*L30 -> 0 | O30: 26.3313 | P30: =+J30-N30 -> 0 | Q30: 2633.13 | R30: =+J30*E$7 -> 0
C31: Other Labor | D31: 0 | F31: Hour | G31: 17.21 | I31: 0 | J31: =E31*H31 -> 0 | K31: 0 | M31: 0 | N31: =J31*L31 -> 0 | O31: 0 | P31: =+J31-N31 -> 0 | Q31: 0 | R31: =+J31*E$7 -> 0
B33: Diesel Fuel | I33: $18.97
C34: Pickup/General Use Equipment | D34: 1 | F34: Acre | G34: 0 | I34: 0 | J34: =E34*H34 -> 0 | K34: 0 | M34: 0 | N34: =J34*L34 -> 0 | O34: 0 | P34: =+J34-N34 -> 0 | Q34: 0 | R34: =+J34*E$7 -> 0
C35: Tractors/Self-Propelled | D35: 8.47 | F35: Gallon | G35: 2.24 | I35: 18.9728 | J35: =E35*H35 -> 0 | K35: 0 | M35: 0 | N35: =J35*L35 -> 0 | O35: 18.9728 | P35: =+J35-N35 -> 0 | Q35: 1897.28 | R35: =+J35*E$7 -> 0
B37: Gasoline | I37: $0
C38: Pickup/General Use Equipment | D38: 1 | F38: Acre | G38: 0 | I38: 0 | J38: =E38*H38 -> 0 | K38: 0 | M38: 0 | N38: =J38*L38 -> 0 | O38: 0 | P38: =+J38-N38 -> 0 | Q38: 0 | R38: =+J38*E$7 -> 0
C39: Tractors/Self-Propelled | D39: 0 | F39: Gallon | G39: 2.09 | I39: 0 | J39: =E39*H39 -> 0 | K39: 0 | M39: 0 | N39: =J39*L39 -> 0 | O39: 0 | P39: =+J39-N39 -> 0 | Q39: 0 | R39: =+J39*E$7 -> 0
B41: Repairs & Maintenance | I41: $23.52
C42: Pickup/General Use Equipment | D42: 1 | F42: Acre | G42: 0 | I42: 0 | J42: =E42*H42 -> 0 | K42: 0 | M42: 0 | N42: =J42*L42 -> 0 | O42: 0 | P42: =+J42-N42 -> 0 | Q42: 0 | R42: =+J42*E$7 -> 0
C43: Irrigation Equipment | D43: 1 | F43: Acre | G43: 0 | I43: 0 | J43: 0 | K43: 0 | M43: 0 | N43: 0 | O43: 0 | P43: 0 | Q43: 0 | R43: 0
C44: Tractors/Self-Propelled | D44: 1 | F44: Acre | G44: 12.55381202 | I44: 12.55381202 | J44: 0 | K44: 0 | M44: 0 | N44: 0 | O44: 12.55381202 | P44: 0 | Q44: 1255.381202 | R44: 0
C45: Implements | D45: 1 | F45: Acre | G45: 10.96597344 | I45: 10.96597344 | J45: 0 | K45: 0 | M45: 0 | N45: 0 | O45: 10.96597344 | P45: 0 | Q45: 1096.597344 | R45: 0
I46: 0 | J46: 0 | K46: 0 | M46: 0 | N46: 0 | O46: 0 | P46: 0 | Q46: 0 | R46: 0
I47: 0 | J47: 0 | K47: 0 | M47: 0 | N47: 0 | O47: 0 | P47: 0 | Q47: 0 | R47: 0
B48: Interest on Credit Line | G48: 0.08 | I48: 8.938040075 | J48: =+SUM(J17:J47)/2*H48 -> 0 | M48: 0 | N48: =+SUM(N17:N47)/2*L48 -> 0 | O48: 8.938040075 | P48: =+SUM(P17:P47)/2*L48 -> 0 | Q48: 893.8040075 | R48: =+J48*E$7 -> 0
A49: Total Variable Costs | I49: 288.9973255 | J49: =SUM(J18:J48) -> 0 | M49: 0 | N49: =SUM(N18:N48) -> 0 | O49: 288.9973255 | P49: =SUM(P18:P48) -> 0 | Q49: 28899.73255 | R49: =SUM(R18:R48) -> 0
A50: Planned Returns Above Variable Costs: | I50: 431.0026745 | J50: =+J13-J49 -> 0 | M50: 0 | N50: =+N13-N49 -> 0 | O50: 431.0026745 | P50: =+P13-P49 -> 0 | Q50: 43100.26745 | R50: =+R13-R49 -> 0
B51: Breakeven Price to Cover Variable Costs | G51: 36.12466569 | H51: =IF(E10=0,"n/a",(YVarExp-(YTotExp+YTotRet-J10))/E10) -> n/a | I51: Roll
Q52: Enterprise | R52: Enterprise
A53: FIXED COSTS | D53: Quantity | E53: Quantity | F53: Units | G53: $/Unit | H53: $/Unit | I53: Total | J53: Total | K53: Share | L53: Share | M53: Landlord | N53: Landlord | O53: Tenant | P53: Tenant | Q53: Total | R53: Total
B54: Machinery Depreciation | I54: $27.13
C55: Tractors/Self-Propelled | D55: 1 | F55: Acre | G55: 11.56779793 | I55: 11.56779793 | J55: =E55*H55 -> 0 | K55: 0 | M55: 0 | N55: =J55*L55 -> 0 | O55: 11.56779793 | P55: =+J55-N55 -> 0 | Q55: 1156.779793 | R55: =+J55*E$7 -> 0
C56: Implements | D56: 1 | F56: Acre | G56: 15.56608119 | I56: 15.56608119 | J56: 0 | K56: 0 | M56: 0 | N56: =J56*L56 -> 0 | O56: 15.56608119 | P56: 0 | Q56: 1556.608119 | R56: 0
B57: Equipment Investment | I57: $15.13
C58: Tractors/Self-Propelled | D58: 90.1168774 | F58: Dollars | G58: 0.08 | I58: 7.209350192 | J58: =E58*H58 -> 0 | K58: 0 | M58: 0 | N58: =J58*L58 -> 0 | O58: 7.209350192 | P58: =+J58-N58 -> 0 | Q58: 720.9350192 | R58: =+J58*E$7 -> 0
C59: Implements | D59: 98.96163967 | F59: Dollars | G59: 0.08 | I59: 7.916931174 | J59: 0 | K59: 0 | M59: 0 | N59: =J59*L59 -> 0 | O59: 7.916931174 | P59: 0 | Q59: 791.6931174 | R59: 0
B60: Salaried Labor | D60: 1 | F60: Acre | G60: 0 | I60: 0 | J60: 0 | K60: 0 | M60: 0 | N60: =J60*L60 -> 0 | O60: 0 | P60: =+J60-N60 -> 0 | Q60: 0 | R60: =+J60*E$7 -> 0
B61: Management Fee, Owner/Operator Labor | D61: 1 | F61: Acre | G61: 0 | I61: 0 | J61: 0 | K61: 0 | M61: 0 | N61: 0 | O61: 0 | P61: 0 | Q61: 0 | R61: 0
B62: Allocated Establishment Cost | D62: 1 | F62: Acre | G62: 0 | I62: 0 | J62: 0 | K62: 0 | M62: 0 | N62: 0 | O62: 0 | P62: 0 | Q62: 0 | R62: 0
B63: Land - Hay Meadow | D63: 1 | F63: Acre | G63: 25 | I63: 25 | J63: 0 | K63: 0 | M63: 0 | N63: 0 | O63: 25 | P63: 0 | Q63: 2500 | R63: 0
B64: Property Taxes | D64: 1 | F64: Acre | G64: 0 | I64: 0 | J64: 0 | K64: 0 | M64: 0 | N64: 0 | O64: 0 | P64: 0 | Q64: 0 | R64: 0
B65: Whole Farm Insurance | D65: 1 | F65: Acre | G65: 0 | I65: 0 | J65: 0 | K65: 0 | M65: 0 | N65: 0 | O65: 0 | P65: 0 | Q65: 0 | R65: 0
D66: 1 | G66: 0 | I66: 0 | J66: 0 | K66: 0 | M66: 0 | N66: 0 | O66: 0 | P66: 0 | Q66: 0 | R66: 0
D67: 1 | G67: 0 | I67: 0 | J67: =E67*H67 -> 0 | K67: 0 | M67: 0 | N67: 0 | O67: 0 | P67: 0 | Q67: 0 | R67: 0
A68: Total Fixed Costs | I68: 67.26016048 | J68: =+SUM(J55:J67) -> 0 | M68: 0 | N68: =+SUM(N55:N67) -> 0 | O68: 67.26016048 | P68: =+SUM(P55:P67) -> 0 | Q68: 6726.016048 | R68: =+SUM(R55:R67) -> 0
A69: Total Specified Costs | I69: 356.257486 | J69: =+J49+J68 -> 0 | M69: 0 | N69: =+N49+N68 -> 0 | O69: 356.257486 | P69: =+P49+P68 -> 0 | Q69: 35625.7486 | R69: =+R49+R68 -> 0
A71: Returns Above Specified Costs | I71: 363.742514 | J71: =+J13-J69 -> 0 | M71: 0 | N71: =+N13-N69 -> 0 | O71: 363.742514 | P71: =+P13-P69 -> 0 | Q71: 36374.2514 | R71: =+R13-R69 -> 0
A73: Breakeven Price to Cover Total Costs | G73: 44.53218575 | H73: =IF(E10=0,"n/a",(YTotExp-(YTotExp+YTotRet-J10))/E10) -> n/a | I73: Roll
D75: Example Breakeven Prices
B76: Example | C76: Example | D76: To Cover | G76: To Cover
B77: Yield | C77: Yield | D77: Variable | G77: Total
B78: Percent | C78: Roll | D78: Costs | G78: Costs
B79: 0.75 | C79: 6 | D79: 48.16622092 | G79: 59.37624767
B80: 0.9 | C80: 7.2 | D80: 40.13851744 | G80: 49.48020639
B81: 1 | C81: 8 | D81: 36.12466569 | G81: 44.53218575
B82: 1.1 | C82: 8.8 | D82: 32.84060517 | G82: 40.48380523
B83: 1.25 | C83: 10 | D83: 28.89973255 | G83: 35.6257486
A85: Developed by Extension Economists, Texas A&M AgriLife Extension Service, budgets@tamu.edu.
A87: Information presented is prepared solely as a general guide and not intended to recognize or predict the costs and returns from any one operation. Brand names are mentioned only as examples and imply no endorsement.

Sheet RiceFirstCrop
A1: Projections for Planning Purposes Only -- Not to be Used without Updating
A2: 2023 Estimated Costs and Returns per Acre
A3: Rice West of Houston, 1st Crop, Surface Water
A4: Enter your name for this budget in the cell above.
A5: Enter Your Values in the cells highlighed in MAROON.
E6: Your Acres | R6: Your
C7: Crop Acres | D7: 450 | L7: Your | Q7: Enterprise | R7: Enterprise
E8: Your | H8: Your | I8: Cash | J8: Your | K8: Landlord | L8: Landlord | N8: Your | P8: Your | Q8: Total | R8: Total
A9: REVENUE | D9: Quantity | E9: Quantity | F9: Units | G9: $/Unit | H9: $/Unit | I9: Total | J9: Total | K9: Share | L9: Share | M9: Landlord | N9: Landlord | O9: Tenant | P9: Tenant | Q9: (450 acres) | R9: ="(" & E7 & " acres)" -> ( acres)
B10: Rice 1st Crop Loan | D10: 70 | F10: CWT | G10: 7.26 | I10: 508.2 | J10: =E10*H10 -> 0 | K10: 0 | M10: 0 | N10: =J10*L10 -> 0 | O10: 508.2 | P10: =+J10-N10 -> 0 | Q10: 228690 | R10: =+J10*E$7 -> 0
B11: Rice 1st Crop Premium | D11: 70 | F11: CWT | G11: 8.74 | I11: 611.8 | J11: 0 | K11: 0 | M11: 0 | N11: 0 | O11: 611.8 | P11: =+J11-N11 -> 0 | Q11: 275310 | R11: 0
D12: 0 | G12: 0 | I12: 0 | J12: 0 | K12: 0 | M12: 0 | N12: 0 | O12: 0 | P12: 0 | Q12: 0 | R12: 0
D13: 0 | G13: 0 | I13: 0 | J13: 0 | K13: 0 | M13: 0 | N13: 0 | O13: 0 | P13: 0 | Q13: 0 | R13: 0
A14: Total Revenue | I14: 1120 | J14: =SUM(J10:J13) -> 0 | M14: 0 | N14: =SUM(N10:N13) -> 0 | O14: 1120 | P14: =SUM(P10:P13) -> 0 | Q14: 504000 | R14: =SUM(R10:R13) -> 0
Q15: Enterprise | R15: Enterprise
A16: VARIABLE COSTS | D16: Quantity | E16: Quantity | F16: Units | G16: $/Unit | H16: $/Unit | I16: Total | J16: Total | K16: Share | L16: Share | M16: Landlord | N16: Landlord | O16: Tenant | P16: Tenant | Q16: Total | R16: Total
A17: Production Costs
B18: Seed | I18: $46.75
C19: Rice | D19: 0.9 | F19: CWT | G19: 51.94 | I19: 46.746 | J19: =E19*H19 -> 0 | K19: 0 | M19: 0 | N19: =J19*L19 -> 0 | O19: 46.746 | P19: =+J19-N19 -> 0 | Q19: 21035.7 | R19: =+J19*E$7 -> 0
B20: Fertilizer | I20: $192.3
C21: 17-21-14-4.3S` | D21: 0.141 | F21: Ton | G21: 643.42 | I21: 90.72222 | J21: 0 | K21: 0 | M21: 0 | N21: 0 | O21: 90.72222 | P21: 0 | Q21: 40824.999 | R21: 0
C22: 33-0-0` | D22: 0.1 | F22: Ton | G22: 609.5 | I22: 60.95 | J22: 0 | K22: 0 | M22: 0 | N22: 0 | O22: 60.95 | P22: 0 | Q22: 27427.5 | R22: 0
C23: 46-0-0` | D23: 0.075 | F23: Ton | G23: 541.66 | I23: 40.6245 | J23: 0 | K23: 0 | M23: 0 | N23: 0 | O23: 40.6245 | P23: 0 | Q23: 18281.025 | R23: 0
B24: Custom | I24: $232.21
C25: Base Fertilizer | D25: 1 | F25: Acre | G25: 11.925 | I25: 11.925 | J25: 0 | K25: 0 | M25: 0 | N25: 0 | O25: 11.925 | P25: 0 | Q25: 5366.25 | R25: 0
C26: Ground Application | D26: 1 | F26: Acre | G26: 9.54 | I26: 9.54 | J26: 0 | K26: 0 | M26: 0 | N26: 0 | O26: 9.54 | P26: 0 | Q26: 4293 | R26: 0
C27: Survey Levees | D27: 1 | F27: Acre | G27: 6.36 | I27: 6.36 | J27: 0 | K27: 0 | M27: 0 | N27: 0 | O27: 6.36 | P27: 0 | Q27: 2862 | R27: 0
C28: Pre-Flood Application | D28: 1 | F28: Acre | G28: 12.5822 | I28: 12.5822 | J28: 0 | K28: 0 | M28: 0 | N28: 0 | O28: 12.5822 | P28: 0 | Q28: 5661.99 | R28: 0
C29: Aerial Application | D29: 4.5 | F29: Acre | G29: 8.268 | I29: 37.206 | J29: 0 | K29: 0 | M29: 0 | N29: 0 | O29: 37.206 | P29: 0 | Q29: 16742.7 | R29: 0
C30: Top Dress | D30: 1 | F30: Acre | G30: 9.54 | I30: 9.54 | J30: 0 | K30: 0 | M30: 0 | N30: 0 | O30: 9.54 | P30: 0 | Q30: 4293 | R30: 0
C31: Rice Hauling | D31: 80.5 | F31: CWT | G31: 0.477 | I31: 38.3985 | J31: 0 | K31: 0 | M31: 0 | N31: 0 | O31: 38.3985 | P31: 0 | Q31: 17279.325 | R31: 0
C32: Rice Drying | D32: 80.5 | F32: CWT | G32: 1.325 | I32: 106.6625 | J32: 0 | K32: 0 | M32: 0 | N32: 0 | O32: 106.6625 | P32: 0 | Q32: 47998.125 | R32: 0
B33: Miscellaneous | I33: $157.73
C34: Crop Insurance -Rice Enterprise | D34: 1 | F34: Acre | G34: 11 | I34: 11 | J34: 0 | K34: 0 | M34: 0 | N34: 0 | O34: 11 | P34: 0 | Q34: 4950 | R34: 0
C35: G&A Overhead | D35: 1 | F35: Acre | G35: 11.13 | I35: 11.13 | J35: 0 | K35: 0 | M35: 0 | N35: 0 | O35: 11.13 | P35: 0 | Q35: 5008.5 | R35: 0
C36: Pickup Milage Charge - Rice | D36: 1 | F36: Acre | G36: 19.61 | I36: 19.61 | J36: 0 | K36: 0 | M36: 0 | N36: 0 | O36: 19.61 | P36: 0 | Q36: 8824.5 | R36: 0
C37: Base Water Charge | D37: 1 | F37: Acre | G37: 70.2992 | I37: 70.2992 | J37: 0 | K37: 0 | M37: 0 | N37: 0 | O37: 70.2992 | P37: 0 | Q37: 31634.64 | R37: 0
C38: Butt Up Field | D38: 1 | F38: Acre | G38: 4.24 | I38: 4.24 | J38: 0 | K38: 0 | M38: 0 | N38: 0 | O38: 4.24 | P38: 0 | Q38: 1908 | R38: 0
C39: Plastic | D39: 1 | F39: Acre | G39: 2.65 | I39: 2.65 | J39: 0 | K39: 0 | M39: 0 | N39: 0 | O39: 2.65 | P39: 0 | Q39: 1192.5 | R39: 0
C40: Pipe | D40: 1 | F40: Acre | G40: 3.18 | I40: 3.18 | J40: 0 | K40: 0 | M40: 0 | N40: 0 | O40: 3.18 | P40: 0 | Q40: 1431 | R40: 0
C41: Commission | D41: 70 | F41: CWT | G41: 0.0848 | I41: 5.936 | J41: 0 | K41: 0 | M41: 0 | N41: 0 | O41: 5.936 | P41: 0 | Q41: 2671.2 | R41: 0
C42: Check Off | D42: 70 | F42: CWT | G42: 0.0848 | I42: 5.936 | J42: 0 | K42: 0 | M42: 0 | N42: 0 | O42: 5.936 | P42: 0 | Q42: 2671.2 | R42: 0
C43: Rice Storage | D43: 70 | F43: CWT | G43: 0.3392 | I43: 23.744 | J43: 0 | K43: 0 | M43: 0 | N43: 0 | O43: 23.744 | P43: 0 | Q43: 10684.8 | R43: 0
B44: Insecticide | I44: $13.64
C45: Waterweevil | D45: 1.6 | F45: Ounce | G45: 2.8408 | I45: 4.54528 | J45: 0 | K45: 0 | M45: 0 | N45: 0 | O45: 4.54528 | P45: 0 | Q45: 2045.376 | R45: 0
C46: Stinkbug Pyrthyroid Rice | D46: 3.2 | F46: Ounce | G46: 2.8408 | I46: 9.09056 | J46: 0 | K46: 0 | M46: 0 | N46: 0 | O46: 9.09056 | P46: 0 | Q46: 4090.752 | R46: 0
B47: Herbicide | I47: $51.36
C48: Clomazone | D48: 0.1 | F48: Gallon | G48: 145 | I48: 14.5 | J48: 0 | K48: 0 | M48: 0 | N48: 0 | O48: 14.5 | P48: 0 | Q48: 6525 | R48: 0
C49: Rice PostEmerge Herbicide 1 | D49: 1 | F49: Acre | G49: 21.2 | I49: 21.2 | J49: 0 | K49: 0 | M49: 0 | N49: 0 | O49: 21.2 | P49: 0 | Q49: 9540 | R49: 0
C50: Rice PostEmerge Herbicide 2 | D50: 7 | F50: Ounce | G50: 2.2366 | I50: 15.6562 | J50: 0 | K50: 0 | M50: 0 | N50: 0 | O50: 15.6562 | P50: 0 | Q50: 7045.29 | R50: 0
B51: Other Chemicals | I51: $4.45
C52: Herbicide Surfactant | D52: 2.5 | F52: Acre | G52: 1.59 | I52: 3.975 | J52: 0 | K52: 0 | M52: 0 | N52: 0 | O52: 3.975 | P52: 0 | Q52: 1788.75 | R52: 0
C53: Fungicide Surfactant | D53: 1 | F53: Acre | G53: 0.477 | I53: 0.477 | J53: 0 | K53: 0 | M53: 0 | N53: 0 | O53: 0.477 | P53: 0 | Q53: 214.65 | R53: 0
B54: Fungicides | I54: $31.78
C55: Rice Fungicide | D55: 1 | F55: Acre | G55: 31.7788 | I55: 31.7788 | J55: 0 | K55: 0 | M55: 0 | N55: 0 | O55: 31.7788 | P55: 0 | Q55: 14300.46 | R55: 0
D56: 0 | G56: 0 | I56: 0 | J56: 0 | K56: 0 | M56: 0 | N56: 0 | O56: 0 | P56: 0 | Q56: 0 | R56: 0
D57: 0 | G57: 0 | I57: 0 | J57: 0 | K57: 0 | M57: 0 | N57: 0 | O57: 0 | P57: 0 | Q57: 0 | R57: 0
D58: 0 | G58: 0 | I58: 0 | J58: =E58*H58 -> 0 | K58: 0 | M58: 0 | N58: =J58*L58 -> 0 | O58: 0 | P58: =+J58-N58 -> 0 | Q58: 0 | R58: =+J58*E$7 -> 0
B59: Irrigation | I59: $70.93
C60: Water Cost | D60: 2.75 | F60: AcreFoot | G60: 15.8 | I60: 43.45 | J60: =E60*H60 -> 0 | K60: 0 | M60: 0 | N60: =J60*L60 -> 0 | O60: 43.45 | P60: =+J60-N60 -> 0 | Q60: 19552.5 | R60: =+J60*E$7 -> 0
C61: Irrigation Labor | D61: 1.57 | F61: Hour | G61: 17.5 | I61: 27.475 | J61: 0 | K61: 0 | M61: 0 | N61: 0 | O61: 27.475 | P61: 0 | Q61: 12363.75 | R61: 0
B62: Machinery Labor | I62: $15.32
C63: Tractors/Self-Propelled | D63: 0.89 | F63: Hour | G63: 17.21 | I63: 15.3169 | J63: =E63*H63 -> 0 | K63: 0 | M63: 0 | N63: =J63*L63 -> 0 | O63: 15.3169 | P63: =+J63-N63 -> 0 | Q63: 6892.605 | R63: =+J63*E$7 -> 0
C64: Other Labor | D64: 0 | F64: Hour | G64: 17.21 | I64: 0 | J64: =E64*H64 -> 0 | K64: 0 | M64: 0 | N64: =J64*L64 -> 0 | O64: 0 | P64: =+J64-N64 -> 0 | Q64: 0 | R64: =+J64*E$7 -> 0
B66: Diesel Fuel | I66: $18.64
C67: Pickup/General Use Equipment | D67: 1 | F67: Acre | G67: 0 | I67: 0 | J67: =E67*H67 -> 0 | K67: 0 | M67: 0 | N67: =J67*L67 -> 0 | O67: 0 | P67: =+J67-N67 -> 0 | Q67: 0 | R67: =+J67*E$7 -> 0
C68: Tractors/Self-Propelled | D68: 8.32 | F68: Gallon | G68: 2.24 | I68: 18.6368 | J68: =E68*H68 -> 0 | K68: 0 | M68: 0 | N68: =J68*L68 -> 0 | O68: 18.6368 | P68: =+J68-N68 -> 0 | Q68: 8386.56 | R68: =+J68*E$7 -> 0
B70: Gasoline | I70: $0
C71: Pickup/General Use Equipment | D71: 1 | F71: Acre | G71: 0 | I71: 0 | J71: =E71*H71 -> 0 | K71: 0 | M71: 0 | N71: =J71*L71 -> 0 | O71: 0 | P71: =+J71-N71 -> 0 | Q71: 0 | R71: =+J71*E$7 -> 0
C72: Tractors/Self-Propelled | D72: 0 | F72: Gallon | G72: 2.09 | I72: 0 | J72: =E72*H72 -> 0 | K72: 0 | M72: 0 | N72: =J72*L72 -> 0 | O72: 0 | P72: =+J72-N72 -> 0 | Q72: 0 | R72: =+J72*E$7 -> 0
B74: Repairs & Maintenance | I74: $40.18
C75: Pickup/General Use Equipment | D75: 1 | F75: Acre | G75: 0 | I75: 0 | J75: =E75*H75 -> 0 | K75: 0 | M75: 0 | N75: =J75*L75 -> 0 | O75: 0 | P75: =+J75-N75 -> 0 | Q75: 0 | R75: =+J75*E$7 -> 0
C76: Irrigation Equipment | D76: 1 | F76: Acre | G76: 0.01185185185 | I76: 0.01185185185 | J76: 0 | K76: 0 | M76: 0 | N76: 0 | O76: 0.01185185185 | P76: 0 | Q76: 5.333333333 | R76: 0
C77: Tractors/Self-Propelled | D77: 1 | F77: Acre | G77: 26.86086425 | I77: 26.86086425 | J77: 0 | K77: 0 | M77: 0 | N77: 0 | O77: 26.86086425 | P77: 0 | Q77: 12087.38891 | R77: 0
C78: Implements | D78: 1 | F78: Acre | G78: 13.31048914 | I78: 13.31048914 | J78: 0 | K78: 0 | M78: 0 | N78: 0 | O78: 13.31048914 | P78: 0 | Q78: 5989.720115 | R78: 0
I79: 0 | J79: 0 | K79: 0 | M79: 0 | N79: 0 | O79: 0 | P79: 0 | Q79: 0 | R79: 0
I80: 0 | J80: 0 | K80: 0 | M80: 0 | N80: 0 | O80: 0 | P80: 0 | Q80: 0 | R80: 0
B81: Interest on Credit Line | G81: 0.08 | I81: 44.05285713 | J81: =+SUM(J18:J80)/2*H81 -> 0 | M81: 0 | N81: =+SUM(N18:N80)/2*L81 -> 0 | O81: 44.05285713 | P81: =+SUM(P18:P80)/2*L81 -> 0 | Q81: 19823.78571 | R81: =+J81*E$7 -> 0
A82: Total Variable Costs | I82: 919.3197224 | J82: =SUM(J19:J81) -> 0 | M82: 0 | N82: =SUM(N19:N81) -> 0 | O82: 919.3197224 | P82: =SUM(P19:P81) -> 0 | Q82: 413693.8751 | R82: =SUM(R19:R81) -> 0
A83: Planned Returns Above Variable Costs: | I83: 200.6802776 | J83: =+J14-J82 -> 0 | M83: 0 | N83: =+N14-N82 -> 0 | O83: 200.6802776 | P83: =+P14-P82 -> 0 | Q83: 90306.12493 | R83: =+R14-R82 -> 0
B84: Breakeven Price to Cover Variable Costs | G84: 4.393138891 | H84: =IF(E10=0,"n/a",(YVarExp-(YTotExp+YTotRet-J10))/E10) -> n/a | I84: CWT
Q85: Enterprise | R85: Enterprise
A86: FIXED COSTS | D86: Quantity | E86: Quantity | F86: Units | G86: $/Unit | H86: $/Unit | I86: Total | J86: Total | K86: Share | L86: Share | M86: Landlord | N86: Landlord | O86: Tenant | P86: Tenant | Q86: Total | R86: Total
B87: Machinery Depreciation | I87: $44.28
C88: Irrigation Equipment | D88: 1 | F88: Acre | G88: 0.237037037 | I88: 0.237037037 | J88: =E88*H88 -> 0 | K88: 0 | M88: 0 | N88: =J88*L88 -> 0 | O88: 0.237037037 | P88: =+J88-N88 -> 0 | Q88: 106.6666667 | R88: =+J88*E$7 -> 0
C89: Tractors/Self-Propelled | D89: 1 | F89: Acre | G89: 26.75548528 | I89: 26.75548528 | J89: 0 | K89: 0 | M89: 0 | N89: =J89*L89 -> 0 | O89: 26.75548528 | P89: 0 | Q89: 12039.96838 | R89: 0
C90: Implements | D90: 1 | F90: Acre | G90: 17.29041821 | I90: 17.29041821 | J90: 0 | K90: 0 | M90: 0 | N90: =J90*L90 -> 0 | O90: 17.29041821 | P90: 0 | Q90: 7780.688195 | R90: 0
B91: Equipment Investment | I91: $28.46
C92: Irrigation Equipment | D92: 1.777777778 | F92: Dollars | G92: 0.08 | I92: 0.1422222222 | J92: =E92*H92 -> 0 | K92: 0 | M92: 0 | N92: =J92*L92 -> 0 | O92: 0.1422222222 | P92: =+J92-N92 -> 0 | Q92: 64 | R92: =+J92*E$7 -> 0
C93: Tractors/Self-Propelled | D93: 206.4332285 | F93: Dollars | G93: 0.08 | I93: 16.51465828 | J93: 0 | K93: 0 | M93: 0 | N93: =J93*L93 -> 0 | O93: 16.51465828 | P93: 0 | Q93: 7431.596225 | R93: 0
C94: Implements | D94: 147.4975801 | F94: Dollars | G94: 0.08 | I94: 11.79980641 | J94: 0 | K94: 0 | M94: 0 | N94: =J94*L94 -> 0 | O94: 11.79980641 | P94: 0 | Q94: 5309.912884 | R94: 0
B95: Salaried Labor | D95: 1 | F95: Acre | G95: 0 | I95: 0 | J95: 0 | K95: 0 | M95: 0 | N95: =J95*L95 -> 0 | O95: 0 | P95: =+J95-N95 -> 0 | Q95: 0 | R95: =+J95*E$7 -> 0
B96: Management Fee, Owner/Operator Labor | D96: 1 | F96: Acre | G96: 56 | I96: 56 | J96: 0 | K96: 0 | M96: 0 | N96: 0 | O96: 56 | P96: 0 | Q96: 25200 | R96: 0
B97: Allocated Establishment Cost | D97: 1 | F97: Acre | G97: 0 | I97: 0 | J97: 0 | K97: 0 | M97: 0 | N97: 0 | O97: 0 | P97: 0 | Q97: 0 | R97: 0
B98: Rice - Land Charge | D98: 1 | F98: Acre | G98: 130 | I98: 130 | J98: 0 | K98: 0 | M98: 0 | N98: 0 | O98: 130 | P98: 0 | Q98: 58500 | R98: 0
B99: Property Taxes | D99: 1 | F99: Acre | G99: 0 | I99: 0 | J99: 0 | K99: 0 | M99: 0 | N99: 0 | O99: 0 | P99: 0 | Q99: 0 | R99: 0
B100: Whole Farm Insurance | D100: 1 | F100: Acre | G100: 0 | I100: 0 | J100: 0 | K100: 0 | M100: 0 | N100: 0 | O100: 0 | P100: 0 | Q100: 0 | R100: 0
D101: 1 | G101: 0 | I101: 0 | J101: 0 | K101: 0 | M101: 0 | N101: 0 | O101: 0 | P101: 0 | Q101: 0 | R101: 0
D102: 1 | G102: 0 | I102: 0 | J102: =E102*H102 -> 0 | K102: 0 | M102: 0 | N102: 0 | O102: 0 | P102: 0 | Q102: 0 | R102: 0
A103: Total Fixed Costs | I103: 258.7396274 | J103: =+SUM(J88:J102) -> 0 | M103: 0 | N103: =+SUM(N88:N102) -> 0 | O103: 258.7396274 | P103: =+SUM(P88:P102) -> 0 | Q103: 116432.8323 | R103: =+SUM(R88:R102) -> 0
A104: Total Specified Costs | I104: 1178.05935 | J104: =+J82+J103 -> 0 | M104: 0 | N104: =+N82+N103 -> 0 | O104: 1178.05935 | P104: =+P82+P103 -> 0 | Q104: 530126.7074 | R104: =+R82+R103 -> 0
A106: Returns Above Specified Costs | I106: -58.05934981 | J106: =+J14-J104 -> 0 | M106: 0 | N106: =+N14-N104 -> 0 | O106: -58.05934981 | P106: =+P14-P104 -> 0 | Q106: -26126.70742 | R106: =+R14-R104 -> 0
A108: Breakeven Price to Cover Total Costs | G108: 8.089419283 | H108: =IF(E10=0,"n/a",(YTotExp-(YTotExp+YTotRet-J10))/E10) -> n/a | I108: CWT
D110: Example Breakeven Prices
B111: Example | C111: Example | D111: To Cover | G111: To Cover
B112: Yield | C112: Yield | D112: Variable | G112: Total
B113: Percent | C113: CWT | D113: Costs | G113: Costs
B114: 0.75 | C114: 52.5 | D114: 5.857518521 | G114: 10.78589238
B115: 0.9 | C115: 63 | D115: 4.881265435 | G115: 8.988243648
B116: 1 | C116: 70 | D116: 4.393138891 | G116: 8.089419283
B117: 1.1 | C117: 77 | D117: 3.993762628 | G117: 7.35401753
B118: 1.25 | C118: 87.5 | D118: 3.514511113 | G118: 6.471535426
A120: Developed by Extension Economists, Texas A&M AgriLife Extension Service, budgets@tamu.edu.
A122: Information presented is prepared solely as a general guide and not intended to recognize or predict the costs and returns from any one operation. Brand names are mentioned only as examples and imply no endorsement.

Sheet RiceSecondCrop
A1: Projections for Planning Purposes Only -- Not to be Used without Updating
A2: 2023 Estimated Costs and Returns per Acre
A3: Rice West of Houston, 2nd Crop, Surface Water
A4: Enter your name for this budget in the cell above.
A5: Enter Your Values in the cells highlighed in MAROON.
E6: Your Acres | R6: Your
C7: Crop Acres | D7: 450 | L7: Your | Q7: Enterprise | R7: Enterprise
E8: Your | H8: Your | I8: Cash | J8: Your | K8: Landlord | L8: Landlord | N8: Your | P8: Your | Q8: Total | R8: Total
A9: REVENUE | D9: Quantity | E9: Quantity | F9: Units | G9: $/Unit | H9: $/Unit | I9: Total | J9: Total | K9: Share | L9: Share | M9: Landlord | N9: Landlord | O9: Tenant | P9: Tenant | Q9: (450 acres) | R9: ="(" & E7 & " acres)" -> ( acres)
B10: Rice 2nd Crop Loan | D10: 16 | F10: CWT | G10: 7 | I10: 112 | J10: =E10*H10 -> 0 | K10: 0 | M10: 0 | N10: =J10*L10 -> 0 | O10: 112 | P10: =+J10-N10 -> 0 | Q10: 50400 | R10: =+J10*E$7 -> 0
B11: Rice 2nd Crop Premium | D11: 16 | F11: CWT | G11: 5.5 | I11: 88 | J11: 0 | K11: 0 | M11: 0 | N11: 0 | O11: 88 | P11: =+J11-N11 -> 0 | Q11: 39600 | R11: 0
D12: 0 | G12: 0 | I12: 0 | J12: 0 | K12: 0 | M12: 0 | N12: 0 | O12: 0 | P12: 0 | Q12: 0 | R12: 0
D13: 0 | G13: 0 | I13: 0 | J13: 0 | K13: 0 | M13: 0 | N13: 0 | O13: 0 | P13: 0 | Q13: 0 | R13: 0
A14: Total Revenue | I14: 200 | J14: =SUM(J10:J13) -> 0 | M14: 0 | N14: =SUM(N10:N13) -> 0 | O14: 200 | P14: =SUM(P10:P13) -> 0 | Q14: 90000 | R14: =SUM(R10:R13) -> 0
Q15: Enterprise | R15: Enterprise
A16: VARIABLE COSTS | D16: Quantity | E16: Quantity | F16: Units | G16: $/Unit | H16: $/Unit | I16: Total | J16: Total | K16: Share | L16: Share | M16: Landlord | N16: Landlord | O16: Tenant | P16: Tenant | Q16: Total | R16: Total
A17: Production Costs
B18: Fertilizer | I18: $40.62
C19: 46-0-0` | D19: 0.075 | F19: Ton | G19: 541.66 | I19: 40.6245 | J19: =E19*H19 -> 0 | K19: 0 | M19: 0 | N19: =J19*L19 -> 0 | O19: 40.6245 | P19: =+J19-N19 -> 0 | Q19: 18281.025 | R19: =+J19*E$7 -> 0
B20: Custom | I20: $52.59
C21: Top Dress | D21: 1 | F21: Acre | G21: 9.54 | I21: 9.54 | J21: 0 | K21: 0 | M21: 0 | N21: 0 | O21: 9.54 | P21: 0 | Q21: 4293 | R21: 0
C22: Aerial Application | D22: 1 | F22: Acre | G22: 8.268 | I22: 8.268 | J22: 0 | K22: 0 | M22: 0 | N22: 0 | O22: 8.268 | P22: 0 | Q22: 3720.6 | R22: 0
C23: Rice Hauling | D23: 19.3 | F23: CWT | G23: 0.477 | I23: 9.2061 | J23: 0 | K23: 0 | M23: 0 | N23: 0 | O23: 9.2061 | P23: 0 | Q23: 4142.745 | R23: 0
C24: Rice Drying | D24: 19.3 | F24: CWT | G24: 1.325 | I24: 25.5725 | J24: 0 | K24: 0 | M24: 0 | N24: 0 | O24: 25.5725 | P24: 0 | Q24: 11507.625 | R24: 0
B25: Insecticide | I25: $4.56
C26: Stinkbug Rice | D26: 0.222222 | F26: Pint | G26: 20.5216 | I26: 4.560350995 | J26: 0 | K26: 0 | M26: 0 | N26: 0 | O26: 4.560350995 | P26: 0 | Q26: 2052.157948 | R26: 0
B27: Miscellaneous | I27: $8.14
C28: Check Off | D28: 16 | F28: CWT | G28: 0.0848 | I28: 1.3568 | J28: 0 | K28: 0 | M28: 0 | N28: 0 | O28: 1.3568 | P28: 0 | Q28: 610.56 | R28: 0
C29: Commission | D29: 16 | F29: CWT | G29: 0.0848 | I29: 1.3568 | J29: 0 | K29: 0 | M29: 0 | N29: 0 | O29: 1.3568 | P29: 0 | Q29: 610.56 | R29: 0
C30: Rice Storage | D30: 16 | F30: CWT | G30: 0.3392 | I30: 5.4272 | J30: 0 | K30: 0 | M30: 0 | N30: 0 | O30: 5.4272 | P30: 0 | Q30: 2442.24 | R30: 0
D31: 0 | G31: 0 | I31: 0 | J31: 0 | K31: 0 | M31: 0 | N31: 0 | O31: 0 | P31: 0 | Q31: 0 | R31: 0
D32: 0 | G32: 0 | I32: 0 | J32: 0 | K32: 0 | M32: 0 | N32: 0 | O32: 0 | P32: 0 | Q32: 0 | R32: 0
D33: 0 | G33: 0 | I33: 0 | J33: =E33*H33 -> 0 | K33: 0 | M33: 0 | N33: =J33*L33 -> 0 | O33: 0 | P33: =+J33-N33 -> 0 | Q33: 0 | R33: =+J33*E$7 -> 0
B34: Irrigation | I34: $48.32
C35: Water Cost | D35: 1.9 | F35: AcreFoot | G35: 18.89 | I35: 35.891 | J35: =E35*H35 -> 0 | K35: 0 | M35: 0 | N35: =J35*L35 -> 0 | O35: 35.891 | P35: =+J35-N35 -> 0 | Q35: 16150.95 | R35: =+J35*E$7 -> 0
C36: Irrigation Labor | D36: 0.71 | F36: Hour | G36: 17.5 | I36: 12.425 | J36: 0 | K36: 0 | M36: 0 | N36: 0 | O36: 12.425 | P36: 0 | Q36: 5591.25 | R36: 0
B37: Machinery Labor | I37: $3.44
C38: Tractors/Self-Propelled | D38: 0.2 | F38: Hour | G38: 17.21 | I38: 3.442 | J38: =E38*H38 -> 0 | K38: 0 | M38: 0 | N38: =J38*L38 -> 0 | O38: 3.442 | P38: =+J38-N38 -> 0 | Q38: 1548.9 | R38: =+J38*E$7 -> 0
C39: Other Labor | D39: 0 | F39: Hour | G39: 17.21 | I39: 0 | J39: =E39*H39 -> 0 | K39: 0 | M39: 0 | N39: =J39*L39 -> 0 | O39: 0 | P39: =+J39-N39 -> 0 | Q39: 0 | R39: =+J39*E$7 -> 0
B41: Diesel Fuel | I41: $3.54
C42: Pickup/General Use Equipment | D42: 1 | F42: Acre | G42: 0 | I42: 0 | J42: =E42*H42 -> 0 | K42: 0 | M42: 0 | N42: =J42*L42 -> 0 | O42: 0 | P42: =+J42-N42 -> 0 | Q42: 0 | R42: =+J42*E$7 -> 0
C43: Tractors/Self-Propelled | D43: 1.58 | F43: Gallon | G43: 2.24 | I43: 3.5392 | J43: =E43*H43 -> 0 | K43: 0 | M43: 0 | N43: =J43*L43 -> 0 | O43: 3.5392 | P43: =+J43-N43 -> 0 | Q43: 1592.64 | R43: =+J43*E$7 -> 0
B45: Gasoline | I45: $0
C46: Pickup/General Use Equipment | D46: 1 | F46: Acre | G46: 0 | I46: 0 | J46: =E46*H46 -> 0 | K46: 0 | M46: 0 | N46: =J46*L46 -> 0 | O46: 0 | P46: =+J46-N46 -> 0 | Q46: 0 | R46: =+J46*E$7 -> 0
C47: Tractors/Self-Propelled | D47: 0 | F47: Gallon | G47: 2.09 | I47: 0 | J47: =E47*H47 -> 0 | K47: 0 | M47: 0 | N47: =J47*L47 -> 0 | O47: 0 | P47: =+J47-N47 -> 0 | Q47: 0 | R47: =+J47*E$7 -> 0
B49: Repairs & Maintenance | I49: $7.75
C50: Pickup/General Use Equipment | D50: 1 | F50: Acre | G50: 0 | I50: 0 | J50: =E50*H50 -> 0 | K50: 0 | M50: 0 | N50: =J50*L50 -> 0 | O50: 0 | P50: =+J50-N50 -> 0 | Q50: 0 | R50: =+J50*E$7 -> 0
C51: Irrigation Equipment | D51: 1 | F51: Acre | G51: 0.01185185185 | I51: 0.01185185185 | J51: 0 | K51: 0 | M51: 0 | N51: 0 | O51: 0.01185185185 | P51: 0 | Q51: 5.333333333 | R51: 0
C52: Tractors/Self-Propelled | D52: 1 | F52: Acre | G52: 6.29316876 | I52: 6.29316876 | J52: 0 | K52: 0 | M52: 0 | N52: 0 | O52: 6.29316876 | P52: 0 | Q52: 2831.925942 | R52: 0
C53: Implements | D53: 1 | F53: Acre | G53: 1.449717404 | I53: 1.449717404 | J53: 0 | K53: 0 | M53: 0 | N53: 0 | O53: 1.449717404 | P53: 0 | Q53: 652.3728318 | R53: 0
I54: 0 | J54: 0 | K54: 0 | M54: 0 | N54: 0 | O54: 0 | P54: 0 | Q54: 0 | R54: 0
I55: 0 | J55: 0 | K55: 0 | M55: 0 | N55: 0 | O55: 0 | P55: 0 | Q55: 0 | R55: 0
B56: Interest on Credit Line | G56: 0.08 | I56: 1.549001647 | J56: =+SUM(J18:J55)/2*H56 -> 0 | M56: 0 | N56: =+SUM(N18:N55)/2*L56 -> 0 | O56: 1.549001647 | P56: =+SUM(P18:P55)/2*L56 -> 0 | Q56: 697.0507413 | R56: =+J56*E$7 -> 0
A57: Total Variable Costs | I57: 170.5131907 | J57: =SUM(J19:J56) -> 0 | M57: 0 | N57: =SUM(N19:N56) -> 0 | O57: 170.5131907 | P57: =SUM(P19:P56) -> 0 | Q57: 76730.9358 | R57: =SUM(R19:R56) -> 0
A58: Planned Returns Above Variable Costs: | I58: 29.48680934 | J58: =+J14-J57 -> 0 | M58: 0 | N58: =+N14-N57 -> 0 | O58: 29.48680934 | P58: =+P14-P57 -> 0 | Q58: 13269.0642 | R58: =+R14-R57 -> 0
B59: Breakeven Price to Cover Variable Costs | G59: 5.157074416 | H59: =IF(E10=0,"n/a",(YVarExp-(YTotExp+YTotRet-J10))/E10) -> n/a | I59: CWT
Q60: Enterprise | R60: Enterprise
A61: FIXED COSTS | D61: Quantity | E61: Quantity | F61: Units | G61: $/Unit | H61: $/Unit | I61: Total | J61: Total | K61: Share | L61: Share | M61: Landlord | N61: Landlord | O61: Tenant | P61: Tenant | Q61: Total | R61: Total
B62: Machinery Depreciation | I62: $7.87
C63: Irrigation Equipment | D63: 1 | F63: Acre | G63: 0.237037037 | I63: 0.237037037 | J63: =E63*H63 -> 0 | K63: 0 | M63: 0 | N63: =J63*L63 -> 0 | O63: 0.237037037 | P63: =+J63-N63 -> 0 | Q63: 106.6666667 | R63: =+J63*E$7 -> 0
C64: Tractors/Self-Propelled | D64: 1 | F64: Acre | G64: 5.902496389 | I64: 5.902496389 | J64: 0 | K64: 0 | M64: 0 | N64: =J64*L64 -> 0 | O64: 5.902496389 | P64: 0 | Q64: 2656.123375 | R64: 0
C65: Implements | D65: 1 | F65: Acre | G65: 1.732749672 | I65: 1.732749672 | J65: 0 | K65: 0 | M65: 0 | N65: =J65*L65 -> 0 | O65: 1.732749672 | P65: 0 | Q65: 779.7373523 | R65: 0
B66: Equipment Investment | I66: $6.32
C67: Irrigation Equipment | D67: 1.777777778 | F67: Dollars | G67: 0.08 | I67: 0.1422222222 | J67: =E67*H67 -> 0 | K67: 0 | M67: 0 | N67: =J67*L67 -> 0 | O67: 0.1422222222 | P67: =+J67-N67 -> 0 | Q67: 64 | R67: =+J67*E$7 -> 0
C68: Tractors/Self-Propelled | D68: 44.78197129 | F68: Dollars | G68: 0.08 | I68: 3.582557703 | J68: 0 | K68: 0 | M68: 0 | N68: =J68*L68 -> 0 | O68: 3.582557703 | P68: 0 | Q68: 1612.150966 | R68: 0
C69: Implements | D69: 32.44668566 | F69: Dollars | G69: 0.08 | I69: 2.595734853 | J69: 0 | K69: 0 | M69: 0 | N69: =J69*L69 -> 0 | O69: 2.595734853 | P69: 0 | Q69: 1168.080684 | R69: 0
B70: Salaried Labor | D70: 1 | F70: Acre | G70: 0 | I70: 0 | J70: 0 | K70: 0 | M70: 0 | N70: =J70*L70 -> 0 | O70: 0 | P70: =+J70-N70 -> 0 | Q70: 0 | R70: =+J70*E$7 -> 0
B71: Management Fee, Owner/Operator Labor | D71: 1 | F71: Acre | G71: 10 | I71: 10 | J71: 0 | K71: 0 | M71: 0 | N71: 0 | O71: 10 | P71: 0 | Q71: 4500 | R71: 0
B72: Allocated Establishment Cost | D72: 1 | F72: Acre | G72: 0 | I72: 0 | J72: 0 | K72: 0 | M72: 0 | N72: 0 | O72: 0 | P72: 0 | Q72: 0 | R72: 0
B73: None | D73: 1 | F73: Acre | G73: 0 | I73: 0 | J73: 0 | K73: 0 | M73: 0 | N73: 0 | O73: 0 | P73: 0 | Q73: 0 | R73: 0
B74: Property Taxes | D74: 1 | F74: Acre | G74: 0 | I74: 0 | J74: 0 | K74: 0 | M74: 0 | N74: 0 | O74: 0 | P74: 0 | Q74: 0 | R74: 0
B75: Whole Farm Insurance | D75: 1 | F75: Acre | G75: 0 | I75: 0 | J75: 0 | K75: 0 | M75: 0 | N75: 0 | O75: 0 | P75: 0 | Q75: 0 | R75: 0
D76: 1 | G76: 0 | I76: 0 | J76: 0 | K76: 0 | M76: 0 | N76: 0 | O76: 0 | P76: 0 | Q76: 0 | R76: 0
D77: 1 | G77: 0 | I77: 0 | J77: =E77*H77 -> 0 | K77: 0 | M77: 0 | N77: 0 | O77: 0 | P77: 0 | Q77: 0 | R77: 0
A78: Total Fixed Costs | I78: 24.19279788 | J78: =+SUM(J63:J77) -> 0 | M78: 0 | N78: =+SUM(N63:N77) -> 0 | O78: 24.19279788 | P78: =+SUM(P63:P77) -> 0 | Q78: 10886.75904 | R78: =+SUM(R63:R77) -> 0
A79: Total Specified Costs | I79: 194.7059885 | J79: =+J57+J78 -> 0 | M79: 0 | N79: =+N57+N78 -> 0 | O79: 194.7059885 | P79: =+P57+P78 -> 0 | Q79: 87617.69484 | R79: =+R57+R78 -> 0
A81: Returns Above Specified Costs | I81: 5.294011466 | J81: =+J14-J79 -> 0 | M81: 0 | N81: =+N14-N79 -> 0 | O81: 5.294011466 | P81: =+P14-P79 -> 0 | Q81: 2382.30516 | R81: =+R14-R79 -> 0
A83: Breakeven Price to Cover Total Costs | G83: 6.669124283 | H83: =IF(E10=0,"n/a",(YTotExp-(YTotExp+YTotRet-J10))/E10) -> n/a | I83: CWT
D85: Example Breakeven Prices
B86: Example | C86: Example | D86: To Cover | G86: To Cover
B87: Yield | C87: Yield | D87: Variable | G87: Total
B88: Percent | C88: CWT | D88: Costs | G88: Costs
B89: 0.75 | C89: 12 | D89: 6.876099222 | G89: 8.892165711
B90: 0.9 | C90: 14.4 | D90: 5.730082685 | G90: 7.410138093
B91: 1 | C91: 16 | D91: 5.157074416 | G91: 6.669124283
B92: 1.1 | C92: 17.6 | D92: 4.688249469 | G92: 6.062840258
B93: 1.25 | C93: 20 | D93: 4.125659533 | G93: 5.335299427
A95: Developed by Extension Economists, Texas A&M AgriLife Extension Service, budgets@tamu.edu.
A97: Information presented is prepared solely as a general guide and not intended to recognize or predict the costs and returns from any one operation. Brand names are mentioned only as examples and imply no endorsement.

Sheet CowCalf
A1: Projections for Planning Purposes Only -- Not to be Used without Updating
A2: 2023 Estimated Costs and Returns per Animal Unit
A3: Cow-Calf Improved Pasture
A4: Enter your name for this budget in the cell above.
A5: Enter Your Values in the cells highlighed in MAROON.
E6: Your Cows
B7: Animal Units (AU) | D7: 100 | F7: Animal Unit | N7: Your
B8: Breeding Females | D8: 100 | F8: Calf | G8: Your | M8: Enterprise | N8: Enterprise
E9: Your | F9: Quantity | G9: Quantity | J9: Your | L9: Your | M9: Total | N9: Total
A10: REVENUE | D10: Head | E10: Head | F10: Per Head | G10: Per Head | H10: Units | I10: $/Unit | J10: $/Unit | K10: Total | L10: Total | M10: ="(" & D7 & " AUs)" -> (100 AUs) | N10: ="(" & E7 & " AUs)" -> ( AUs)
B11: Steer | D11: 0.43 | F11: 4.8 | H11: CWT | I11: 187 | K11: 385.968 | L11: =+E11*G11*J11 -> 0 | M11: 38596.8 | N11: =+L11*E$7 -> 0
B12: Heifer | D12: 0.43 | F12: 4.5 | H12: CWT | I12: 179 | K12: 346.365 | L12: =+E12*G12*J12 -> 0 | M12: 34636.5 | N12: =+L12*E$7 -> 0
B13: Cull Cow | D13: 0.15 | F13: 9 | H13: CWT | I13: 78 | K13: 105.3 | L13: 0 | M13: 10530 | N13: 0
B14: Cull Bull | D14: 0.01 | F14: 16 | H14: CWT | I14: 105 | K14: 16.8 | L14: 0 | M14: 1680 | N14: 0
D15: 0 | F15: 0 | I15: 0 | K15: 0 | L15: 0 | M15: 0 | N15: 0
D16: 0 | F16: 0 | I16: 0 | K16: 0 | L16: 0 | M16: 0 | N16: 0
A17: Total Revenue | F17: 399.9 | K17: 854.433 | L17: =+SUM(L11:L16) -> 0 | M17: 85443.3 | N17: =+SUM(N11:N16) -> 0
F18: 550.9
F19: 151 | M19: Enterprise | N19: Enterprise
A20: VARIABLE COSTS | F20: Quantity | G20: Quantity | H20: Units | I20: $/Unit | J20: $/Unit | K20: Total | L20: Total | M20: Total | N20: Total
A21: Production Costs
B22: Miscellaneous | K22: $0
F23: 1 | I23: 0 | K23: 0 | L23: =+J23*G23 -> 0 | M23: 0 | N23: =+L23*E$7 -> 0
F24: 1 | I24: 0 | K24: 0 | L24: 0 | M24: 0 | N24: 0
B25: Marketing Expense | F25: 1 | H25: AU | I25: 31.188 | K25: 31.188 | L25: 0 | M25: 3118.8 | N25: 0
B26: Feed | K26: $177.39
C27: Bermuda Hay | F27: 2 | H27: Roll | I27: 68.9 | K27: 137.8 | L27: =+J27*G27 -> 0 | M27: 13780 | N27: =+L27*E$7 -> 0
C28: 40% Cottonseed Meal Cubes | F28: 1 | H28: CWT | I28: 31.535 | K28: 31.535 | L28: 0 | M28: 3153.5 | N28: 0
C29: Salt and Mineral | F29: 40 | H29: Pound | I29: 0.2014 | K29: 8.056 | L29: 0 | M29: 805.6 | N29: 0
F30: 0 | I30: 0 | K30: 0 | L30: 0 | M30: 0 | N30: 0
F31: 0 | I31: 0 | K31: 0 | L31: 0 | M31: 0 | N31: 0
F32: 0 | I32: 0 | K32: 0 | L32: 0 | M32: 0 | N32: 0
B33: Vet. Medicine | K33: $33.87
C34: Bull Exam | F34: 0.04 | H34: Head | I34: 79.5 | K34: 3.18 | L34: =+J34*G34 -> 0 | M34: 318 | N34: =+L34*E$7 -> 0
C35: Fly Control | F35: 1.9 | H35: Head | I35: 3.021 | K35: 5.7399 | L35: 0 | M35: 573.99 | N35: 0
C36: 4-Way Respiratory + Vibrio + Lepto | F36: 1.04 | H36: Head | I36: 2.1518 | K36: 2.237872 | L36: 0 | M36: 223.7872 | N36: 0
C37: 8-Way Clostridials | F37: 2.94 | H37: Head | I37: 0.5088 | K37: 1.495872 | L37: 0 | M37: 149.5872 | N37: 0
C38: Dewormer-Avermectin | F38: 2.35 | H38: Head | I38: 3.9326 | K38: 9.24161 | L38: 0 | M38: 924.161 | N38: 0
C39: Implants | F39: 0.43 | H39: Head | I39: 1.4628 | K39: 0.629004 | L39: 0 | M39: 62.9004 | N39: 0
C40: Pregnancy Check | F40: 1 | H40: Head | I40: 6.36 | K40: 6.36 | L40: 0 | M40: 636 | N40: 0
C41: Pasturella+8 Way Clostridial | F41: 0.86 | H41: Head | I41: 3.6464 | K41: 3.135904 | L41: 0 | M41: 313.5904 | N41: 0
C42: 4-Way Respiratory + Vibrio +Lepto | F42: 0.86 | H42: Head | I42: 2.1518 | K42: 1.850548 | L42: 0 | M42: 185.0548 | N42: 0
F43: 0 | I43: 0 | K43: 0 | L43: 0 | M43: 0 | N43: 0
F44: 0 | I44: 0 | K44: 0 | L44: 0 | M44: 0 | N44: 0
F45: 0 | I45: 0 | K45: 0 | L45: 0 | M45: 0 | N45: 0
B46: Fuel | F46: 1 | H46: AU | I46: 6.7298 | K46: 6.7298 | L46: 0 | M46: 672.98 | N46: 0
B47: Lube (As a % of fuel) | F47: 0.05 | H47: Percent | I47: 6.7298 | K47: 0.33649 | L47: 0 | M47: 33.649 | N47: 0
B48: Repairs | F48: 1 | H48: AU | I48: 10.11393333 | K48: 10.11393333 | L48: 0 | M48: 1011.393333 | N48: 0
B49: Labor | F49: 0.4 | H49: Hours | I49: 14.055 | K49: 5.622 | L49: 0 | M49: 562.2 | N49: 0
B50: Utilities | F50: 1 | H50: AU | I50: 0 | K50: 0 | L50: 0 | M50: 0 | N50: 0
K51: 0 | L51: =+J51*G51 -> 0 | M51: 0 | N51: 0
B52: Purchase Breeding Female | F52: 1 | I52: 0 | K52: 0 | L52: 0 | M52: 0 | N52: 0
B53: Purchase Breeding Male | F53: 1 | I53: 0 | K53: 0 | L53: 0 | M53: 0 | N53: 0
B54: Purchase Older Repalcement Female | F54: 1 | I54: 0 | K54: 0 | L54: 0 | M54: 0 | N54: 0
B55: Purchase Younger Repalcement Female | F55: 1 | I55: 0 | K55: 0 | L55: 0 | M55: 0 | N55: 0
B56: Interest on Credit Line | I56: 0.08 | K56: 19.845818 | L56: =+SUM(L21:L55)/2*J56 -> 0 | M56: 1984.5818 | N56: 0
A57: Total Variable Costs | K57: 285.0977513 | L57: =+SUM(L23:L56) -> 0 | M57: 28509.77513 | N57: =+SUM(N23:N56) -> 0
A59: Planned Returns Above Variable Costs: | K59: 569.3352487 | L59: =+L17-L57 -> 0 | M59: 56933.52487 | N59: =+N17-N57 -> 0
B60: Average Calf Breakeven Price to Cover Variable Costs | I60: 40.75962774 | J60: =IF((E11*G11+E12*G12)=0,"n/a",(L57-SUM(L13:L16))/(E11*G11+E12*G12)) -> n/a | K60: CWT
M61: Enterprise | N61: Enterprise
A62: FIXED COSTS | F62: Quantity | G62: Quantity | H62: Units | I62: $/Unit | J62: $/Unit | K62: Total | L62: Total | M62: Total | N62: Total
B63: Depreciation - Equipment | F63: 1 | H63: AU | I63: 28.71566667 | K63: 28.71566667 | L63: =+G63*J63 -> 0 | M63: 2871.566667 | N63: =+L63*E$7 -> 0
B64: Depreciation - Livestock | F64: 1 | H64: AU | I64: 186.4285714 | K64: 186.4285714 | L64: 0 | M64: 18642.85714 | N64: 0
B65: Equipment Investment | F65: 140.7965 | H65: dollars | I65: 0.08 | K65: 11.26372 | L65: 0 | M65: 1126.372 | N65: 0
B66: Insurance | F66: 1 | H66: AU | I66: 0 | K66: 0 | L66: 0 | M66: 0 | N66: 0
B67: Management Fee, Owner/Operator Labor | F67: 1 | H67: AU | I67: 20 | K67: 20 | L67: =+J67*G67 -> 0 | M67: 2000 | N67: 0
B68: Salaried Labor | F68: 1 | H68: AU | I68: 0 | K68: 0 | L68: =+J68*G68 -> 0 | M68: 0 | N68: 0
B69: Pasture Cost | F69: 8 | H69: Acres | I69: 20 | K69: 160 | L69: 0 | M69: 16000 | N69: 0
K70: 0 | L70: =+G70*J70 -> 0 | M70: 0 | N70: 0
K71: 0 | L71: 0 | M71: 0 | N71: 0
A72: Total Fixed Costs | K72: 406.4079581 | L72: =+SUM(L63:L69) -> 0 | M72: 40640.79581 | N72: =+SUM(N63:N69) -> 0
A73: Total Costs | K73: 691.5057094 | L73: =+L57+L72 -> 0 | M73: 69150.57094 | N73: =+N57+N72 -> 0
A74: Planned Returns to Management, Risk, and Profit: | K74: 162.9272906 | L74: =+L17-L73 -> 0 | M74: 16292.72906 | N74: =+N17-N73 -> 0
B75: Average Calf Breakeven Price to Cover Total Costs | I75: 142.3870241 | J75: =IF((E11*G11+E12*G12)=0,"n/a",(L73-SUM(L13:L16))/(E11*G11+E12*G12)) -> n/a | K75: CWT
C77: Sensitivity Analysis for Example
C78: Example Weaning Percent | D78: Example Gross Sales per Animal Unit | F78: Pounds Produced per Animal Unit | H78: Example Breakeven Calf Pay Weight to Cover Total Cost | K78: Example Average Breakeven Price to Cover Total Cost
C79: 0.92 | D79: 905.526 | F79: 578.8 | H79: 403.8070453 | K79: 133.1009138
C80: 0.89 | D80: 879.9795 | F80: 564.85 | H80: 420.1776012 | K80: 137.5874615
C81: 0.86 | D81: 854.433 | F81: 550.9 | H81: 437.9315844 | K81: 142.3870241
C82: 0.83 | D82: 828.8865 | F82: 536.95 | H82: 457.2520955 | K82: 147.5335431
C83: 0.8 | D83: 803.34 | F83: 523 | H83: 478.3560383 | K83: 153.0660509
D85: ="Example Male "&F8&" Price" -> Example Male Calf Price | K85: =+I11 -> 187
D86: ="Example Female "&F8&" Price" -> Example Female Calf Price | K86: =+I12 -> 179
D87: ="Example Weighted Average "&F8&" Price ($/cwt)" -> Example Weighted Average Calf Price ($/cwt) | K87: =+(K11+K12)/(D11*F11+D12*F12) -> 183.1290323
A89: Developed by Extension Economists, Texas A&M AgriLife Extension Service, budgets@tamu.edu.
A91: Information presented is prepared solely as a general guide and not intended to recognize or predict the costs and returns from any one operation. Brand names are mentioned only as examples and imply no endorsement.

Sheet StockersSummer
A1: Projections for Planning Purposes Only -- Not to be Used without Updating
A2: 2023 Estimated Costs and Returns per Animal
A3: Summer Stocker Calf Budget (160 Days Grazing)
A4: Enter your name for this budget in the cell above.
A5: Enter Your Values in the cells highlighed in MAROON. | M5: Stocker
E6: Your Head | N6: Your
B7: Number of Head | D7: 320 | G7: Your | M7: Enterprise | N7: Enterprise
E8: Your | F8: Pay Weight | G8: Weight | J8: Your | L8: Your | M8: Total | N8: Total
A9: REVENUE | D9: Head | E9: Head | F9: or Amount | G9: or Amount | H9: Units | I9: $/Unit | J9: $/Unit | K9: Total | L9: Total | M9: ="(" & D7 & " Head)" -> (320 Head) | N9: ="(" & E7 & " Head)" -> ( Head)
B11: Stocker | D11: 0.96 | F11: 7.5 | H11: CWT | I11: 191 | K11: 1375.2 | L11: =+J11*G11*E11 -> 0 | M11: 440064 | N11: =+L11*E$7 -> 0
D12: 0.96 | F12: 0 | I12: 0 | K12: 0 | L12: 0 | M12: 0 | N12: 0
D13: 0.96 | F13: 0 | I13: 0 | K13: 0 | L13: 0 | M13: 0 | N13: 0
A14: Total Revenue | K14: 1375.2 | L14: =+L11 -> 0 | M14: 440064 | N14: 0
M15: Enterprise | N15: Enterprise
A16: VARIABLE COSTS | F16: Quantity | G16: Quantity | H16: Units | I16: $/Unit | J16: $/Unit | K16: Total | L16: Total | M16: Total | N16: Total
A17: Production Costs
B18: Stocker Purchase | F18: 5 | H18: CWT | I18: 202 | K18: 1010 | L18: =+J18*G18 -> 0 | M18: 323200 | N18: =+L18*E$7 -> 0
B19: Stocker Delivery | F19: 1 | H19: Head | I19: 7.5 | K19: 7.5 | L19: =+J19*G19 -> 0 | M19: 2400 | N19: =+L19*E$7 -> 0
B20: Grazing | K20: $50
C21: Acre Lease | F21: 0.003125 | H21: Acre | I21: 0 | K21: 0 | L21: 0 | M21: 0 | N21: =+L21*E$7 -> 0
C22: Grazing by Month | F22: 5 | H22: Month | I22: 10 | K22: 50 | L22: 0 | M22: 16000 | N22: 0
C23: Gain Contract | F23: 0 | H23: Pounds | I23: 0 | K23: 0 | L23: 0 | M23: 0 | N23: 0
C24: On Weight Per Month | F24: 0 | H24: Month | I24: 0 | K24: 0 | L24: =+G24*J24*G18 -> 0 | M24: 0 | N24: 0
B25: Health | K25: $11.44
C26: Health and Vet - Stocker | F26: 6.73 | H26: Ounce | I26: 1.7 | K26: 11.441 | L26: =+J26*G26 -> 0 | M26: 3661.12 | N26: =+L26*E$7 -> 0
F27: 0 | I27: 0 | K27: 0 | L27: 0 | M27: 0 | N27: 0
F28: 0 | I28: 0 | K28: 0 | L28: 0 | M28: 0 | N28: 0
F29: 0 | I29: 0 | K29: 0 | L29: 0 | M29: 0 | N29: 0
B30: Feed | K30: $3.02
C31: Salt and Mineral | F31: 15 | H31: Pound | I31: 0.2014 | K31: 3.021 | L31: 0 | M31: 966.72 | N31: 0
F32: 0 | I32: 0 | K32: 0 | L32: 0 | M32: 0 | N32: 0
F33: 0 | I33: 0 | K33: 0 | L33: 0 | M33: 0 | N33: 0
F34: 0 | I34: 0 | K34: 0 | L34: 0 | M34: 0 | N34: 0
B35: Miscellaneous | K35: $2.65
C36: Preconditioning | F36: 1 | H36: Acre | I36: 2.65 | K36: 2.65 | L36: =+J36*G36 -> 0 | M36: 848 | N36: =+L36*E$7 -> 0
F37: 1 | I37: 0 | K37: 0 | L37: 0 | M37: 0 | N37: 0
F38: 1 | I38: 0 | K38: 0 | L38: 0 | M38: 0 | N38: 0
B39: Fuel | F39: 1 | H39: Head | I39: 0 | K39: 0 | L39: 0 | M39: 0 | N39: 0
B40: Lube (As a % of fuel) | F40: 0.1 | H40: Percent | I40: 0 | K40: 0 | L40: 0 | M40: 0 | N40: 0
B41: Utilities | F41: 1 | H41: Head | I41: 0 | K41: 0 | L41: 0 | M41: 0 | N41: 0
B42: Repairs | F42: 1 | H42: Head | I42: 0 | K42: 0 | L42: 0 | M42: 0 | N42: 0
B43: Marketing | F43: 0.96 | H43: Head | I43: 0 | K43: 0 | L43: 0 | M43: 0 | N43: 0
B44: Labor | F44: 1 | H44: Head | I44: 135.908 | K44: 135.908 | L44: 0 | M44: 43490.56 | N44: 0
K45: 0 | L45: =+J45*G45 -> 0 | M45: 0 | N45: =+L45*E$7 -> 0
K46: 0 | L46: =+J46*G46 -> 0 | M46: 0 | N46: =+L46*E$7 -> 0
B47: Interest on Credit Line | I47: 0.08 | K47: 40.0301394 | L47: =+SUM(L18:L44)*J47/2 -> 0 | M47: 12809.64461 | N47: 0
A48: Total Variable Costs | K48: 1260.550139 | L48: =+SUM(L18:L47) -> 0 | M48: 403376.0446 | N48: =+SUM(N18:N47) -> 0
A50: Planned Returns Above Variable Costs: | K50: 114.6498606 | L50: =+L14-L48 -> 0 | M50: 36687.95539 | N50: =+N14-N48 -> 0
B52: Breakeven Price to Cover Variable Costs | I52: 175.0764082 | J52: =+IF(G11=0,"n/a",(L48-SUM(L12:L13))/(G11*E11)) -> n/a | K52: CWT
M53: Enterprise | N53: Enterprise
A54: FIXED COSTS | F54: Quantity | G54: Quantity | H54: Units | I54: $/Unit | J54: $/Unit | K54: Total | L54: Total | M54: Total | N54: Total
B56: Depreciation | F56: 1 | H56: Head | I56: 0 | K56: 0 | L56: =+J56*G56 -> 0 | M56: 0 | N56: =+L56*E$7 -> 0
B57: Equipment Investment | F57: 0 | H57: dollars | I57: 0.08 | K57: 0 | L57: 0 | M57: 0 | N57: 0
B58: Salaried Labor | F58: 1 | H58: Head | I58: 0 | K58: 0 | L58: 0 | M58: 0 | N58: 0
B59: Management Fee, Owner/Operator Labor | F59: 1 | H59: Head | I59: 0 | K59: 0 | L59: 0 | M59: 0 | N59: 0
B60: Insurance | F60: 1 | H60: Head | I60: 0 | K60: 0 | L60: 0 | M60: 0 | N60: 0
K61: 0 | L61: 0 | M61: 0 | N61: 0
K62: 0 | L62: 0 | M62: 0 | N62: 0
A63: Total Fixed Costs | K63: 0 | L63: =+SUM(L56:L60) -> 0 | M63: 0 | N63: =+SUM(N56:N60) -> 0
A65: Total Costs | K65: 1260.550139 | L65: =+L48+L63 -> 0 | M65: 403376.0446 | N65: =+N48+N63 -> 0
A67: Planned Returns to Management, Risk, and Profit: | K67: 114.6498606 | L67: =+L50-L63 -> 0 | M67: 36687.95539 | N67: =+N50-N63 -> 0
A69: Breakeven Price to Cover Total Costs | I69: 175.0764082 | J69: =+IF(G11=0,"n/a",(L65-SUM(L12:L13))/(G11*E11)) -> n/a | K69: CWT
C71: Example Breakeven Sensitivity Analysis
F72: Purchase Weight (Lbs/Hd): 500 | H72: Sales Price/Cwt of $Total
F73: Sales Price/Cwt 191.00 | H73: Purchase Price/Cwt 202.00
C74: ADG (Lbs/day) | D74: Net Pay Weight with Shrink | F74: Breakeven Purchase Price ($/CWT) | H74: Breakeven Sales Price ($/CWT)
C75: 1.65 | D75: 770.6 | F75: 232.4844041 | H75: 170.3961928
C76: 1.5125 | D76: 748.05 | F76: 224.2148681 | H76: 175.5327935
C77: 1.375 | D77: 750 | F77: 224.9299721 | H77: 175.0764082
C78: 1.2375 | D78: 702.95 | F78: 207.6757961 | H78: 186.7946599
C79: 1.1 | D79: 680.4 | F79: 199.4062601 | H79: 192.9854588
A81: Developed by Extension Economists, Texas A&M AgriLife Extension Service, budgets@tamu.edu.
A83: Information presented is prepared solely as a general guide and not intended to recognize or predict the costs and returns from any one operation. Brand names are mentioned only as examples and imply no endorsement.

Sheet StockerWinter
A1: Projections for Planning Purposes Only -- Not to be Used without Updating
A2: 2023 Estimated Costs and Returns per Animal
A3: Winter Stocker Calf Budget (110 Says Grazing)
A4: Enter your name for this budget in the cell above.
A5: Enter Your Values in the cells highlighed in MAROON. | M5: Stocker
E6: Your Head | N6: Your
B7: Number of Head | D7: 320 | G7: Your | M7: Enterprise | N7: Enterprise
E8: Your | F8: Pay Weight | G8: Weight | J8: Your | L8: Your | M8: Total | N8: Total
A9: REVENUE | D9: Head | E9: Head | F9: or Amount | G9: or Amount | H9: Units | I9: $/Unit | J9: $/Unit | K9: Total | L9: Total | M9: ="(" & D7 & " Head)" -> (320 Head) | N9: ="(" & E7 & " Head)" -> ( Head)
B11: Stocker | D11: 0.96 | F11: 6.1 | H11: CWT | I11: 183 | K11: 1071.648 | L11: =+J11*G11*E11 -> 0 | M11: 342927.36 | N11: =+L11*E$7 -> 0
D12: 0.96 | F12: 0 | I12: 0 | K12: 0 | L12: 0 | M12: 0 | N12: 0
D13: 0.96 | F13: 0 | I13: 0 | K13: 0 | L13: 0 | M13: 0 | N13: 0
A14: Total Revenue | K14: 1071.648 | L14: =+L11 -> 0 | M14: 342927.36 | N14: 0
M15: Enterprise | N15: Enterprise
A16: VARIABLE COSTS | F16: Quantity | G16: Quantity | H16: Units | I16: $/Unit | J16: $/Unit | K16: Total | L16: Total | M16: Total | N16: Total
A17: Production Costs
B18: Stocker Purchase | F18: 4 | H18: CWT | I18: 225 | K18: 900 | L18: =+J18*G18 -> 0 | M18: 288000 | N18: =+L18*E$7 -> 0
B19: Stocker Delivery | F19: 1 | H19: Head | I19: 7.5 | K19: 7.5 | L19: =+J19*G19 -> 0 | M19: 2400 | N19: =+L19*E$7 -> 0
B20: Grazing | K20: $116
C21: Acre Lease | F21: 0.003125 | H21: Acre | I21: 0 | K21: 0 | L21: 0 | M21: 0 | N21: =+L21*E$7 -> 0
C22: Grazing by Month | F22: 0 | H22: Month | I22: 0 | K22: 0 | L22: 0 | M22: 0 | N22: 0
C23: Gain Contract | F23: 193.3333333 | H23: Pounds | I23: 0.6 | K23: 116 | L23: 0 | M23: 37120 | N23: 0
C24: On Weight Per Month | F24: 0 | H24: Month | I24: 0 | K24: 0 | L24: =+G24*J24*G18 -> 0 | M24: 0 | N24: 0
B25: Health | K25: $11.44
C26: Health and Vet - Stocker | F26: 6.73 | H26: Ounce | I26: 1.7 | K26: 11.441 | L26: =+J26*G26 -> 0 | M26: 3661.12 | N26: =+L26*E$7 -> 0
F27: 0 | I27: 0 | K27: 0 | L27: 0 | M27: 0 | N27: 0
F28: 0 | I28: 0 | K28: 0 | L28: 0 | M28: 0 | N28: 0
F29: 0 | I29: 0 | K29: 0 | L29: 0 | M29: 0 | N29: 0
B30: Feed | K30: $8.74
C31: Salt and Mineral | F31: 15 | H31: Pound | I31: 0.2014 | K31: 3.021 | L31: 0 | M31: 966.72 | N31: 0
C32: Bermuda Hay | F32: 0.083 | H32: Roll | I32: 68.9 | K32: 5.7187 | L32: 0 | M32: 1829.984 | N32: 0
F33: 0 | I33: 0 | K33: 0 | L33: 0 | M33: 0 | N33: 0
F34: 0 | I34: 0 | K34: 0 | L34: 0 | M34: 0 | N34: 0
F35: 0 | I35: 0 | K35: 0 | L35: 0 | M35: 0 | N35: 0
B36: Miscellaneous | K36: $2.65
C37: Preconditioning | F37: 1 | H37: Acre | I37: 2.65 | K37: 2.65 | L37: =+J37*G37 -> 0 | M37: 848 | N37: =+L37*E$7 -> 0
F38: 1 | I38: 0 | K38: 0 | L38: 0 | M38: 0 | N38: 0
F39: 1 | I39: 0 | K39: 0 | L39: 0 | M39: 0 | N39: 0
B40: Fuel | F40: 1 | H40: Head | I40: 0 | K40: 0 | L40: 0 | M40: 0 | N40: 0
B41: Lube (As a % of fuel) | F41: 0.1 | H41: Percent | I41: 0 | K41: 0 | L41: 0 | M41: 0 | N41: 0
B42: Utilities | F42: 1 | H42: Head | I42: 0 | K42: 0 | L42: 0 | M42: 0 | N42: 0
B43: Repairs | F43: 1 | H43: Head | I43: 0 | K43: 0 | L43: 0 | M43: 0 | N43: 0
B44: Marketing | F44: 0.96 | H44: Head | I44: 0 | K44: 0 | L44: 0 | M44: 0 | N44: 0
B45: Labor | F45: 1 | H45: Head | I45: 98.408 | K45: 98.408 | L45: 0 | M45: 31490.56 | N45: 0
K46: 0 | L46: =+J46*G46 -> 0 | M46: 0 | N46: =+L46*E$7 -> 0
K47: 0 | L47: =+J47*G47 -> 0 | M47: 0 | N47: =+L47*E$7 -> 0
B48: Interest on Credit Line | I48: 0.08 | K48: 23.61623963 | L48: =+SUM(L18:L45)*J48/2 -> 0 | M48: 7557.196681 | N48: 0
A49: Total Variable Costs | K49: 1168.35494 | L49: =+SUM(L18:L48) -> 0 | M49: 373873.5807 | N49: =+SUM(N18:N48) -> 0
A51: Planned Returns Above Variable Costs: | K51: -96.70693963 | L51: =+L14-L49 -> 0 | M51: -30946.22068 | N51: =+N14-N49 -> 0
B53: Breakeven Price to Cover Variable Costs | I53: 199.5141632 | J53: =+IF(G11=0,"n/a",(L49-SUM(L12:L13))/(G11*E11)) -> n/a | K53: CWT
M54: Enterprise | N54: Enterprise
A55: FIXED COSTS | F55: Quantity | G55: Quantity | H55: Units | I55: $/Unit | J55: $/Unit | K55: Total | L55: Total | M55: Total | N55: Total
B57: Depreciation | F57: 1 | H57: Head | I57: 0 | K57: 0 | L57: =+J57*G57 -> 0 | M57: 0 | N57: =+L57*E$7 -> 0
B58: Equipment Investment | F58: 0 | H58: dollars | I58: 0.08 | K58: 0 | L58: 0 | M58: 0 | N58: 0
B59: Salaried Labor | F59: 1 | H59: Head | I59: 0 | K59: 0 | L59: 0 | M59: 0 | N59: 0
B60: Management Fee, Owner/Operator Labor | F60: 1 | H60: Head | I60: 0 | K60: 0 | L60: 0 | M60: 0 | N60: 0
B61: Insurance | F61: 1 | H61: Head | I61: 0 | K61: 0 | L61: 0 | M61: 0 | N61: 0
K62: 0 | L62: 0 | M62: 0 | N62: 0
K63: 0 | L63: 0 | M63: 0 | N63: 0
A64: Total Fixed Costs | K64: 0 | L64: =+SUM(L57:L61) -> 0 | M64: 0 | N64: =+SUM(N57:N61) -> 0
A66: Total Costs | K66: 1168.35494 | L66: =+L49+L64 -> 0 | M66: 373873.5807 | N66: =+N49+N64 -> 0
A68: Planned Returns to Management, Risk, and Profit: | K68: -96.70693963 | L68: =+L51-L64 -> 0 | M68: -30946.22068 | N68: =+N51-N64 -> 0
A70: Breakeven Price to Cover Total Costs | I70: 199.5141632 | J70: =+IF(G11=0,"n/a",(L66-SUM(L12:L13))/(G11*E11)) -> n/a | K70: CWT
C72: Example Breakeven Sensitivity Analysis
F73: Purchase Weight (Lbs/Hd): 400 | H73: Sales Price/Cwt of $Total
F74: Sales Price/Cwt 183.00 | H74: Purchase Price/Cwt 225.00
C75: ADG (Lbs/day) | D75: Net Pay Weight with Shrink | F75: Breakeven Purchase Price ($/CWT) | H75: Breakeven Sales Price ($/CWT)
C76: 2.024727273 | D76: 624.7447273 | F76: 207.2991493 | H76: 194.8053889
C77: 1.856 | D77: 606.016 | F77: 199.0734923 | H77: 200.825786
C78: 1.687272727 | D78: 610 | F78: 200.8232651 | H78: 199.5141632
C79: 1.518545455 | D79: 568.5585455 | F79: 182.6221783 | H79: 214.0564776
C80: 1.349818182 | D80: 549.8298182 | F80: 174.3965212 | H80: 221.3478344
A82: Developed by Extension Economists, Texas A&M AgriLife Extension Service, budgets@tamu.edu.
A84: Information presented is prepared solely as a general guide and not intended to recognize or predict the costs and returns from any one operation. Brand names are mentioned only as examples and imply no endorsement.

Sheet Livestock Budget
A1: Estimated Costs and Returns per Animal or Breeding Female
A3: Livestock Budget
A5: Number of Head of Livestock | D5: 0
A7: Enter Your Values in the cells highlighed in MAROON. | H7: Enterprise
A8: REVENUE | C8: Head | D8: Quantity | E8: Units | F8: $/Unit | G8: Total | H8: Total
B9: Males Sold | C9: 0 | D9: 0 | E9: CWT | F9: 0 | G9: =IF($D$5=0,0,C9/$D$5*D9*F9) -> 0 | H9: =+G9*$D$5 -> 0
B10: Females Sold | C10: 0 | D10: 0 | E10: CWT | F10: 0 | G10: =IF($D$5=0,0,C10/$D$5*D10*F10) -> 0 | H10: =+G10*$D$5 -> 0
B11: Cull Breeding Females | C11: 0 | D11: 0 | E11: CWT | F11: 0 | G11: 0 | H11: 0
B12: Cull Breeding Males | C12: 0 | D12: 0 | E12: CWT | F12: 0 | G12: 0 | H12: 0
B13: Stocker or Feed Animal | C13: 0 | D13: 0 | E13: CWT | F13: 0 | G13: 0 | H13: 0
B14: Other Revenue | C14: 0 | D14: 0 | E14: CWT | F14: 0 | G14: 0 | H14: 0
B15: Other Revenue | C15: 0 | D15: 0 | E15: CWT | F15: 0 | G15: 0 | H15: 0
B16: Other Revenue | C16: 0 | D16: 0 | E16: CWT | F16: 0 | G16: 0 | H16: 0
A18: Total Revenue | G18: =+SUM(G9:G17) -> 0 | H18: =+SUM(H9:H17) -> 0
H20: Enterprise
A21: VARIABLE COSTS | D21: Quantity | E21: Units | F21: $/Unit | G21: Total | H21: Total
A22: Production Costs
B23: Animal Purchase Price, if applicable | D23: 0 | E23: Cwt | F23: 0 | G23: =D23*F23 -> 0 | H23: =+G23*$D$5 -> 0
B24: Pasture | C24: =+SUM(G25:G28) -> 0
C25: Pasture 1 | D25: 0 | E25: Acre | F25: 0 | G25: =D25*F25 -> 0 | H25: =+G25*$D$5 -> 0
C26: Pasture 2 | D26: 0 | E26: Acre | F26: 0 | G26: 0 | H26: 0
C27: Pasture 3 | D27: 0 | E27: Acre | F27: 0 | G27: 0 | H27: 0
C28: Pasture 4 | D28: 0 | E28: Acre | F28: 0 | G28: 0 | H28: 0
B29: Feed | C29: =SUM(G30:G37) -> 0
C30: Hay | D30: 0 | E30: Bales | F30: 0 | G30: =D30*F30 -> 0 | H30: =+G30*$D$5 -> 0
C31: Supplement | D31: 0 | E31: Cwt,lb,etc | F31: 0 | G31: =D31*F31 -> 0 | H31: =+G31*$D$5 -> 0
C32: Salt Minerals | D32: 0 | E32: Cwt | F32: 0 | G32: 0 | H32: 0
C33: Other Feed | D33: 0 | E33: Cwt,lb,etc | F33: 0 | G33: 0 | H33: 0
C34: Other Feed | D34: 0 | E34: Cwt,lb,etc | F34: 0 | G34: 0 | H34: 0
C35: Other Feed | D35: 0 | E35: Cwt,lb,etc | F35: 0 | G35: 0 | H35: 0
C36: Other Feed | D36: 0 | E36: Cwt,lb,etc | F36: 0 | G36: 0 | H36: 0
C37: Other Feed | D37: 0 | E37: Cwt,lb,etc | F37: 0 | G37: 0 | H37: 0
B38: Health | C38: =SUM(G39:G48) -> 0
C39: Vet/Medicine 1 | D39: 0 | E39: Visit,dose,cc's, etc. | F39: 0 | G39: =D39*F39 -> 0 | H39: =+G39*$D$5 -> 0
C40: Vet/Medicine 2 | D40: 0 | E40: Visit,dose,cc's, etc. | F40: 0 | G40: 0 | H40: 0
C41: Vet/Medicine 3 | D41: 0 | E41: Visit,dose,cc's, etc. | F41: 0 | G41: 0 | H41: 0
C42: Vet/Medicine 4 | D42: 0 | E42: Visit,dose,cc's, etc. | F42: 0 | G42: 0 | H42: 0
C43: Vet/Medicine 5 | D43: 0 | E43: Visit,dose,cc's, etc. | F43: 0 | G43: 0 | H43: 0
C44: Vet/Medicine 6 | D44: 0 | E44: Visit,dose,cc's, etc. | F44: 0 | G44: 0 | H44: 0
C45: Vet/Medicine 7 | D45: 0 | E45: Visit,dose,cc's, etc. | F45: 0 | G45: 0 | H45: 0
C46: Vet/Medicine 8 | D46: 0 | E46: Visit,dose,cc's, etc. | F46: 0 | G46: 0 | H46: 0
C47: Vet/Medicine 9 | D47: 0 | E47: Visit,dose,cc's, etc. | F47: 0 | G47: 0 | H47: 0
C48: Vet/Medicine 10 | D48: 0 | E48: Visit,dose,cc's, etc. | F48: 0 | G48: 0 | H48: 0
B50: Fuel, Lube, Repair | D50: 1 | E50: Head | F50: 0 | G50: 0 | H50: 0
B52: Labor | D52: 0 | E52: Hours | F52: 0 | G52: 0 | H52: 0
B54: Other Variable Expense | D54: 0 | E54: Cwt,lb,etc | F54: 0 | G54: 0 | H54: 0
B55: Other Variable Expense | D55: 0 | E55: Cwt,lb,etc | F55: 0 | G55: 0 | H55: 0
B56: Other Variable Expense | D56: 0 | E56: Cwt,lb,etc | F56: 0 | G56: 0 | H56: 0
B57: Other Variable Expense | D57: 0 | E57: Cwt,lb,etc | F57: 0 | G57: 0 | H57: 0
B58: Other Variable Expense | D58: 0 | E58: Cwt,lb,etc | F58: 0 | G58: 0 | H58: 0
B59: Other Variable Expense | D59: 0 | E59: Cwt,lb,etc | F59: 0 | G59: 0 | H59: 0
B61: Operating Interest | F61: 0 | G61: =+SUM(G23:G59)/2*F61 -> 0 | H61: 0
A63: Total Variable Costs | G63: =+SUM(G23:G62) -> 0 | H63: =+SUM(H23:H62) -> 0
A65: Planned Returns Above Variable Costs | G65: =+G18-G63 -> 0 | H65: =+H18-H63 -> 0
B67: Breakeven Price to Cover Variable Costs | E67: =IF((H101/100+C13*D13)=0,0,(G63-SUM(G11:G12,G14:G16))/(H101/100+C13/D5*D13)) -> 0 | F67: =+E9 -> CWT
H69: Enterprise
A70: FIXED COSTS | D70: Quantity | E70: Units | F70: $/Unit | G70: Total | H70: Total
B71: Depreciation - Equipment | D71: 0 | E71: Head,$,etc | F71: 0 | G71: =D71*F71 -> 0 | H71: =+G71*$D$5 -> 0
B72: Depreciation - Livestock | D72: 0 | E72: Head,$,etc | F72: 0 | G72: =D72*F72 -> 0 | H72: 0
B73: Equipment Investment | D73: 0 | E73: Head,$,etc | F73: 0 | G73: 0 | H73: 0
B74: Insurance | D74: 0 | E74: Head,$,etc | F74: 0 | G74: 0 | H74: 0
B75: Management Fee | D75: 0 | E75: Head,$,etc | F75: 0 | G75: 0 | H75: 0
B76: Owner/Operator Labor | D76: 0 | E76: Head,$,etc | F76: 0 | G76: 0 | H76: 0
B77: Salaried Labor | D77: 0 | E77: Head,$,etc | F77: 0 | G77: 0 | H77: 0
B78: Other Fixed Expense | D78: 0 | E78: Head,$,etc | F78: 0 | G78: 0 | H78: 0
B79: Other Fixed Expense | D79: 0 | E79: Head,$,etc | F79: 0 | G79: 0 | H79: 0
B80: Other Fixed Expense | D80: 0 | E80: Head,$,etc | F80: 0 | G80: 0 | H80: 0
B81: Other Fixed Expense | D81: 0 | E81: Head,$,etc | F81: 0 | G81: 0 | H81: 0
B82: Other Fixed Expense | D82: 0 | E82: Head,$,etc | F82: 0 | G82: 0 | H82: 0
D84: Total Fixed Costs | G84: =+SUM(G71:G83) -> 0 | H84: =+SUM(H71:H83) -> 0
D86: Total Specified Costs | G86: =+G63+G84 -> 0 | H86: =+H63+H84 -> 0
D88: Returns Above Specifiied Costs | G88: =+G18-G86 -> 0 | H88: =+H18-H86 -> 0
B90: Breakeven Price to Cover Total Costs | E90: =IF((H101/100+C13*D13)=0,0,(G86-SUM(G11:G12,G14:G16))/(H101/100+C13/D5*D13)) -> 0 | F90: =+F67 -> CWT
B93: Sensitivity Analysis for Your Breeding Herd or Flock Values
B94: Your Weaning Percent | C94: Your Gross Sales per Head | D94: Pounds Produced per Head | E94: ="Your Breakeven Pay Weight to Cover Total Cost" -> Your Breakeven Pay Weight to Cover Total Cost | G94: Your Average Breakeven Price to Cover Total Cost
B95: =+B96-0.03 -> -0.06 | C95: =+IF($B$97=0,0,YTotRet-$G$9-$G$10+($G$9+$G$10)*B95/$B$97) -> 0 | D95: =IF($B$97=0,0,$H$101*B95/$B$97+$H$102) -> 0 | E95: =IF($C$97=0,0,(YTotExp-($G$18-$G$9-$G$10))/(YPrice/100)/(B95-$C$11/$D$5)) -> 0 | G95: =IF(D95-$H$102=0,0,(YTotExp-($G$18-$G$9-$G$10))/(D95-$H$102)*100) -> 0
B96: =+B97-0.03 -> -0.03 | C96: =+IF($B$97=0,0,YTotRet-$G$9-$G$10+($G$9+$G$10)*B96/$B$97) -> 0 | D96: =IF($B$97=0,0,$H$101*B96/$B$97+$H$102) -> 0 | E96: =IF($C$97=0,0,(YTotExp-($G$18-$G$9-$G$10))/(YPrice/100)/(B96-$C$11/$D$5)) -> 0 | G96: =IF(D96-$H$102=0,0,(YTotExp-($G$18-$G$9-$G$10))/(D96-$H$102)*100) -> 0
B97: 0 | C97: =+G18 -> 0 | D97: =H101+H102 -> 0 | E97: =IF($C$97=0,0,(YTotExp-($G$18-$G$9-$G$10))/(YPrice/100)/(B97-$C$11/$D$5)) -> 0 | G97: =IF(D97-$H$102=0,0,(YTotExp-($G$18-$G$9-$G$10))/(D97-$H$102)*100) -> 0
B98: =+B97+0.03 -> 0.03 | C98: =+IF($B$97=0,0,YTotRet-$G$9-$G$10+($G$9+$G$10)*B98/$B$97) -> 0 | D98: =IF($B$97=0,0,$H$101*B98/$B$97+$H$102) -> 0 | E98: =IF($C$97=0,0,(YTotExp-($G$18-$G$9-$G$10))/(YPrice/100)/(B98-$C$11/$D$5)) -> 0 | G98: =IF(D98-$H$102=0,0,(YTotExp-($G$18-$G$9-$G$10))/(D98-$H$102)*100) -> 0
B99: =+B98+0.03 -> 0.06 | C99: =+IF($B$97=0,0,YTotRet-$G$9-$G$10+($G$9+$G$10)*B99/$B$97) -> 0 | D99: =IF($B$97=0,0,$H$101*B99/$B$97+$H$102) -> 0 | E99: =IF($C$97=0,0,(YTotExp-($G$18-$G$9-$G$10))/(YPrice/100)/(B99-$C$11/$D$5)) -> 0 | G99: =IF(D99-$H$102=0,0,(YTotExp-($G$18-$G$9-$G$10))/(D99-$H$102)*100) -> 0
C101: Your Male Price | F101: =+F9 -> 0 | H101: =IF(D5=0,0,(C9*D9+C10*D10)*100/D5) -> 0
C102: Your Female Price | F102: =+F10 -> 0 | H102: =IF(D5=0,0,(C11*D11+C12*D12)*100/D5) -> 0
C103: Your Weighted Average Price ($/cwt) | F103: =+IF((C9*D9+C10*D10)=0,F13,(G9+G10)/((C9*D9+C10*D10)/D5)) -> 0
C105: Your Stocker or Feeder Breakeven Sensitivity Analysis
C106: Your Average Daily Gain | E106: 0 | F106: Pounds per Day
C107: =+"Your Animal"&IF(M25="Stocker"," Grazing"," Feeding")&" Days" -> Your Animal Feeding Days | E107: 0 | F107: Days
C108: Your Sale Shrink | E108: 0
C109: Average Daily Gain (Pounds/day) | D109: Net Pay Weight with Shrink (Pounds) | F109: =+"Purchase Weight (Pounds/Head): "&D23*100 -> Purchase Weight (Pounds/Head): 0 | H109: Sales Price/Cwt of $Total
F110: ="Sales Price "&IF(F13="",".00",TEXT(F13,"#.00")) -> Sales Price .00 | H110: ="Purchase Price "&IF(F23="",".00",TEXT(F23,"#.00")) -> Purchase Price .00
F111: Breakeven Purchase Price ($/CWT) | H111: Breakeven Sales Price ($/CWT)
C112: =+C114*1.2 -> 0 | D112: =+(C112*$E$107+$D$23*100)*(1-$E$108) -> 0 | F112: =IF($D$23=0,0,(((D112*$F$13/100*($C$13/$D$5))-($G$86-SUM($G$14:$G$16)-$G$23))/(100*$D$23))*100) -> 0 | H112: =IF($C$13=0,0,($G$86-SUM($G$14:$G$16))/(D112*($C$13/$D$5)*100)) -> 0
C113: =+C114*1.1 -> 0 | D113: =+(C113*$E$107+$D$23*100)*(1-$E$108) -> 0 | F113: =IF($D$23=0,0,(((D113*$F$13/100*($C$13/$D$5))-($G$86-SUM($G$14:$G$16)-$G$23))/(100*$D$23))*100) -> 0 | H113: =IF($C$13=0,0,($G$86-SUM($G$14:$G$16))/(D113*($C$13/$D$5)*100)) -> 0
C114: =+E106 -> 0 | D114: =+(C114*$E$107+$D$23*100)*(1-$E$108) -> 0 | F114: =IF($D$23=0,0,(((D114*$F$13/100*($C$13/$D$5))-($G$86-SUM($G$14:$G$16)-$G$23))/(100*$D$23))*100) -> 0 | H114: =IF($C$13=0,0,($G$86-SUM($G$14:$G$16))/(D114*($C$13/$D$5)*100)) -> 0
C115: =+C114*0.9 -> 0 | D115: =+(C115*$E$107+$D$23*100)*(1-$E$108) -> 0 | F115: =IF($D$23=0,0,(((D115*$F$13/100*($C$13/$D$5))-($G$86-SUM($G$14:$G$16)-$G$23))/(100*$D$23))*100) -> 0 | H115: =IF($C$13=0,0,($G$86-SUM($G$14:$G$16))/(D115*($C$13/$D$5)*100)) -> 0
C116: =+C114*0.8 -> 0 | D116: =+(C116*$E$107+$D$23*100)*(1-$E$108) -> 0 | F116: =IF($D$23=0,0,(((D116*$F$13/100*($C$13/$D$5))-($G$86-SUM($G$14:$G$16)-$G$23))/(100*$D$23))*100) -> 0 | H116: =IF($C$13=0,0,($G$86-SUM($G$14:$G$16))/(D116*($C$13/$D$5)*100)) -> 0

Sheet Crop Budget
A1: Estimated Costs and Returns per Acre
A3: Crop Enterprise
A5: Number of Acres of Crop | D5: 0
A7: Enter Your Values in the cells highlighed in MAROON. | G7: Enterprise
A8: REVENUE | C8: Quantity | D8: Units | E8: $/Unit | F8: Total | G8: Total
B9: Primary Product | C9: 0 | D9: Cwt,lb,etc | E9: 0 | F9: =C9*E9 -> 0 | G9: =+F9*$D$5 -> 0
B10: Secondary Product | C10: 0 | D10: Cwt,lb,etc | E10: 0 | F10: =C10*E10 -> 0 | G10: =+F10*$D$5 -> 0
B11: Secondary Product | C11: 0 | D11: Cwt,lb,etc | E11: 0 | F11: 0 | G11: 0
B12: Secondary Product | C12: 0 | D12: Cwt,lb,etc | E12: 0 | F12: 0 | G12: 0
B13: Secondary Product | C13: 0 | D13: Cwt,lb,etc | E13: 0 | F13: 0 | G13: 0
B14: Secondary Product | C14: 0 | D14: Cwt,lb,etc | E14: 0 | F14: 0 | G14: 0
B15: Secondary Product | C15: 0 | D15: Cwt,lb,etc | E15: 0 | F15: 0 | G15: 0
B16: Secondary Product | C16: 0 | D16: Cwt,lb,etc | E16: 0 | F16: 0 | G16: 0
A18: Total Revenue | F18: =+SUM(F9:F16) -> 0 | G18: =+SUM(G9:G16) -> 0
G20: Enterprise
A21: VARIABLE COSTS | C21: Quantity | D21: Units | E21: $/Unit | F21: Total | G21: Total
A23: Custom Field and Harvest Operations
B24: Custom Field Operation 1 | C24: 0 | D24: Acre | E24: 0 | F24: =C24*E24 -> 0 | G24: =+F24*$D$5 -> 0
B25: Custom Field Operation 2 | C25: 0 | D25: Acre | E25: 0 | F25: 0 | G25: 0
B26: Custom Field Operation 3 | C26: 0 | D26: Acre | E26: 0 | F26: 0 | G26: 0
B27: Custom Field Operation 4 | C27: 0 | D27: Acre | E27: 0 | F27: 0 | G27: 0
B28: Custom Field Operation 5 | C28: 0 | D28: Acre | E28: 0 | F28: 0 | G28: 0
B29: Custom Field Operation 6 | C29: 0 | D29: Acre | E29: 0 | F29: 0 | G29: 0
A30: Machinery Expenses
B31: Diesel | C31: 0 | D31: Gallon | E31: 0 | F31: =C31*E31 -> 0 | G31: 0
B32: Gasoline | C32: 0 | D32: Gallon | E32: 0 | F32: 0 | G32: 0
B33: Lube | C33: 0 | D33: Acre | E33: 0 | F33: 0 | G33: 0
B34: Repairs | C34: 0 | D34: Acre | E34: 0 | F34: 0 | G34: 0
B35: Other Machinery Expense 1 | C35: 0 | D35: Acre | E35: 0 | F35: 0 | G35: 0
B36: Other Machinery Expense 2 | C36: 0 | D36: Acre | E36: 0 | F36: 0 | G36: 0
A37: Labor
B38: Labor 1 | C38: 0 | D38: Hour | E38: 0 | F38: =C38*E38 -> 0 | G38: 0
B39: Labor 2 | C39: 0 | D39: Hour | E39: 0 | F39: 0 | G39: 0
B40: Labor 3 | C40: 0 | D40: Hour | E40: 0 | F40: 0 | G40: 0
B41: Labor 4 | C41: 0 | D41: Hour | E41: 0 | F41: 0 | G41: 0
B42: Labor 5 | C42: 0 | D42: Hour | E42: 0 | F42: 0 | G42: 0
B43: Irrigation Labor | C43: 0 | D43: Hour | E43: 0 | F43: 0 | G43: 0
A44: Seed or Transplants
B45: Seed | C45: 0 | D45: Pound | E45: 0 | F45: =C45*E45 -> 0 | G45: 0
B46: Seed Treatment | C46: 0 | D46: Pound | E46: 0 | F46: 0 | G46: 0
B47: Seed Fee | C47: 0 | D47: Pound | E47: 0 | F47: 0 | G47: 0
B48: Transplants | C48: 0 | D48: Thousand | E48: 0 | F48: 0 | G48: 0
B49: Mulch | C49: 0 | D49: Foot | E49: 0 | F49: 0 | G49: 0
B50: Other Seed or Transplant | C50: 0 | D50: Pound | E50: 0 | F50: 0 | G50: 0
A51: Fertilizer and Lime
B52: Fertlizer 1 | C52: 0 | D52: Pound | E52: 0 | F52: =C52*E52 -> 0 | G52: 0
B53: Fertlizer 2 | C53: 0 | D53: Pound | E53: 0 | F53: 0 | G53: 0
B54: Fertlizer 3 | C54: 0 | D54: Pound | E54: 0 | F54: 0 | G54: 0
B55: Fertlizer 4 | C55: 0 | D55: Pound | E55: 0 | F55: 0 | G55: 0
B56: Fertlizer 5 | C56: 0 | D56: Pound | E56: 0 | F56: 0 | G56: 0
B57: Lime | C57: 0 | D57: Ton | E57: 0 | F57: 0 | G57: 0
B58: Other Soil Amendment 1 | C58: 0 | D58: Pound | E58: 0 | F58: 0 | G58: 0
B59: Other Soil Amendment 2 | C59: 0 | D59: Pound | E59: 0 | F59: 0 | G59: 0
A60: Herbicides
B61: Herbicide 1 | C61: 0 | D61: Lb,Oz,Acre | E61: 0 | F61: =C61*E61 -> 0 | G61: 0
B62: Herbicide 2 | C62: 0 | D62: Lb,Oz,Acre | E62: 0 | F62: 0 | G62: 0
B63: Herbicide 3 | C63: 0 | D63: Lb,Oz,Acre | E63: 0 | F63: 0 | G63: 0
B64: Herbicide 4 | C64: 0 | D64: Lb,Oz,Acre | E64: 0 | F64: 0 | G64: 0
B65: Herbicide 5 | C65: 0 | D65: Lb,Oz,Acre | E65: 0 | F65: 0 | G65: 0
B66: Herbicide 6 | C66: 0 | D66: Lb,Oz,Acre | E66: 0 | F66: 0 | G66: 0
A67: Insecticides
B68: Insecticide 1 | C68: 0 | D68: Lb,Oz,Acre | E68: 0 | F68: =C68*E68 -> 0 | G68: 0
B69: Insecticide 2 | C69: 0 | D69: Lb,Oz,Acre | E69: 0 | F69: 0 | G69: 0
B70: Insecticide 3 | C70: 0 | D70: Lb,Oz,Acre | E70: 0 | F70: 0 | G70: 0
B71: Insecticide 4 | C71: 0 | D71: Lb,Oz,Acre | E71: 0 | F71: 0 | G71: 0
B72: Insecticide 5 | C72: 0 | D72: Lb,Oz,Acre | E72: 0 | F72: 0 | G72: 0
B73: Insecticide 6 | C73: 0 | D73: Lb,Oz,Acre | E73: 0 | F73: 0 | G73: 0
A74: Fungicides
B75: Fungicide 1 | C75: 0 | D75: Lb,Oz,Acre | E75: 0 | F75: =C75*E75 -> 0 | G75: 0
B76: Fungicide 2 | C76: 0 | D76: Lb,Oz,Acre | E76: 0 | F76: 0 | G76: 0
B77: Fungicide 3 | C77: 0 | D77: Lb,Oz,Acre | E77: 0 | F77: 0 | G77: 0
B78: Fungicide 4 | C78: 0 | D78: Lb,Oz,Acre | E78: 0 | F78: 0 | G78: 0
B79: Fungicide 5 | C79: 0 | D79: Lb,Oz,Acre | E79: 0 | F79: 0 | G79: 0
B80: Fungicide 6 | C80: 0 | D80: Lb,Oz,Acre | E80: 0 | F80: 0 | G80: 0
A81: Growth Regulators
B82: Growth Regulator 1 | C82: 0 | D82: Lb,Oz,Acre | E82: 0 | F82: =C82*E82 -> 0 | G82: 0
B83: Growth Regulator 2 | C83: 0 | D83: Lb,Oz,Acre | E83: 0 | F83: 0 | G83: 0
B84: Growth Regulator 3 | C84: 0 | D84: Lb,Oz,Acre | E84: 0 | F84: 0 | G84: 0
B85: Growth Regulator 4 | C85: 0 | D85: Lb,Oz,Acre | E85: 0 | F85: 0 | G85: 0
B86: Growth Regulator 5 | C86: 0 | D86: Lb,Oz,Acre | E86: 0 | F86: 0 | G86: 0
B87: Growth Regulator 6 | C87: 0 | D87: Lb,Oz,Acre | E87: 0 | F87: 0 | G87: 0
A88: Other Chemicals
B89: Fumigant | C89: 0 | D89: Lb,Oz,Acre | E89: 0 | F89: =C89*E89 -> 0 | G89: 0
B90: Other Chemical 1 | C90: 0 | D90: Lb,Oz,Acre | E90: 0 | F90: 0 | G90: =+F90*$D$5 -> 0
B91: Other Chemical 2 | C91: 0 | D91: Lb,Oz,Acre | E91: 0 | F91: 0 | G91: =+F91*$D$5 -> 0
B92: Other Chemical 3 | C92: 0 | D92: Lb,Oz,Acre | E92: 0 | F92: 0 | G92: =+F92*$D$5 -> 0
B93: Other Chemical 4 | C93: 0 | D93: Lb,Oz,Acre | E93: 0 | F93: 0 | G93: =+F93*$D$5 -> 0
B94: Other Chemical 5 | C94: 0 | D94: Lb,Oz,Acre | E94: 0 | F94: 0 | G94: =+F94*$D$5 -> 0
A95: Irrigation
B96: Well Expense | C96: 0 | D96: Acre | E96: 0 | F96: =C96*E96 -> 0 | G96: =+F96*$D$5 -> 0
B97: Pump Fuel | C97: 0 | D97: Mcf,kWh,Gallon | E97: 0 | F97: 0 | G97: 0
B98: Pump Expense | C98: 0 | D98: Acre | E98: 0 | F98: 0 | G98: 0
B99: Irrigation Equipment Expense | C99: 0 | D99: Acre | E99: 0 | F99: 0 | G99: 0
B100: Repairs | C100: 0 | D100: Acre | E100: 0 | F100: 0 | G100: 0
B101: Drip Tape | C101: 0 | D101: Foot,Acre | E101: 0 | F101: 0 | G101: 0
B102: Water Cost | C102: 0 | D102: AcIn,Gallon | E102: 0 | F102: 0 | G102: 0
B103: Other Irrigation Expense 1 | C103: 0 | D103: Acre | E103: 0 | F103: 0 | G103: 0
B104: Other Irrigation Expense 2 | C104: 0 | D104: Acre | E104: 0 | F104: 0 | G104: 0
A105: Miscellaneous Expenses
B106: Crop Insurance | C106: 0 | D106: Acre | E106: 0 | F106: =C106*E106 -> 0 | G106: 0
B107: Other Variable Expense 1 | C107: 0 | D107: Enter Unit | E107: 0 | F107: 0 | G107: 0
B108: Other Variable Expense 2 | C108: 0 | D108: Enter Unit | E108: 0 | F108: 0 | G108: 0
B109: Other Variable Expense 3 | C109: 0 | D109: Enter Unit | E109: 0 | F109: 0 | G109: 0
B110: Other Variable Expense 4 | C110: 0 | D110: Enter Unit | E110: 0 | F110: 0 | G110: 0
B111: Other Variable Expense 5 | C111: 0 | D111: Enter Unit | E111: 0 | F111: 0 | G111: 0
B112: Other Variable Expense 6 | C112: 0 | D112: Enter Unit | E112: 0 | F112: 0 | G112: 0
B113: Other Variable Expense 7 | C113: 0 | D113: Enter Unit | E113: 0 | F113: 0 | G113: 0
B114: Other Variable Expense 8 | C114: 0 | D114: Enter Unit | E114: 0 | F114: 0 | G114: 0
B116: Operating Interest | E116: 0 | F116: =+SUM(F23:F115)/2*E116 -> 0 | G116: =+F116*$D$6 -> 0
A118: Total Variable Costs | F118: =+SUM(F23:F116) -> 0 | G118: =+SUM(G23:G116) -> 0
A120: Planned Returns Above Variable Costs | F120: =+F18-F118 -> 0 | G120: =+G18-G118 -> 0
B122: Breakeven Price to Cover Variable Costs | E122: =+IF(C9=0,0,F118-SUM(F10:F16)/C9) -> 0 | F122: =+D9 -> Cwt,lb,etc
G124: Enterprise
A125: FIXED COSTS | C125: Quantity | D125: Units | E125: $/Unit | F125: Total | G125: Total
B126: Land Rent or Expense | C126: 1 | D126: Acre | E126: 0 | F126: =C126*E126 -> 0 | G126: =+F126*$D$6 -> 0
B127: Depreciation - Equipment | C127: 1 | D127: Acre | E127: 0 | F127: =C127*E127 -> 0 | G127: 0
B128: Equipment Investment | C128: 0 | D128: $ | E128: 0 | F128: 0 | G128: 0
B129: Insurance | C129: 1 | D129: Acre | E129: 0 | F129: 0 | G129: 0
B130: Management Fee | C130: 1 | D130: Acre | E130: 0 | F130: 0 | G130: 0
B131: Owner/Operator Labor | C131: 0 | D131: Acre | E131: 0 | F131: 0 | G131: 0
B132: Salaried Labor | C132: 1 | D132: Acre,$,etc | E132: 0 | F132: 0 | G132: 0
B133: Other Fixed Expense | C133: 0 | D133: Acre,$,etc | E133: 0 | F133: 0 | G133: 0
B134: Other Fixed Expense | C134: 0 | D134: Acre,$,etc | E134: 0 | F134: 0 | G134: 0
B135: Other Fixed Expense | C135: 0 | D135: Acre,$,etc | E135: 0 | F135: 0 | G135: 0
B136: Other Fixed Expense | C136: 0 | D136: Acre,$,etc | E136: 0 | F136: 0 | G136: 0
B137: Other Fixed Expense | C137: 0 | D137: Acre,$,etc | E137: 0 | F137: 0 | G137: 0
D139: Total Fixed Costs | F139: =+SUM(F126:F137) -> 0 | G139: =+SUM(G126:G137) -> 0
D141: Total Specified Costs | F141: =+F118+F139 -> 0 | G141: =+G118+G139 -> 0
D143: Returns Above Specifiied Costs | F143: =+F18-F141 -> 0 | G143: =+G18-G141 -> 0
B145: Breakeven Price to Cover Total Costs | E145: =+IF(C9=0,0,F141-SUM(F10:F16)/C9) -> 0 | F145: =+D9 -> Cwt,lb,etc
B147: Breakeven Prices for Your Crop
E148: Price To Cover | G148: Price To Cover
B149: Yield | C149: Yield | E149: Variable | G149: Total
B150: Percent | C150: =+D9 -> Cwt,lb,etc | E150: Costs | G150: Costs
B151: 0.75 | C151: =+$C$153*B151 -> 0 | E151: =+IF(C151=0,0,($F$118-SUM($F$10:$F$16))/C151) -> 0 | G151: =+IF(C151=0,0,($F$141-SUM($F$10:$F$16))/C151) -> 0
B152: 0.9 | C152: =+$C$153*B152 -> 0 | E152: =+IF(C152=0,0,($F$118-SUM($F$10:$F$16))/C152) -> 0 | G152: =+IF(C152=0,0,($F$141-SUM($F$10:$F$16))/C152) -> 0
B153: 1 | C153: =+C9 -> 0 | E153: =+IF(C153=0,0,($F$118-SUM($F$10:$F$16))/C153) -> 0 | G153: =+IF(C153=0,0,($F$141-SUM($F$10:$F$16))/C153) -> 0
B154: 1.1 | C154: 0 | E154: =+IF(C154=0,0,($F$118-SUM($F$10:$F$16))/C154) -> 0 | G154: =+IF(C154=0,0,($F$141-SUM($F$10:$F$16))/C154) -> 0
B155: 1.25 | C155: 0 | E155: =+IF(C155=0,0,($F$118-SUM($F$10:$F$16))/C155) -> 0 | G155: =+IF(C155=0,0,($F$141-SUM($F$10:$F$16))/C155) -> 0

Sheet Comparative Returns - Cash Rent
A1: Comparative Returns - Cash Rent
B3: Returns Above Total Specified Expenses | E3: Total Direct Expenses | H3: Breakeven Yield to Cover Total Costs at Price Entered
B4: Total Costs | C4: Variable Costs | E4: Total Costs | F4: Variable Costs | H4: Price | I4: Units | J4: Total Costs | K4: Variable Costs
A5: FORAGE CROPS
A7: =+CoastalHay!A3 -> Coastal Bermudagrass Hay and Grazing (3 Cuttings) | B7: =+CoastalHay!TotRet -> 1391.48416 | C7: =+CoastalHay!VarRet -> 1459.649665 | E7: =+CoastalHay!TotExp -> 393.5158404 | F7: =+CoastalHay!VarExp -> 325.3503354 | H7: =+CoastalHay!Price -> 195 | I7: =+CoastalHay!Unit -> Roll | J7: =+IF($H7=0,0,E7/$H7) -> 2.018029951 | K7: 1.668463258
A8: =+CoastalPasture!A3 -> Coastal Bermudagrass Pasture | B8: =+CoastalPasture!TotRet -> -184.6092889 | C8: =+CoastalPasture!VarRet -> -151.6481618 | E8: =+CoastalPasture!TotExp -> 184.6092889 | F8: =+CoastalPasture!VarExp -> 151.6481618 | H8: =+CoastalPasture!Price -> 0 | I8: =+CoastalPasture!Unit ->  | J8: 0 | K8: 0
A9: =+SorghumHay!A3 -> Sorghum Hay (2 Cuttings) | B9: =+SorghumHay!TotRet -> 363.742514 | C9: =+SorghumHay!VarRet -> 431.0026745 | E9: =+SorghumHay!TotExp -> 356.257486 | F9: =+SorghumHay!VarExp -> 288.9973255 | H9: =+SorghumHay!Price -> 90 | I9: =+SorghumHay!Unit -> Roll | J9: 3.958416511 | K9: 3.211081395
A11: FIELD CROPS - IRRIGATED
A13: =+IrrigatedCotton!A3 -> Cotton - Genetically Modified Seed, Conv. Till-24 Row, Irrigated, 1250 lb. Yield Goal | B13: =+IrrigatedCotton!TotRet -> 464.9308172 | C13: =+IrrigatedCotton!VarRet -> 691.6438832 | E13: =+IrrigatedCotton!TotExp -> 969.6691828 | F13: =+IrrigatedCotton!VarExp -> 742.9561168 | H13: =+IrrigatedCotton!Price -> 0.9 | I13: =+IrrigatedCotton!Unit -> Pound | J13: =+IF($H13=0,0,E13/$H13) -> 1077.410203 | K13: 825.5067964
A14: =+IrrigatedSesame!A3 -> Sesame - Conventional Till-12 Row, Irrigated, 1100 lb. Yield Goal | B14: =+IrrigatedSesame!TotRet -> -13.80923976 | C14: =+IrrigatedSesame!VarRet -> 174.1246188 | E14: =+IrrigatedSesame!TotExp -> 365.8092398 | F14: =+IrrigatedSesame!VarExp -> 177.8753812 | H14: =+IrrigatedSesame!Price -> 0.32 | I14: =+IrrigatedSesame!Unit -> Pound | J14: 1143.153874 | K14: 555.8605664
A15: =+IrrigatedSorghumLCB!A3 -> Sorghum - Conventional Till-24 Row, Irrigated, 100 bu. Yield Goal | B15: =+IrrigatedSorghumLCB!TotRet -> -52.15953369 | C15: =+IrrigatedSorghumLCB!VarRet -> 148.5995139 | E15: =+IrrigatedSorghumLCB!TotExp -> 562.1595337 | F15: =+IrrigatedSorghumLCB!VarExp -> 361.4004861 | H15: =+IrrigatedSorghumLCB!Price -> 5.1 | I15: =+IrrigatedSorghumLCB!Unit -> Bushel | J15: 110.2273595 | K15: 70.86284041
A16: =+IrrigatedWheatLCB!A3 -> Hard Red Spring Wheat, Irrigated, 60 bu. Yield Goal | B16: =+IrrigatedWheatLCB!TotRet -> 11.86934829 | C16: =+IrrigatedWheatLCB!VarRet -> 211.1705711 | E16: =+IrrigatedWheatLCB!TotExp -> 483.1306517 | F16: =+IrrigatedWheatLCB!VarExp -> 283.8294289 | H16: =+IrrigatedWheatLCB!Price -> 8.25 | I16: =+IrrigatedWheatLCB!Unit -> Bushel | J16: 58.56129112 | K16: 34.40356714
A18: FIELD CROPS - DRYLAND, LOWER COAST
A20: =+CanolaLCB!A3 -> Canola, Dryland, 1500 lb. Yield Goal - Lower Coast | B20: =+CanolaLCB!TotRet -> -74.78204698 | C20: =+CanolaLCB!VarRet -> 43.9362468 | E20: =+CanolaLCB!TotExp -> 344.782047 | F20: =+CanolaLCB!VarExp -> 226.0637532 | H20: =+CanolaLCB!Price -> 0.18 | I20: =+CanolaLCB!Unit -> Pound | J20: =+IF($H20=0,0,E20/$H20) -> 1915.455817 | K20: 1255.90974
A21: =+CottonLCB!A3 -> Cotton - Conventional Seed, Till-24 Row, Dryland, 800 lb. Yield Goal - Lower Coast | B21: =+CottonLCB!TotRet -> 219.7434203 | C21: =+CottonLCB!VarRet -> 370.4382198 | E21: =+CottonLCB!TotExp -> 709.0565797 | F21: =+CottonLCB!VarExp -> 558.3617802 | H21: =+CottonLCB!Price -> 0.9 | I21: =+CottonLCB!Unit -> Pound | J21: 787.8406441 | K21: 620.401978
A22: =+Cotton!A3 -> Cotton - Genetically Modified Seed, Conv. Till-24 Row, Dryland, 800 lb. Yield Goal - Lower Coast | B22: =+Cotton!TotRet -> 240.046446 | C22: =+Cotton!VarRet -> 389.799545 | E22: =+Cotton!TotExp -> 688.753554 | F22: =+Cotton!VarExp -> 539.000455 | H22: =+Cotton!Price -> 0.9 | I22: =+Cotton!Unit -> Pound | J22: 765.2817267 | K22: 598.8893945
A23: =+Sesame!A3 -> Sesame - Conventional Till-12 Row, Dryland, 800 lb. Yield Goal - Lower Coast | B23: =+Sesame!TotRet -> -40.36914051 | C23: =+Sesame!VarRet -> 91.09475103 | E23: =+Sesame!TotExp -> 296.3691405 | F23: =+Sesame!VarExp -> 164.905249 | H23: =+Sesame!Price -> 0.32 | I23: =+Sesame!Unit -> Pound | J23: 926.1535641 | K23: 515.328903
A24: =+SorghumLCB!A3 -> Sorghum - Conventional Till-24 Row, Dryland, 72 bu. Yield Goal - Lower Coast | B24: =+SorghumLCB!TotRet -> -22.39027063 | C24: =+SorghumLCB!VarRet -> 120.4868923 | E24: =+SorghumLCB!TotExp -> 389.5902706 | F24: =+SorghumLCB!VarExp -> 246.7131077 | H24: =+SorghumLCB!Price -> 5.1 | I24: =+SorghumLCB!Unit -> Bushel | J24: 76.39024914 | K24: 48.37511915
A25: =+WheatLCB!A3 -> Hard Red Spring Wheat, Dryland, 35 bu. Yield Goal - Lower Coast | B25: =+WheatLCB!TotRet -> -11.88359062 | C25: =+WheatLCB!VarRet -> 106.8305027 | E25: =+WheatLCB!TotExp -> 300.6335906 | F25: =+WheatLCB!VarExp -> 181.9194973 | H25: =+WheatLCB!Price -> 8.25 | I25: =+WheatLCB!Unit -> Bushel | J25: 36.44043523 | K25: 22.05084816
A26: =+WheatNW!A3 -> Hard Red Spring Wheat, Dryland, 35 bu. Yield Goal, Northwest - Lower Coast | B26: =+WheatNW!TotRet -> -16.9766259 | C26: =+WheatNW!VarRet -> 101.7374674 | E26: =+WheatNW!TotExp -> 305.7266259 | F26: =+WheatNW!VarExp -> 187.0125326 | H26: =+WheatNW!Price -> 8.25 | I26: =+WheatNW!Unit -> Bushel | J26: 37.05777284 | K26: 22.66818577
A28: FIELD CROPS - DRYLAND, UPPER COAST
A30: =+Corn!A3 -> Corn - GMO Seed, Conventional Till-12 Row, Dryland, 100 bu. Yield Goal - Upper Coast | B30: =+Corn!TotRet -> 34.79671525 | C30: =+Corn!VarRet -> 187.1896975 | E30: =+Corn!TotExp -> 565.2032847 | F30: =+Corn!VarExp -> 412.8103025 | H30: =+Corn!Price -> 6 | I30: =+Corn!Unit -> Bushel | J30: =+IF($H30=0,0,E30/$H30) -> 94.20054746 | K30: 68.80171708
A31: =+CottonUCB!A3 -> Cotton - GMO Seed, Conv. Till-12 Row, Dryland, 900 lb. Yield Goal - Upper Coast | B31: =+CottonUCB!TotRet -> 306.2042363 | C31: =+CottonUCB!VarRet -> 477.5024834 | E31: =+CottonUCB!TotExp -> 727.3557637 | F31: =+CottonUCB!VarExp -> 556.0575166 | H31: =+CottonUCB!Price -> 0.9 | I31: =+CottonUCB!Unit -> Pound | J31: 808.1730707 | K31: 617.8416851
A32: =+SorghumUCB!A3 -> Sorghum - Conventional Till-12 Row, Dryland, 90 bu. Yield Goal - Upper Coast | B32: =+SorghumUCB!TotRet -> 45.02623338 | C32: =+SorghumUCB!VarRet -> 193.046653 | E32: =+SorghumUCB!TotExp -> 413.9737666 | F32: =+SorghumUCB!VarExp -> 265.953347 | H32: =+SorghumUCB!Price -> 5.1 | I32: =+SorghumUCB!Unit -> Bushel | J32: 81.17132679 | K32: 52.1477151
A33: =+Soybeans!A3 -> Soybeans - GMO Seed, Conventional Till-12 Row, Dryland, 30 bu. Yield Goal - Upper Coast | B33: =+Soybeans!TotRet -> 10.39055224 | C33: =+Soybeans!VarRet -> 151.3244262 | E33: =+Soybeans!TotExp -> 373.6094478 | F33: =+Soybeans!VarExp -> 232.6755738 | H33: =+Soybeans!Price -> 12.8 | I33: =+Soybeans!Unit -> Bushel | J33: 29.18823811 | K33: 18.1777792
A34: =+WheatUCB!A3 -> Soft Red Winter Wheat, 45 bu. Yield Goal - Upper Coast | B34: =+WheatUCB!TotRet -> -16.40930388 | C34: =+WheatUCB!VarRet -> 122.2868277 | E34: =+WheatUCB!TotExp -> 358.4093039 | F34: =+WheatUCB!VarExp -> 219.7131723 | H34: =+WheatUCB!Price -> 7.6 | I34: =+WheatUCB!Unit -> Bushel | J34: 47.15911893 | K34: 28.90962793
A36: FIELD CROPS - RICE
A38: =+RiceFirstCrop!A3 -> Rice West of Houston, 1st Crop, Surface Water | B38: =+RiceFirstCrop!TotRet -> -58.05934981 | C38: =+RiceFirstCrop!VarRet -> 200.6802776 | E38: =+RiceFirstCrop!TotExp -> 1178.05935 | F38: =+RiceFirstCrop!VarExp -> 919.3197224 | H38: =+RiceFirstCrop!Price -> 7.26 | I38: =+RiceFirstCrop!Unit -> CWT | J38: =+IF($H38=0,0,E38/$H38) -> 162.2671281 | K38: =+IF($H38=0,0,F38/$H38) -> 126.6280609
A39: =+RiceSecondCrop!A3 -> Rice West of Houston, 2nd Crop, Surface Water | B39: =+RiceSecondCrop!TotRet -> 5.294011466 | C39: =+RiceSecondCrop!VarRet -> 29.48680934 | E39: =+RiceSecondCrop!TotExp -> 194.7059885 | F39: =+RiceSecondCrop!VarExp -> 170.5131907 | H39: =+RiceSecondCrop!Price -> 7 | I39: =+RiceSecondCrop!Unit -> CWT | J39: =+IF($H39=0,0,E39/$H39) -> 27.81514122 | K39: =+IF($H39=0,0,F39/$H39) -> 24.35902724
A41: LIVESTOCK
A43: =+CowCalf!A3 -> Cow-Calf Improved Pasture | B43: =+CowCalf!TotRet -> 162.9272906 | C43: =+CowCalf!VarRet -> 569.3352487 | E43: =+CowCalf!TotExp -> 691.5057094 | F43: =+CowCalf!VarExp -> 285.0977513 | H43: =+CowCalf!Price -> 183.1290323 | I43: =+CowCalf!Unit -> CWT | J43: =+IF($H43=0,0,E43/$H43) -> 3.776057247 | K43: 1.556813509
A44: =+StockersSummer!A3 -> Summer Stocker Calf Budget (160 Days Grazing) | B44: =+StockersSummer!TotRet -> 114.6498606 | C44: =+StockersSummer!VarRet -> 114.6498606 | E44: =+StockersSummer!TotExp -> 1260.550139 | F44: =+StockersSummer!VarExp -> 1260.550139 | H44: =+StockersSummer!Price -> 191 | I44: =+StockersSummer!Unit -> CWT | J44: 6.59973895 | K44: 6.59973895
A45: =+StockerWinter!A3 -> Winter Stocker Calf Budget (110 Says Grazing) | B45: =+StockerWinter!TotRet -> -96.70693963 | C45: =+StockerWinter!VarRet -> -96.70693963 | E45: =+StockerWinter!TotExp -> 1168.35494 | F45: =+StockerWinter!VarExp -> 1168.35494 | H45: =+StockerWinter!Price -> 183 | I45: =+StockerWinter!Unit -> CWT | J45: =+IF($H45=0,0,E45/$H45) -> 6.384453222 | K45: =+IF($H45=0,0,F45/$H45) -> 6.384453222

Sheet Comparative Returns-Share Rent
A1: Comparative Returns - Share Rent
A3: Variable Costs to the right of Total Costs | B3: Returns Above Total Specified Expenses | F3: Total Direct Expenses | J3: Breakeven Yield to Cover Total Costs at Price Entered | P3: Returns Above Variable Specified Expenses | T3: Variable Direct Expenses | X3: Breakeven Yield to Cover Variavle Costs at Price Entered
B4: Total | C4: Tenant | D4: Landlord | F4: Total | G4: Tenant | H4: Landlord | J4: Price | K4: Units | L4: Total | M4: Tenant | N4: Landlord | P4: Total | Q4: Tenant | R4: Landlord | T4: Total | U4: Tenant | V4: Landlord | X4: Price | Y4: Units | Z4: Total | AA4: Tenant | AB4: Landlord
A5: FORAGE CROPS
A7: =+CoastalHay!A3 -> Coastal Bermudagrass Hay and Grazing (3 Cuttings) | B7: =+CoastalHay!TotRet -> 1391.48416 | C7: =+CoastalHay!TTotRet -> 1391.48416 | D7: =+CoastalHay!LTotRet -> 0 | F7: =+CoastalHay!TotExp -> 393.5158404 | G7: =+CoastalHay!TTotExp -> 393.5158404 | H7: =+CoastalHay!LTotExp -> 0 | J7: =+CoastalHay!Price -> 195 | K7: =+CoastalHay!Unit -> Roll | L7: =+IF($J7=0,0,F7/$J7) -> 2.018029951 | M7: 2.018029951 | N7: 0 | P7: =+CoastalHay!VarRet -> 1459.649665 | Q7: =+CoastalHay!TVarRet -> 1459.649665 | R7: =+CoastalHay!LVarRet -> 0 | T7: =+CoastalHay!VarExp -> 325.3503354 | U7: =+CoastalHay!TVarExp -> 325.3503354 | V7: =+CoastalHay!LVarExp -> 0 | X7: =+CoastalHay!Price -> 195 | Y7: =+CoastalHay!Unit -> Roll | Z7: =+IF($J7=0,0,T7/$J7) -> 1.668463258 | AA7: 1.668463258 | AB7: 0
A8: =+CoastalPasture!A3 -> Coastal Bermudagrass Pasture | B8: =+CoastalPasture!TotRet -> -184.6092889 | C8: =+CoastalPasture!TTotRet -> -184.6092889 | D8: =+CoastalPasture!LTotRet -> 0 | F8: =+CoastalPasture!TotExp -> 184.6092889 | G8: =+CoastalPasture!TTotExp -> 184.6092889 | H8: =+CoastalPasture!LTotExp -> 0 | J8: =+CoastalPasture!Price -> 0 | K8: =+CoastalPasture!Unit ->  | L8: 0 | M8: 0 | N8: 0 | P8: =+CoastalPasture!VarRet -> -151.6481618 | Q8: =+CoastalPasture!TVarRet -> -151.6481618 | R8: =+CoastalPasture!LVarRet -> 0 | T8: =+CoastalPasture!VarExp -> 151.6481618 | U8: =+CoastalPasture!TVarExp -> 151.6481618 | V8: =+CoastalPasture!LVarExp -> 0 | X8: =+CoastalPasture!Price -> 0 | Y8: =+CoastalPasture!Unit ->  | Z8: 0 | AA8: 0 | AB8: 0
A9: =+SorghumHay!A3 -> Sorghum Hay (2 Cuttings) | B9: =+SorghumHay!TotRet -> 363.742514 | C9: =+SorghumHay!TTotRet -> 363.742514 | D9: =+SorghumHay!LTotRet -> 0 | F9: =+SorghumHay!TotExp -> 356.257486 | G9: =+SorghumHay!TTotExp -> 356.257486 | H9: =+SorghumHay!LTotExp -> 0 | J9: =+SorghumHay!Price -> 90 | K9: =+SorghumHay!Unit -> Roll | L9: 3.958416511 | M9: 3.958416511 | N9: 0 | P9: =+SorghumHay!VarRet -> 431.0026745 | Q9: =+SorghumHay!TVarRet -> 431.0026745 | R9: =+SorghumHay!LVarRet -> 0 | T9: =+SorghumHay!VarExp -> 288.9973255 | U9: =+SorghumHay!TVarExp -> 288.9973255 | V9: =+SorghumHay!LVarExp -> 0 | X9: =+SorghumHay!Price -> 90 | Y9: =+SorghumHay!Unit -> Roll | Z9: 3.211081395 | AA9: 3.211081395 | AB9: 0
A11: FIELD CROPS - IRRIGATED
A13: =+IrrigatedCotton!A3 -> Cotton - Genetically Modified Seed, Conv. Till-24 Row, Irrigated, 1250 lb. Yield Goal | B13: =+IrrigatedCotton!TotRet -> 464.9308172 | C13: =+IrrigatedCotton!TTotRet -> 464.9308172 | D13: =+IrrigatedCotton!LTotRet -> 0 | F13: =+IrrigatedCotton!TotExp -> 969.6691828 | G13: =+IrrigatedCotton!TTotExp -> 969.6691828 | H13: =+IrrigatedCotton!LTotExp -> 0 | J13: =+IrrigatedCotton!Price -> 0.9 | K13: =+IrrigatedCotton!Unit -> Pound | L13: =+IF($J13=0,0,F13/$J13) -> 1077.410203 | M13: 1077.410203 | N13: 0 | P13: =+IrrigatedCotton!VarRet -> 691.6438832 | Q13: =+IrrigatedCotton!TVarRet -> 691.6438832 | R13: =+IrrigatedCotton!LVarRet -> 0 | T13: =+IrrigatedCotton!VarExp -> 742.9561168 | U13: =+IrrigatedCotton!TVarExp -> 742.9561168 | V13: =+IrrigatedCotton!LVarExp -> 0 | X13: =+IrrigatedCotton!Price -> 0.9 | Y13: =+IrrigatedCotton!Unit -> Pound | Z13: =+IF($J13=0,0,T13/$J13) -> 825.5067964 | AA13: 825.5067964 | AB13: 0
A14: =+IrrigatedSesame!A3 -> Sesame - Conventional Till-12 Row, Irrigated, 1100 lb. Yield Goal | B14: =+IrrigatedSesame!TotRet -> -13.80923976 | C14: =+IrrigatedSesame!TTotRet -> -13.80923976 | D14: =+IrrigatedSesame!LTotRet -> 0 | F14: =+IrrigatedSesame!TotExp -> 365.8092398 | G14: =+IrrigatedSesame!TTotExp -> 365.8092398 | H14: =+IrrigatedSesame!LTotExp -> 0 | J14: =+IrrigatedSesame!Price -> 0.32 | K14: =+IrrigatedSesame!Unit -> Pound | L14: =+IF($J14=0,0,F14/$J14) -> 1143.153874 | M14: 1143.153874 | N14: 0 | P14: =+IrrigatedSesame!VarRet -> 174.1246188 | Q14: =+IrrigatedSesame!TVarRet -> 174.1246188 | R14: =+IrrigatedSesame!LVarRet -> 0 | T14: =+IrrigatedSesame!VarExp -> 177.8753812 | U14: =+IrrigatedSesame!TVarExp -> 177.8753812 | V14: =+IrrigatedSesame!LVarExp -> 0 | X14: =+IrrigatedSesame!Price -> 0.32 | Y14: =+IrrigatedSesame!Unit -> Pound | Z14: =+IF($J14=0,0,T14/$J14) -> 555.8605664 | AA14: 555.8605664 | AB14: 0
A15: =+IrrigatedSorghumLCB!A3 -> Sorghum - Conventional Till-24 Row, Irrigated, 100 bu. Yield Goal | B15: =+IrrigatedSorghumLCB!TotRet -> -52.15953369 | C15: =+IrrigatedSorghumLCB!TTotRet -> -52.15953369 | D15: =+IrrigatedSorghumLCB!LTotRet -> 0 | F15: =+IrrigatedSorghumLCB!TotExp -> 562.1595337 | G15: =+IrrigatedSorghumLCB!TTotExp -> 562.1595337 | H15: =+IrrigatedSorghumLCB!LTotExp -> 0 | J15: =+IrrigatedSorghumLCB!Price -> 5.1 | K15: =+IrrigatedSorghumLCB!Unit -> Bushel | L15: 110.2273595 | M15: 110.2273595 | N15: 0 | P15: =+IrrigatedSorghumLCB!VarRet -> 148.5995139 | Q15: =+IrrigatedSorghumLCB!TVarRet -> 148.5995139 | R15: =+IrrigatedSorghumLCB!LVarRet -> 0 | T15: =+IrrigatedSorghumLCB!VarExp -> 361.4004861 | U15: =+IrrigatedSorghumLCB!TVarExp -> 361.4004861 | V15: =+IrrigatedSorghumLCB!LVarExp -> 0 | X15: =+IrrigatedSorghumLCB!Price -> 5.1 | Y15: =+IrrigatedSorghumLCB!Unit -> Bushel | Z15: 70.86284041 | AA15: 70.86284041 | AB15: 0
A16: =+IrrigatedWheatLCB!A3 -> Hard Red Spring Wheat, Irrigated, 60 bu. Yield Goal | B16: =+IrrigatedWheatLCB!TotRet -> 11.86934829 | C16: =+IrrigatedWheatLCB!TTotRet -> 11.86934829 | D16: =+IrrigatedWheatLCB!LTotRet -> 0 | F16: =+IrrigatedWheatLCB!TotExp -> 483.1306517 | G16: =+IrrigatedWheatLCB!TTotExp -> 483.1306517 | H16: =+IrrigatedWheatLCB!LTotExp -> 0 | J16: =+IrrigatedWheatLCB!Price -> 8.25 | K16: =+IrrigatedWheatLCB!Unit -> Bushel | L16: 58.56129112 | M16: 58.56129112 | N16: 0 | P16: =+IrrigatedWheatLCB!VarRet -> 211.1705711 | Q16: =+IrrigatedWheatLCB!TVarRet -> 211.1705711 | R16: =+IrrigatedWheatLCB!LVarRet -> 0 | T16: =+IrrigatedWheatLCB!VarExp -> 283.8294289 | U16: =+IrrigatedWheatLCB!TVarExp -> 283.8294289 | V16: =+IrrigatedWheatLCB!LVarExp -> 0 | X16: =+IrrigatedWheatLCB!Price -> 8.25 | Y16: =+IrrigatedWheatLCB!Unit -> Bushel | Z16: 34.40356714 | AA16: 34.40356714 | AB16: 0
A18: FIELD CROPS - DRYLAND
A20: =+CanolaLCB!A3 -> Canola, Dryland, 1500 lb. Yield Goal - Lower Coast | B20: =+CanolaLCB!TotRet -> -74.78204698 | C20: =+CanolaLCB!TTotRet -> -74.78204698 | D20: =+CanolaLCB!LTotRet -> 0 | F20: =+CanolaLCB!TotExp -> 344.782047 | G20: =+CanolaLCB!TTotExp -> 344.782047 | H20: =+CanolaLCB!LTotExp -> 0 | J20: =+CanolaLCB!Price -> 0.18 | K20: =+CanolaLCB!Unit -> Pound | L20: =+IF($J20=0,0,F20/$J20) -> 1915.455817 | M20: 1915.455817 | N20: 0 | P20: =+CanolaLCB!VarRet -> 43.9362468 | Q20: =+CanolaLCB!TVarRet -> 43.9362468 | R20: =+CanolaLCB!LVarRet -> 0 | T20: =+CanolaLCB!VarExp -> 226.0637532 | U20: =+CanolaLCB!TVarExp -> 226.0637532 | V20: =+CanolaLCB!LVarExp -> 0 | X20: =+CanolaLCB!Price -> 0.18 | Y20: =+CanolaLCB!Unit -> Pound | Z20: =+IF($J20=0,0,T20/$J20) -> 1255.90974 | AA20: 1255.90974 | AB20: 0
A21: =+CottonLCB!A3 -> Cotton - Conventional Seed, Till-24 Row, Dryland, 800 lb. Yield Goal - Lower Coast | B21: =+CottonLCB!TotRet -> 219.7434203 | C21: =+CottonLCB!TTotRet -> 219.7434203 | D21: =+CottonLCB!LTotRet -> 0 | F21: =+CottonLCB!TotExp -> 709.0565797 | G21: =+CottonLCB!TTotExp -> 709.0565797 | H21: =+CottonLCB!LTotExp -> 0 | J21: =+CottonLCB!Price -> 0.9 | K21: =+CottonLCB!Unit -> Pound | L21: 787.8406441 | M21: 787.8406441 | N21: 0 | P21: =+CottonLCB!VarRet -> 370.4382198 | Q21: =+CottonLCB!TVarRet -> 370.4382198 | R21: =+CottonLCB!LVarRet -> 0 | T21: =+CottonLCB!VarExp -> 558.3617802 | U21: =+CottonLCB!TVarExp -> 558.3617802 | V21: =+CottonLCB!LVarExp -> 0 | X21: =+CottonLCB!Price -> 0.9 | Y21: =+CottonLCB!Unit -> Pound | Z21: 620.401978 | AA21: 620.401978 | AB21: 0
A22: =+Cotton!A3 -> Cotton - Genetically Modified Seed, Conv. Till-24 Row, Dryland, 800 lb. Yield Goal - Lower Coast | B22: =+Cotton!TotRet -> 240.046446 | C22: =+Cotton!TTotRet -> 240.046446 | D22: =+Cotton!LTotRet -> 0 | F22: =+Cotton!TotExp -> 688.753554 | G22: =+Cotton!TTotExp -> 688.753554 | H22: =+Cotton!LTotExp -> 0 | J22: =+Cotton!Price -> 0.9 | K22: =+Cotton!Unit -> Pound | L22: 765.2817267 | M22: 765.2817267 | N22: 0 | P22: =+Cotton!VarRet -> 389.799545 | Q22: =+Cotton!TVarRet -> 389.799545 | R22: =+Cotton!LVarRet -> 0 | T22: =+Cotton!VarExp -> 539.000455 | U22: =+Cotton!TVarExp -> 539.000455 | V22: =+Cotton!LVarExp -> 0 | X22: =+Cotton!Price -> 0.9 | Y22: =+Cotton!Unit -> Pound | Z22: 598.8893945 | AA22: 598.8893945 | AB22: 0
A23: =+Sesame!A3 -> Sesame - Conventional Till-12 Row, Dryland, 800 lb. Yield Goal - Lower Coast | B23: =+Sesame!TotRet -> -40.36914051 | C23: =+Sesame!TTotRet -> -40.36914051 | D23: =+Sesame!LTotRet -> 0 | F23: =+Sesame!TotExp -> 296.3691405 | G23: =+Sesame!TTotExp -> 296.3691405 | H23: =+Sesame!LTotExp -> 0 | J23: =+Sesame!Price -> 0.32 | K23: =+Sesame!Unit -> Pound | L23: 926.1535641 | M23: 926.1535641 | N23: 0 | P23: =+Sesame!VarRet -> 91.09475103 | Q23: =+Sesame!TVarRet -> 91.09475103 | R23: =+Sesame!LVarRet -> 0 | T23: =+Sesame!VarExp -> 164.905249 | U23: =+Sesame!TVarExp -> 164.905249 | V23: =+Sesame!LVarExp -> 0 | X23: =+Sesame!Price -> 0.32 | Y23: =+Sesame!Unit -> Pound | Z23: 515.328903 | AA23: 515.328903 | AB23: 0
A24: =+SorghumLCB!A3 -> Sorghum - Conventional Till-24 Row, Dryland, 72 bu. Yield Goal - Lower Coast | B24: =+SorghumLCB!TotRet -> -22.39027063 | C24: =+SorghumLCB!TTotRet -> -22.39027063 | D24: =+SorghumLCB!LTotRet -> 0 | F24: =+SorghumLCB!TotExp -> 389.5902706 | G24: =+SorghumLCB!TTotExp -> 389.5902706 | H24: =+SorghumLCB!LTotExp -> 0 | J24: =+SorghumLCB!Price -> 5.1 | K24: =+SorghumLCB!Unit -> Bushel | L24: 76.39024914 | M24: 76.39024914 | N24: 0 | P24: =+SorghumLCB!VarRet -> 120.4868923 | Q24: =+SorghumLCB!TVarRet -> 120.4868923 | R24: =+SorghumLCB!LVarRet -> 0 | T24: =+SorghumLCB!VarExp -> 246.7131077 | U24: =+SorghumLCB!TVarExp -> 246.7131077 | V24: =+SorghumLCB!LVarExp -> 0 | X24: =+SorghumLCB!Price -> 5.1 | Y24: =+SorghumLCB!Unit -> Bushel | Z24: 48.37511915 | AA24: 48.37511915 | AB24: 0
A25: =+WheatLCB!A3 -> Hard Red Spring Wheat, Dryland, 35 bu. Yield Goal - Lower Coast | B25: =+WheatLCB!TotRet -> -11.88359062 | C25: =+WheatLCB!TTotRet -> -11.88359062 | D25: =+WheatLCB!LTotRet -> 0 | F25: =+WheatLCB!TotExp -> 300.6335906 | G25: =+WheatLCB!TTotExp -> 300.6335906 | H25: =+WheatLCB!LTotExp -> 0 | J25: =+WheatLCB!Price -> 8.25 | K25: =+WheatLCB!Unit -> Bushel | L25: 36.44043523 | M25: 36.44043523 | N25: 0 | P25: =+WheatLCB!VarRet -> 106.8305027 | Q25: =+WheatLCB!TVarRet -> 106.8305027 | R25: =+WheatLCB!LVarRet -> 0 | T25: =+WheatLCB!VarExp -> 181.9194973 | U25: =+WheatLCB!TVarExp -> 181.9194973 | V25: =+WheatLCB!LVarExp -> 0 | X25: =+WheatLCB!Price -> 8.25 | Y25: =+WheatLCB!Unit -> Bushel | Z25: 22.05084816 | AA25: 22.05084816 | AB25: 0
A26: =+WheatNW!A3 -> Hard Red Spring Wheat, Dryland, 35 bu. Yield Goal, Northwest - Lower Coast | B26: =+WheatNW!TotRet -> -16.9766259 | C26: =+WheatNW!TTotRet -> -16.9766259 | D26: =+WheatNW!LTotRet -> 0 | F26: =+WheatNW!TotExp -> 305.7266259 | G26: =+WheatNW!TTotExp -> 305.7266259 | H26: =+WheatNW!LTotExp -> 0 | J26: =+WheatNW!Price -> 8.25 | K26: =+WheatNW!Unit -> Bushel | L26: 37.05777284 | M26: 37.05777284 | N26: 0 | P26: =+WheatNW!VarRet -> 101.7374674 | Q26: =+WheatNW!TVarRet -> 101.7374674 | R26: =+WheatNW!LVarRet -> 0 | T26: =+WheatNW!VarExp -> 187.0125326 | U26: =+WheatNW!TVarExp -> 187.0125326 | V26: =+WheatNW!LVarExp -> 0 | X26: =+WheatNW!Price -> 8.25 | Y26: =+WheatNW!Unit -> Bushel | Z26: 22.66818577 | AA26: 22.66818577 | AB26: 0
A28: FIELD CROPS - DRYLAND, UPPER COAST
A30: =+Corn!A3 -> Corn - GMO Seed, Conventional Till-12 Row, Dryland, 100 bu. Yield Goal - Upper Coast | B30: =+Corn!TotRet -> 34.79671525 | C30: =+Corn!TTotRet -> 34.79671525 | D30: =+Corn!LTotRet -> 0 | F30: =+Corn!TotExp -> 565.2032847 | G30: =+Corn!TTotExp -> 565.2032847 | H30: =+Corn!LTotExp -> 0 | J30: =+Corn!Price -> 6 | K30: =+Corn!Unit -> Bushel | L30: =+IF($J30=0,0,F30/$J30) -> 94.20054746 | M30: 94.20054746 | N30: 0 | P30: =+Corn!VarRet -> 187.1896975 | Q30: =+Corn!TVarRet -> 187.1896975 | R30: =+Corn!LVarRet -> 0 | T30: =+Corn!VarExp -> 412.8103025 | U30: =+Corn!TVarExp -> 412.8103025 | V30: =+Corn!LVarExp -> 0 | X30: =+Corn!Price -> 6 | Y30: =+Corn!Unit -> Bushel | Z30: =+IF($J30=0,0,T30/$J30) -> 68.80171708 | AA30: 68.80171708 | AB30: 0
A31: =+CottonUCB!A3 -> Cotton - GMO Seed, Conv. Till-12 Row, Dryland, 900 lb. Yield Goal - Upper Coast | B31: =+CottonUCB!TotRet -> 306.2042363 | C31: =+CottonUCB!TTotRet -> 306.2042363 | D31: =+CottonUCB!LTotRet -> 0 | F31: =+CottonUCB!TotExp -> 727.3557637 | G31: =+CottonUCB!TTotExp -> 727.3557637 | H31: =+CottonUCB!LTotExp -> 0 | J31: =+CottonUCB!Price -> 0.9 | K31: =+CottonUCB!Unit -> Pound | L31: 808.1730707 | M31: 808.1730707 | N31: 0 | P31: =+CottonUCB!VarRet -> 477.5024834 | Q31: =+CottonUCB!TVarRet -> 477.5024834 | R31: =+CottonUCB!LVarRet -> 0 | T31: =+CottonUCB!VarExp -> 556.0575166 | U31: =+CottonUCB!TVarExp -> 556.0575166 | V31: =+CottonUCB!LVarExp -> 0 | X31: =+CottonUCB!Price -> 0.9 | Y31: =+CottonUCB!Unit -> Pound | Z31: 617.8416851 | AA31: 617.8416851 | AB31: 0
A32: =+SorghumUCB!A3 -> Sorghum - Conventional Till-12 Row, Dryland, 90 bu. Yield Goal - Upper Coast | B32: =+SorghumUCB!TotRet -> 45.02623338 | C32: =+SorghumUCB!TTotRet -> 45.02623338 | D32: =+SorghumUCB!LTotRet -> 0 | F32: =+SorghumUCB!TotExp -> 413.9737666 | G32: =+SorghumUCB!TTotExp -> 413.9737666 | H32: =+SorghumUCB!LTotExp -> 0 | J32: =+SorghumUCB!Price -> 5.1 | K32: =+SorghumUCB!Unit -> Bushel | L32: 81.17132679 | M32: 81.17132679 | N32: 0 | P32: =+SorghumUCB!VarRet -> 193.046653 | Q32: =+SorghumUCB!TVarRet -> 193.046653 | R32: =+SorghumUCB!LVarRet -> 0 | T32: =+SorghumUCB!VarExp -> 265.953347 | U32: =+SorghumUCB!TVarExp -> 265.953347 | V32: =+SorghumUCB!LVarExp -> 0 | X32: =+SorghumUCB!Price -> 5.1 | Y32: =+SorghumUCB!Unit -> Bushel | Z32: 52.1477151 | AA32: 52.1477151 | AB32: 0
